Workbook

Sheet Sample Report (hidden)
A2: Date
A3: Hen
A4: Program
A5: Start at 999999
A6: Sequence component 1 | B6: Time 1 | C6: Seqeunce Component 2 | D6: Time 2 | E6: Seqeunce Component 3 | F6: Time 3 | G6: Correct 0 = No 1=Yes | J6: Seqeunce | K6: Time
A7: 12 | B7: 7 | C7: 12 | D7: 42 | E7: 13 | F7: 18 | G7: if 77 new line, if 31 or 41 = yes new line on 77, | J7: =string of Seqeunce compponent 1, 2 & 3 | K7: =time 3
A8: This continues until ther is a 1 on its own to indicate start of summary data
J9: 10-19 =1
A10: Summary Data | J10: 20-29 =2
A11: Correct | B11: Incorrect | C11: Rft | D11: total | E11: Av Correct | F11: Av Incorrect | G11: Percent correct | H11: Time | J11: in this example the seqeunce would be 111
A12: 40 | B12: 33 | C12: 40 | D12: 73 | E12: 23.95 | F12: 15 | G12: 54 | H12: 806

Sheet Summary
A2: Day | B2: Date | C2: Average Response Rate | D2: Target % | E2: RF for non correct sequence | F2: U Value | K2: Block 1 | L2: Block 2 | M2: Block 3 | N2: Block 4 | O2: Block 5 | P2: Block 6
A3: 1 | B3: ='!N123A3B.AXT'!B2:C2 -> <date> | C3: =('!N123A3B.AXT'!F104/60)/'!N123A3B.AXT'!Q3 -> 2.844217687 | D3: ='!N123A3B.AXT'!N20/'!N123A3B.AXT'!Q3 -> 0.3673469388 | E3: =SUM('!N123A3B.AXT'!L20:Q20)/'!N123A3B.AXT'!Q3 -> 2.867346939 | F3: ='!N123A3B.AXT'!Q16 -> 0.3168174311 | J3: Average Response Rate | K3: =AVERAGE(C3:C7) -> 3.022817503 | L3: =AVERAGE(C8:C12) -> 3.009909054 | M3: =AVERAGE(C13:C17) -> 3.323309179 | N3: =AVERAGE(C18:C22) -> 4.237542725 | O3: =AVERAGE(C23:C27) -> 3.593761043 | P3: =AVERAGE(C28:C32) -> 3.231129644
A4: 2 | B4: ='!N12495B.AXT'!B2:C2 -> <date> | C4: =('!N12495B.AXT'!F96/60)/'!N12495B.AXT'!Q3 -> 2.679814815 | D4: ='!N12495B.AXT'!N20/'!N12495B.AXT'!Q3 -> 0.4111111111 | E4: =SUM('!N12495B.AXT'!L20:Q20)/'!N12495B.AXT'!Q3 -> 3.211111111 | F4: ='!N12495B.AXT'!Q16 -> 0.356500626 | J4: Target % | K4: =AVERAGE(D3:D7) -> 0.5480567769 | L4: =AVERAGE(D8:D12) -> 0.9324109142 | M4: =AVERAGE(D13:D17) -> 0.9334541063 | N4: =AVERAGE(D18:D22) -> 0.9447456986 | O4: =AVERAGE(D23:D27) -> 0.9304909561 | P4: =AVERAGE(D28:D32) -> 0.8524265767
A5: 3 | B5: ='!N125A0B.AXT'!B2:C2 -> <date> | C5: =('!N125A0B.AXT'!F80/60)/'!N125A0B.AXT'!Q3 -> 2.791216216 | D5: ='!N125A0B.AXT'!N20/'!N125A0B.AXT'!Q3 -> 0.527027027 | E5: =SUM('!N125A0B.AXT'!L20:Q20)/'!N125A0B.AXT'!Q3 -> 3.851351351 | F5: ='!N125A0B.AXT'!Q16 -> 0.3112647233 | J5: CCRF | K5: =AVERAGE(E3:E7) -> 3.603025964 | L5: =AVERAGE(E8:E12) -> 3.854987291 | M5: =AVERAGE(E13:E17) -> 4.345724638 | N5: =AVERAGE(E18:E22) -> 3.925653243 | O5: =AVERAGE(E23:E27) -> 3.857600591 | P5: =AVERAGE(E28:E32) -> 5.288527077
A6: 4 | B6: ='!N126A0B.AXT'!B2:C2 -> <date> | C6: =('!N126A0B.AXT'!F67/60)/'!N126A0B.AXT'!Q3 -> 3.303005464 | D6: ='!N126A0B.AXT'!N20/'!N126A0B.AXT'!Q3 -> 0.6393442623 | E6: =SUM('!N126A0B.AXT'!L20:Q20)/'!N126A0B.AXT'!Q3 -> 4.426229508 | F6: ='!N126A0B.AXT'!Q16 -> 0.2910089686 | J6: U Value | K6: =AVERAGE(F3:F7) -> 0.2943169401 | L6: =AVERAGE(F8:F12) -> 0.072800136 | M6: =AVERAGE(F13:F17) -> 0.07414256577 | N6: =AVERAGE(F18:F22) -> 0.06587415128 | O6: =AVERAGE(F23:F27) -> 0.08385732312 | P6: =AVERAGE(F28:F32) -> 0.1683590764
A7: 5 | B7: ='!N12795B.AXT'!B2:C2 -> <date> | C7: =('!N12795B.AXT'!F50/60)/'!N12795B.AXT'!Q3 -> 3.495833333 | D7: ='!N12795B.AXT'!N20/'!N12795B.AXT'!Q3 -> 0.7954545455 | E7: =SUM('!N12795B.AXT'!L20:Q20)/'!N12795B.AXT'!Q3 -> 3.659090909 | F7: ='!N12795B.AXT'!Q16 -> 0.1959929516
A8: 6 | B8: ='!N12891B.AXT'!B2:C2 -> <date> | C8: =('!N12891B.AXT'!F52/60)/'!N12891B.AXT'!Q3 -> 3.471014493 | D8: ='!N12891B.AXT'!N20/'!N12891B.AXT'!Q3 -> 0.8695652174 | E8: =SUM('!N12891B.AXT'!L20:Q20)/'!N12891B.AXT'!Q3 -> 3.608695652 | F8: ='!N12891B.AXT'!Q16 -> 0.1228205814
A9: 7 | B9: ='!N129A2B.AXT'!B2:C2 -> <date> | C9: =('!N129A2B.AXT'!F47/60)/'!N129A2B.AXT'!Q3 -> 2.814227642 | D9: ='!N129A2B.AXT'!N20/'!N129A2B.AXT'!Q3 -> 0.9756097561 | E9: =SUM('!N129A2B.AXT'!L20:Q20)/'!N129A2B.AXT'!Q3 -> 4.024390244 | F9: ='!N129A2B.AXT'!Q16 -> 0.03087735478 | G9: =K3 -> 3.022817503 | H9: =L3 -> 3.009909054 | I9: 3.323309179 | J9: 4.237542725 | K9: 3.593761043 | L9: 3.231129644 | M9: =K4 -> 0.5480567769 | N9: =L4 -> 0.9324109142 | O9: 0.9334541063 | P9: 0.9447456986 | Q9: 0.9304909561 | R9: 0.8524265767 | S9: =K6 -> 0.2943169401 | T9: =L6 -> 0.072800136 | U9: 0.07414256577 | V9: 0.06587415128 | W9: 0.08385732312 | X9: 0.1683590764
A10: 8 | B10: ='!N13092B.AXT'!B2:C2 -> <date> | C10: =('!N13092B.AXT'!F48/60)/'!N13092B.AXT'!Q3 -> 2.770238095 | D10: ='!N13092B.AXT'!N20/'!N13092B.AXT'!Q3 -> 0.9523809524 | E10: =SUM('!N13092B.AXT'!L20:Q20)/'!N13092B.AXT'!Q3 -> 3.928571429 | F10: ='!N13092B.AXT'!Q16 -> 0.06005107821
A11: 9 | B11: ='!N13192B.AXT'!B2:C2 -> <date> | C11: =('!N13192B.AXT'!F47/60)/'!N13192B.AXT'!Q3 -> 3.154065041 | D11: ='!N13192B.AXT'!N20/'!N13192B.AXT'!Q3 -> 0.9756097561 | E11: =SUM('!N13192B.AXT'!L20:Q20)/'!N13192B.AXT'!Q3 -> 4.024390244 | F11: ='!N13192B.AXT'!Q16 -> 0.03087735478
A12: 10 | B12: ='!N20192B.AXT'!B2:C2 -> <date> | C12: =('!N20192B.AXT'!F51/60)/'!N20192B.AXT'!Q3 -> 2.84 | D12: ='!N20192B.AXT'!N20/'!N20192B.AXT'!Q3 -> 0.8888888889 | E12: =SUM('!N20192B.AXT'!L20:Q20)/'!N20192B.AXT'!Q3 -> 3.688888889 | F12: ='!N20192B.AXT'!Q16 -> 0.1193743108
A13: 11 | B13: ='!N202B0B.AXT'!B2:C2 -> <date> | C13: =('!N202B0B.AXT'!F46/60)/'!N202B0B.AXT'!Q3 -> 4.06 | D13: ='!N202B0B.AXT'!N20/'!N202B0B.AXT'!Q3 -> 1 | E13: =SUM('!N202B0B.AXT'!L20:Q20)/'!N202B0B.AXT'!Q3 -> 4.1 | F13: ='!N202B0B.AXT'!Q16 -> 0
A14: 12 | B14: ='!N20385B.AXT'!B2:C2 -> <date> | C14: =('!N20385B.AXT'!F46/60)/'!N20385B.AXT'!Q3 -> 3.486666667 | D14: ='!N20385B.AXT'!N20/'!N20385B.AXT'!Q3 -> 0.975 | E14: =SUM('!N20385B.AXT'!L20:Q20)/'!N20385B.AXT'!Q3 -> 4.075 | F14: ='!N20385B.AXT'!Q16 -> 0.03169169679
A15: 13 | B15: ='!N204A1B.AXT'!B2:C2 -> <date> | C15: =('!N204A1B.AXT'!F52/60)/'!N204A1B.AXT'!Q3 -> 2.888768116 | D15: ='!N204A1B.AXT'!N20/'!N204A1B.AXT'!Q3 -> 0.847826087 | E15: =SUM('!N204A1B.AXT'!L20:Q20)/'!N204A1B.AXT'!Q3 -> 3.586956522 | F15: ='!N204A1B.AXT'!Q16 -> 0.16214441
A16: 14 | B16: ='!N20592B.AXT'!B2:C2 -> <date> | C16: =('!N20592B.AXT'!F46/60)/'!N20592B.AXT'!Q3 -> 3.163333333 | D16: ='!N20592B.AXT'!N20/'!N20592B.AXT'!Q3 -> 1 | E16: =SUM('!N20592B.AXT'!L20:Q20)/'!N20592B.AXT'!Q3 -> 4.1 | F16: ='!N20592B.AXT'!Q16 -> 0
A17: 15 | B17: ='!N206A3B.AXT'!B2:C2 -> <date> | C17: =('!N206A3B.AXT'!F51/60)/'!N206A3B.AXT'!Q3 -> 3.017777778 | D17: ='!N206A3B.AXT'!N20/'!N206A3B.AXT'!Q3 -> 0.8444444444 | E17: =SUM('!N206A3B.AXT'!L20:Q20)/'!N206A3B.AXT'!Q3 -> 5.866666667 | F17: ='!N206A3B.AXT'!Q16 -> 0.1768767221
A18: 16 | B18: ='!N207A1B.AXT'!B2:C2 -> <date> | C18: =('!N207A1B.AXT'!F47/60)/'!N207A1B.AXT'!Q3 -> 3.030894309 | D18: ='!N207A1B.AXT'!N20/'!N207A1B.AXT'!Q3 -> 0.9756097561 | E18: =SUM('!N207A1B.AXT'!L20:Q20)/'!N207A1B.AXT'!Q3 -> 4.024390244 | F18: ='!N207A1B.AXT'!Q16 -> 0.03087735478
A19: 17 | B19: ='!N20893B.AXT'!B2:C2 -> <date> | C19: =('!N20893B.AXT'!F49/60)/'!N20893B.AXT'!Q3 -> 3.345736434 | D19: ='!N20893B.AXT'!N20/'!N20893B.AXT'!Q3 -> 0.9302325581 | E19: =SUM('!N20893B.AXT'!L20:Q20)/'!N20893B.AXT'!Q3 -> 3.837209302 | F19: ='!N20893B.AXT'!Q16 -> 0.07908245547
A20: 18 | B20: ='!N20994B.AXT'!B2:C2 -> <date> | C20: =('!N20994B.AXT'!F47/60)/'!N20994B.AXT'!Q3 -> 8.708536585 | D20: ='!N20994B.AXT'!N20/'!N20994B.AXT'!Q3 -> 0.9512195122 | E20: =SUM('!N20994B.AXT'!L20:Q20)/'!N20994B.AXT'!Q3 -> 4 | F20: ='!N20994B.AXT'!Q16 -> 0.0615904958
A21: 19 | B21: ='!N21094B.AXT'!B2:C2 -> <date> | C21: =('!N21094B.AXT'!F46/60)/'!N21094B.AXT'!Q3 -> 3.21625 | D21: ='!N21094B.AXT'!N20/'!N21094B.AXT'!Q3 -> 1 | E21: =SUM('!N21094B.AXT'!L20:Q20)/'!N21094B.AXT'!Q3 -> 4.1 | F21: ='!N21094B.AXT'!Q16 -> 0
A22: 20 | B22: ='!N211A5B.AXT'!B2:C2 -> <date> | C22: =('!N211A5B.AXT'!F51/60)/'!N211A5B.AXT'!Q3 -> 2.886296296 | D22: ='!N211A5B.AXT'!N20/'!N211A5B.AXT'!Q3 -> 0.8666666667 | E22: =SUM('!N211A5B.AXT'!L20:Q20)/'!N211A5B.AXT'!Q3 -> 3.666666667 | F22: ='!N211A5B.AXT'!Q16 -> 0.1578204503
A23: 21 | B23: ='!N212A0B.AXT'!B2:C2 -> <date> | C23: =('!N212A0B.AXT'!F48/60)/'!N212A0B.AXT'!Q3 -> 3.455555556 | D23: ='!N212A0B.AXT'!N20/'!N212A0B.AXT'!Q3 -> 0.9523809524 | E23: =SUM('!N212A0B.AXT'!L20:Q20)/'!N212A0B.AXT'!Q3 -> 3.928571429 | F23: ='!N212A0B.AXT'!Q16 -> 0.05122017233
A24: 22 | B24: ='!N213A3B.AXT'!B2:C2 -> <date> | C24: =('!N213A3B.AXT'!F48/60)/'!N213A3B.AXT'!Q3 -> 3.697619048 | D24: ='!N213A3B.AXT'!N20/'!N213A3B.AXT'!Q3 -> 0.9523809524 | E24: =SUM('!N213A3B.AXT'!L20:Q20)/'!N213A3B.AXT'!Q3 -> 3.928571429 | F24: ='!N213A3B.AXT'!Q16 -> 0.06005107821
A25: 23 | B25: ='!N21491B.AXT'!B2:C2 -> <date> | C25: =('!N21491B.AXT'!F49/60)/'!N21491B.AXT'!Q3 -> 3.745736434 | D25: ='!N21491B.AXT'!N20/'!N21491B.AXT'!Q3 -> 0.9302325581 | E25: =SUM('!N21491B.AXT'!L20:Q20)/'!N21491B.AXT'!Q3 -> 3.837209302 | F25: ='!N21491B.AXT'!Q16 -> 0.08765402911
A26: 24 | B26: ='!N21592B.AXT'!B2:C2 -> <date> | C26: =('!N21592B.AXT'!F48/60)/'!N21592B.AXT'!Q3 -> 3.742857143 | D26: ='!N21592B.AXT'!N20/'!N21592B.AXT'!Q3 -> 0.9285714286 | E26: =SUM('!N21592B.AXT'!L20:Q20)/'!N21592B.AXT'!Q3 -> 3.904761905 | F26: ='!N21592B.AXT'!Q16 -> 0.08983965443
A27: 25 | B27: ='!N216A1B.AXT'!B2:C2 -> <date> | C27: =('!N216A1B.AXT'!F51/60)/'!N216A1B.AXT'!Q3 -> 3.327037037 | D27: ='!N216A1B.AXT'!N20/'!N216A1B.AXT'!Q3 -> 0.8888888889 | E27: =SUM('!N216A1B.AXT'!L20:Q20)/'!N216A1B.AXT'!Q3 -> 3.688888889 | F27: ='!N216A1B.AXT'!Q16 -> 0.1305216815
A28: 26 | B28: ='!N21793B.AXT'!B2:C2 -> <date> | C28: =('!N21793B.AXT'!F51/60)/'!N21793B.AXT'!Q3 -> 3.073703704 | D28: ='!N21793B.AXT'!N20/'!N21793B.AXT'!Q3 -> 0.8888888889 | E28: =SUM('!N21793B.AXT'!L20:Q20)/'!N21793B.AXT'!Q3 -> 5.911111111 | F28: ='!N21793B.AXT'!Q16 -> 0.1062432948
A29: 27 | B29: ='!N218A1B.AXT'!B2:C2 -> <date> | C29: =('!N218A1B.AXT'!F50/60)/'!N218A1B.AXT'!Q3 -> 3.509848485 | D29: ='!N218A1B.AXT'!N20/'!N218A1B.AXT'!Q3 -> 0.8863636364 | E29: =SUM('!N218A1B.AXT'!L20:Q20)/'!N218A1B.AXT'!Q3 -> 3.75 | F29: ='!N218A1B.AXT'!Q16 -> 0.1252390808
A30: 28 | B30: ='!N219A4B.AXT'!B2:C2 -> <date> | C30: =('!N219A4B.AXT'!F48/60)/'!N219A4B.AXT'!Q3 -> 3.082142857 | D30: ='!N219A4B.AXT'!N20/'!N219A4B.AXT'!Q3 -> 0.9285714286 | E30: =SUM('!N219A4B.AXT'!L20:Q20)/'!N219A4B.AXT'!Q3 -> 3.904761905 | F30: ='!N219A4B.AXT'!Q16 -> 0.08983965443
A31: 29 | B31: ='!N22094B.AXT'!B2:C2 -> <date> | C31: =('!N22094B.AXT'!F23/60)/'!N22094B.AXT'!Q3 -> 3.258823529 | D31: ='!N22094B.AXT'!N20/'!N22094B.AXT'!Q3 -> 0.7058823529 | E31: =SUM('!N22094B.AXT'!L20:Q20)/'!N22094B.AXT'!Q3 -> 7.588235294 | F31: ='!N22094B.AXT'!Q16 -> 0.3521142756
A32: 30

Sheet Start
F1: Use Folder 51 | H1: Auto Clean Up | J1: Correct sequence
F2: FALSE | H2: TRUE | J2: 111
A4: Working with Folder | G4: Process All/Or Pick A number: ALL or an integer
A5: F:\Possum Chapter\Raw Data\baxter\LLL Var\ | G5: ALL
A6: Filenames:
A7: !N125A0B.AXT | G7: Paint Cells
A8: !N126A0B.AXT | G8: FALSE
A9: !N12795B.AXT
A10: !N12891B.AXT
A11: !N129A2B.AXT
A12: !N13092B.AXT
A13: !N13192B.AXT
A14: !N20192B.AXT
A15: !N202B0B.AXT
A16: !N20385B.AXT
A17: !N204A1B.AXT
A18: !N20592B.AXT
A19: !N206A3B.AXT
A20: !N207A1B.AXT
A21: !N20893B.AXT
A22: !N20994B.AXT
A23: !N21094B.AXT
A24: !N211A5B.AXT
A25: !N212A0B.AXT
A26: !N213A3B.AXT
A27: !N21491B.AXT
A28: !N21592B.AXT
A29: !N216A1B.AXT
A30: !N21793B.AXT
A31: !N218A1B.AXT
A32: !N219A4B.AXT
A33: !N22094B.AXT
A34: !N123A3B.AXT
A35: !N12495B.AXT

Sheet !N123A3B.AXT
A1: Report for:!N123A3B.AXT
A2: Date: | B2: <date>
A3: Hen: | B3: <hen> | F3: Correct Sequence | G3: =Start!J2 -> 111 | P3: Total Sequences in Data | Q3: =4994-COUNTBLANK(L7:L5000) -> 98 | V3: Total Sequences in Block Data | W3: =COUNTA(L7:L22) -> 16 | AA3: Total Sequences in Block Data | AB3: =COUNTA(L23:L39) -> 17 | AF3: Total Sequences in Block Data | AG3: =COUNTA(L40:L55) -> 16 | AK3: Total Sequences in Block Data | AL3: =COUNTA(L56:L71) -> 16 | AP3: Total Sequences in Block Data | AQ3: =COUNTA(L72:L88) -> 17 | AU3: Total Sequences in Block Data | AV3: =COUNTA(L89:L104) -> 16
P4: Total Sequences in Summary | Q4: =SUM(O7:O14) -> 98 | V4: Total Sequences in Block Summary | W4: =SUM(U7:U14) -> 16 | AA4: Total Sequences in Block Summary | AB4: =SUM(Z7:Z14) -> 17 | AF4: Total Sequences in Block Summary | AG4: =SUM(AE7:AE14) -> 16 | AK4: Total Sequences in Block Summary | AL4: =SUM(AJ7:AJ14) -> 16 | AP4: Total Sequences in Block Summary | AQ4: =SUM(AO7:AO14) -> 17 | AU4: Total Sequences in Block Summary | AV4: =SUM(AT7:AT14) -> 16
T5: Block 1 | Y5: Block 2 | AD5: Block 3 | AI5: Block 4 | AN5: Block 5 | AS5: Block 6
A6: Sequence Component 1 | B6: Time 1 | C6: Sequence Component 2 | D6: Time 2 | E6: Sequence Component 3 | F6: Time 3 | G6: Sequence Component 4 | H6: Time 4 | I6: Sequence Component 5 | J6: Time 5 | K6: Correct? 0=No 1=Yes | L6: Sequence | N6: Frequency | P6: Relative Frequency | Q6: Variability | T6: Frequency | V6: Relative Frequency | W6: Variability | Y6: Frequency | AA6: Relative Frequency | AB6: Variability | AD6: Frequency | AF6: Relative Frequency | AG6: Variability | AI6: Frequency | AK6: Relative Frequency | AL6: Variability | AN6: Frequency | AP6: Relative Frequency | AQ6: Variability | AS6: Frequency | AU6: Relative Frequency | AV6: Variability
A7: 22 | B7: 117 | C7: 24 | D7: 119 | E7: 24 | F7: 123 | K7: 0 | L7: 222 | N7: 111 | O7: =COUNTIF($L$7:$L$500,N7) -> 36 | P7: =O7/$Q$4 -> 0.3673469388 | Q7: =IF(P7=0,0,(P7*((LOG(P7))/LOG(2)))) -> -0.5307372891 | T7: =N7 -> 111 | U7: =COUNTIF(L7:L22,T7) -> 3 | Y7: =N7 -> 111 | Z7: =COUNTIF(L23:L39,Y7) -> 6 | AD7: =N7 -> 111 | AE7: =COUNTIF(L40:L55,AD7) -> 6 | AI7: =N7 -> 111 | AJ7: =COUNTIF(L56:L71,AI7) -> 6 | AN7: =N7 -> 111 | AO7: =COUNTIF(L72:L88,AN7) -> 8 | AS7: =N7 -> 111 | AT7: =COUNTIF(L89:L104,AS7) -> 7
A8: 11 | B8: 1007 | C8: 22 | D8: 1020 | E8: 13 | F8: 1035 | K8: 0 | L8: 121 | N8: 112 | O8: =COUNTIF($L$7:$L$500,N8) -> 1 | P8: =O8/$Q$4 -> 0.01020408163 | Q8: =IF(P8=0,0,(P8*((LOG(P8))/LOG(2)))) -> -0.06749703923 | T8: =N8 -> 112 | U8: =COUNTIF(L7:L22,T8) -> 0 | V8: =U8/(W4-U7) -> 0 | W8: =IF(V8=0,0,(V8*((LOG(V8))/LOG(2)))) -> 0 | Y8: =N8 -> 112 | Z8: =COUNTIF(L23:L39,Y8) -> 1 | AA8: =Z8/(AB4-Z7) -> 0.09090909091 | AB8: =IF(AA8=0,0,(AA8*((LOG(AA8))/LOG(2)))) -> -0.3144937835 | AD8: =N8 -> 112 | AE8: =COUNTIF(L40:L55,AD8) -> 0 | AF8: =AE8/(AG4-AE7) -> 0 | AG8: =IF(AF8=0,0,(AF8*((LOG(AF8))/LOG(2)))) -> 0 | AI8: =N8 -> 112 | AJ8: =COUNTIF(L56:L71,AI8) -> 0 | AK8: =AJ8/(AL4-AJ7) -> 0 | AL8: =IF(AK8=0,0,(AK8*((LOG(AK8))/LOG(2)))) -> 0 | AN8: =N8 -> 112 | AO8: =COUNTIF(L72:L88,AN8) -> 0 | AP8: =AO8/(AQ4-AO7) -> 0 | AQ8: =IF(AP8=0,0,(AP8*((LOG(AP8))/LOG(2)))) -> 0 | AS8: =N8 -> 112 | AT8: =COUNTIF(L89:L104,AS8) -> 0 | AU8: =AT8/(AV4-AT7) -> 0 | AV8: =IF(AU8=0,0,(AU8*((LOG(AU8))/LOG(2)))) -> 0
A9: 22 | B9: 1140 | C9: 24 | D9: 1144 | E9: 24 | F9: 1187 | K9: 0 | L9: 222 | N9: 121 | O9: =COUNTIF($L$7:$L$500,N9) -> 5 | P9: =O9/$Q$4 -> 0.05102040816 | Q9: =IF(P9=0,0,(P9*((LOG(P9))/LOG(2)))) -> -0.219019477 | T9: =N9 -> 121 | U9: =COUNTIF(L7:L22,T9) -> 1 | V9: =U9/(W4-U7) -> 0.07692307692 | W9: =IF(V9=0,0,(V9*((LOG(V9))/LOG(2)))) -> -0.2846492091 | Y9: =N9 -> 121 | Z9: =COUNTIF(L23:L39,Y9) -> 0 | AA9: =Z9/(AB4-Z7) -> 0 | AB9: =IF(AA9=0,0,(AA9*((LOG(AA9))/LOG(2)))) -> 0 | AD9: =N9 -> 121 | AE9: =COUNTIF(L40:L55,AD9) -> 1 | AF9: =AE9/(AG4-AE7) -> 0.1 | AG9: =IF(AF9=0,0,(AF9*((LOG(AF9))/LOG(2)))) -> -0.3321928095 | AI9: =N9 -> 121 | AJ9: =COUNTIF(L56:L71,AI9) -> 0 | AK9: =AJ9/(AL4-AJ7) -> 0 | AL9: =IF(AK9=0,0,(AK9*((LOG(AK9))/LOG(2)))) -> 0 | AN9: =N9 -> 121 | AO9: =COUNTIF(L72:L88,AN9) -> 1 | AP9: =AO9/(AQ4-AO7) -> 0.1111111111 | AQ9: =IF(AP9=0,0,(AP9*((LOG(AP9))/LOG(2)))) -> -0.352213889 | AS9: =N9 -> 121 | AT9: =COUNTIF(L89:L104,AS9) -> 2 | AU9: =AT9/(AV4-AT7) -> 0.2222222222 | AV9: =IF(AU9=0,0,(AU9*((LOG(AU9))/LOG(2)))) -> -0.4822055559
A10: 22 | B10: 1279 | C10: 24 | D10: 1289 | E10: 13 | F10: 1301 | K10: 0 | L10: 221 | N10: 122 | O10: =COUNTIF($L$7:$L$500,N10) -> 0 | P10: =O10/$Q$4 -> 0 | Q10: =IF(P10=0,0,(P10*((LOG(P10))/LOG(2)))) -> 0 | T10: =N10 -> 122 | U10: =COUNTIF(L7:L22,T10) -> 0 | V10: =U10/(W4-U7) -> 0 | W10: =IF(V10=0,0,(V10*((LOG(V10))/LOG(2)))) -> 0 | Y10: =N10 -> 122 | Z10: =COUNTIF(L23:L39,Y10) -> 0 | AA10: =Z10/(AB4-Z7) -> 0 | AB10: =IF(AA10=0,0,(AA10*((LOG(AA10))/LOG(2)))) -> 0 | AD10: =N10 -> 122 | AE10: =COUNTIF(L40:L55,AD10) -> 0 | AF10: =AE10/(AG4-AE7) -> 0 | AG10: =IF(AF10=0,0,(AF10*((LOG(AF10))/LOG(2)))) -> 0 | AI10: =N10 -> 122 | AJ10: =COUNTIF(L56:L71,AI10) -> 0 | AK10: =AJ10/(AL4-AJ7) -> 0 | AL10: =IF(AK10=0,0,(AK10*((LOG(AK10))/LOG(2)))) -> 0 | AN10: =N10 -> 122 | AO10: =COUNTIF(L72:L88,AN10) -> 0 | AP10: =AO10/(AQ4-AO7) -> 0 | AQ10: =IF(AP10=0,0,(AP10*((LOG(AP10))/LOG(2)))) -> 0 | AS10: =N10 -> 122 | AT10: =COUNTIF(L89:L104,AS10) -> 0 | AU10: =AT10/(AV4-AT7) -> 0 | AV10: =IF(AU10=0,0,(AU10*((LOG(AU10))/LOG(2)))) -> 0
A11: 22 | B11: 1441 | C11: 24 | D11: 1444 | E11: 24 | F11: 1451 | K11: 0 | L11: 222 | N11: 211 | O11: =COUNTIF($L$7:$L$500,N11) -> 13 | P11: =O11/$Q$4 -> 0.1326530612 | Q11: =IF(P11=0,0,(P11*((LOG(P11))/LOG(2)))) -> -0.3865868534 | T11: =N11 -> 211 | U11: =COUNTIF(L7:L22,T11) -> 1 | V11: =U11/(W4-U7) -> 0.07692307692 | W11: =IF(V11=0,0,(V11*((LOG(V11))/LOG(2)))) -> -0.2846492091 | Y11: =N11 -> 211 | Z11: =COUNTIF(L23:L39,Y11) -> 2 | AA11: =Z11/(AB4-Z7) -> 0.1818181818 | AB11: =IF(AA11=0,0,(AA11*((LOG(AA11))/LOG(2)))) -> -0.4471693852 | AD11: =N11 -> 211 | AE11: =COUNTIF(L40:L55,AD11) -> 3 | AF11: =AE11/(AG4-AE7) -> 0.3 | AG11: =IF(AF11=0,0,(AF11*((LOG(AF11))/LOG(2)))) -> -0.5210896782 | AI11: =N11 -> 211 | AJ11: =COUNTIF(L56:L71,AI11) -> 2 | AK11: =AJ11/(AL4-AJ7) -> 0.2 | AL11: =IF(AK11=0,0,(AK11*((LOG(AK11))/LOG(2)))) -> -0.464385619 | AN11: =N11 -> 211 | AO11: =COUNTIF(L72:L88,AN11) -> 3 | AP11: =AO11/(AQ4-AO7) -> 0.3333333333 | AQ11: =IF(AP11=0,0,(AP11*((LOG(AP11))/LOG(2)))) -> -0.5283208336 | AS11: =N11 -> 211 | AT11: =COUNTIF(L89:L104,AS11) -> 2 | AU11: =AT11/(AV4-AT7) -> 0.2222222222 | AV11: =IF(AU11=0,0,(AU11*((LOG(AU11))/LOG(2)))) -> -0.4822055559
A12: 22 | B12: 1544 | C12: 13 | D12: 1555 | E12: 13 | F12: 1580 | K12: 0 | L12: 211 | N12: 212 | O12: =COUNTIF($L$7:$L$500,N12) -> 2 | P12: =O12/$Q$4 -> 0.02040816327 | Q12: =IF(P12=0,0,(P12*((LOG(P12))/LOG(2)))) -> -0.1145859152 | T12: =N12 -> 212 | U12: =COUNTIF(L7:L22,T12) -> 2 | V12: =U12/(W4-U7) -> 0.1538461538 | W12: =IF(V12=0,0,(V12*((LOG(V12))/LOG(2)))) -> -0.4154522643 | Y12: =N12 -> 212 | Z12: =COUNTIF(L23:L39,Y12) -> 0 | AA12: =Z12/(AB4-Z7) -> 0 | AB12: =IF(AA12=0,0,(AA12*((LOG(AA12))/LOG(2)))) -> 0 | AD12: =N12 -> 212 | AE12: =COUNTIF(L40:L55,AD12) -> 0 | AF12: =AE12/(AG4-AE7) -> 0 | AG12: =IF(AF12=0,0,(AF12*((LOG(AF12))/LOG(2)))) -> 0 | AI12: =N12 -> 212 | AJ12: =COUNTIF(L56:L71,AI12) -> 0 | AK12: =AJ12/(AL4-AJ7) -> 0 | AL12: =IF(AK12=0,0,(AK12*((LOG(AK12))/LOG(2)))) -> 0 | AN12: =N12 -> 212 | AO12: =COUNTIF(L72:L88,AN12) -> 0 | AP12: =AO12/(AQ4-AO7) -> 0 | AQ12: =IF(AP12=0,0,(AP12*((LOG(AP12))/LOG(2)))) -> 0 | AS12: =N12 -> 212 | AT12: =COUNTIF(L89:L104,AS12) -> 0 | AU12: =AT12/(AV4-AT7) -> 0 | AV12: =IF(AU12=0,0,(AU12*((LOG(AU12))/LOG(2)))) -> 0
A13: 22 | B13: 1679 | C13: 24 | D13: 1681 | E13: 24 | F13: 1685 | K13: 0 | L13: 222 | N13: 221 | O13: =COUNTIF($L$7:$L$500,N13) -> 6 | P13: =O13/$Q$4 -> 0.0612244898 | Q13: =IF(P13=0,0,(P13*((LOG(P13))/LOG(2)))) -> -0.2467192251 | T13: =N13 -> 221 | U13: =COUNTIF(L7:L22,T13) -> 1 | V13: =U13/(W4-U7) -> 0.07692307692 | W13: =IF(V13=0,0,(V13*((LOG(V13))/LOG(2)))) -> -0.2846492091 | Y13: =N13 -> 221 | Z13: =COUNTIF(L23:L39,Y13) -> 0 | AA13: =Z13/(AB4-Z7) -> 0 | AB13: =IF(AA13=0,0,(AA13*((LOG(AA13))/LOG(2)))) -> 0 | AD13: =N13 -> 221 | AE13: =COUNTIF(L40:L55,AD13) -> 0 | AF13: =AE13/(AG4-AE7) -> 0 | AG13: =IF(AF13=0,0,(AF13*((LOG(AF13))/LOG(2)))) -> 0 | AI13: =N13 -> 221 | AJ13: =COUNTIF(L56:L71,AI13) -> 0 | AK13: =AJ13/(AL4-AJ7) -> 0 | AL13: =IF(AK13=0,0,(AK13*((LOG(AK13))/LOG(2)))) -> 0 | AN13: =N13 -> 221 | AO13: =COUNTIF(L72:L88,AN13) -> 3 | AP13: =AO13/(AQ4-AO7) -> 0.3333333333 | AQ13: =IF(AP13=0,0,(AP13*((LOG(AP13))/LOG(2)))) -> -0.5283208336 | AS13: =N13 -> 221 | AT13: =COUNTIF(L89:L104,AS13) -> 2 | AU13: =AT13/(AV4-AT7) -> 0.2222222222 | AV13: =IF(AU13=0,0,(AU13*((LOG(AU13))/LOG(2)))) -> -0.4822055559
A14: 11 | B14: 1789 | C14: 11 | D14: 1793 | E14: 11 | F14: 1802 | K14: 0 | L14: 111 | N14: 222 | O14: =COUNTIF($L$7:$L$500,N14) -> 35 | P14: =O14/$Q$4 -> 0.3571428571 | Q14: =IF(P14=0,0,(P14*((LOG(P14))/LOG(2)))) -> -0.5305095811 | T14: =N14 -> 222 | U14: =COUNTIF(L7:L22,T14) -> 8 | V14: =U14/(W4-U7) -> 0.6153846154 | W14: =IF(V14=0,0,(V14*((LOG(V14))/LOG(2)))) -> -0.4310398265 | Y14: =N14 -> 222 | Z14: =COUNTIF(L23:L39,Y14) -> 8 | AA14: =Z14/(AB4-Z7) -> 0.7272727273 | AB14: =IF(AA14=0,0,(AA14*((LOG(AA14))/LOG(2)))) -> -0.3341320863 | AD14: =N14 -> 222 | AE14: =COUNTIF(L40:L55,AD14) -> 6 | AF14: =AE14/(AG4-AE7) -> 0.6 | AG14: =IF(AF14=0,0,(AF14*((LOG(AF14))/LOG(2)))) -> -0.4421793565 | AI14: =N14 -> 222 | AJ14: =COUNTIF(L56:L71,AI14) -> 8 | AK14: =AJ14/(AL4-AJ7) -> 0.8 | AL14: =IF(AK14=0,0,(AK14*((LOG(AK14))/LOG(2)))) -> -0.2575424759 | AN14: =N14 -> 222 | AO14: =COUNTIF(L72:L88,AN14) -> 2 | AP14: =AO14/(AQ4-AO7) -> 0.2222222222 | AQ14: =IF(AP14=0,0,(AP14*((LOG(AP14))/LOG(2)))) -> -0.4822055559 | AS14: =N14 -> 222 | AT14: =COUNTIF(L89:L104,AS14) -> 3 | AU14: =AT14/(AV4-AT7) -> 0.3333333333 | AV14: =IF(AU14=0,0,(AU14*((LOG(AU14))/LOG(2)))) -> -0.5283208336
A15: 22 | B15: 1933 | C15: 24 | D15: 1937 | E15: 24 | F15: 1989 | K15: 0 | L15: 222 | P15: =SUM(P7:P14) -> 1 | Q15: =-SUM(Q7:Q14) -> 2.09565538 | V15: =SUM(V7:V14) -> 1 | W15: =-SUM(W7:W14) -> 1.700439718 | AA15: =SUM(AA7:AA14) -> 1 | AB15: =-SUM(AB7:AB14) -> 1.095795255 | AF15: =SUM(AF7:AF14) -> 1 | AG15: =-SUM(AG7:AG14) -> 1.295461844 | AK15: =SUM(AK7:AK14) -> 1 | AL15: =-SUM(AL7:AL14) -> 0.7219280949 | AP15: =SUM(AP7:AP14) -> 1 | AQ15: =-SUM(AQ7:AQ14) -> 1.891061112 | AU15: =SUM(AU7:AU14) -> 1 | AV15: =-SUM(AV7:AV14) -> 1.974937501
A16: 22 | B16: 2093 | C16: 13 | D16: 2101 | E16: 24 | F16: 2138 | K16: 0 | L16: 212 | P16: U= | Q16: =Q15/(LOG(Q4)/LOG(2)) -> 0.3168174311 | V16: U1= | W16: =W15/(LOG(W4)/LOG(2)) -> 0.4251099295 | AA16: U2= | AB16: =AB15/(LOG(AB4)/LOG(2)) -> 0.2680869032 | AF16: U3= | AG16: =AG15/(LOG(AG4)/LOG(2)) -> 0.3238654611 | AK16: U4= | AL16: =AL15/(LOG(AL4)/LOG(2)) -> 0.1804820237 | AP16: U5= | AQ16: =AQ15/(LOG(AQ4)/LOG(2)) -> 0.4626491262 | AU16: U6= | AV16: =AV15/(LOG(AV4)/LOG(2)) -> 0.4937343753
A17: 11 | B17: 2240 | C17: 11 | D17: 2261 | E17: 11 | F17: 2270 | K17: 0 | L17: 111
A18: 22 | B18: 2570 | C18: 24 | D18: 2572 | E18: 24 | F18: 2577 | K18: 0 | L18: 222
A19: 22 | B19: 2708 | C19: 24 | D19: 2712 | E19: 24 | F19: 2716 | K19: 0 | L19: 222 | N19: Total Target Seq
A20: 22 | B20: 2819 | C20: 13 | D20: 2837 | E20: 24 | F20: 2860 | K20: 0 | L20: 212 | N20: =COUNTIF(L7:L104,G3) -> 36 | P20: 16 | Q20: 17 | R20: 16 | S20: 16 | T20: 17 | U20: 16
A21: 22 | B21: 2962 | C21: 24 | D21: 2966 | E21: 24 | F21: 2968 | K21: 0 | L21: 222 | P21: % of reinforcement given in 6 equal intervals based on number of trials
A22: 11 | B22: 3061 | C22: 11 | D22: 3077 | E22: 11 | F22: 3090 | K22: 0 | L22: 111 | P22: %_1 | Q22: %_2 | R22: %_3 | S22: %_4 | T22: %_5 | U22: %_6
A23: 22 | B23: 3196 | C23: 24 | D23: 3200 | E23: 24 | F23: 3205 | K23: 0 | L23: 222 | O23: target sequence | P23: =$G$3 -> 111 | Q23: =$G$3 -> 111 | R23: =$G$3 -> 111 | S23: =$G$3 -> 111 | T23: =$G$3 -> 111 | U23: =$G$3 -> 111
A24: 11 | B24: 3300 | C24: 11 | D24: 3309 | E24: 11 | F24: 3334 | K24: 0 | L24: 111 | O24: total reinforcement | P24: =U7 -> 3 | Q24: =Z7 -> 6 | R24: =AE7 -> 6 | S24: =AJ7 -> 6 | T24: =AO7 -> 8 | U24: =AT7 -> 7
A25: 22 | B25: 3531 | C25: 24 | D25: 3535 | E25: 24 | F25: 3539 | K25: 0 | L25: 222 | O25: % target
A26: 22 | B26: 3635 | C26: 13 | D26: 3644 | E26: 13 | F26: 3652 | K26: 0 | L26: 211 | O26: CCRF
A27: 11 | B27: 3849 | C27: 11 | D27: 3853 | E27: 22 | F27: 3859 | K27: 0 | L27: 112 | O27: % CCRf
A28: 11 | B28: 3980 | C28: 11 | D28: 3990 | E28: 11 | F28: 4001 | K28: 0 | L28: 111 | O28: average response rate | P28: =F22/P20 -> 193.125 | Q28: =(F39-F22)/Q20 -> 148.8823529 | R28: =(F55-F39)/R20 -> 161.0625 | S28: =(F71-F55)/S20 -> 165.6875 | T28: =(F88-F71)/T20 -> 188.3529412 | U28: =(F104-F88)/U20 -> 167.0625
A29: 22 | B29: 4092 | C29: 13 | D29: 4104 | E29: 13 | F29: 4128 | K29: 0 | L29: 211
A30: 22 | B30: 4229 | C30: 24 | D30: 4235 | E30: 24 | F30: 4240 | K30: 0 | L30: 222
A31: 11 | B31: 4347 | C31: 11 | D31: 4368 | E31: 11 | F31: 4377 | K31: 0 | L31: 111
A32: 22 | B32: 4609 | C32: 24 | D32: 4613 | E32: 24 | F32: 4616 | K32: 0 | L32: 222
A33: 11 | B33: 4723 | C33: 11 | D33: 4726 | E33: 11 | F33: 4748 | K33: 0 | L33: 111
A34: 22 | B34: 4881 | C34: 24 | D34: 4885 | E34: 24 | F34: 4888 | K34: 0 | L34: 222
A35: 22 | B35: 5013 | C35: 24 | D35: 5017 | E35: 24 | F35: 5020 | K35: 0 | L35: 222
A36: 11 | B36: 5113 | C36: 11 | D36: 5122 | E36: 11 | F36: 5131 | K36: 0 | L36: 111
A37: 22 | B37: 5370 | C37: 24 | D37: 5375 | E37: 24 | F37: 5378 | K37: 0 | L37: 222
A38: 22 | B38: 5475 | C38: 24 | D38: 5478 | E38: 24 | F38: 5486 | K38: 0 | L38: 222
A39: 11 | B39: 5601 | C39: 11 | D39: 5610 | E39: 11 | F39: 5621 | K39: 0 | L39: 111
A40: 22 | B40: 5825 | C40: 13 | D40: 5837 | E40: 13 | F40: 5844 | K40: 0 | L40: 211
A41: 22 | B41: 6143 | C41: 13 | D41: 6151 | E41: 13 | F41: 6161 | K41: 0 | L41: 211
A42: 11 | B42: 6267 | C42: 11 | D42: 6272 | E42: 11 | F42: 6279 | K42: 0 | L42: 111
A43: 22 | B43: 6461 | C43: 24 | D43: 6466 | E43: 24 | F43: 6470 | K43: 0 | L43: 222
A44: 22 | B44: 6584 | C44: 13 | D44: 6591 | E44: 13 | F44: 6598 | K44: 0 | L44: 211
A45: 11 | B45: 6692 | C45: 11 | D45: 6702 | E45: 11 | F45: 6712 | K45: 0 | L45: 111
A46: 22 | B46: 6944 | C46: 24 | D46: 6946 | E46: 24 | F46: 6950 | K46: 0 | L46: 222
A47: 11 | B47: 7045 | C47: 11 | D47: 7049 | E47: 11 | F47: 7057 | K47: 0 | L47: 111
A48: 22 | B48: 7228 | C48: 24 | D48: 7234 | E48: 24 | F48: 7237 | K48: 0 | L48: 222
A49: 11 | B49: 7336 | C49: 11 | D49: 7343 | E49: 11 | F49: 7358 | K49: 0 | L49: 111
A50: 22 | B50: 7529 | C50: 24 | D50: 7537 | E50: 24 | F50: 7542 | K50: 0 | L50: 222
A51: 11 | B51: 7641 | C51: 22 | D51: 7660 | E51: 13 | F51: 7662 | K51: 0 | L51: 121
A52: 11 | B52: 7773 | C52: 11 | D52: 7783 | E52: 11 | F52: 7786 | K52: 0 | L52: 111
A53: 11 | B53: 7924 | C53: 11 | D53: 7946 | E53: 11 | F53: 7955 | K53: 0 | L53: 111
A54: 22 | B54: 8087 | C54: 24 | D54: 8093 | E54: 24 | F54: 8096 | K54: 0 | L54: 222
A55: 22 | B55: 8191 | C55: 24 | D55: 8194 | E55: 24 | F55: 8198 | K55: 0 | L55: 222
A56: 11 | B56: 8296 | C56: 11 | D56: 8308 | E56: 11 | F56: 8317 | K56: 0 | L56: 111
A57: 22 | B57: 8615 | C57: 24 | D57: 8619 | E57: 24 | F57: 8623 | K57: 0 | L57: 222
A58: 22 | B58: 8726 | C58: 24 | D58: 8729 | E58: 24 | F58: 8732 | K58: 0 | L58: 222
A59: 11 | B59: 8829 | C59: 11 | D59: 8837 | E59: 11 | F59: 8846 | K59: 0 | L59: 111
A60: 22 | B60: 9023 | C60: 24 | D60: 9027 | E60: 24 | F60: 9032 | K60: 0 | L60: 222
A61: 11 | B61: 9133 | C61: 11 | D61: 9138 | E61: 11 | F61: 9141 | K61: 0 | L61: 111
A62: 22 | B62: 9427 | C62: 24 | D62: 9430 | E62: 24 | F62: 9438 | K62: 0 | L62: 222
A63: 22 | B63: 9633 | C63: 13 | D63: 9650 | E63: 13 | F63: 9677 | K63: 0 | L63: 211
A64: 11 | B64: 9804 | C64: 11 | D64: 9850 | E64: 11 | F64: 9859 | K64: 0 | L64: 111
A65: 22 | B65: 10015 | C65: 24 | D65: 10020 | E65: 24 | F65: 10027 | K65: 0 | L65: 222
A66: 11 | B66: 10127 | C66: 11 | D66: 10134 | E66: 11 | F66: 10148 | K66: 0 | L66: 111
A67: 22 | B67: 10269 | C67: 24 | D67: 10277 | E67: 24 | F67: 10280 | K67: 0 | L67: 222
A68: 11 | B68: 10385 | C68: 11 | D68: 10395 | E68: 11 | F68: 10398 | K68: 0 | L68: 111
A69: 22 | B69: 10581 | C69: 24 | D69: 10588 | E69: 24 | F69: 10592 | K69: 0 | L69: 222
A70: 22 | B70: 10726 | C70: 24 | D70: 10729 | E70: 24 | F70: 10738 | K70: 0 | L70: 222
A71: 22 | B71: 10837 | C71: 13 | D71: 10842 | E71: 13 | F71: 10849 | K71: 0 | L71: 211
A72: 11 | B72: 11030 | C72: 11 | D72: 11053 | E72: 11 | F72: 11056 | K72: 0 | L72: 111
A73: 22 | B73: 11188 | C73: 13 | D73: 11199 | E73: 13 | F73: 11225 | K73: 0 | L73: 211
A74: 11 | B74: 11327 | C74: 22 | D74: 11343 | E74: 13 | F74: 11354 | K74: 0 | L74: 121
A75: 11 | B75: 11456 | C75: 11 | D75: 11461 | E75: 11 | F75: 11471 | K75: 0 | L75: 111
A76: 22 | B76: 11808 | C76: 24 | D76: 11812 | E76: 24 | F76: 11817 | K76: 0 | L76: 222
A77: 11 | B77: 11909 | C77: 11 | D77: 11916 | E77: 11 | F77: 11930 | K77: 0 | L77: 111
A78: 22 | B78: 12039 | C78: 13 | D78: 12054 | E78: 13 | F78: 12070 | K78: 0 | L78: 211
A79: 11 | B79: 12176 | C79: 11 | D79: 12183 | E79: 11 | F79: 12192 | K79: 0 | L79: 111
A80: 22 | B80: 12545 | C80: 24 | D80: 12548 | E80: 24 | F80: 12551 | K80: 0 | L80: 222
A81: 22 | B81: 12720 | C81: 24 | D81: 12725 | E81: 13 | F81: 12732 | K81: 0 | L81: 221
A82: 11 | B82: 12894 | C82: 11 | D82: 12904 | E82: 11 | F82: 12919 | K82: 0 | L82: 111
A83: 22 | B83: 13184 | C83: 24 | D83: 13192 | E83: 13 | F83: 13208 | K83: 0 | L83: 221
A84: 11 | B84: 13320 | C84: 11 | D84: 13328 | E84: 11 | F84: 13331 | K84: 0 | L84: 111
A85: 22 | B85: 13608 | C85: 24 | D85: 13616 | E85: 13 | F85: 13628 | K85: 0 | L85: 221
A86: 11 | B86: 13758 | C86: 11 | D86: 13762 | E86: 11 | F86: 13781 | K86: 0 | L86: 111
A87: 22 | B87: 13921 | C87: 13 | D87: 13927 | E87: 13 | F87: 13936 | K87: 0 | L87: 211
A88: 11 | B88: 14028 | C88: 11 | D88: 14038 | E88: 11 | F88: 14051 | K88: 0 | L88: 111
A89: 22 | B89: 14258 | C89: 24 | D89: 14262 | E89: 24 | F89: 14266 | K89: 0 | L89: 222
A90: 22 | B90: 14363 | C90: 24 | D90: 14366 | E90: 13 | F90: 14370 | K90: 0 | L90: 221
A91: 11 | B91: 14476 | C91: 11 | D91: 14482 | E91: 11 | F91: 14491 | K91: 0 | L91: 111
A92: 11 | B92: 14597 | C92: 11 | D92: 14605 | E92: 11 | F92: 14612 | K92: 0 | L92: 111
A93: 22 | B93: 14736 | C93: 24 | D93: 14740 | E93: 24 | F93: 14743 | K93: 0 | L93: 222
A94: 11 | B94: 14840 | C94: 11 | D94: 14845 | E94: 11 | F94: 14853 | K94: 0 | L94: 111
A95: 22 | B95: 14963 | C95: 24 | D95: 14966 | E95: 24 | F95: 14970 | K95: 0 | L95: 222
A96: 11 | B96: 15368 | C96: 11 | D96: 15376 | E96: 11 | F96: 15392 | K96: 0 | L96: 111
A97: 11 | B97: 15672 | C97: 11 | D97: 15681 | E97: 11 | F97: 15699 | K97: 0 | L97: 111
A98: 22 | B98: 15826 | C98: 13 | D98: 15831 | E98: 13 | F98: 15844 | K98: 0 | L98: 211
A99: 11 | B99: 15944 | C99: 11 | D99: 15948 | E99: 11 | F99: 15950 | K99: 0 | L99: 111
A100: 22 | B100: 16096 | C100: 24 | D100: 16106 | E100: 13 | F100: 16115 | K100: 0 | L100: 221
A101: 11 | B101: 16227 | C101: 22 | D101: 16229 | E101: 13 | F101: 16231 | K101: 0 | L101: 121
A102: 11 | B102: 16467 | C102: 22 | D102: 16481 | E102: 13 | F102: 16495 | K102: 0 | L102: 121
A103: 22 | B103: 16586 | C103: 13 | D103: 16599 | E103: 13 | F103: 16605 | K103: 0 | L103: 211
A104: 11 | B104: 16709 | C104: 11 | D104: 16715 | E104: 11 | F104: 16724 | K104: 1 | L104: 111

Sheet !N12495B.AXT
A1: Report for:!N12495B.AXT
A2: Date: | B2: <date>
A3: Hen: | B3: <hen> | F3: Correct Sequence | G3: =Start!J2 -> 111 | P3: Total Sequences in Data | Q3: =4994-COUNTBLANK(L7:L5000) -> 90 | V3: Total Sequences in Block Data | W3: =COUNTA(L7:L21) -> 15 | AA3: Total Sequences in Block Data | AB3: =COUNTA(L22:L36) -> 15 | AF3: Total Sequences in Block Data | AG3: =COUNTA(L37:L51) -> 15 | AK3: Total Sequences in Block Data | AL3: =COUNTA(L52:L66) -> 15 | AP3: Total Sequences in Block Data | AQ3: =COUNTA(L67:L81) -> 15 | AU3: Total Sequences in Block Data | AV3: =COUNTA(L82:L96) -> 15
P4: Total Sequences in Summary | Q4: =SUM(O7:O14) -> 90 | V4: Total Sequences in Block Summary | W4: =SUM(U7:U14) -> 15 | AA4: Total Sequences in Block Summary | AB4: =SUM(Z7:Z14) -> 15 | AF4: Total Sequences in Block Summary | AG4: =SUM(AE7:AE14) -> 15 | AK4: Total Sequences in Block Summary | AL4: =SUM(AJ7:AJ14) -> 15 | AP4: Total Sequences in Block Summary | AQ4: =SUM(AO7:AO14) -> 15 | AU4: Total Sequences in Block Summary | AV4: =SUM(AT7:AT14) -> 15
T5: Block 1 | Y5: Block 2 | AD5: Block 3 | AI5: Block 4 | AN5: Block 5 | AS5: Block 6
A6: Sequence Component 1 | B6: Time 1 | C6: Sequence Component 2 | D6: Time 2 | E6: Sequence Component 3 | F6: Time 3 | G6: Sequence Component 4 | H6: Time 4 | I6: Sequence Component 5 | J6: Time 5 | K6: Correct? 0=No 1=Yes | L6: Sequence | N6: Frequency | P6: Relative Frequency | Q6: Variability | T6: Frequency | V6: Relative Frequency | W6: Variability | Y6: Frequency | AA6: Relative Frequency | AB6: Variability | AD6: Frequency | AF6: Relative Frequency | AG6: Variability | AI6: Frequency | AK6: Relative Frequency | AL6: Variability | AN6: Frequency | AP6: Relative Frequency | AQ6: Variability | AS6: Frequency | AU6: Relative Frequency | AV6: Variability
A7: 11 | B7: 18 | C7: 22 | D7: 31 | E7: 24 | F7: 39 | K7: 0 | L7: 122 | N7: 111 | O7: =COUNTIF($L$7:$L$500,N7) -> 37 | P7: =O7/$Q$4 -> 0.4111111111 | Q7: =IF(P7=0,0,(P7*((LOG(P7))/LOG(2)))) -> -0.5272087782 | T7: =N7 -> 111 | U7: =COUNTIF(L7:L21,T7) -> 6 | Y7: =N7 -> 111 | Z7: =COUNTIF(L22:L36,Y7) -> 7 | AD7: =N7 -> 111 | AE7: =COUNTIF(L37:L51,AD7) -> 7 | AI7: =N7 -> 111 | AJ7: =COUNTIF(L52:L66,AI7) -> 6 | AN7: =N7 -> 111 | AO7: =COUNTIF(L67:L81,AN7) -> 6 | AS7: =N7 -> 111 | AT7: =COUNTIF(L82:L96,AS7) -> 5
A8: 11 | B8: 138 | C8: 11 | D8: 150 | E8: 11 | F8: 160 | K8: 0 | L8: 111 | N8: 112 | O8: =COUNTIF($L$7:$L$500,N8) -> 1 | P8: =O8/$Q$4 -> 0.01111111111 | Q8: =IF(P8=0,0,(P8*((LOG(P8))/LOG(2)))) -> -0.07213170107 | T8: =N8 -> 112 | U8: =COUNTIF(L7:L21,T8) -> 0 | V8: =U8/(W4-U7) -> 0 | W8: =IF(V8=0,0,(V8*((LOG(V8))/LOG(2)))) -> 0 | Y8: =N8 -> 112 | Z8: =COUNTIF(L22:L36,Y8) -> 0 | AA8: =Z8/(AB4-Z7) -> 0 | AB8: =IF(AA8=0,0,(AA8*((LOG(AA8))/LOG(2)))) -> 0 | AD8: =N8 -> 112 | AE8: =COUNTIF(L37:L51,AD8) -> 0 | AF8: =AE8/(AG4-AE7) -> 0 | AG8: =IF(AF8=0,0,(AF8*((LOG(AF8))/LOG(2)))) -> 0 | AI8: =N8 -> 112 | AJ8: =COUNTIF(L52:L66,AI8) -> 0 | AK8: =AJ8/(AL4-AJ7) -> 0 | AL8: =IF(AK8=0,0,(AK8*((LOG(AK8))/LOG(2)))) -> 0 | AN8: =N8 -> 112 | AO8: =COUNTIF(L67:L81,AN8) -> 1 | AP8: =AO8/(AQ4-AO7) -> 0.1111111111 | AQ8: =IF(AP8=0,0,(AP8*((LOG(AP8))/LOG(2)))) -> -0.352213889 | AS8: =N8 -> 112 | AT8: =COUNTIF(L82:L96,AS8) -> 0 | AU8: =AT8/(AV4-AT7) -> 0 | AV8: =IF(AU8=0,0,(AU8*((LOG(AU8))/LOG(2)))) -> 0
A9: 22 | B9: 333 | C9: 24 | D9: 345 | E9: 24 | F9: 348 | K9: 0 | L9: 222 | N9: 121 | O9: =COUNTIF($L$7:$L$500,N9) -> 3 | P9: =O9/$Q$4 -> 0.03333333333 | Q9: =IF(P9=0,0,(P9*((LOG(P9))/LOG(2)))) -> -0.1635630199 | T9: =N9 -> 121 | U9: =COUNTIF(L7:L21,T9) -> 0 | V9: =U9/(W4-U7) -> 0 | W9: =IF(V9=0,0,(V9*((LOG(V9))/LOG(2)))) -> 0 | Y9: =N9 -> 121 | Z9: =COUNTIF(L22:L36,Y9) -> 0 | AA9: =Z9/(AB4-Z7) -> 0 | AB9: =IF(AA9=0,0,(AA9*((LOG(AA9))/LOG(2)))) -> 0 | AD9: =N9 -> 121 | AE9: =COUNTIF(L37:L51,AD9) -> 1 | AF9: =AE9/(AG4-AE7) -> 0.125 | AG9: =IF(AF9=0,0,(AF9*((LOG(AF9))/LOG(2)))) -> -0.375 | AI9: =N9 -> 121 | AJ9: =COUNTIF(L52:L66,AI9) -> 0 | AK9: =AJ9/(AL4-AJ7) -> 0 | AL9: =IF(AK9=0,0,(AK9*((LOG(AK9))/LOG(2)))) -> 0 | AN9: =N9 -> 121 | AO9: =COUNTIF(L67:L81,AN9) -> 2 | AP9: =AO9/(AQ4-AO7) -> 0.2222222222 | AQ9: =IF(AP9=0,0,(AP9*((LOG(AP9))/LOG(2)))) -> -0.4822055559 | AS9: =N9 -> 121 | AT9: =COUNTIF(L82:L96,AS9) -> 0 | AU9: =AT9/(AV4-AT7) -> 0 | AV9: =IF(AU9=0,0,(AU9*((LOG(AU9))/LOG(2)))) -> 0
A10: 11 | B10: 458 | C10: 11 | D10: 491 | E10: 11 | F10: 498 | K10: 0 | L10: 111 | N10: 122 | O10: =COUNTIF($L$7:$L$500,N10) -> 2 | P10: =O10/$Q$4 -> 0.02222222222 | Q10: =IF(P10=0,0,(P10*((LOG(P10))/LOG(2)))) -> -0.1220411799 | T10: =N10 -> 122 | U10: =COUNTIF(L7:L21,T10) -> 1 | V10: =U10/(W4-U7) -> 0.1111111111 | W10: =IF(V10=0,0,(V10*((LOG(V10))/LOG(2)))) -> -0.352213889 | Y10: =N10 -> 122 | Z10: =COUNTIF(L22:L36,Y10) -> 0 | AA10: =Z10/(AB4-Z7) -> 0 | AB10: =IF(AA10=0,0,(AA10*((LOG(AA10))/LOG(2)))) -> 0 | AD10: =N10 -> 122 | AE10: =COUNTIF(L37:L51,AD10) -> 1 | AF10: =AE10/(AG4-AE7) -> 0.125 | AG10: =IF(AF10=0,0,(AF10*((LOG(AF10))/LOG(2)))) -> -0.375 | AI10: =N10 -> 122 | AJ10: =COUNTIF(L52:L66,AI10) -> 0 | AK10: =AJ10/(AL4-AJ7) -> 0 | AL10: =IF(AK10=0,0,(AK10*((LOG(AK10))/LOG(2)))) -> 0 | AN10: =N10 -> 122 | AO10: =COUNTIF(L67:L81,AN10) -> 0 | AP10: =AO10/(AQ4-AO7) -> 0 | AQ10: =IF(AP10=0,0,(AP10*((LOG(AP10))/LOG(2)))) -> 0 | AS10: =N10 -> 122 | AT10: =COUNTIF(L82:L96,AS10) -> 0 | AU10: =AT10/(AV4-AT7) -> 0 | AV10: =IF(AU10=0,0,(AU10*((LOG(AU10))/LOG(2)))) -> 0
A11: 11 | B11: 590 | C11: 11 | D11: 608 | E11: 11 | F11: 615 | K11: 0 | L11: 111 | N11: 211 | O11: =COUNTIF($L$7:$L$500,N11) -> 15 | P11: =O11/$Q$4 -> 0.1666666667 | Q11: =IF(P11=0,0,(P11*((LOG(P11))/LOG(2)))) -> -0.4308270835 | T11: =N11 -> 211 | U11: =COUNTIF(L7:L21,T11) -> 3 | V11: =U11/(W4-U7) -> 0.3333333333 | W11: =IF(V11=0,0,(V11*((LOG(V11))/LOG(2)))) -> -0.5283208336 | Y11: =N11 -> 211 | Z11: =COUNTIF(L22:L36,Y11) -> 2 | AA11: =Z11/(AB4-Z7) -> 0.25 | AB11: =IF(AA11=0,0,(AA11*((LOG(AA11))/LOG(2)))) -> -0.5 | AD11: =N11 -> 211 | AE11: =COUNTIF(L37:L51,AD11) -> 3 | AF11: =AE11/(AG4-AE7) -> 0.375 | AG11: =IF(AF11=0,0,(AF11*((LOG(AF11))/LOG(2)))) -> -0.5306390622 | AI11: =N11 -> 211 | AJ11: =COUNTIF(L52:L66,AI11) -> 2 | AK11: =AJ11/(AL4-AJ7) -> 0.2222222222 | AL11: =IF(AK11=0,0,(AK11*((LOG(AK11))/LOG(2)))) -> -0.4822055559 | AN11: =N11 -> 211 | AO11: =COUNTIF(L67:L81,AN11) -> 1 | AP11: =AO11/(AQ4-AO7) -> 0.1111111111 | AQ11: =IF(AP11=0,0,(AP11*((LOG(AP11))/LOG(2)))) -> -0.352213889 | AS11: =N11 -> 211 | AT11: =COUNTIF(L82:L96,AS11) -> 4 | AU11: =AT11/(AV4-AT7) -> 0.4 | AV11: =IF(AU11=0,0,(AU11*((LOG(AU11))/LOG(2)))) -> -0.528771238
A12: 22 | B12: 712 | C12: 13 | D12: 725 | E12: 13 | F12: 736 | K12: 0 | L12: 211 | N12: 212 | O12: =COUNTIF($L$7:$L$500,N12) -> 3 | P12: =O12/$Q$4 -> 0.03333333333 | Q12: =IF(P12=0,0,(P12*((LOG(P12))/LOG(2)))) -> -0.1635630199 | T12: =N12 -> 212 | U12: =COUNTIF(L7:L21,T12) -> 0 | V12: =U12/(W4-U7) -> 0 | W12: =IF(V12=0,0,(V12*((LOG(V12))/LOG(2)))) -> 0 | Y12: =N12 -> 212 | Z12: =COUNTIF(L22:L36,Y12) -> 1 | AA12: =Z12/(AB4-Z7) -> 0.125 | AB12: =IF(AA12=0,0,(AA12*((LOG(AA12))/LOG(2)))) -> -0.375 | AD12: =N12 -> 212 | AE12: =COUNTIF(L37:L51,AD12) -> 1 | AF12: =AE12/(AG4-AE7) -> 0.125 | AG12: =IF(AF12=0,0,(AF12*((LOG(AF12))/LOG(2)))) -> -0.375 | AI12: =N12 -> 212 | AJ12: =COUNTIF(L52:L66,AI12) -> 0 | AK12: =AJ12/(AL4-AJ7) -> 0 | AL12: =IF(AK12=0,0,(AK12*((LOG(AK12))/LOG(2)))) -> 0 | AN12: =N12 -> 212 | AO12: =COUNTIF(L67:L81,AN12) -> 0 | AP12: =AO12/(AQ4-AO7) -> 0 | AQ12: =IF(AP12=0,0,(AP12*((LOG(AP12))/LOG(2)))) -> 0 | AS12: =N12 -> 212 | AT12: =COUNTIF(L82:L96,AS12) -> 1 | AU12: =AT12/(AV4-AT7) -> 0.1 | AV12: =IF(AU12=0,0,(AU12*((LOG(AU12))/LOG(2)))) -> -0.3321928095
A13: 11 | B13: 838 | C13: 11 | D13: 854 | E13: 11 | F13: 862 | K13: 0 | L13: 111 | N13: 221 | O13: =COUNTIF($L$7:$L$500,N13) -> 11 | P13: =O13/$Q$4 -> 0.1222222222 | Q13: =IF(P13=0,0,(P13*((LOG(P13))/LOG(2)))) -> -0.3706292917 | T13: =N13 -> 221 | U13: =COUNTIF(L7:L21,T13) -> 1 | V13: =U13/(W4-U7) -> 0.1111111111 | W13: =IF(V13=0,0,(V13*((LOG(V13))/LOG(2)))) -> -0.352213889 | Y13: =N13 -> 221 | Z13: =COUNTIF(L22:L36,Y13) -> 1 | AA13: =Z13/(AB4-Z7) -> 0.125 | AB13: =IF(AA13=0,0,(AA13*((LOG(AA13))/LOG(2)))) -> -0.375 | AD13: =N13 -> 221 | AE13: =COUNTIF(L37:L51,AD13) -> 2 | AF13: =AE13/(AG4-AE7) -> 0.25 | AG13: =IF(AF13=0,0,(AF13*((LOG(AF13))/LOG(2)))) -> -0.5 | AI13: =N13 -> 221 | AJ13: =COUNTIF(L52:L66,AI13) -> 2 | AK13: =AJ13/(AL4-AJ7) -> 0.2222222222 | AL13: =IF(AK13=0,0,(AK13*((LOG(AK13))/LOG(2)))) -> -0.4822055559 | AN13: =N13 -> 221 | AO13: =COUNTIF(L67:L81,AN13) -> 1 | AP13: =AO13/(AQ4-AO7) -> 0.1111111111 | AQ13: =IF(AP13=0,0,(AP13*((LOG(AP13))/LOG(2)))) -> -0.352213889 | AS13: =N13 -> 221 | AT13: =COUNTIF(L82:L96,AS13) -> 4 | AU13: =AT13/(AV4-AT7) -> 0.4 | AV13: =IF(AU13=0,0,(AU13*((LOG(AU13))/LOG(2)))) -> -0.528771238
A14: 22 | B14: 955 | C14: 24 | D14: 962 | E14: 13 | F14: 983 | K14: 0 | L14: 221 | N14: 222 | O14: =COUNTIF($L$7:$L$500,N14) -> 18 | P14: =O14/$Q$4 -> 0.2 | Q14: =IF(P14=0,0,(P14*((LOG(P14))/LOG(2)))) -> -0.464385619 | T14: =N14 -> 222 | U14: =COUNTIF(L7:L21,T14) -> 4 | V14: =U14/(W4-U7) -> 0.4444444444 | W14: =IF(V14=0,0,(V14*((LOG(V14))/LOG(2)))) -> -0.5199666673 | Y14: =N14 -> 222 | Z14: =COUNTIF(L22:L36,Y14) -> 4 | AA14: =Z14/(AB4-Z7) -> 0.5 | AB14: =IF(AA14=0,0,(AA14*((LOG(AA14))/LOG(2)))) -> -0.5 | AD14: =N14 -> 222 | AE14: =COUNTIF(L37:L51,AD14) -> 0 | AF14: =AE14/(AG4-AE7) -> 0 | AG14: =IF(AF14=0,0,(AF14*((LOG(AF14))/LOG(2)))) -> 0 | AI14: =N14 -> 222 | AJ14: =COUNTIF(L52:L66,AI14) -> 5 | AK14: =AJ14/(AL4-AJ7) -> 0.5555555556 | AL14: =IF(AK14=0,0,(AK14*((LOG(AK14))/LOG(2)))) -> -0.4711093925 | AN14: =N14 -> 222 | AO14: =COUNTIF(L67:L81,AN14) -> 4 | AP14: =AO14/(AQ4-AO7) -> 0.4444444444 | AQ14: =IF(AP14=0,0,(AP14*((LOG(AP14))/LOG(2)))) -> -0.5199666673 | AS14: =N14 -> 222 | AT14: =COUNTIF(L82:L96,AS14) -> 1 | AU14: =AT14/(AV4-AT7) -> 0.1 | AV14: =IF(AU14=0,0,(AU14*((LOG(AU14))/LOG(2)))) -> -0.3321928095
A15: 22 | B15: 1099 | C15: 24 | D15: 1102 | E15: 24 | F15: 1107 | K15: 0 | L15: 222 | P15: =SUM(P7:P14) -> 1 | Q15: =-SUM(Q7:Q14) -> 2.314349693 | V15: =SUM(V7:V14) -> 1 | W15: =-SUM(W7:W14) -> 1.752715279 | AA15: =SUM(AA7:AA14) -> 1 | AB15: =-SUM(AB7:AB14) -> 1.75 | AF15: =SUM(AF7:AF14) -> 1 | AG15: =-SUM(AG7:AG14) -> 2.155639062 | AK15: =SUM(AK7:AK14) -> 1 | AL15: =-SUM(AL7:AL14) -> 1.435520504 | AP15: =SUM(AP7:AP14) -> 1 | AQ15: =-SUM(AQ7:AQ14) -> 2.05881389 | AU15: =SUM(AU7:AU14) -> 1 | AV15: =-SUM(AV7:AV14) -> 1.721928095
A16: 22 | B16: 1227 | C16: 24 | D16: 1232 | E16: 24 | F16: 1235 | K16: 0 | L16: 222 | P16: U= | Q16: =Q15/(LOG(Q4)/LOG(2)) -> 0.356500626 | V16: U1= | W16: =W15/(LOG(W4)/LOG(2)) -> 0.4486215409 | AA16: U2= | AB16: =AB15/(LOG(AB4)/LOG(2)) -> 0.4479265434 | AF16: U3= | AG16: =AG15/(LOG(AG4)/LOG(2)) -> 0.5517531166 | AK16: U4= | AL16: =AL15/(LOG(AL4)/LOG(2)) -> 0.3674329929 | AP16: U5= | AQ16: =AQ15/(LOG(AQ4)/LOG(2)) -> 0.5269699368 | AU16: U6= | AV16: =AV15/(LOG(AV4)/LOG(2)) -> 0.440741314
A17: 22 | B17: 1337 | C17: 13 | D17: 1353 | E17: 13 | F17: 1356 | K17: 0 | L17: 211
A18: 22 | B18: 1450 | C18: 13 | D18: 1457 | E18: 13 | F18: 1461 | K18: 0 | L18: 211
A19: 11 | B19: 1565 | C19: 11 | D19: 1573 | E19: 11 | F19: 1578 | K19: 0 | L19: 111 | N19: Total Target Seq
A20: 22 | B20: 1670 | C20: 24 | D20: 1678 | E20: 24 | F20: 1682 | K20: 0 | L20: 222 | N20: =COUNTIF(L7:L96,G3) -> 37 | P20: 15 | Q20: 15 | R20: 15 | S20: 15 | T20: 15 | U20: 15
A21: 11 | B21: 1779 | C21: 11 | D21: 1796 | E21: 11 | F21: 1813 | K21: 0 | L21: 111 | P21: % of reinforcement given in 6 equal intervals based on number of trials
A22: 22 | B22: 1906 | C22: 13 | D22: 1923 | E22: 13 | F22: 1939 | K22: 0 | L22: 211 | P22: %_1 | Q22: %_2 | R22: %_3 | S22: %_4 | T22: %_5 | U22: %_6
A23: 11 | B23: 2087 | C23: 11 | D23: 2103 | E23: 11 | F23: 2124 | K23: 0 | L23: 111 | O23: target sequence | P23: =$G$3 -> 111 | Q23: =$G$3 -> 111 | R23: =$G$3 -> 111 | S23: =$G$3 -> 111 | T23: =$G$3 -> 111 | U23: =$G$3 -> 111
A24: 22 | B24: 2232 | C24: 24 | D24: 2237 | E24: 13 | F24: 2279 | K24: 0 | L24: 221 | O24: total reinforcement | P24: =U7 -> 6 | Q24: =Z7 -> 7 | R24: =AE7 -> 7 | S24: =AJ7 -> 6 | T24: =AO7 -> 6 | U24: =AT7 -> 5
A25: 11 | B25: 2391 | C25: 11 | D25: 2412 | E25: 11 | F25: 2422 | K25: 0 | L25: 111 | O25: % target
A26: 22 | B26: 2526 | C26: 24 | D26: 2528 | E26: 24 | F26: 2533 | K26: 0 | L26: 222 | O26: CCRF
A27: 11 | B27: 2633 | C27: 11 | D27: 2650 | E27: 11 | F27: 2670 | K27: 0 | L27: 111 | O27: % CCRf
A28: 22 | B28: 2803 | C28: 24 | D28: 2809 | E28: 24 | F28: 2812 | K28: 0 | L28: 222 | O28: average response rate | P28: =F21/P20 -> 120.8666667 | Q28: =(F36-F21)/Q20 -> 162.8666667 | R28: =(F51-F36)/R20 -> 157 | S28: =(F66-F51)/S20 -> 171.8 | T28: =(F81-F66)/T20 -> 195 | U28: =(F96-F81)/U20 -> 157.2
A29: 11 | B29: 2915 | C29: 11 | D29: 2946 | E29: 11 | F29: 2956 | K29: 0 | L29: 111
A30: 22 | B30: 3153 | C30: 13 | D30: 3168 | E30: 24 | F30: 3180 | K30: 0 | L30: 212
A31: 22 | B31: 3319 | C31: 13 | D31: 3345 | E31: 13 | F31: 3360 | K31: 0 | L31: 211
A32: 22 | B32: 3524 | C32: 24 | D32: 3533 | E32: 24 | F32: 3538 | K32: 0 | L32: 222
A33: 11 | B33: 3652 | C33: 11 | D33: 3686 | E33: 11 | F33: 3690 | K33: 0 | L33: 111
A34: 11 | B34: 3840 | C34: 11 | D34: 3857 | E34: 11 | F34: 3864 | K34: 0 | L34: 111
A35: 22 | B35: 4113 | C35: 24 | D35: 4116 | E35: 24 | F35: 4123 | K35: 0 | L35: 222
A36: 11 | B36: 4233 | C36: 11 | D36: 4248 | E36: 11 | F36: 4256 | K36: 0 | L36: 111
A37: 22 | B37: 4403 | C37: 13 | D37: 4410 | E37: 13 | F37: 4424 | K37: 0 | L37: 211
A38: 22 | B38: 4519 | C38: 24 | D38: 4527 | E38: 13 | F38: 4542 | K38: 0 | L38: 221
A39: 11 | B39: 4633 | C39: 11 | D39: 4636 | E39: 11 | F39: 4650 | K39: 0 | L39: 111
A40: 22 | B40: 4867 | C40: 13 | D40: 4870 | E40: 24 | F40: 4894 | K40: 0 | L40: 212
A41: 11 | B41: 5012 | C41: 11 | D41: 5022 | E41: 11 | F41: 5029 | K41: 0 | L41: 111
A42: 22 | B42: 5204 | C42: 24 | D42: 5209 | E42: 13 | F42: 5218 | K42: 0 | L42: 221
A43: 11 | B43: 5312 | C43: 11 | D43: 5331 | E43: 11 | F43: 5333 | K43: 0 | L43: 111
A44: 22 | B44: 5437 | C44: 13 | D44: 5442 | E44: 13 | F44: 5468 | K44: 0 | L44: 211
A45: 11 | B45: 5571 | C45: 11 | D45: 5589 | E45: 11 | F45: 5616 | K45: 0 | L45: 111
A46: 11 | B46: 5832 | C46: 22 | D46: 5837 | E46: 24 | F46: 5844 | K46: 0 | L46: 122
A47: 11 | B47: 5939 | C47: 11 | D47: 5946 | E47: 11 | F47: 5968 | K47: 0 | L47: 111
A48: 11 | B48: 6157 | C48: 11 | D48: 6169 | E48: 11 | F48: 6187 | K48: 0 | L48: 111
A49: 11 | B49: 6319 | C49: 22 | D49: 6328 | E49: 13 | F49: 6332 | K49: 0 | L49: 121
A50: 22 | B50: 6467 | C50: 13 | D50: 6474 | E50: 13 | F50: 6489 | K50: 0 | L50: 211
A51: 11 | B51: 6586 | C51: 11 | D51: 6597 | E51: 11 | F51: 6611 | K51: 0 | L51: 111
A52: 11 | B52: 6710 | C52: 11 | D52: 6713 | E52: 11 | F52: 6720 | K52: 0 | L52: 111
A53: 22 | B53: 7007 | C53: 24 | D53: 7011 | E53: 24 | F53: 7044 | K53: 0 | L53: 222
A54: 22 | B54: 7154 | C54: 24 | D54: 7162 | E54: 24 | F54: 7170 | K54: 0 | L54: 222
A55: 22 | B55: 7264 | C55: 24 | D55: 7267 | E55: 13 | F55: 7281 | K55: 0 | L55: 221
A56: 11 | B56: 7379 | C56: 11 | D56: 7385 | E56: 11 | F56: 7398 | K56: 0 | L56: 111
A57: 11 | B57: 7547 | C57: 11 | D57: 7563 | E57: 11 | F57: 7586 | K57: 0 | L57: 111
A58: 11 | B58: 7856 | C58: 11 | D58: 7870 | E58: 11 | F58: 7877 | K58: 0 | L58: 111
A59: 22 | B59: 8014 | C59: 24 | D59: 8021 | E59: 24 | F59: 8026 | K59: 0 | L59: 222
A60: 22 | B60: 8123 | C60: 13 | D60: 8135 | E60: 13 | F60: 8170 | K60: 0 | L60: 211
A61: 22 | B61: 8293 | C61: 13 | D61: 8312 | E61: 13 | F61: 8340 | K61: 0 | L61: 211
A62: 11 | B62: 8436 | C62: 11 | D62: 8439 | E62: 11 | F62: 8444 | K62: 0 | L62: 111
A63: 22 | B63: 8754 | C63: 24 | D63: 8762 | E63: 24 | F63: 8766 | K63: 0 | L63: 222
A64: 11 | B64: 8864 | C64: 11 | D64: 8867 | E64: 11 | F64: 8891 | K64: 0 | L64: 111
A65: 22 | B65: 9049 | C65: 24 | D65: 9056 | E65: 24 | F65: 9060 | K65: 0 | L65: 222
A66: 22 | B66: 9170 | C66: 24 | D66: 9173 | E66: 13 | F66: 9188 | K66: 0 | L66: 221
A67: 11 | B67: 9279 | C67: 11 | D67: 9294 | E67: 11 | F67: 9300 | K67: 0 | L67: 111
A68: 11 | B68: 9435 | C68: 11 | D68: 9451 | E68: 11 | F68: 9463 | K68: 0 | L68: 111
A69: 11 | B69: 9612 | C69: 11 | D69: 9617 | E69: 22 | F69: 9620 | K69: 0 | L69: 112
A70: 22 | B70: 9864 | C70: 24 | D70: 9876 | E70: 13 | F70: 9894 | K70: 0 | L70: 221
A71: 11 | B71: 9993 | C71: 11 | D71: 10006 | E71: 11 | F71: 10009 | K71: 0 | L71: 111
A72: 11 | B72: 10392 | C72: 11 | D72: 10409 | E72: 11 | F72: 10416 | K72: 0 | L72: 111
A73: 22 | B73: 10566 | C73: 24 | D73: 10580 | E73: 24 | F73: 10584 | K73: 0 | L73: 222
A74: 11 | B74: 10745 | C74: 11 | D74: 10753 | E74: 11 | F74: 10757 | K74: 0 | L74: 111
A75: 22 | B75: 11066 | C75: 24 | D75: 11072 | E75: 24 | F75: 11077 | K75: 0 | L75: 222
A76: 11 | B76: 11186 | C76: 22 | D76: 11200 | E76: 13 | F76: 11217 | K76: 0 | L76: 121
A77: 22 | B77: 11383 | C77: 24 | D77: 11386 | E77: 24 | F77: 11391 | K77: 0 | L77: 222
A78: 11 | B78: 11499 | C78: 22 | D78: 11505 | E78: 13 | F78: 11510 | K78: 0 | L78: 121
A79: 22 | B79: 11660 | C79: 24 | D79: 11664 | E79: 24 | F79: 11670 | K79: 0 | L79: 222
A80: 11 | B80: 11774 | C80: 11 | D80: 11783 | E80: 11 | F80: 11842 | K80: 0 | L80: 111
A81: 22 | B81: 12081 | C81: 13 | D81: 12095 | E81: 13 | F81: 12113 | K81: 0 | L81: 211
A82: 22 | B82: 12238 | C82: 24 | D82: 12246 | E82: 13 | F82: 12257 | K82: 0 | L82: 221
A83: 22 | B83: 12366 | C83: 13 | D83: 12384 | E83: 13 | F83: 12409 | K83: 0 | L83: 211
A84: 22 | B84: 12510 | C84: 13 | D84: 12518 | E84: 13 | F84: 12539 | K84: 0 | L84: 211
A85: 22 | B85: 12645 | C85: 13 | D85: 12647 | E85: 24 | F85: 12654 | K85: 0 | L85: 212
A86: 11 | B86: 12759 | C86: 11 | D86: 12773 | E86: 11 | F86: 12784 | K86: 0 | L86: 111
A87: 22 | B87: 12887 | C87: 13 | D87: 12894 | E87: 13 | F87: 12908 | K87: 0 | L87: 211
A88: 11 | B88: 13014 | C88: 11 | D88: 13031 | E88: 11 | F88: 13041 | K88: 0 | L88: 111
A89: 22 | B89: 13169 | C89: 24 | D89: 13172 | E89: 24 | F89: 13177 | K89: 0 | L89: 222
A90: 11 | B90: 13288 | C90: 11 | D90: 13301 | E90: 11 | F90: 13305 | K90: 0 | L90: 111
A91: 22 | B91: 13759 | C91: 24 | D91: 13763 | E91: 13 | F91: 13778 | K91: 0 | L91: 221
A92: 22 | B92: 13879 | C92: 13 | D92: 13893 | E92: 13 | F92: 13902 | K92: 0 | L92: 211
A93: 22 | B93: 14004 | C93: 24 | D93: 14019 | E93: 13 | F93: 14028 | K93: 0 | L93: 221
A94: 11 | B94: 14123 | C94: 11 | D94: 14145 | E94: 11 | F94: 14174 | K94: 0 | L94: 111
A95: 22 | B95: 14341 | C95: 24 | D95: 14348 | E95: 13 | F95: 14355 | K95: 0 | L95: 221
A96: 11 | B96: 14448 | C96: 11 | D96: 14464 | E96: 11 | F96: 14471 | K96: 1 | L96: 111

Sheet !N125A0B.AXT
A1: Report for:!N125A0B.AXT
A2: Date: | B2: <date>
A3: Hen: | B3: <hen> | F3: Correct Sequence | G3: =Start!J2 -> 111 | P3: Total Sequences in Data | Q3: =4994-COUNTBLANK(L7:L5000) -> 74 | V3: Total Sequences in Block Data | W3: =COUNTA(L7:L18) -> 12 | AA3: Total Sequences in Block Data | AB3: =COUNTA(L19:L31) -> 13 | AF3: Total Sequences in Block Data | AG3: =COUNTA(L32:L43) -> 12 | AK3: Total Sequences in Block Data | AL3: =COUNTA(L44:L55) -> 12 | AP3: Total Sequences in Block Data | AQ3: =COUNTA(L56:L68) -> 13 | AU3: Total Sequences in Block Data | AV3: =COUNTA(L69:L80) -> 12
P4: Total Sequences in Summary | Q4: =SUM(O7:O14) -> 74 | V4: Total Sequences in Block Summary | W4: =SUM(U7:U14) -> 12 | AA4: Total Sequences in Block Summary | AB4: =SUM(Z7:Z14) -> 13 | AF4: Total Sequences in Block Summary | AG4: =SUM(AE7:AE14) -> 12 | AK4: Total Sequences in Block Summary | AL4: =SUM(AJ7:AJ14) -> 12 | AP4: Total Sequences in Block Summary | AQ4: =SUM(AO7:AO14) -> 13 | AU4: Total Sequences in Block Summary | AV4: =SUM(AT7:AT14) -> 12
T5: Block 1 | Y5: Block 2 | AD5: Block 3 | AI5: Block 4 | AN5: Block 5 | AS5: Block 6
A6: Sequence Component 1 | B6: Time 1 | C6: Sequence Component 2 | D6: Time 2 | E6: Sequence Component 3 | F6: Time 3 | G6: Sequence Component 4 | H6: Time 4 | I6: Sequence Component 5 | J6: Time 5 | K6: Correct? 0=No 1=Yes | L6: Sequence | N6: Frequency | P6: Relative Frequency | Q6: Variability | T6: Frequency | V6: Relative Frequency | W6: Variability | Y6: Frequency | AA6: Relative Frequency | AB6: Variability | AD6: Frequency | AF6: Relative Frequency | AG6: Variability | AI6: Frequency | AK6: Relative Frequency | AL6: Variability | AN6: Frequency | AP6: Relative Frequency | AQ6: Variability | AS6: Frequency | AU6: Relative Frequency | AV6: Variability
A7: 11 | B7: 50 | C7: 22 | D7: 70 | E7: 13 | F7: 94 | K7: 0 | L7: 121 | N7: 111 | O7: =COUNTIF($L$7:$L$500,N7) -> 39 | P7: =O7/$Q$4 -> 0.527027027 | Q7: =IF(P7=0,0,(P7*((LOG(P7))/LOG(2)))) -> -0.4869999287 | T7: =N7 -> 111 | U7: =COUNTIF(L7:L18,T7) -> 4 | Y7: =N7 -> 111 | Z7: =COUNTIF(L19:L31,Y7) -> 7 | AD7: =N7 -> 111 | AE7: =COUNTIF(L32:L43,AD7) -> 8 | AI7: =N7 -> 111 | AJ7: =COUNTIF(L44:L55,AI7) -> 7 | AN7: =N7 -> 111 | AO7: =COUNTIF(L56:L68,AN7) -> 6 | AS7: =N7 -> 111 | AT7: =COUNTIF(L69:L80,AS7) -> 7
A8: 22 | B8: 253 | C8: 13 | D8: 268 | E8: 24 | F8: 282 | K8: 0 | L8: 212 | N8: 112 | O8: =COUNTIF($L$7:$L$500,N8) -> 1 | P8: =O8/$Q$4 -> 0.01351351351 | Q8: =IF(P8=0,0,(P8*((LOG(P8))/LOG(2)))) -> -0.08391153197 | T8: =N8 -> 112 | U8: =COUNTIF(L7:L18,T8) -> 0 | V8: =U8/(W4-U7) -> 0 | W8: =IF(V8=0,0,(V8*((LOG(V8))/LOG(2)))) -> 0 | Y8: =N8 -> 112 | Z8: =COUNTIF(L19:L31,Y8) -> 0 | AA8: =Z8/(AB4-Z7) -> 0 | AB8: =IF(AA8=0,0,(AA8*((LOG(AA8))/LOG(2)))) -> 0 | AD8: =N8 -> 112 | AE8: =COUNTIF(L32:L43,AD8) -> 0 | AF8: =AE8/(AG4-AE7) -> 0 | AG8: =IF(AF8=0,0,(AF8*((LOG(AF8))/LOG(2)))) -> 0 | AI8: =N8 -> 112 | AJ8: =COUNTIF(L44:L55,AI8) -> 0 | AK8: =AJ8/(AL4-AJ7) -> 0 | AL8: =IF(AK8=0,0,(AK8*((LOG(AK8))/LOG(2)))) -> 0 | AN8: =N8 -> 112 | AO8: =COUNTIF(L56:L68,AN8) -> 1 | AP8: =AO8/(AQ4-AO7) -> 0.1428571429 | AQ8: =IF(AP8=0,0,(AP8*((LOG(AP8))/LOG(2)))) -> -0.4010507032 | AS8: =N8 -> 112 | AT8: =COUNTIF(L69:L80,AS8) -> 0 | AU8: =AT8/(AV4-AT7) -> 0 | AV8: =IF(AU8=0,0,(AU8*((LOG(AU8))/LOG(2)))) -> 0
A9: 22 | B9: 383 | C9: 13 | D9: 386 | E9: 13 | F9: 397 | K9: 0 | L9: 211 | N9: 121 | O9: =COUNTIF($L$7:$L$500,N9) -> 2 | P9: =O9/$Q$4 -> 0.02702702703 | Q9: =IF(P9=0,0,(P9*((LOG(P9))/LOG(2)))) -> -0.1407960369 | T9: =N9 -> 121 | U9: =COUNTIF(L7:L18,T9) -> 1 | V9: =U9/(W4-U7) -> 0.125 | W9: =IF(V9=0,0,(V9*((LOG(V9))/LOG(2)))) -> -0.375 | Y9: =N9 -> 121 | Z9: =COUNTIF(L19:L31,Y9) -> 1 | AA9: =Z9/(AB4-Z7) -> 0.1666666667 | AB9: =IF(AA9=0,0,(AA9*((LOG(AA9))/LOG(2)))) -> -0.4308270835 | AD9: =N9 -> 121 | AE9: =COUNTIF(L32:L43,AD9) -> 0 | AF9: =AE9/(AG4-AE7) -> 0 | AG9: =IF(AF9=0,0,(AF9*((LOG(AF9))/LOG(2)))) -> 0 | AI9: =N9 -> 121 | AJ9: =COUNTIF(L44:L55,AI9) -> 0 | AK9: =AJ9/(AL4-AJ7) -> 0 | AL9: =IF(AK9=0,0,(AK9*((LOG(AK9))/LOG(2)))) -> 0 | AN9: =N9 -> 121 | AO9: =COUNTIF(L56:L68,AN9) -> 0 | AP9: =AO9/(AQ4-AO7) -> 0 | AQ9: =IF(AP9=0,0,(AP9*((LOG(AP9))/LOG(2)))) -> 0 | AS9: =N9 -> 121 | AT9: =COUNTIF(L69:L80,AS9) -> 0 | AU9: =AT9/(AV4-AT7) -> 0 | AV9: =IF(AU9=0,0,(AU9*((LOG(AU9))/LOG(2)))) -> 0
A10: 11 | B10: 492 | C10: 11 | D10: 495 | E10: 11 | F10: 525 | K10: 0 | L10: 111 | N10: 122 | O10: =COUNTIF($L$7:$L$500,N10) -> 1 | P10: =O10/$Q$4 -> 0.01351351351 | Q10: =IF(P10=0,0,(P10*((LOG(P10))/LOG(2)))) -> -0.08391153197 | T10: =N10 -> 122 | U10: =COUNTIF(L7:L18,T10) -> 0 | V10: =U10/(W4-U7) -> 0 | W10: =IF(V10=0,0,(V10*((LOG(V10))/LOG(2)))) -> 0 | Y10: =N10 -> 122 | Z10: =COUNTIF(L19:L31,Y10) -> 0 | AA10: =Z10/(AB4-Z7) -> 0 | AB10: =IF(AA10=0,0,(AA10*((LOG(AA10))/LOG(2)))) -> 0 | AD10: =N10 -> 122 | AE10: =COUNTIF(L32:L43,AD10) -> 1 | AF10: =AE10/(AG4-AE7) -> 0.25 | AG10: =IF(AF10=0,0,(AF10*((LOG(AF10))/LOG(2)))) -> -0.5 | AI10: =N10 -> 122 | AJ10: =COUNTIF(L44:L55,AI10) -> 0 | AK10: =AJ10/(AL4-AJ7) -> 0 | AL10: =IF(AK10=0,0,(AK10*((LOG(AK10))/LOG(2)))) -> 0 | AN10: =N10 -> 122 | AO10: =COUNTIF(L56:L68,AN10) -> 0 | AP10: =AO10/(AQ4-AO7) -> 0 | AQ10: =IF(AP10=0,0,(AP10*((LOG(AP10))/LOG(2)))) -> 0 | AS10: =N10 -> 122 | AT10: =COUNTIF(L69:L80,AS10) -> 0 | AU10: =AT10/(AV4-AT7) -> 0 | AV10: =IF(AU10=0,0,(AU10*((LOG(AU10))/LOG(2)))) -> 0
A11: 22 | B11: 783 | C11: 13 | D11: 799 | E11: 13 | F11: 824 | K11: 0 | L11: 211 | N11: 211 | O11: =COUNTIF($L$7:$L$500,N11) -> 18 | P11: =O11/$Q$4 -> 0.2432432432 | Q11: =IF(P11=0,0,(P11*((LOG(P11))/LOG(2)))) -> -0.496101494 | T11: =N11 -> 211 | U11: =COUNTIF(L7:L18,T11) -> 5 | V11: =U11/(W4-U7) -> 0.625 | W11: =IF(V11=0,0,(V11*((LOG(V11))/LOG(2)))) -> -0.4237949407 | Y11: =N11 -> 211 | Z11: =COUNTIF(L19:L31,Y11) -> 2 | AA11: =Z11/(AB4-Z7) -> 0.3333333333 | AB11: =IF(AA11=0,0,(AA11*((LOG(AA11))/LOG(2)))) -> -0.5283208336 | AD11: =N11 -> 211 | AE11: =COUNTIF(L32:L43,AD11) -> 2 | AF11: =AE11/(AG4-AE7) -> 0.5 | AG11: =IF(AF11=0,0,(AF11*((LOG(AF11))/LOG(2)))) -> -0.5 | AI11: =N11 -> 211 | AJ11: =COUNTIF(L44:L55,AI11) -> 2 | AK11: =AJ11/(AL4-AJ7) -> 0.4 | AL11: =IF(AK11=0,0,(AK11*((LOG(AK11))/LOG(2)))) -> -0.528771238 | AN11: =N11 -> 211 | AO11: =COUNTIF(L56:L68,AN11) -> 4 | AP11: =AO11/(AQ4-AO7) -> 0.5714285714 | AQ11: =IF(AP11=0,0,(AP11*((LOG(AP11))/LOG(2)))) -> -0.4613456697 | AS11: =N11 -> 211 | AT11: =COUNTIF(L69:L80,AS11) -> 3 | AU11: =AT11/(AV4-AT7) -> 0.6 | AV11: =IF(AU11=0,0,(AU11*((LOG(AU11))/LOG(2)))) -> -0.4421793565
A12: 11 | B12: 922 | C12: 11 | D12: 937 | E12: 11 | F12: 944 | K12: 0 | L12: 111 | N12: 212 | O12: =COUNTIF($L$7:$L$500,N12) -> 1 | P12: =O12/$Q$4 -> 0.01351351351 | Q12: =IF(P12=0,0,(P12*((LOG(P12))/LOG(2)))) -> -0.08391153197 | T12: =N12 -> 212 | U12: =COUNTIF(L7:L18,T12) -> 1 | V12: =U12/(W4-U7) -> 0.125 | W12: =IF(V12=0,0,(V12*((LOG(V12))/LOG(2)))) -> -0.375 | Y12: =N12 -> 212 | Z12: =COUNTIF(L19:L31,Y12) -> 0 | AA12: =Z12/(AB4-Z7) -> 0 | AB12: =IF(AA12=0,0,(AA12*((LOG(AA12))/LOG(2)))) -> 0 | AD12: =N12 -> 212 | AE12: =COUNTIF(L32:L43,AD12) -> 0 | AF12: =AE12/(AG4-AE7) -> 0 | AG12: =IF(AF12=0,0,(AF12*((LOG(AF12))/LOG(2)))) -> 0 | AI12: =N12 -> 212 | AJ12: =COUNTIF(L44:L55,AI12) -> 0 | AK12: =AJ12/(AL4-AJ7) -> 0 | AL12: =IF(AK12=0,0,(AK12*((LOG(AK12))/LOG(2)))) -> 0 | AN12: =N12 -> 212 | AO12: =COUNTIF(L56:L68,AN12) -> 0 | AP12: =AO12/(AQ4-AO7) -> 0 | AQ12: =IF(AP12=0,0,(AP12*((LOG(AP12))/LOG(2)))) -> 0 | AS12: =N12 -> 212 | AT12: =COUNTIF(L69:L80,AS12) -> 0 | AU12: =AT12/(AV4-AT7) -> 0 | AV12: =IF(AU12=0,0,(AU12*((LOG(AU12))/LOG(2)))) -> 0
A13: 11 | B13: 1049 | C13: 11 | D13: 1062 | E13: 11 | F13: 1085 | K13: 0 | L13: 111 | N13: 221 | O13: =COUNTIF($L$7:$L$500,N13) -> 3 | P13: =O13/$Q$4 -> 0.04054054054 | Q13: =IF(P13=0,0,(P13*((LOG(P13))/LOG(2)))) -> -0.1874793594 | T13: =N13 -> 221 | U13: =COUNTIF(L7:L18,T13) -> 0 | V13: =U13/(W4-U7) -> 0 | W13: =IF(V13=0,0,(V13*((LOG(V13))/LOG(2)))) -> 0 | Y13: =N13 -> 221 | Z13: =COUNTIF(L19:L31,Y13) -> 1 | AA13: =Z13/(AB4-Z7) -> 0.1666666667 | AB13: =IF(AA13=0,0,(AA13*((LOG(AA13))/LOG(2)))) -> -0.4308270835 | AD13: =N13 -> 221 | AE13: =COUNTIF(L32:L43,AD13) -> 0 | AF13: =AE13/(AG4-AE7) -> 0 | AG13: =IF(AF13=0,0,(AF13*((LOG(AF13))/LOG(2)))) -> 0 | AI13: =N13 -> 221 | AJ13: =COUNTIF(L44:L55,AI13) -> 1 | AK13: =AJ13/(AL4-AJ7) -> 0.2 | AL13: =IF(AK13=0,0,(AK13*((LOG(AK13))/LOG(2)))) -> -0.464385619 | AN13: =N13 -> 221 | AO13: =COUNTIF(L56:L68,AN13) -> 1 | AP13: =AO13/(AQ4-AO7) -> 0.1428571429 | AQ13: =IF(AP13=0,0,(AP13*((LOG(AP13))/LOG(2)))) -> -0.4010507032 | AS13: =N13 -> 221 | AT13: =COUNTIF(L69:L80,AS13) -> 0 | AU13: =AT13/(AV4-AT7) -> 0 | AV13: =IF(AU13=0,0,(AU13*((LOG(AU13))/LOG(2)))) -> 0
A14: 22 | B14: 1191 | C14: 24 | D14: 1195 | E14: 24 | F14: 1202 | K14: 0 | L14: 222 | N14: 222 | O14: =COUNTIF($L$7:$L$500,N14) -> 9 | P14: =O14/$Q$4 -> 0.1216216216 | Q14: =IF(P14=0,0,(P14*((LOG(P14))/LOG(2)))) -> -0.3696723686 | T14: =N14 -> 222 | U14: =COUNTIF(L7:L18,T14) -> 1 | V14: =U14/(W4-U7) -> 0.125 | W14: =IF(V14=0,0,(V14*((LOG(V14))/LOG(2)))) -> -0.375 | Y14: =N14 -> 222 | Z14: =COUNTIF(L19:L31,Y14) -> 2 | AA14: =Z14/(AB4-Z7) -> 0.3333333333 | AB14: =IF(AA14=0,0,(AA14*((LOG(AA14))/LOG(2)))) -> -0.5283208336 | AD14: =N14 -> 222 | AE14: =COUNTIF(L32:L43,AD14) -> 1 | AF14: =AE14/(AG4-AE7) -> 0.25 | AG14: =IF(AF14=0,0,(AF14*((LOG(AF14))/LOG(2)))) -> -0.5 | AI14: =N14 -> 222 | AJ14: =COUNTIF(L44:L55,AI14) -> 2 | AK14: =AJ14/(AL4-AJ7) -> 0.4 | AL14: =IF(AK14=0,0,(AK14*((LOG(AK14))/LOG(2)))) -> -0.528771238 | AN14: =N14 -> 222 | AO14: =COUNTIF(L56:L68,AN14) -> 1 | AP14: =AO14/(AQ4-AO7) -> 0.1428571429 | AQ14: =IF(AP14=0,0,(AP14*((LOG(AP14))/LOG(2)))) -> -0.4010507032 | AS14: =N14 -> 222 | AT14: =COUNTIF(L69:L80,AS14) -> 2 | AU14: =AT14/(AV4-AT7) -> 0.4 | AV14: =IF(AU14=0,0,(AU14*((LOG(AU14))/LOG(2)))) -> -0.528771238
A15: 22 | B15: 1316 | C15: 13 | D15: 1338 | E15: 13 | F15: 1349 | K15: 0 | L15: 211 | P15: =SUM(P7:P14) -> 1 | Q15: =-SUM(Q7:Q14) -> 1.932783784 | V15: =SUM(V7:V14) -> 1 | W15: =-SUM(W7:W14) -> 1.548794941 | AA15: =SUM(AA7:AA14) -> 1 | AB15: =-SUM(AB7:AB14) -> 1.918295834 | AF15: =SUM(AF7:AF14) -> 1 | AG15: =-SUM(AG7:AG14) -> 1.5 | AK15: =SUM(AK7:AK14) -> 1 | AL15: =-SUM(AL7:AL14) -> 1.521928095 | AP15: =SUM(AP7:AP14) -> 1 | AQ15: =-SUM(AQ7:AQ14) -> 1.664497779 | AU15: =SUM(AU7:AU14) -> 1 | AV15: =-SUM(AV7:AV14) -> 0.9709505945
A16: 11 | B16: 1440 | C16: 11 | D16: 1448 | E16: 11 | F16: 1473 | K16: 0 | L16: 111 | P16: U= | Q16: =Q15/(LOG(Q4)/LOG(2)) -> 0.3112647233 | V16: U1= | W16: =W15/(LOG(W4)/LOG(2)) -> 0.432025423 | AA16: U2= | AB16: =AB15/(LOG(AB4)/LOG(2)) -> 0.5183967258 | AF16: U3= | AG16: =AG15/(LOG(AG4)/LOG(2)) -> 0.4184144185 | AK16: U4= | AL16: =AL15/(LOG(AL4)/LOG(2)) -> 0.4245311059 | AP16: U5= | AQ16: =AQ15/(LOG(AQ4)/LOG(2)) -> 0.4498108079 | AU16: U6= | AV16: =AV15/(LOG(AV4)/LOG(2)) -> 0.2708398189
A17: 22 | B17: 1591 | C17: 13 | D17: 1600 | E17: 13 | F17: 1616 | K17: 0 | L17: 211
A18: 22 | B18: 1769 | C18: 13 | D18: 1782 | E18: 13 | F18: 1802 | K18: 0 | L18: 211
A19: 11 | B19: 1911 | C19: 11 | D19: 1919 | E19: 11 | F19: 1922 | K19: 0 | L19: 111 | N19: Total Target Seq
A20: 22 | B20: 2099 | C20: 24 | D20: 2111 | E20: 13 | F20: 2126 | K20: 0 | L20: 221 | N20: =COUNTIF(L7:L80,G3) -> 39 | P20: 12 | Q20: 13 | R20: 12 | S20: 12 | T20: 13 | U20: 12
A21: 11 | B21: 2234 | C21: 22 | D21: 2243 | E21: 13 | F21: 2253 | K21: 0 | L21: 121 | P21: % of reinforcement given in 6 equal intervals based on number of trials
A22: 11 | B22: 2394 | C22: 11 | D22: 2410 | E22: 11 | F22: 2419 | K22: 0 | L22: 111 | P22: %_1 | Q22: %_2 | R22: %_3 | S22: %_4 | T22: %_5 | U22: %_6
A23: 22 | B23: 2565 | C23: 24 | D23: 2567 | E23: 24 | F23: 2575 | K23: 0 | L23: 222 | O23: target sequence | P23: =$G$3 -> 111 | Q23: =$G$3 -> 111 | R23: =$G$3 -> 111 | S23: =$G$3 -> 111 | T23: =$G$3 -> 111 | U23: =$G$3 -> 111
A24: 11 | B24: 2678 | C24: 11 | D24: 2680 | E24: 11 | F24: 2688 | K24: 0 | L24: 111 | O24: total reinforcement | P24: =U7 -> 4 | Q24: =Z7 -> 7 | R24: =AE7 -> 8 | S24: =AJ7 -> 7 | T24: =AO7 -> 6 | U24: =AT7 -> 7
A25: 11 | B25: 2796 | C25: 11 | D25: 2803 | E25: 11 | F25: 2812 | K25: 0 | L25: 111 | O25: % target
A26: 22 | B26: 3059 | C26: 13 | D26: 3066 | E26: 13 | F26: 3077 | K26: 0 | L26: 211 | O26: CCRF
A27: 11 | B27: 3178 | C27: 11 | D27: 3193 | E27: 11 | F27: 3202 | K27: 0 | L27: 111 | O27: % CCRf
A28: 11 | B28: 3307 | C28: 11 | D28: 3315 | E28: 11 | F28: 3318 | K28: 0 | L28: 111 | O28: average response rate | P28: =F18/P20 -> 150.1666667 | Q28: =(F31-F18)/Q20 -> 182.9230769 | R28: =(F43-F31)/R20 -> 174.25 | S28: =(F55-F43)/S20 -> 177.5 | T28: =(F68-F55)/T20 -> 171.8461538 | U28: =(F80-F68)/U20 -> 146.5
A29: 22 | B29: 3862 | C29: 13 | D29: 3877 | E29: 13 | F29: 3902 | K29: 0 | L29: 211
A30: 11 | B30: 3998 | C30: 11 | D30: 4014 | E30: 11 | F30: 4018 | K30: 0 | L30: 111
A31: 22 | B31: 4170 | C31: 24 | D31: 4176 | E31: 24 | F31: 4180 | K31: 0 | L31: 222
A32: 22 | B32: 4290 | C32: 13 | D32: 4306 | E32: 13 | F32: 4326 | K32: 0 | L32: 211
A33: 22 | B33: 4427 | C33: 13 | D33: 4437 | E33: 13 | F33: 4446 | K33: 0 | L33: 211
A34: 11 | B34: 4573 | C34: 11 | D34: 4592 | E34: 11 | F34: 4595 | K34: 0 | L34: 111
A35: 11 | B35: 4743 | C35: 11 | D35: 4755 | E35: 11 | F35: 4763 | K35: 0 | L35: 111
A36: 11 | B36: 4904 | C36: 22 | D36: 4908 | E36: 24 | F36: 4920 | K36: 0 | L36: 122
A37: 11 | B37: 5014 | C37: 11 | D37: 5023 | E37: 11 | F37: 5026 | K37: 0 | L37: 111
A38: 11 | B38: 5310 | C38: 11 | D38: 5325 | E38: 11 | F38: 5329 | K38: 0 | L38: 111
A39: 11 | B39: 5536 | C39: 11 | D39: 5552 | E39: 11 | F39: 5640 | K39: 0 | L39: 111
A40: 11 | B40: 5753 | C40: 11 | D40: 5757 | E40: 11 | F40: 5765 | K40: 0 | L40: 111
A41: 22 | B41: 6028 | C41: 24 | D41: 6034 | E41: 24 | F41: 6038 | K41: 0 | L41: 222
A42: 11 | B42: 6137 | C42: 11 | D42: 6144 | E42: 11 | F42: 6151 | K42: 0 | L42: 111
A43: 11 | B43: 6254 | C43: 11 | D43: 6261 | E43: 11 | F43: 6271 | K43: 0 | L43: 111
A44: 11 | B44: 6513 | C44: 11 | D44: 6520 | E44: 11 | F44: 6530 | K44: 0 | L44: 111
A45: 11 | B45: 6695 | C45: 11 | D45: 6712 | E45: 11 | F45: 6744 | K45: 0 | L45: 111
A46: 22 | B46: 6941 | C46: 24 | D46: 6948 | E46: 24 | F46: 6955 | K46: 0 | L46: 222
A47: 11 | B47: 7063 | C47: 11 | D47: 7071 | E47: 11 | F47: 7077 | K47: 0 | L47: 111
A48: 22 | B48: 7249 | C48: 13 | D48: 7257 | E48: 13 | F48: 7264 | K48: 0 | L48: 211
A49: 11 | B49: 7376 | C49: 11 | D49: 7397 | E49: 11 | F49: 7399 | K49: 0 | L49: 111
A50: 22 | B50: 7563 | C50: 13 | D50: 7580 | E50: 13 | F50: 7587 | K50: 0 | L50: 211
A51: 11 | B51: 7699 | C51: 11 | D51: 7707 | E51: 11 | F51: 7727 | K51: 0 | L51: 111
A52: 22 | B52: 7890 | C52: 24 | D52: 7894 | E52: 24 | F52: 7896 | K52: 0 | L52: 222
A53: 11 | B53: 7988 | C53: 11 | D53: 8011 | E53: 11 | F53: 8018 | K53: 0 | L53: 111
A54: 22 | B54: 8250 | C54: 24 | D54: 8262 | E54: 13 | F54: 8274 | K54: 0 | L54: 221
A55: 11 | B55: 8380 | C55: 11 | D55: 8396 | E55: 11 | F55: 8401 | K55: 0 | L55: 111
A56: 22 | B56: 8608 | C56: 13 | D56: 8623 | E56: 13 | F56: 8629 | K56: 0 | L56: 211
A57: 22 | B57: 8730 | C57: 13 | D57: 8734 | E57: 13 | F57: 8736 | K57: 0 | L57: 211
A58: 11 | B58: 8841 | C58: 11 | D58: 8883 | E58: 22 | F58: 8889 | K58: 0 | L58: 112
A59: 22 | B59: 8990 | C59: 24 | D59: 8994 | E59: 13 | F59: 9011 | K59: 0 | L59: 221
A60: 11 | B60: 9112 | C60: 11 | D60: 9117 | E60: 11 | F60: 9126 | K60: 0 | L60: 111
A61: 22 | B61: 9231 | C61: 24 | D61: 9234 | E61: 24 | F61: 9237 | K61: 0 | L61: 222
A62: 11 | B62: 9353 | C62: 11 | D62: 9364 | E62: 11 | F62: 9366 | K62: 0 | L62: 111
A63: 22 | B63: 9633 | C63: 13 | D63: 9644 | E63: 13 | F63: 9655 | K63: 0 | L63: 211
A64: 11 | B64: 9763 | C64: 11 | D64: 9772 | E64: 11 | F64: 9777 | K64: 0 | L64: 111
A65: 11 | B65: 10069 | C65: 11 | D65: 10072 | E65: 11 | F65: 10077 | K65: 0 | L65: 111
A66: 22 | B66: 10249 | C66: 13 | D66: 10260 | E66: 13 | F66: 10267 | K66: 0 | L66: 211
A67: 11 | B67: 10362 | C67: 11 | D67: 10374 | E67: 11 | F67: 10377 | K67: 0 | L67: 111
A68: 11 | B68: 10573 | C68: 11 | D68: 10627 | E68: 11 | F68: 10635 | K68: 0 | L68: 111
A69: 22 | B69: 10744 | C69: 24 | D69: 10749 | E69: 24 | F69: 10755 | K69: 0 | L69: 222
A70: 11 | B70: 10846 | C70: 11 | D70: 10852 | E70: 11 | F70: 10863 | K70: 0 | L70: 111
A71: 11 | B71: 10959 | C71: 11 | D71: 10962 | E71: 11 | F71: 10966 | K71: 0 | L71: 111
A72: 22 | B72: 11112 | C72: 13 | D72: 11119 | E72: 13 | F72: 11132 | K72: 0 | L72: 211
A73: 11 | B73: 11244 | C73: 11 | D73: 11247 | E73: 11 | F73: 11249 | K73: 0 | L73: 111
A74: 22 | B74: 11419 | C74: 13 | D74: 11427 | E74: 13 | F74: 11439 | K74: 0 | L74: 211
A75: 11 | B75: 11538 | C75: 11 | D75: 11571 | E75: 11 | F75: 11574 | K75: 0 | L75: 111
A76: 11 | B76: 11686 | C76: 11 | D76: 11692 | E76: 11 | F76: 11703 | K76: 0 | L76: 111
A77: 22 | B77: 11983 | C77: 13 | D77: 11991 | E77: 13 | F77: 11994 | K77: 0 | L77: 211
A78: 11 | B78: 12088 | C78: 11 | D78: 12091 | E78: 11 | F78: 12099 | K78: 0 | L78: 111
A79: 22 | B79: 12271 | C79: 24 | D79: 12278 | E79: 24 | F79: 12283 | K79: 0 | L79: 222
A80: 11 | B80: 12383 | C80: 11 | D80: 12391 | E80: 11 | F80: 12393 | K80: 1 | L80: 111

Sheet !N126A0B.AXT
A1: Report for:!N126A0B.AXT
A2: Date: | B2: <date>
A3: Hen: | B3: <hen> | F3: Correct Sequence | G3: =Start!J2 -> 111 | P3: Total Sequences in Data | Q3: =4994-COUNTBLANK(L7:L5000) -> 61 | V3: Total Sequences in Block Data | W3: =COUNTA(L7:L16) -> 10 | AA3: Total Sequences in Block Data | AB3: =COUNTA(L17:L26) -> 10 | AF3: Total Sequences in Block Data | AG3: =COUNTA(L27:L37) -> 11 | AK3: Total Sequences in Block Data | AL3: =COUNTA(L38:L47) -> 10 | AP3: Total Sequences in Block Data | AQ3: =COUNTA(L48:L57) -> 10 | AU3: Total Sequences in Block Data | AV3: =COUNTA(L58:L67) -> 10
P4: Total Sequences in Summary | Q4: =SUM(O7:O14) -> 61 | V4: Total Sequences in Block Summary | W4: =SUM(U7:U14) -> 10 | AA4: Total Sequences in Block Summary | AB4: =SUM(Z7:Z14) -> 10 | AF4: Total Sequences in Block Summary | AG4: =SUM(AE7:AE14) -> 11 | AK4: Total Sequences in Block Summary | AL4: =SUM(AJ7:AJ14) -> 10 | AP4: Total Sequences in Block Summary | AQ4: =SUM(AO7:AO14) -> 10 | AU4: Total Sequences in Block Summary | AV4: =SUM(AT7:AT14) -> 10
T5: Block 1 | Y5: Block 2 | AD5: Block 3 | AI5: Block 4 | AN5: Block 5 | AS5: Block 6
A6: Sequence Component 1 | B6: Time 1 | C6: Sequence Component 2 | D6: Time 2 | E6: Sequence Component 3 | F6: Time 3 | G6: Sequence Component 4 | H6: Time 4 | I6: Sequence Component 5 | J6: Time 5 | K6: Correct? 0=No 1=Yes | L6: Sequence | N6: Frequency | P6: Relative Frequency | Q6: Variability | T6: Frequency | V6: Relative Frequency | W6: Variability | Y6: Frequency | AA6: Relative Frequency | AB6: Variability | AD6: Frequency | AF6: Relative Frequency | AG6: Variability | AI6: Frequency | AK6: Relative Frequency | AL6: Variability | AN6: Frequency | AP6: Relative Frequency | AQ6: Variability | AS6: Frequency | AU6: Relative Frequency | AV6: Variability
A7: 11 | B7: 168 | C7: 11 | D7: 192 | E7: 11 | F7: 223 | K7: 0 | L7: 111 | N7: 111 | O7: =COUNTIF($L$7:$L$500,N7) -> 39 | P7: =O7/$Q$4 -> 0.6393442623 | Q7: =IF(P7=0,0,(P7*((LOG(P7))/LOG(2)))) -> -0.4125913054 | T7: =N7 -> 111 | U7: =COUNTIF(L7:L16,T7) -> 6 | Y7: =N7 -> 111 | Z7: =COUNTIF(L17:L26,Y7) -> 3 | AD7: =N7 -> 111 | AE7: =COUNTIF(L27:L37,AD7) -> 9 | AI7: =N7 -> 111 | AJ7: =COUNTIF(L38:L47,AI7) -> 7 | AN7: =N7 -> 111 | AO7: =COUNTIF(L48:L57,AN7) -> 6 | AS7: =N7 -> 111 | AT7: =COUNTIF(L58:L67,AS7) -> 8
A8: 11 | B8: 356 | C8: 11 | D8: 372 | E8: 11 | F8: 393 | K8: 0 | L8: 111 | N8: 112 | O8: =COUNTIF($L$7:$L$500,N8) -> 2 | P8: =O8/$Q$4 -> 0.03278688525 | Q8: =IF(P8=0,0,(P8*((LOG(P8))/LOG(2)))) -> -0.1616635193 | T8: =N8 -> 112 | U8: =COUNTIF(L7:L16,T8) -> 0 | V8: =U8/(W4-U7) -> 0 | W8: =IF(V8=0,0,(V8*((LOG(V8))/LOG(2)))) -> 0 | Y8: =N8 -> 112 | Z8: =COUNTIF(L17:L26,Y8) -> 1 | AA8: =Z8/(AB4-Z7) -> 0.1428571429 | AB8: =IF(AA8=0,0,(AA8*((LOG(AA8))/LOG(2)))) -> -0.4010507032 | AD8: =N8 -> 112 | AE8: =COUNTIF(L27:L37,AD8) -> 0 | AF8: =AE8/(AG4-AE7) -> 0 | AG8: =IF(AF8=0,0,(AF8*((LOG(AF8))/LOG(2)))) -> 0 | AI8: =N8 -> 112 | AJ8: =COUNTIF(L38:L47,AI8) -> 0 | AK8: =AJ8/(AL4-AJ7) -> 0 | AL8: =IF(AK8=0,0,(AK8*((LOG(AK8))/LOG(2)))) -> 0 | AN8: =N8 -> 112 | AO8: =COUNTIF(L48:L57,AN8) -> 0 | AP8: =AO8/(AQ4-AO7) -> 0 | AQ8: =IF(AP8=0,0,(AP8*((LOG(AP8))/LOG(2)))) -> 0 | AS8: =N8 -> 112 | AT8: =COUNTIF(L58:L67,AS8) -> 1 | AU8: =AT8/(AV4-AT7) -> 0.5 | AV8: =IF(AU8=0,0,(AU8*((LOG(AU8))/LOG(2)))) -> -0.5
A9: 22 | B9: 568 | C9: 24 | D9: 579 | E9: 13 | F9: 592 | K9: 0 | L9: 221 | N9: 121 | O9: =COUNTIF($L$7:$L$500,N9) -> 4 | P9: =O9/$Q$4 -> 0.06557377049 | Q9: =IF(P9=0,0,(P9*((LOG(P9))/LOG(2)))) -> -0.257753268 | T9: =N9 -> 121 | U9: =COUNTIF(L7:L16,T9) -> 0 | V9: =U9/(W4-U7) -> 0 | W9: =IF(V9=0,0,(V9*((LOG(V9))/LOG(2)))) -> 0 | Y9: =N9 -> 121 | Z9: =COUNTIF(L17:L26,Y9) -> 1 | AA9: =Z9/(AB4-Z7) -> 0.1428571429 | AB9: =IF(AA9=0,0,(AA9*((LOG(AA9))/LOG(2)))) -> -0.4010507032 | AD9: =N9 -> 121 | AE9: =COUNTIF(L27:L37,AD9) -> 0 | AF9: =AE9/(AG4-AE7) -> 0 | AG9: =IF(AF9=0,0,(AF9*((LOG(AF9))/LOG(2)))) -> 0 | AI9: =N9 -> 121 | AJ9: =COUNTIF(L38:L47,AI9) -> 3 | AK9: =AJ9/(AL4-AJ7) -> 1 | AL9: =IF(AK9=0,0,(AK9*((LOG(AK9))/LOG(2)))) -> 0 | AN9: =N9 -> 121 | AO9: =COUNTIF(L48:L57,AN9) -> 0 | AP9: =AO9/(AQ4-AO7) -> 0 | AQ9: =IF(AP9=0,0,(AP9*((LOG(AP9))/LOG(2)))) -> 0 | AS9: =N9 -> 121 | AT9: =COUNTIF(L58:L67,AS9) -> 0 | AU9: =AT9/(AV4-AT7) -> 0 | AV9: =IF(AU9=0,0,(AU9*((LOG(AU9))/LOG(2)))) -> 0
A10: 22 | B10: 735 | C10: 13 | D10: 749 | E10: 13 | F10: 755 | K10: 0 | L10: 211 | N10: 122 | O10: =COUNTIF($L$7:$L$500,N10) -> 0 | P10: =O10/$Q$4 -> 0 | Q10: =IF(P10=0,0,(P10*((LOG(P10))/LOG(2)))) -> 0 | T10: =N10 -> 122 | U10: =COUNTIF(L7:L16,T10) -> 0 | V10: =U10/(W4-U7) -> 0 | W10: =IF(V10=0,0,(V10*((LOG(V10))/LOG(2)))) -> 0 | Y10: =N10 -> 122 | Z10: =COUNTIF(L17:L26,Y10) -> 0 | AA10: =Z10/(AB4-Z7) -> 0 | AB10: =IF(AA10=0,0,(AA10*((LOG(AA10))/LOG(2)))) -> 0 | AD10: =N10 -> 122 | AE10: =COUNTIF(L27:L37,AD10) -> 0 | AF10: =AE10/(AG4-AE7) -> 0 | AG10: =IF(AF10=0,0,(AF10*((LOG(AF10))/LOG(2)))) -> 0 | AI10: =N10 -> 122 | AJ10: =COUNTIF(L38:L47,AI10) -> 0 | AK10: =AJ10/(AL4-AJ7) -> 0 | AL10: =IF(AK10=0,0,(AK10*((LOG(AK10))/LOG(2)))) -> 0 | AN10: =N10 -> 122 | AO10: =COUNTIF(L48:L57,AN10) -> 0 | AP10: =AO10/(AQ4-AO7) -> 0 | AQ10: =IF(AP10=0,0,(AP10*((LOG(AP10))/LOG(2)))) -> 0 | AS10: =N10 -> 122 | AT10: =COUNTIF(L58:L67,AS10) -> 0 | AU10: =AT10/(AV4-AT7) -> 0 | AV10: =IF(AU10=0,0,(AU10*((LOG(AU10))/LOG(2)))) -> 0
A11: 11 | B11: 855 | C11: 11 | D11: 863 | E11: 11 | F11: 870 | K11: 0 | L11: 111 | N11: 211 | O11: =COUNTIF($L$7:$L$500,N11) -> 8 | P11: =O11/$Q$4 -> 0.131147541 | Q11: =IF(P11=0,0,(P11*((LOG(P11))/LOG(2)))) -> -0.3843589951 | T11: =N11 -> 211 | U11: =COUNTIF(L7:L16,T11) -> 1 | V11: =U11/(W4-U7) -> 0.25 | W11: =IF(V11=0,0,(V11*((LOG(V11))/LOG(2)))) -> -0.5 | Y11: =N11 -> 211 | Z11: =COUNTIF(L17:L26,Y11) -> 3 | AA11: =Z11/(AB4-Z7) -> 0.4285714286 | AB11: =IF(AA11=0,0,(AA11*((LOG(AA11))/LOG(2)))) -> -0.5238824663 | AD11: =N11 -> 211 | AE11: =COUNTIF(L27:L37,AD11) -> 1 | AF11: =AE11/(AG4-AE7) -> 0.5 | AG11: =IF(AF11=0,0,(AF11*((LOG(AF11))/LOG(2)))) -> -0.5 | AI11: =N11 -> 211 | AJ11: =COUNTIF(L38:L47,AI11) -> 0 | AK11: =AJ11/(AL4-AJ7) -> 0 | AL11: =IF(AK11=0,0,(AK11*((LOG(AK11))/LOG(2)))) -> 0 | AN11: =N11 -> 211 | AO11: =COUNTIF(L48:L57,AN11) -> 2 | AP11: =AO11/(AQ4-AO7) -> 0.5 | AQ11: =IF(AP11=0,0,(AP11*((LOG(AP11))/LOG(2)))) -> -0.5 | AS11: =N11 -> 211 | AT11: =COUNTIF(L58:L67,AS11) -> 1 | AU11: =AT11/(AV4-AT7) -> 0.5 | AV11: =IF(AU11=0,0,(AU11*((LOG(AU11))/LOG(2)))) -> -0.5
A12: 22 | B12: 979 | C12: 24 | D12: 983 | E12: 24 | F12: 989 | K12: 0 | L12: 222 | N12: 212 | O12: =COUNTIF($L$7:$L$500,N12) -> 0 | P12: =O12/$Q$4 -> 0 | Q12: =IF(P12=0,0,(P12*((LOG(P12))/LOG(2)))) -> 0 | T12: =N12 -> 212 | U12: =COUNTIF(L7:L16,T12) -> 0 | V12: =U12/(W4-U7) -> 0 | W12: =IF(V12=0,0,(V12*((LOG(V12))/LOG(2)))) -> 0 | Y12: =N12 -> 212 | Z12: =COUNTIF(L17:L26,Y12) -> 0 | AA12: =Z12/(AB4-Z7) -> 0 | AB12: =IF(AA12=0,0,(AA12*((LOG(AA12))/LOG(2)))) -> 0 | AD12: =N12 -> 212 | AE12: =COUNTIF(L27:L37,AD12) -> 0 | AF12: =AE12/(AG4-AE7) -> 0 | AG12: =IF(AF12=0,0,(AF12*((LOG(AF12))/LOG(2)))) -> 0 | AI12: =N12 -> 212 | AJ12: =COUNTIF(L38:L47,AI12) -> 0 | AK12: =AJ12/(AL4-AJ7) -> 0 | AL12: =IF(AK12=0,0,(AK12*((LOG(AK12))/LOG(2)))) -> 0 | AN12: =N12 -> 212 | AO12: =COUNTIF(L48:L57,AN12) -> 0 | AP12: =AO12/(AQ4-AO7) -> 0 | AQ12: =IF(AP12=0,0,(AP12*((LOG(AP12))/LOG(2)))) -> 0 | AS12: =N12 -> 212 | AT12: =COUNTIF(L58:L67,AS12) -> 0 | AU12: =AT12/(AV4-AT7) -> 0 | AV12: =IF(AU12=0,0,(AU12*((LOG(AU12))/LOG(2)))) -> 0
A13: 11 | B13: 1150 | C13: 11 | D13: 1153 | E13: 11 | F13: 1173 | K13: 0 | L13: 111 | N13: 221 | O13: =COUNTIF($L$7:$L$500,N13) -> 3 | P13: =O13/$Q$4 -> 0.04918032787 | Q13: =IF(P13=0,0,(P13*((LOG(P13))/LOG(2)))) -> -0.2137266313 | T13: =N13 -> 221 | U13: =COUNTIF(L7:L16,T13) -> 1 | V13: =U13/(W4-U7) -> 0.25 | W13: =IF(V13=0,0,(V13*((LOG(V13))/LOG(2)))) -> -0.5 | Y13: =N13 -> 221 | Z13: =COUNTIF(L17:L26,Y13) -> 1 | AA13: =Z13/(AB4-Z7) -> 0.1428571429 | AB13: =IF(AA13=0,0,(AA13*((LOG(AA13))/LOG(2)))) -> -0.4010507032 | AD13: =N13 -> 221 | AE13: =COUNTIF(L27:L37,AD13) -> 0 | AF13: =AE13/(AG4-AE7) -> 0 | AG13: =IF(AF13=0,0,(AF13*((LOG(AF13))/LOG(2)))) -> 0 | AI13: =N13 -> 221 | AJ13: =COUNTIF(L38:L47,AI13) -> 0 | AK13: =AJ13/(AL4-AJ7) -> 0 | AL13: =IF(AK13=0,0,(AK13*((LOG(AK13))/LOG(2)))) -> 0 | AN13: =N13 -> 221 | AO13: =COUNTIF(L48:L57,AN13) -> 1 | AP13: =AO13/(AQ4-AO7) -> 0.25 | AQ13: =IF(AP13=0,0,(AP13*((LOG(AP13))/LOG(2)))) -> -0.5 | AS13: =N13 -> 221 | AT13: =COUNTIF(L58:L67,AS13) -> 0 | AU13: =AT13/(AV4-AT7) -> 0 | AV13: =IF(AU13=0,0,(AU13*((LOG(AU13))/LOG(2)))) -> 0
A14: 22 | B14: 1372 | C14: 24 | D14: 1377 | E14: 24 | F14: 1382 | K14: 0 | L14: 222 | N14: 222 | O14: =COUNTIF($L$7:$L$500,N14) -> 5 | P14: =O14/$Q$4 -> 0.08196721311 | Q14: =IF(P14=0,0,(P14*((LOG(P14))/LOG(2)))) -> -0.2958040363 | T14: =N14 -> 222 | U14: =COUNTIF(L7:L16,T14) -> 2 | V14: =U14/(W4-U7) -> 0.5 | W14: =IF(V14=0,0,(V14*((LOG(V14))/LOG(2)))) -> -0.5 | Y14: =N14 -> 222 | Z14: =COUNTIF(L17:L26,Y14) -> 1 | AA14: =Z14/(AB4-Z7) -> 0.1428571429 | AB14: =IF(AA14=0,0,(AA14*((LOG(AA14))/LOG(2)))) -> -0.4010507032 | AD14: =N14 -> 222 | AE14: =COUNTIF(L27:L37,AD14) -> 1 | AF14: =AE14/(AG4-AE7) -> 0.5 | AG14: =IF(AF14=0,0,(AF14*((LOG(AF14))/LOG(2)))) -> -0.5 | AI14: =N14 -> 222 | AJ14: =COUNTIF(L38:L47,AI14) -> 0 | AK14: =AJ14/(AL4-AJ7) -> 0 | AL14: =IF(AK14=0,0,(AK14*((LOG(AK14))/LOG(2)))) -> 0 | AN14: =N14 -> 222 | AO14: =COUNTIF(L48:L57,AN14) -> 1 | AP14: =AO14/(AQ4-AO7) -> 0.25 | AQ14: =IF(AP14=0,0,(AP14*((LOG(AP14))/LOG(2)))) -> -0.5 | AS14: =N14 -> 222 | AT14: =COUNTIF(L58:L67,AS14) -> 0 | AU14: =AT14/(AV4-AT7) -> 0 | AV14: =IF(AU14=0,0,(AU14*((LOG(AU14))/LOG(2)))) -> 0
A15: 11 | B15: 1483 | C15: 11 | D15: 1493 | E15: 11 | F15: 1502 | K15: 0 | L15: 111 | P15: =SUM(P7:P14) -> 1 | Q15: =-SUM(Q7:Q14) -> 1.725897755 | V15: =SUM(V7:V14) -> 1 | W15: =-SUM(W7:W14) -> 1.5 | AA15: =SUM(AA7:AA14) -> 1 | AB15: =-SUM(AB7:AB14) -> 2.128085279 | AF15: =SUM(AF7:AF14) -> 1 | AG15: =-SUM(AG7:AG14) -> 1 | AK15: =SUM(AK7:AK14) -> 1 | AL15: =-SUM(AL7:AL14) -> 0 | AP15: =SUM(AP7:AP14) -> 1 | AQ15: =-SUM(AQ7:AQ14) -> 1.5 | AU15: =SUM(AU7:AU14) -> 1 | AV15: =-SUM(AV7:AV14) -> 1
A16: 11 | B16: 1741 | C16: 11 | D16: 1759 | E16: 11 | F16: 1783 | K16: 0 | L16: 111 | P16: U= | Q16: =Q15/(LOG(Q4)/LOG(2)) -> 0.2910089686 | V16: U1= | W16: =W15/(LOG(W4)/LOG(2)) -> 0.4515449935 | AA16: U2= | AB16: =AB15/(LOG(AB4)/LOG(2)) -> 0.6406175023 | AF16: U3= | AG16: =AG15/(LOG(AG4)/LOG(2)) -> 0.2890648263 | AK16: U4= | AL16: =AL15/(LOG(AL4)/LOG(2)) -> 0 | AP16: U5= | AQ16: =AQ15/(LOG(AQ4)/LOG(2)) -> 0.4515449935 | AU16: U6= | AV16: =AV15/(LOG(AV4)/LOG(2)) -> 0.3010299957
A17: 22 | B17: 1901 | C17: 24 | D17: 1918 | E17: 24 | F17: 1924 | K17: 0 | L17: 222
A18: 22 | B18: 2073 | C18: 13 | D18: 2081 | E18: 13 | F18: 2088 | K18: 0 | L18: 211
A19: 11 | B19: 2194 | C19: 11 | D19: 2208 | E19: 11 | F19: 2210 | K19: 0 | L19: 111 | N19: Total Target Seq
A20: 22 | B20: 2408 | C20: 13 | D20: 2413 | E20: 13 | F20: 2426 | K20: 0 | L20: 211 | N20: =COUNTIF(L7:L67,G3) -> 39 | P20: 10 | Q20: 10 | R20: 11 | S20: 10 | T20: 10 | U20: 10
A21: 22 | B21: 2630 | C21: 13 | D21: 2641 | E21: 13 | F21: 2647 | K21: 0 | L21: 211 | P21: % of reinforcement given in 6 equal intervals based on number of trials
A22: 11 | B22: 2749 | C22: 22 | D22: 2753 | E22: 13 | F22: 2770 | K22: 0 | L22: 121 | P22: %_1 | Q22: %_2 | R22: %_3 | S22: %_4 | T22: %_5 | U22: %_6
A23: 11 | B23: 2879 | C23: 11 | D23: 2934 | E23: 11 | F23: 2956 | K23: 0 | L23: 111 | O23: target sequence | P23: =$G$3 -> 111 | Q23: =$G$3 -> 111 | R23: =$G$3 -> 111 | S23: =$G$3 -> 111 | T23: =$G$3 -> 111 | U23: =$G$3 -> 111
A24: 22 | B24: 3217 | C24: 24 | D24: 3220 | E24: 13 | F24: 3234 | K24: 0 | L24: 221 | O24: total reinforcement | P24: =U7 -> 6 | Q24: =Z7 -> 3 | R24: =AE7 -> 9 | S24: =AJ7 -> 7 | T24: =AO7 -> 6 | U24: =AT7 -> 8
A25: 11 | B25: 3343 | C25: 11 | D25: 3362 | E25: 11 | F25: 3381 | K25: 0 | L25: 111 | O25: % target
A26: 11 | B26: 3585 | C26: 11 | D26: 3598 | E26: 22 | F26: 3620 | K26: 0 | L26: 112 | O26: CCRF
A27: 11 | B27: 3723 | C27: 11 | D27: 3743 | E27: 11 | F27: 3761 | K27: 0 | L27: 111 | O27: % CCRf
A28: 22 | B28: 4062 | C28: 13 | D28: 4067 | E28: 13 | F28: 4075 | K28: 0 | L28: 211 | O28: average response rate | P28: =F16/P20 -> 178.3 | Q28: =(F26-F16)/Q20 -> 183.7 | R28: =(F37-F26)/R20 -> 220 | S28: =(F47-F37)/S20 -> 196.7 | T28: =(F57-F47)/T20 -> 201.9 | U28: =(F67-F57)/U20 -> 206.3
A29: 11 | B29: 4181 | C29: 11 | D29: 4200 | E29: 11 | F29: 4217 | K29: 0 | L29: 111
A30: 11 | B30: 4415 | C30: 11 | D30: 4432 | E30: 11 | F30: 4453 | K30: 0 | L30: 111
A31: 11 | B31: 4690 | C31: 11 | D31: 4711 | E31: 11 | F31: 4729 | K31: 0 | L31: 111
A32: 11 | B32: 4982 | C32: 11 | D32: 4999 | E32: 11 | F32: 5015 | K32: 0 | L32: 111
A33: 11 | B33: 5223 | C33: 11 | D33: 5242 | E33: 11 | F33: 5261 | K33: 0 | L33: 111
A34: 11 | B34: 5449 | C34: 11 | D34: 5465 | E34: 11 | F34: 5542 | K34: 0 | L34: 111
A35: 22 | B35: 5697 | C35: 24 | D35: 5703 | E35: 24 | F35: 5709 | K35: 0 | L35: 222
A36: 11 | B36: 5807 | C36: 11 | D36: 5822 | E36: 11 | F36: 5837 | K36: 0 | L36: 111
A37: 11 | B37: 6003 | C37: 11 | D37: 6023 | E37: 11 | F37: 6040 | K37: 0 | L37: 111
A38: 11 | B38: 6353 | C38: 11 | D38: 6371 | E38: 11 | F38: 6388 | K38: 0 | L38: 111
A39: 11 | B39: 6628 | C39: 11 | D39: 6647 | E39: 11 | F39: 6666 | K39: 0 | L39: 111
A40: 11 | B40: 6908 | C40: 11 | D40: 6913 | E40: 11 | F40: 6915 | K40: 0 | L40: 111
A41: 11 | B41: 7011 | C41: 11 | D41: 7027 | E41: 11 | F41: 7040 | K41: 0 | L41: 111
A42: 11 | B42: 7211 | C42: 22 | D42: 7215 | E42: 13 | F42: 7222 | K42: 0 | L42: 121
A43: 11 | B43: 7316 | C43: 11 | D43: 7330 | E43: 11 | F43: 7344 | K43: 0 | L43: 111
A44: 11 | B44: 7525 | C44: 22 | D44: 7551 | E44: 13 | F44: 7568 | K44: 0 | L44: 121
A45: 11 | B45: 7662 | C45: 11 | D45: 7676 | E45: 11 | F45: 7692 | K45: 0 | L45: 111
A46: 11 | B46: 7826 | C46: 22 | D46: 7855 | E46: 13 | F46: 7873 | K46: 0 | L46: 121
A47: 11 | B47: 7974 | C47: 11 | D47: 7989 | E47: 11 | F47: 8007 | K47: 0 | L47: 111
A48: 11 | B48: 8141 | C48: 11 | D48: 8149 | E48: 11 | F48: 8162 | K48: 0 | L48: 111
A49: 11 | B49: 8356 | C49: 11 | D49: 8362 | E49: 11 | F49: 8365 | K49: 0 | L49: 111
A50: 11 | B50: 8485 | C50: 11 | D50: 8504 | E50: 11 | F50: 8515 | K50: 0 | L50: 111
A51: 22 | B51: 9070 | C51: 24 | D51: 9080 | E51: 13 | F51: 9094 | K51: 0 | L51: 221
A52: 11 | B52: 9192 | C52: 11 | D52: 9197 | E52: 11 | F52: 9200 | K52: 0 | L52: 111
A53: 22 | B53: 9377 | C53: 13 | D53: 9382 | E53: 13 | F53: 9389 | K53: 0 | L53: 211
A54: 22 | B54: 9491 | C54: 13 | D54: 9505 | E54: 13 | F54: 9511 | K54: 0 | L54: 211
A55: 22 | B55: 9669 | C55: 24 | D55: 9676 | E55: 24 | F55: 9681 | K55: 0 | L55: 222
A56: 11 | B56: 9775 | C56: 11 | D56: 9782 | E56: 11 | F56: 9791 | K56: 0 | L56: 111
A57: 11 | B57: 10016 | C57: 11 | D57: 10018 | E57: 11 | F57: 10026 | K57: 0 | L57: 111
A58: 22 | B58: 10209 | C58: 13 | D58: 10218 | E58: 13 | F58: 10225 | K58: 0 | L58: 211
A59: 11 | B59: 10321 | C59: 11 | D59: 10341 | E59: 22 | F59: 10362 | K59: 0 | L59: 112
A60: 11 | B60: 10456 | C60: 11 | D60: 10473 | E60: 11 | F60: 10480 | K60: 0 | L60: 111
A61: 11 | B61: 10902 | C61: 11 | D61: 10923 | E61: 11 | F61: 10931 | K61: 0 | L61: 111
A62: 11 | B62: 11048 | C62: 11 | D62: 11061 | E62: 11 | F62: 11069 | K62: 0 | L62: 111
A63: 11 | B63: 11252 | C63: 11 | D63: 11264 | E63: 11 | F63: 11267 | K63: 0 | L63: 111
A64: 11 | B64: 11480 | C64: 11 | D64: 11494 | E64: 11 | F64: 11507 | K64: 0 | L64: 111
A65: 11 | B65: 11661 | C65: 11 | D65: 11675 | E65: 11 | F65: 11688 | K65: 0 | L65: 111
A66: 11 | B66: 11896 | C66: 11 | D66: 11904 | E66: 11 | F66: 11916 | K66: 0 | L66: 111
A67: 11 | B67: 12048 | C67: 11 | D67: 12073 | E67: 11 | F67: 12089 | K67: 1 | L67: 111

Sheet !N12795B.AXT
A1: Report for:!N12795B.AXT
A2: Date: | B2: <date>
A3: Hen: | B3: <hen> | F3: Correct Sequence | G3: =Start!J2 -> 111 | P3: Total Sequences in Data | Q3: =4994-COUNTBLANK(L7:L5000) -> 44 | V3: Total Sequences in Block Data | W3: =COUNTA(L7:L13) -> 7 | AA3: Total Sequences in Block Data | AB3: =COUNTA(L14:L21) -> 8 | AF3: Total Sequences in Block Data | AG3: =COUNTA(L22:L28) -> 7 | AK3: Total Sequences in Block Data | AL3: =COUNTA(L29:L35) -> 7 | AP3: Total Sequences in Block Data | AQ3: =COUNTA(L36:L43) -> 8 | AU3: Total Sequences in Block Data | AV3: =COUNTA(L44:L50) -> 7
P4: Total Sequences in Summary | Q4: =SUM(O7:O14) -> 44 | V4: Total Sequences in Block Summary | W4: =SUM(U7:U14) -> 7 | AA4: Total Sequences in Block Summary | AB4: =SUM(Z7:Z14) -> 8 | AF4: Total Sequences in Block Summary | AG4: =SUM(AE7:AE14) -> 7 | AK4: Total Sequences in Block Summary | AL4: =SUM(AJ7:AJ14) -> 7 | AP4: Total Sequences in Block Summary | AQ4: =SUM(AO7:AO14) -> 8 | AU4: Total Sequences in Block Summary | AV4: =SUM(AT7:AT14) -> 7
T5: Block 1 | Y5: Block 2 | AD5: Block 3 | AI5: Block 4 | AN5: Block 5 | AS5: Block 6
A6: Sequence Component 1 | B6: Time 1 | C6: Sequence Component 2 | D6: Time 2 | E6: Sequence Component 3 | F6: Time 3 | G6: Sequence Component 4 | H6: Time 4 | I6: Sequence Component 5 | J6: Time 5 | K6: Correct? 0=No 1=Yes | L6: Sequence | N6: Frequency | P6: Relative Frequency | Q6: Variability | T6: Frequency | V6: Relative Frequency | W6: Variability | Y6: Frequency | AA6: Relative Frequency | AB6: Variability | AD6: Frequency | AF6: Relative Frequency | AG6: Variability | AI6: Frequency | AK6: Relative Frequency | AL6: Variability | AN6: Frequency | AP6: Relative Frequency | AQ6: Variability | AS6: Frequency | AU6: Relative Frequency | AV6: Variability
A7: 11 | B7: 69 | C7: 11 | D7: 91 | E7: 11 | F7: 103 | K7: 0 | L7: 111 | N7: 111 | O7: =COUNTIF($L$7:$L$500,N7) -> 35 | P7: =O7/$Q$4 -> 0.7954545455 | Q7: =IF(P7=0,0,(P7*((LOG(P7))/LOG(2)))) -> -0.2626182059 | T7: =N7 -> 111 | U7: =COUNTIF(L7:L13,T7) -> 5 | Y7: =N7 -> 111 | Z7: =COUNTIF(L14:L21,Y7) -> 7 | AD7: =N7 -> 111 | AE7: =COUNTIF(L22:L28,AD7) -> 4 | AI7: =N7 -> 111 | AJ7: =COUNTIF(L29:L35,AI7) -> 5 | AN7: =N7 -> 111 | AO7: =COUNTIF(L36:L43,AN7) -> 8 | AS7: =N7 -> 111 | AT7: =COUNTIF(L44:L50,AS7) -> 6
A8: 11 | B8: 246 | C8: 22 | D8: 267 | E8: 13 | F8: 269 | K8: 0 | L8: 121 | N8: 112 | O8: =COUNTIF($L$7:$L$500,N8) -> 1 | P8: =O8/$Q$4 -> 0.02272727273 | Q8: =IF(P8=0,0,(P8*((LOG(P8))/LOG(2)))) -> -0.1240779913 | T8: =N8 -> 112 | U8: =COUNTIF(L7:L13,T8) -> 0 | V8: =U8/(W4-U7) -> 0 | W8: =IF(V8=0,0,(V8*((LOG(V8))/LOG(2)))) -> 0 | Y8: =N8 -> 112 | Z8: =COUNTIF(L14:L21,Y8) -> 0 | AA8: =Z8/(AB4-Z7) -> 0 | AB8: =IF(AA8=0,0,(AA8*((LOG(AA8))/LOG(2)))) -> 0 | AD8: =N8 -> 112 | AE8: =COUNTIF(L22:L28,AD8) -> 1 | AF8: =AE8/(AG4-AE7) -> 0.3333333333 | AG8: =IF(AF8=0,0,(AF8*((LOG(AF8))/LOG(2)))) -> -0.5283208336 | AI8: =N8 -> 112 | AJ8: =COUNTIF(L29:L35,AI8) -> 0 | AK8: =AJ8/(AL4-AJ7) -> 0 | AL8: =IF(AK8=0,0,(AK8*((LOG(AK8))/LOG(2)))) -> 0 | AN8: =N8 -> 112 | AO8: =COUNTIF(L36:L43,AN8) -> 0 | AP8: =AO8/(AQ4-AO7) ->  | AQ8: =IF(AP8=0,0,(AP8*((LOG(AP8))/LOG(2)))) ->  | AS8: =N8 -> 112 | AT8: =COUNTIF(L44:L50,AS8) -> 0 | AU8: =AT8/(AV4-AT7) -> 0 | AV8: =IF(AU8=0,0,(AU8*((LOG(AU8))/LOG(2)))) -> 0
A9: 11 | B9: 379 | C9: 11 | D9: 389 | E9: 11 | F9: 392 | K9: 0 | L9: 111 | N9: 121 | O9: =COUNTIF($L$7:$L$500,N9) -> 2 | P9: =O9/$Q$4 -> 0.04545454545 | Q9: =IF(P9=0,0,(P9*((LOG(P9))/LOG(2)))) -> -0.2027014372 | T9: =N9 -> 121 | U9: =COUNTIF(L7:L13,T9) -> 1 | V9: =U9/(W4-U7) -> 0.5 | W9: =IF(V9=0,0,(V9*((LOG(V9))/LOG(2)))) -> -0.5 | Y9: =N9 -> 121 | Z9: =COUNTIF(L14:L21,Y9) -> 0 | AA9: =Z9/(AB4-Z7) -> 0 | AB9: =IF(AA9=0,0,(AA9*((LOG(AA9))/LOG(2)))) -> 0 | AD9: =N9 -> 121 | AE9: =COUNTIF(L22:L28,AD9) -> 1 | AF9: =AE9/(AG4-AE7) -> 0.3333333333 | AG9: =IF(AF9=0,0,(AF9*((LOG(AF9))/LOG(2)))) -> -0.5283208336 | AI9: =N9 -> 121 | AJ9: =COUNTIF(L29:L35,AI9) -> 0 | AK9: =AJ9/(AL4-AJ7) -> 0 | AL9: =IF(AK9=0,0,(AK9*((LOG(AK9))/LOG(2)))) -> 0 | AN9: =N9 -> 121 | AO9: =COUNTIF(L36:L43,AN9) -> 0 | AP9: =AO9/(AQ4-AO7) ->  | AQ9: =IF(AP9=0,0,(AP9*((LOG(AP9))/LOG(2)))) ->  | AS9: =N9 -> 121 | AT9: =COUNTIF(L44:L50,AS9) -> 0 | AU9: =AT9/(AV4-AT7) -> 0 | AV9: =IF(AU9=0,0,(AU9*((LOG(AU9))/LOG(2)))) -> 0
A10: 11 | B10: 588 | C10: 11 | D10: 590 | E10: 11 | F10: 619 | K10: 0 | L10: 111 | N10: 122 | O10: =COUNTIF($L$7:$L$500,N10) -> 0 | P10: =O10/$Q$4 -> 0 | Q10: =IF(P10=0,0,(P10*((LOG(P10))/LOG(2)))) -> 0 | T10: =N10 -> 122 | U10: =COUNTIF(L7:L13,T10) -> 0 | V10: =U10/(W4-U7) -> 0 | W10: =IF(V10=0,0,(V10*((LOG(V10))/LOG(2)))) -> 0 | Y10: =N10 -> 122 | Z10: =COUNTIF(L14:L21,Y10) -> 0 | AA10: =Z10/(AB4-Z7) -> 0 | AB10: =IF(AA10=0,0,(AA10*((LOG(AA10))/LOG(2)))) -> 0 | AD10: =N10 -> 122 | AE10: =COUNTIF(L22:L28,AD10) -> 0 | AF10: =AE10/(AG4-AE7) -> 0 | AG10: =IF(AF10=0,0,(AF10*((LOG(AF10))/LOG(2)))) -> 0 | AI10: =N10 -> 122 | AJ10: =COUNTIF(L29:L35,AI10) -> 0 | AK10: =AJ10/(AL4-AJ7) -> 0 | AL10: =IF(AK10=0,0,(AK10*((LOG(AK10))/LOG(2)))) -> 0 | AN10: =N10 -> 122 | AO10: =COUNTIF(L36:L43,AN10) -> 0 | AP10: =AO10/(AQ4-AO7) ->  | AQ10: =IF(AP10=0,0,(AP10*((LOG(AP10))/LOG(2)))) ->  | AS10: =N10 -> 122 | AT10: =COUNTIF(L44:L50,AS10) -> 0 | AU10: =AT10/(AV4-AT7) -> 0 | AV10: =IF(AU10=0,0,(AU10*((LOG(AU10))/LOG(2)))) -> 0
A11: 11 | B11: 714 | C11: 11 | D11: 737 | E11: 11 | F11: 744 | K11: 0 | L11: 111 | N11: 211 | O11: =COUNTIF($L$7:$L$500,N11) -> 1 | P11: =O11/$Q$4 -> 0.02272727273 | Q11: =IF(P11=0,0,(P11*((LOG(P11))/LOG(2)))) -> -0.1240779913 | T11: =N11 -> 211 | U11: =COUNTIF(L7:L13,T11) -> 0 | V11: =U11/(W4-U7) -> 0 | W11: =IF(V11=0,0,(V11*((LOG(V11))/LOG(2)))) -> 0 | Y11: =N11 -> 211 | Z11: =COUNTIF(L14:L21,Y11) -> 0 | AA11: =Z11/(AB4-Z7) -> 0 | AB11: =IF(AA11=0,0,(AA11*((LOG(AA11))/LOG(2)))) -> 0 | AD11: =N11 -> 211 | AE11: =COUNTIF(L22:L28,AD11) -> 0 | AF11: =AE11/(AG4-AE7) -> 0 | AG11: =IF(AF11=0,0,(AF11*((LOG(AF11))/LOG(2)))) -> 0 | AI11: =N11 -> 211 | AJ11: =COUNTIF(L29:L35,AI11) -> 1 | AK11: =AJ11/(AL4-AJ7) -> 0.5 | AL11: =IF(AK11=0,0,(AK11*((LOG(AK11))/LOG(2)))) -> -0.5 | AN11: =N11 -> 211 | AO11: =COUNTIF(L36:L43,AN11) -> 0 | AP11: =AO11/(AQ4-AO7) ->  | AQ11: =IF(AP11=0,0,(AP11*((LOG(AP11))/LOG(2)))) ->  | AS11: =N11 -> 211 | AT11: =COUNTIF(L44:L50,AS11) -> 0 | AU11: =AT11/(AV4-AT7) -> 0 | AV11: =IF(AU11=0,0,(AU11*((LOG(AU11))/LOG(2)))) -> 0
A12: 11 | B12: 857 | C12: 11 | D12: 863 | E12: 11 | F12: 865 | K12: 0 | L12: 111 | N12: 212 | O12: =COUNTIF($L$7:$L$500,N12) -> 0 | P12: =O12/$Q$4 -> 0 | Q12: =IF(P12=0,0,(P12*((LOG(P12))/LOG(2)))) -> 0 | T12: =N12 -> 212 | U12: =COUNTIF(L7:L13,T12) -> 0 | V12: =U12/(W4-U7) -> 0 | W12: =IF(V12=0,0,(V12*((LOG(V12))/LOG(2)))) -> 0 | Y12: =N12 -> 212 | Z12: =COUNTIF(L14:L21,Y12) -> 0 | AA12: =Z12/(AB4-Z7) -> 0 | AB12: =IF(AA12=0,0,(AA12*((LOG(AA12))/LOG(2)))) -> 0 | AD12: =N12 -> 212 | AE12: =COUNTIF(L22:L28,AD12) -> 0 | AF12: =AE12/(AG4-AE7) -> 0 | AG12: =IF(AF12=0,0,(AF12*((LOG(AF12))/LOG(2)))) -> 0 | AI12: =N12 -> 212 | AJ12: =COUNTIF(L29:L35,AI12) -> 0 | AK12: =AJ12/(AL4-AJ7) -> 0 | AL12: =IF(AK12=0,0,(AK12*((LOG(AK12))/LOG(2)))) -> 0 | AN12: =N12 -> 212 | AO12: =COUNTIF(L36:L43,AN12) -> 0 | AP12: =AO12/(AQ4-AO7) ->  | AQ12: =IF(AP12=0,0,(AP12*((LOG(AP12))/LOG(2)))) ->  | AS12: =N12 -> 212 | AT12: =COUNTIF(L44:L50,AS12) -> 0 | AU12: =AT12/(AV4-AT7) -> 0 | AV12: =IF(AU12=0,0,(AU12*((LOG(AU12))/LOG(2)))) -> 0
A13: 22 | B13: 1255 | C13: 24 | D13: 1261 | E13: 13 | F13: 1276 | K13: 0 | L13: 221 | N13: 221 | O13: =COUNTIF($L$7:$L$500,N13) -> 5 | P13: =O13/$Q$4 -> 0.1136363636 | Q13: =IF(P13=0,0,(P13*((LOG(P13))/LOG(2)))) -> -0.3565344913 | T13: =N13 -> 221 | U13: =COUNTIF(L7:L13,T13) -> 1 | V13: =U13/(W4-U7) -> 0.5 | W13: =IF(V13=0,0,(V13*((LOG(V13))/LOG(2)))) -> -0.5 | Y13: =N13 -> 221 | Z13: =COUNTIF(L14:L21,Y13) -> 1 | AA13: =Z13/(AB4-Z7) -> 1 | AB13: =IF(AA13=0,0,(AA13*((LOG(AA13))/LOG(2)))) -> 0 | AD13: =N13 -> 221 | AE13: =COUNTIF(L22:L28,AD13) -> 1 | AF13: =AE13/(AG4-AE7) -> 0.3333333333 | AG13: =IF(AF13=0,0,(AF13*((LOG(AF13))/LOG(2)))) -> -0.5283208336 | AI13: =N13 -> 221 | AJ13: =COUNTIF(L29:L35,AI13) -> 1 | AK13: =AJ13/(AL4-AJ7) -> 0.5 | AL13: =IF(AK13=0,0,(AK13*((LOG(AK13))/LOG(2)))) -> -0.5 | AN13: =N13 -> 221 | AO13: =COUNTIF(L36:L43,AN13) -> 0 | AP13: =AO13/(AQ4-AO7) ->  | AQ13: =IF(AP13=0,0,(AP13*((LOG(AP13))/LOG(2)))) ->  | AS13: =N13 -> 221 | AT13: =COUNTIF(L44:L50,AS13) -> 1 | AU13: =AT13/(AV4-AT7) -> 1 | AV13: =IF(AU13=0,0,(AU13*((LOG(AU13))/LOG(2)))) -> 0
A14: 11 | B14: 1375 | C14: 11 | D14: 1383 | E14: 11 | F14: 1386 | K14: 0 | L14: 111 | N14: 222 | O14: =COUNTIF($L$7:$L$500,N14) -> 0 | P14: =O14/$Q$4 -> 0 | Q14: =IF(P14=0,0,(P14*((LOG(P14))/LOG(2)))) -> 0 | T14: =N14 -> 222 | U14: =COUNTIF(L7:L13,T14) -> 0 | V14: =U14/(W4-U7) -> 0 | W14: =IF(V14=0,0,(V14*((LOG(V14))/LOG(2)))) -> 0 | Y14: =N14 -> 222 | Z14: =COUNTIF(L14:L21,Y14) -> 0 | AA14: =Z14/(AB4-Z7) -> 0 | AB14: =IF(AA14=0,0,(AA14*((LOG(AA14))/LOG(2)))) -> 0 | AD14: =N14 -> 222 | AE14: =COUNTIF(L22:L28,AD14) -> 0 | AF14: =AE14/(AG4-AE7) -> 0 | AG14: =IF(AF14=0,0,(AF14*((LOG(AF14))/LOG(2)))) -> 0 | AI14: =N14 -> 222 | AJ14: =COUNTIF(L29:L35,AI14) -> 0 | AK14: =AJ14/(AL4-AJ7) -> 0 | AL14: =IF(AK14=0,0,(AK14*((LOG(AK14))/LOG(2)))) -> 0 | AN14: =N14 -> 222 | AO14: =COUNTIF(L36:L43,AN14) -> 0 | AP14: =AO14/(AQ4-AO7) ->  | AQ14: =IF(AP14=0,0,(AP14*((LOG(AP14))/LOG(2)))) ->  | AS14: =N14 -> 222 | AT14: =COUNTIF(L44:L50,AS14) -> 0 | AU14: =AT14/(AV4-AT7) -> 0 | AV14: =IF(AU14=0,0,(AU14*((LOG(AU14))/LOG(2)))) -> 0
A15: 11 | B15: 1704 | C15: 11 | D15: 1710 | E15: 11 | F15: 1718 | K15: 0 | L15: 111 | P15: =SUM(P7:P14) -> 1 | Q15: =-SUM(Q7:Q14) -> 1.070010117 | V15: =SUM(V7:V14) -> 1 | W15: =-SUM(W7:W14) -> 1 | AA15: =SUM(AA7:AA14) -> 1 | AB15: =-SUM(AB7:AB14) -> 0 | AF15: =SUM(AF7:AF14) -> 1 | AG15: =-SUM(AG7:AG14) -> 1.584962501 | AK15: =SUM(AK7:AK14) -> 1 | AL15: =-SUM(AL7:AL14) -> 1 | AP15: =SUM(AP7:AP14) ->  | AQ15: =-SUM(AQ7:AQ14) ->  | AU15: =SUM(AU7:AU14) -> 1 | AV15: =-SUM(AV7:AV14) -> 0
A16: 11 | B16: 1967 | C16: 11 | D16: 1974 | E16: 11 | F16: 1976 | K16: 0 | L16: 111 | P16: U= | Q16: =Q15/(LOG(Q4)/LOG(2)) -> 0.1959929516 | V16: U1= | W16: =W15/(LOG(W4)/LOG(2)) -> 0.3562071871 | AA16: U2= | AB16: =AB15/(LOG(AB4)/LOG(2)) -> 0 | AF16: U3= | AG16: =AG15/(LOG(AG4)/LOG(2)) -> 0.5645750341 | AK16: U4= | AL16: =AL15/(LOG(AL4)/LOG(2)) -> 0.3562071871 | AP16: U5= | AQ16: =AQ15/(LOG(AQ4)/LOG(2)) ->  | AU16: U6= | AV16: =AV15/(LOG(AV4)/LOG(2)) -> 0
A17: 11 | B17: 2166 | C17: 11 | D17: 2182 | E17: 11 | F17: 2193 | K17: 0 | L17: 111
A18: 22 | B18: 2544 | C18: 24 | D18: 2556 | E18: 13 | F18: 2561 | K18: 0 | L18: 221
A19: 11 | B19: 2666 | C19: 11 | D19: 2680 | E19: 11 | F19: 2687 | K19: 0 | L19: 111 | N19: Total Target Seq
A20: 11 | B20: 2933 | C20: 11 | D20: 2943 | E20: 11 | F20: 2995 | K20: 0 | L20: 111 | N20: =COUNTIF(L7:L50,G3) -> 35 | P20: 7 | Q20: 8 | R20: 7 | S20: 7 | T20: 8 | U20: 7
A21: 11 | B21: 3144 | C21: 11 | D21: 3153 | E21: 11 | F21: 3169 | K21: 0 | L21: 111 | P21: % of reinforcement given in 6 equal intervals based on number of trials
A22: 11 | B22: 3484 | C22: 11 | D22: 3501 | E22: 11 | F22: 3533 | K22: 0 | L22: 111 | P22: %_1 | Q22: %_2 | R22: %_3 | S22: %_4 | T22: %_5 | U22: %_6
A23: 11 | B23: 3705 | C23: 11 | D23: 3723 | E23: 11 | F23: 3742 | K23: 0 | L23: 111 | O23: target sequence | P23: =$G$3 -> 111 | Q23: =$G$3 -> 111 | R23: =$G$3 -> 111 | S23: =$G$3 -> 111 | T23: =$G$3 -> 111 | U23: =$G$3 -> 111
A24: 11 | B24: 3931 | C24: 11 | D24: 3947 | E24: 11 | F24: 3962 | K24: 0 | L24: 111 | O24: total reinforcement | P24: =U7 -> 5 | Q24: =Z7 -> 7 | R24: =AE7 -> 4 | S24: =AJ7 -> 5 | T24: =AO7 -> 8 | U24: =AT7 -> 6
A25: 11 | B25: 4106 | C25: 11 | D25: 4160 | E25: 22 | F25: 4206 | K25: 0 | L25: 112 | O25: % target
A26: 11 | B26: 4305 | C26: 11 | D26: 4336 | E26: 11 | F26: 4354 | K26: 0 | L26: 111 | O26: CCRF
A27: 11 | B27: 4560 | C27: 22 | D27: 4689 | E27: 13 | F27: 4703 | K27: 0 | L27: 121 | O27: % CCRf
A28: 22 | B28: 4852 | C28: 24 | D28: 4863 | E28: 13 | F28: 4871 | K28: 0 | L28: 221 | O28: average response rate | P28: =F13/P20 -> 182.2857143 | Q28: =(F21-F13)/Q20 -> 236.625 | R28: =(F28-F21)/R20 -> 243.1428571 | S28: =(F35-F28)/S20 -> 151.1428571 | T28: =(F43-F35)/T20 -> 213.375 | U28: =(F50-F43)/U20 -> 227.5714286
A29: 11 | B29: 5001 | C29: 11 | D29: 5007 | E29: 11 | F29: 5010 | K29: 0 | L29: 111
A30: 11 | B30: 5144 | C30: 11 | D30: 5151 | E30: 11 | F30: 5159 | K30: 0 | L30: 111
A31: 11 | B31: 5251 | C31: 11 | D31: 5255 | E31: 11 | F31: 5274 | K31: 0 | L31: 111
A32: 22 | B32: 5475 | C32: 13 | D32: 5483 | E32: 13 | F32: 5487 | K32: 0 | L32: 211
A33: 11 | B33: 5592 | C33: 11 | D33: 5610 | E33: 11 | F33: 5614 | K33: 0 | L33: 111
A34: 11 | B34: 5751 | C34: 11 | D34: 5767 | E34: 11 | F34: 5786 | K34: 0 | L34: 111
A35: 22 | B35: 5892 | C35: 24 | D35: 5896 | E35: 13 | F35: 5929 | K35: 0 | L35: 221
A36: 11 | B36: 6034 | C36: 11 | D36: 6061 | E36: 11 | F36: 6078 | K36: 0 | L36: 111
A37: 11 | B37: 6268 | C37: 11 | D37: 6286 | E37: 11 | F37: 6306 | K37: 0 | L37: 111
A38: 11 | B38: 6481 | C38: 11 | D38: 6501 | E38: 11 | F38: 6520 | K38: 0 | L38: 111
A39: 11 | B39: 6656 | C39: 11 | D39: 6679 | E39: 11 | F39: 6699 | K39: 0 | L39: 111
A40: 11 | B40: 6990 | C40: 11 | D40: 7005 | E40: 11 | F40: 7022 | K40: 0 | L40: 111
A41: 11 | B41: 7210 | C41: 11 | D41: 7233 | E41: 11 | F41: 7254 | K41: 0 | L41: 111
A42: 11 | B42: 7371 | C42: 11 | D42: 7390 | E42: 11 | F42: 7405 | K42: 0 | L42: 111
A43: 11 | B43: 7597 | C43: 11 | D43: 7617 | E43: 11 | F43: 7636 | K43: 0 | L43: 111
A44: 11 | B44: 7899 | C44: 11 | D44: 7916 | E44: 11 | F44: 7931 | K44: 0 | L44: 111
A45: 11 | B45: 8082 | C45: 11 | D45: 8108 | E45: 11 | F45: 8131 | K45: 0 | L45: 111
A46: 11 | B46: 8439 | C46: 11 | D46: 8459 | E46: 11 | F46: 8476 | K46: 0 | L46: 111
A47: 22 | B47: 8626 | C47: 24 | D47: 8630 | E47: 13 | F47: 8655 | K47: 0 | L47: 221
A48: 11 | B48: 8750 | C48: 11 | D48: 8763 | E48: 11 | F48: 8777 | K48: 0 | L48: 111
A49: 11 | B49: 8979 | C49: 11 | D49: 9008 | E49: 11 | F49: 9028 | K49: 0 | L49: 111
A50: 11 | B50: 9220 | C50: 11 | D50: 9226 | E50: 11 | F50: 9229 | K50: 0 | L50: 111

Sheet !N12891B.AXT
A1: Report for:!N12891B.AXT
A2: Date: | B2: <date>
A3: Hen: | B3: <hen> | F3: Correct Sequence | G3: =Start!J2 -> 111 | P3: Total Sequences in Data | Q3: =4994-COUNTBLANK(L7:L5000) -> 46 | V3: Total Sequences in Block Data | W3: =COUNTA(L7:L14) -> 8 | AA3: Total Sequences in Block Data | AB3: =COUNTA(L15:L21) -> 7 | AF3: Total Sequences in Block Data | AG3: =COUNTA(L22:L29) -> 8 | AK3: Total Sequences in Block Data | AL3: =COUNTA(L30:L37) -> 8 | AP3: Total Sequences in Block Data | AQ3: =COUNTA(L38:L44) -> 7 | AU3: Total Sequences in Block Data | AV3: =COUNTA(L45:L52) -> 8
P4: Total Sequences in Summary | Q4: =SUM(O7:O14) -> 46 | V4: Total Sequences in Block Summary | W4: =SUM(U7:U14) -> 8 | AA4: Total Sequences in Block Summary | AB4: =SUM(Z7:Z14) -> 7 | AF4: Total Sequences in Block Summary | AG4: =SUM(AE7:AE14) -> 8 | AK4: Total Sequences in Block Summary | AL4: =SUM(AJ7:AJ14) -> 8 | AP4: Total Sequences in Block Summary | AQ4: =SUM(AO7:AO14) -> 7 | AU4: Total Sequences in Block Summary | AV4: =SUM(AT7:AT14) -> 8
T5: Block 1 | Y5: Block 2 | AD5: Block 3 | AI5: Block 4 | AN5: Block 5 | AS5: Block 6
A6: Sequence Component 1 | B6: Time 1 | C6: Sequence Component 2 | D6: Time 2 | E6: Sequence Component 3 | F6: Time 3 | G6: Sequence Component 4 | H6: Time 4 | I6: Sequence Component 5 | J6: Time 5 | K6: Correct? 0=No 1=Yes | L6: Sequence | N6: Frequency | P6: Relative Frequency | Q6: Variability | T6: Frequency | V6: Relative Frequency | W6: Variability | Y6: Frequency | AA6: Relative Frequency | AB6: Variability | AD6: Frequency | AF6: Relative Frequency | AG6: Variability | AI6: Frequency | AK6: Relative Frequency | AL6: Variability | AN6: Frequency | AP6: Relative Frequency | AQ6: Variability | AS6: Frequency | AU6: Relative Frequency | AV6: Variability
A7: 11 | B7: 90 | C7: 11 | D7: 108 | E7: 22 | F7: 112 | K7: 0 | L7: 112 | N7: 111 | O7: =COUNTIF($L$7:$L$500,N7) -> 40 | P7: =O7/$Q$4 -> 0.8695652174 | Q7: =IF(P7=0,0,(P7*((LOG(P7))/LOG(2)))) -> -0.1753337923 | T7: =N7 -> 111 | U7: =COUNTIF(L7:L14,T7) -> 6 | Y7: =N7 -> 111 | Z7: =COUNTIF(L15:L21,Y7) -> 7 | AD7: =N7 -> 111 | AE7: =COUNTIF(L22:L29,AD7) -> 6 | AI7: =N7 -> 111 | AJ7: =COUNTIF(L30:L37,AI7) -> 8 | AN7: =N7 -> 111 | AO7: =COUNTIF(L38:L44,AN7) -> 7 | AS7: =N7 -> 111 | AT7: =COUNTIF(L45:L52,AS7) -> 6
A8: 11 | B8: 223 | C8: 11 | D8: 227 | E8: 11 | F8: 236 | K8: 0 | L8: 111 | N8: 112 | O8: =COUNTIF($L$7:$L$500,N8) -> 2 | P8: =O8/$Q$4 -> 0.04347826087 | Q8: =IF(P8=0,0,(P8*((LOG(P8))/LOG(2)))) -> -0.1966766068 | T8: =N8 -> 112 | U8: =COUNTIF(L7:L14,T8) -> 1 | V8: =U8/(W4-U7) -> 0.5 | W8: =IF(V8=0,0,(V8*((LOG(V8))/LOG(2)))) -> -0.5 | Y8: =N8 -> 112 | Z8: =COUNTIF(L15:L21,Y8) -> 0 | AA8: =Z8/(AB4-Z7) ->  | AB8: =IF(AA8=0,0,(AA8*((LOG(AA8))/LOG(2)))) ->  | AD8: =N8 -> 112 | AE8: =COUNTIF(L22:L29,AD8) -> 0 | AF8: =AE8/(AG4-AE7) -> 0 | AG8: =IF(AF8=0,0,(AF8*((LOG(AF8))/LOG(2)))) -> 0 | AI8: =N8 -> 112 | AJ8: =COUNTIF(L30:L37,AI8) -> 0 | AK8: =AJ8/(AL4-AJ7) ->  | AL8: =IF(AK8=0,0,(AK8*((LOG(AK8))/LOG(2)))) ->  | AN8: =N8 -> 112 | AO8: =COUNTIF(L38:L44,AN8) -> 0 | AP8: =AO8/(AQ4-AO7) ->  | AQ8: =IF(AP8=0,0,(AP8*((LOG(AP8))/LOG(2)))) ->  | AS8: =N8 -> 112 | AT8: =COUNTIF(L45:L52,AS8) -> 1 | AU8: =AT8/(AV4-AT7) -> 0.5 | AV8: =IF(AU8=0,0,(AU8*((LOG(AU8))/LOG(2)))) -> -0.5
A9: 11 | B9: 511 | C9: 11 | D9: 515 | E9: 11 | F9: 517 | K9: 0 | L9: 111 | N9: 121 | O9: =COUNTIF($L$7:$L$500,N9) -> 0 | P9: =O9/$Q$4 -> 0 | Q9: =IF(P9=0,0,(P9*((LOG(P9))/LOG(2)))) -> 0 | T9: =N9 -> 121 | U9: =COUNTIF(L7:L14,T9) -> 0 | V9: =U9/(W4-U7) -> 0 | W9: =IF(V9=0,0,(V9*((LOG(V9))/LOG(2)))) -> 0 | Y9: =N9 -> 121 | Z9: =COUNTIF(L15:L21,Y9) -> 0 | AA9: =Z9/(AB4-Z7) ->  | AB9: =IF(AA9=0,0,(AA9*((LOG(AA9))/LOG(2)))) ->  | AD9: =N9 -> 121 | AE9: =COUNTIF(L22:L29,AD9) -> 0 | AF9: =AE9/(AG4-AE7) -> 0 | AG9: =IF(AF9=0,0,(AF9*((LOG(AF9))/LOG(2)))) -> 0 | AI9: =N9 -> 121 | AJ9: =COUNTIF(L30:L37,AI9) -> 0 | AK9: =AJ9/(AL4-AJ7) ->  | AL9: =IF(AK9=0,0,(AK9*((LOG(AK9))/LOG(2)))) ->  | AN9: =N9 -> 121 | AO9: =COUNTIF(L38:L44,AN9) -> 0 | AP9: =AO9/(AQ4-AO7) ->  | AQ9: =IF(AP9=0,0,(AP9*((LOG(AP9))/LOG(2)))) ->  | AS9: =N9 -> 121 | AT9: =COUNTIF(L45:L52,AS9) -> 0 | AU9: =AT9/(AV4-AT7) -> 0 | AV9: =IF(AU9=0,0,(AU9*((LOG(AU9))/LOG(2)))) -> 0
A10: 11 | B10: 609 | C10: 11 | D10: 616 | E10: 11 | F10: 628 | K10: 0 | L10: 111 | N10: 122 | O10: =COUNTIF($L$7:$L$500,N10) -> 0 | P10: =O10/$Q$4 -> 0 | Q10: =IF(P10=0,0,(P10*((LOG(P10))/LOG(2)))) -> 0 | T10: =N10 -> 122 | U10: =COUNTIF(L7:L14,T10) -> 0 | V10: =U10/(W4-U7) -> 0 | W10: =IF(V10=0,0,(V10*((LOG(V10))/LOG(2)))) -> 0 | Y10: =N10 -> 122 | Z10: =COUNTIF(L15:L21,Y10) -> 0 | AA10: =Z10/(AB4-Z7) ->  | AB10: =IF(AA10=0,0,(AA10*((LOG(AA10))/LOG(2)))) ->  | AD10: =N10 -> 122 | AE10: =COUNTIF(L22:L29,AD10) -> 0 | AF10: =AE10/(AG4-AE7) -> 0 | AG10: =IF(AF10=0,0,(AF10*((LOG(AF10))/LOG(2)))) -> 0 | AI10: =N10 -> 122 | AJ10: =COUNTIF(L30:L37,AI10) -> 0 | AK10: =AJ10/(AL4-AJ7) ->  | AL10: =IF(AK10=0,0,(AK10*((LOG(AK10))/LOG(2)))) ->  | AN10: =N10 -> 122 | AO10: =COUNTIF(L38:L44,AN10) -> 0 | AP10: =AO10/(AQ4-AO7) ->  | AQ10: =IF(AP10=0,0,(AP10*((LOG(AP10))/LOG(2)))) ->  | AS10: =N10 -> 122 | AT10: =COUNTIF(L45:L52,AS10) -> 0 | AU10: =AT10/(AV4-AT7) -> 0 | AV10: =IF(AU10=0,0,(AU10*((LOG(AU10))/LOG(2)))) -> 0
A11: 11 | B11: 758 | C11: 11 | D11: 767 | E11: 11 | F11: 791 | K11: 0 | L11: 111 | N11: 211 | O11: =COUNTIF($L$7:$L$500,N11) -> 4 | P11: =O11/$Q$4 -> 0.08695652174 | Q11: =IF(P11=0,0,(P11*((LOG(P11))/LOG(2)))) -> -0.3063966918 | T11: =N11 -> 211 | U11: =COUNTIF(L7:L14,T11) -> 1 | V11: =U11/(W4-U7) -> 0.5 | W11: =IF(V11=0,0,(V11*((LOG(V11))/LOG(2)))) -> -0.5 | Y11: =N11 -> 211 | Z11: =COUNTIF(L15:L21,Y11) -> 0 | AA11: =Z11/(AB4-Z7) ->  | AB11: =IF(AA11=0,0,(AA11*((LOG(AA11))/LOG(2)))) ->  | AD11: =N11 -> 211 | AE11: =COUNTIF(L22:L29,AD11) -> 2 | AF11: =AE11/(AG4-AE7) -> 1 | AG11: =IF(AF11=0,0,(AF11*((LOG(AF11))/LOG(2)))) -> 0 | AI11: =N11 -> 211 | AJ11: =COUNTIF(L30:L37,AI11) -> 0 | AK11: =AJ11/(AL4-AJ7) ->  | AL11: =IF(AK11=0,0,(AK11*((LOG(AK11))/LOG(2)))) ->  | AN11: =N11 -> 211 | AO11: =COUNTIF(L38:L44,AN11) -> 0 | AP11: =AO11/(AQ4-AO7) ->  | AQ11: =IF(AP11=0,0,(AP11*((LOG(AP11))/LOG(2)))) ->  | AS11: =N11 -> 211 | AT11: =COUNTIF(L45:L52,AS11) -> 1 | AU11: =AT11/(AV4-AT7) -> 0.5 | AV11: =IF(AU11=0,0,(AU11*((LOG(AU11))/LOG(2)))) -> -0.5
A12: 22 | B12: 887 | C12: 13 | D12: 893 | E12: 13 | F12: 895 | K12: 0 | L12: 211 | N12: 212 | O12: =COUNTIF($L$7:$L$500,N12) -> 0 | P12: =O12/$Q$4 -> 0 | Q12: =IF(P12=0,0,(P12*((LOG(P12))/LOG(2)))) -> 0 | T12: =N12 -> 212 | U12: =COUNTIF(L7:L14,T12) -> 0 | V12: =U12/(W4-U7) -> 0 | W12: =IF(V12=0,0,(V12*((LOG(V12))/LOG(2)))) -> 0 | Y12: =N12 -> 212 | Z12: =COUNTIF(L15:L21,Y12) -> 0 | AA12: =Z12/(AB4-Z7) ->  | AB12: =IF(AA12=0,0,(AA12*((LOG(AA12))/LOG(2)))) ->  | AD12: =N12 -> 212 | AE12: =COUNTIF(L22:L29,AD12) -> 0 | AF12: =AE12/(AG4-AE7) -> 0 | AG12: =IF(AF12=0,0,(AF12*((LOG(AF12))/LOG(2)))) -> 0 | AI12: =N12 -> 212 | AJ12: =COUNTIF(L30:L37,AI12) -> 0 | AK12: =AJ12/(AL4-AJ7) ->  | AL12: =IF(AK12=0,0,(AK12*((LOG(AK12))/LOG(2)))) ->  | AN12: =N12 -> 212 | AO12: =COUNTIF(L38:L44,AN12) -> 0 | AP12: =AO12/(AQ4-AO7) ->  | AQ12: =IF(AP12=0,0,(AP12*((LOG(AP12))/LOG(2)))) ->  | AS12: =N12 -> 212 | AT12: =COUNTIF(L45:L52,AS12) -> 0 | AU12: =AT12/(AV4-AT7) -> 0 | AV12: =IF(AU12=0,0,(AU12*((LOG(AU12))/LOG(2)))) -> 0
A13: 11 | B13: 994 | C13: 11 | D13: 1010 | E13: 11 | F13: 1024 | K13: 0 | L13: 111 | N13: 221 | O13: =COUNTIF($L$7:$L$500,N13) -> 0 | P13: =O13/$Q$4 -> 0 | Q13: =IF(P13=0,0,(P13*((LOG(P13))/LOG(2)))) -> 0 | T13: =N13 -> 221 | U13: =COUNTIF(L7:L14,T13) -> 0 | V13: =U13/(W4-U7) -> 0 | W13: =IF(V13=0,0,(V13*((LOG(V13))/LOG(2)))) -> 0 | Y13: =N13 -> 221 | Z13: =COUNTIF(L15:L21,Y13) -> 0 | AA13: =Z13/(AB4-Z7) ->  | AB13: =IF(AA13=0,0,(AA13*((LOG(AA13))/LOG(2)))) ->  | AD13: =N13 -> 221 | AE13: =COUNTIF(L22:L29,AD13) -> 0 | AF13: =AE13/(AG4-AE7) -> 0 | AG13: =IF(AF13=0,0,(AF13*((LOG(AF13))/LOG(2)))) -> 0 | AI13: =N13 -> 221 | AJ13: =COUNTIF(L30:L37,AI13) -> 0 | AK13: =AJ13/(AL4-AJ7) ->  | AL13: =IF(AK13=0,0,(AK13*((LOG(AK13))/LOG(2)))) ->  | AN13: =N13 -> 221 | AO13: =COUNTIF(L38:L44,AN13) -> 0 | AP13: =AO13/(AQ4-AO7) ->  | AQ13: =IF(AP13=0,0,(AP13*((LOG(AP13))/LOG(2)))) ->  | AS13: =N13 -> 221 | AT13: =COUNTIF(L45:L52,AS13) -> 0 | AU13: =AT13/(AV4-AT7) -> 0 | AV13: =IF(AU13=0,0,(AU13*((LOG(AU13))/LOG(2)))) -> 0
A14: 11 | B14: 1156 | C14: 11 | D14: 1175 | E14: 11 | F14: 1194 | K14: 0 | L14: 111 | N14: 222 | O14: =COUNTIF($L$7:$L$500,N14) -> 0 | P14: =O14/$Q$4 -> 0 | Q14: =IF(P14=0,0,(P14*((LOG(P14))/LOG(2)))) -> 0 | T14: =N14 -> 222 | U14: =COUNTIF(L7:L14,T14) -> 0 | V14: =U14/(W4-U7) -> 0 | W14: =IF(V14=0,0,(V14*((LOG(V14))/LOG(2)))) -> 0 | Y14: =N14 -> 222 | Z14: =COUNTIF(L15:L21,Y14) -> 0 | AA14: =Z14/(AB4-Z7) ->  | AB14: =IF(AA14=0,0,(AA14*((LOG(AA14))/LOG(2)))) ->  | AD14: =N14 -> 222 | AE14: =COUNTIF(L22:L29,AD14) -> 0 | AF14: =AE14/(AG4-AE7) -> 0 | AG14: =IF(AF14=0,0,(AF14*((LOG(AF14))/LOG(2)))) -> 0 | AI14: =N14 -> 222 | AJ14: =COUNTIF(L30:L37,AI14) -> 0 | AK14: =AJ14/(AL4-AJ7) ->  | AL14: =IF(AK14=0,0,(AK14*((LOG(AK14))/LOG(2)))) ->  | AN14: =N14 -> 222 | AO14: =COUNTIF(L38:L44,AN14) -> 0 | AP14: =AO14/(AQ4-AO7) ->  | AQ14: =IF(AP14=0,0,(AP14*((LOG(AP14))/LOG(2)))) ->  | AS14: =N14 -> 222 | AT14: =COUNTIF(L45:L52,AS14) -> 0 | AU14: =AT14/(AV4-AT7) -> 0 | AV14: =IF(AU14=0,0,(AU14*((LOG(AU14))/LOG(2)))) -> 0
A15: 11 | B15: 1307 | C15: 11 | D15: 1330 | E15: 11 | F15: 1341 | K15: 0 | L15: 111 | P15: =SUM(P7:P14) -> 1 | Q15: =-SUM(Q7:Q14) -> 0.6784070909 | V15: =SUM(V7:V14) -> 1 | W15: =-SUM(W7:W14) -> 1 | AA15: =SUM(AA7:AA14) ->  | AB15: =-SUM(AB7:AB14) ->  | AF15: =SUM(AF7:AF14) -> 1 | AG15: =-SUM(AG7:AG14) -> 0 | AK15: =SUM(AK7:AK14) ->  | AL15: =-SUM(AL7:AL14) ->  | AP15: =SUM(AP7:AP14) ->  | AQ15: =-SUM(AQ7:AQ14) ->  | AU15: =SUM(AU7:AU14) -> 1 | AV15: =-SUM(AV7:AV14) -> 1
A16: 11 | B16: 1476 | C16: 11 | D16: 1498 | E16: 11 | F16: 1520 | K16: 0 | L16: 111 | P16: U= | Q16: =Q15/(LOG(Q4)/LOG(2)) -> 0.1228205814 | V16: U1= | W16: =W15/(LOG(W4)/LOG(2)) -> 0.3333333333 | AA16: U2= | AB16: =AB15/(LOG(AB4)/LOG(2)) ->  | AF16: U3= | AG16: =AG15/(LOG(AG4)/LOG(2)) -> 0 | AK16: U4= | AL16: =AL15/(LOG(AL4)/LOG(2)) ->  | AP16: U5= | AQ16: =AQ15/(LOG(AQ4)/LOG(2)) ->  | AU16: U6= | AV16: =AV15/(LOG(AV4)/LOG(2)) -> 0.3333333333
A17: 11 | B17: 1677 | C17: 11 | D17: 1696 | E17: 11 | F17: 1721 | K17: 0 | L17: 111
A18: 11 | B18: 1961 | C18: 11 | D18: 1988 | E18: 11 | F18: 2006 | K18: 0 | L18: 111
A19: 11 | B19: 2304 | C19: 11 | D19: 2326 | E19: 11 | F19: 2344 | K19: 0 | L19: 111 | N19: Total Target Seq
A20: 11 | B20: 2458 | C20: 11 | D20: 2491 | E20: 11 | F20: 2509 | K20: 0 | L20: 111 | N20: =COUNTIF(L7:L52,G3) -> 40 | P20: 8 | Q20: 7 | R20: 8 | S20: 8 | T20: 7 | U20: 8
A21: 11 | B21: 2696 | C21: 11 | D21: 2727 | E21: 11 | F21: 2750 | K21: 0 | L21: 111 | P21: % of reinforcement given in 6 equal intervals based on number of trials
A22: 11 | B22: 2868 | C22: 11 | D22: 2904 | E22: 11 | F22: 2923 | K22: 0 | L22: 111 | P22: %_1 | Q22: %_2 | R22: %_3 | S22: %_4 | T22: %_5 | U22: %_6
A23: 11 | B23: 3176 | C23: 11 | D23: 3202 | E23: 11 | F23: 3217 | K23: 0 | L23: 111 | O23: target sequence | P23: =$G$3 -> 111 | Q23: =$G$3 -> 111 | R23: =$G$3 -> 111 | S23: =$G$3 -> 111 | T23: =$G$3 -> 111 | U23: =$G$3 -> 111
A24: 11 | B24: 3363 | C24: 11 | D24: 3383 | E24: 11 | F24: 3401 | K24: 0 | L24: 111 | O24: total reinforcement | P24: =U7 -> 6 | Q24: =Z7 -> 7 | R24: =AE7 -> 6 | S24: =AJ7 -> 8 | T24: =AO7 -> 7 | U24: =AT7 -> 6
A25: 11 | B25: 3592 | C25: 11 | D25: 3615 | E25: 11 | F25: 3631 | K25: 0 | L25: 111 | O25: % target
A26: 22 | B26: 3888 | C26: 13 | D26: 3927 | E26: 13 | F26: 3958 | K26: 0 | L26: 211 | O26: CCRF
A27: 22 | B27: 4064 | C27: 13 | D27: 4070 | E27: 13 | F27: 4078 | K27: 0 | L27: 211 | O27: % CCRf
A28: 11 | B28: 4170 | C28: 11 | D28: 4173 | E28: 11 | F28: 4180 | K28: 0 | L28: 111 | O28: average response rate | P28: =F14/P20 -> 149.25 | Q28: =(F21-F14)/Q20 -> 222.2857143 | R28: =(F29-F21)/R20 -> 202 | S28: =(F37-F29)/S20 -> 197.75 | T28: =(F44-F37)/T20 -> 244.2857143 | U28: =(F52-F44)/U20 -> 240.25
A29: 11 | B29: 4335 | C29: 11 | D29: 4351 | E29: 11 | F29: 4366 | K29: 0 | L29: 111
A30: 11 | B30: 4508 | C30: 11 | D30: 4527 | E30: 11 | F30: 4544 | K30: 0 | L30: 111
A31: 11 | B31: 4666 | C31: 11 | D31: 4693 | E31: 11 | F31: 4710 | K31: 0 | L31: 111
A32: 11 | B32: 4848 | C32: 11 | D32: 4896 | E32: 11 | F32: 4918 | K32: 0 | L32: 111
A33: 11 | B33: 5025 | C33: 11 | D33: 5053 | E33: 11 | F33: 5069 | K33: 0 | L33: 111
A34: 11 | B34: 5235 | C34: 11 | D34: 5246 | E34: 11 | F34: 5264 | K34: 0 | L34: 111
A35: 11 | B35: 5409 | C35: 11 | D35: 5429 | E35: 11 | F35: 5458 | K35: 0 | L35: 111
A36: 11 | B36: 5719 | C36: 11 | D36: 5745 | E36: 11 | F36: 5784 | K36: 0 | L36: 111
A37: 11 | B37: 5908 | C37: 11 | D37: 5925 | E37: 11 | F37: 5948 | K37: 0 | L37: 111
A38: 11 | B38: 6132 | C38: 11 | D38: 6174 | E38: 11 | F38: 6201 | K38: 0 | L38: 111
A39: 11 | B39: 6482 | C39: 11 | D39: 6504 | E39: 11 | F39: 6521 | K39: 0 | L39: 111
A40: 11 | B40: 6695 | C40: 11 | D40: 6734 | E40: 11 | F40: 6750 | K40: 0 | L40: 111
A41: 11 | B41: 7068 | C41: 11 | D41: 7084 | E41: 11 | F41: 7104 | K41: 0 | L41: 111
A42: 11 | B42: 7307 | C42: 11 | D42: 7321 | E42: 11 | F42: 7345 | K42: 0 | L42: 111
A43: 11 | B43: 7433 | C43: 11 | D43: 7453 | E43: 11 | F43: 7474 | K43: 0 | L43: 111
A44: 11 | B44: 7615 | C44: 11 | D44: 7637 | E44: 11 | F44: 7658 | K44: 0 | L44: 111
A45: 11 | B45: 7844 | C45: 11 | D45: 7859 | E45: 11 | F45: 7876 | K45: 0 | L45: 111
A46: 22 | B46: 8194 | C46: 13 | D46: 8205 | E46: 13 | F46: 8223 | K46: 0 | L46: 211
A47: 11 | B47: 8330 | C47: 11 | D47: 8513 | E47: 22 | F47: 8517 | K47: 0 | L47: 112
A48: 11 | B48: 8668 | C48: 11 | D48: 8693 | E48: 11 | F48: 8701 | K48: 0 | L48: 111
A49: 11 | B49: 8864 | C49: 11 | D49: 8880 | E49: 11 | F49: 8899 | K49: 0 | L49: 111
A50: 11 | B50: 9083 | C50: 11 | D50: 9101 | E50: 11 | F50: 9119 | K50: 0 | L50: 111
A51: 11 | B51: 9351 | C51: 11 | D51: 9366 | E51: 11 | F51: 9388 | K51: 0 | L51: 111
A52: 11 | B52: 9545 | C52: 11 | D52: 9566 | E52: 11 | F52: 9580 | K52: 1 | L52: 111

Sheet !N129A2B.AXT
A1: Report for:!N129A2B.AXT
A2: Date: | B2: <date>
A3: Hen: | B3: <hen> | F3: Correct Sequence | G3: =Start!J2 -> 111 | P3: Total Sequences in Data | Q3: =4994-COUNTBLANK(L7:L5000) -> 41 | V3: Total Sequences in Block Data | W3: =COUNTA(L7:L13) -> 7 | AA3: Total Sequences in Block Data | AB3: =COUNTA(L14:L20) -> 7 | AF3: Total Sequences in Block Data | AG3: =COUNTA(L21:L26) -> 6 | AK3: Total Sequences in Block Data | AL3: =COUNTA(L27:L33) -> 7 | AP3: Total Sequences in Block Data | AQ3: =COUNTA(L34:L40) -> 7 | AU3: Total Sequences in Block Data | AV3: =COUNTA(L41:L47) -> 7
P4: Total Sequences in Summary | Q4: =SUM(O7:O14) -> 41 | V4: Total Sequences in Block Summary | W4: =SUM(U7:U14) -> 7 | AA4: Total Sequences in Block Summary | AB4: =SUM(Z7:Z14) -> 7 | AF4: Total Sequences in Block Summary | AG4: =SUM(AE7:AE14) -> 6 | AK4: Total Sequences in Block Summary | AL4: =SUM(AJ7:AJ14) -> 7 | AP4: Total Sequences in Block Summary | AQ4: =SUM(AO7:AO14) -> 7 | AU4: Total Sequences in Block Summary | AV4: =SUM(AT7:AT14) -> 7
T5: Block 1 | Y5: Block 2 | AD5: Block 3 | AI5: Block 4 | AN5: Block 5 | AS5: Block 6
A6: Sequence Component 1 | B6: Time 1 | C6: Sequence Component 2 | D6: Time 2 | E6: Sequence Component 3 | F6: Time 3 | G6: Sequence Component 4 | H6: Time 4 | I6: Sequence Component 5 | J6: Time 5 | K6: Correct? 0=No 1=Yes | L6: Sequence | N6: Frequency | P6: Relative Frequency | Q6: Variability | T6: Frequency | V6: Relative Frequency | W6: Variability | Y6: Frequency | AA6: Relative Frequency | AB6: Variability | AD6: Frequency | AF6: Relative Frequency | AG6: Variability | AI6: Frequency | AK6: Relative Frequency | AL6: Variability | AN6: Frequency | AP6: Relative Frequency | AQ6: Variability | AS6: Frequency | AU6: Relative Frequency | AV6: Variability
A7: 11 | B7: 36 | C7: 11 | D7: 38 | E7: 22 | F7: 50 | K7: 0 | L7: 112 | N7: 111 | O7: =COUNTIF($L$7:$L$500,N7) -> 40 | P7: =O7/$Q$4 -> 0.9756097561 | Q7: =IF(P7=0,0,(P7*((LOG(P7))/LOG(2)))) -> -0.03475503388 | T7: =N7 -> 111 | U7: =COUNTIF(L7:L13,T7) -> 6 | Y7: =N7 -> 111 | Z7: =COUNTIF(L14:L20,Y7) -> 7 | AD7: =N7 -> 111 | AE7: =COUNTIF(L21:L26,AD7) -> 6 | AI7: =N7 -> 111 | AJ7: =COUNTIF(L27:L33,AI7) -> 7 | AN7: =N7 -> 111 | AO7: =COUNTIF(L34:L40,AN7) -> 7 | AS7: =N7 -> 111 | AT7: =COUNTIF(L41:L47,AS7) -> 7
A8: 11 | B8: 154 | C8: 11 | D8: 164 | E8: 11 | F8: 172 | K8: 0 | L8: 111 | N8: 112 | O8: =COUNTIF($L$7:$L$500,N8) -> 1 | P8: =O8/$Q$4 -> 0.0243902439 | Q8: =IF(P8=0,0,(P8*((LOG(P8))/LOG(2)))) -> -0.1306720001 | T8: =N8 -> 112 | U8: =COUNTIF(L7:L13,T8) -> 1 | V8: =U8/(W4-U7) -> 1 | W8: =IF(V8=0,0,(V8*((LOG(V8))/LOG(2)))) -> 0 | Y8: =N8 -> 112 | Z8: =COUNTIF(L14:L20,Y8) -> 0 | AA8: =Z8/(AB4-Z7) ->  | AB8: =IF(AA8=0,0,(AA8*((LOG(AA8))/LOG(2)))) ->  | AD8: =N8 -> 112 | AE8: =COUNTIF(L21:L26,AD8) -> 0 | AF8: =AE8/(AG4-AE7) ->  | AG8: =IF(AF8=0,0,(AF8*((LOG(AF8))/LOG(2)))) ->  | AI8: =N8 -> 112 | AJ8: =COUNTIF(L27:L33,AI8) -> 0 | AK8: =AJ8/(AL4-AJ7) ->  | AL8: =IF(AK8=0,0,(AK8*((LOG(AK8))/LOG(2)))) ->  | AN8: =N8 -> 112 | AO8: =COUNTIF(L34:L40,AN8) -> 0 | AP8: =AO8/(AQ4-AO7) ->  | AQ8: =IF(AP8=0,0,(AP8*((LOG(AP8))/LOG(2)))) ->  | AS8: =N8 -> 112 | AT8: =COUNTIF(L41:L47,AS8) -> 0 | AU8: =AT8/(AV4-AT7) ->  | AV8: =IF(AU8=0,0,(AU8*((LOG(AU8))/LOG(2)))) -> 
A9: 11 | B9: 298 | C9: 11 | D9: 312 | E9: 11 | F9: 328 | K9: 0 | L9: 111 | N9: 121 | O9: =COUNTIF($L$7:$L$500,N9) -> 0 | P9: =O9/$Q$4 -> 0 | Q9: =IF(P9=0,0,(P9*((LOG(P9))/LOG(2)))) -> 0 | T9: =N9 -> 121 | U9: =COUNTIF(L7:L13,T9) -> 0 | V9: =U9/(W4-U7) -> 0 | W9: =IF(V9=0,0,(V9*((LOG(V9))/LOG(2)))) -> 0 | Y9: =N9 -> 121 | Z9: =COUNTIF(L14:L20,Y9) -> 0 | AA9: =Z9/(AB4-Z7) ->  | AB9: =IF(AA9=0,0,(AA9*((LOG(AA9))/LOG(2)))) ->  | AD9: =N9 -> 121 | AE9: =COUNTIF(L21:L26,AD9) -> 0 | AF9: =AE9/(AG4-AE7) ->  | AG9: =IF(AF9=0,0,(AF9*((LOG(AF9))/LOG(2)))) ->  | AI9: =N9 -> 121 | AJ9: =COUNTIF(L27:L33,AI9) -> 0 | AK9: =AJ9/(AL4-AJ7) ->  | AL9: =IF(AK9=0,0,(AK9*((LOG(AK9))/LOG(2)))) ->  | AN9: =N9 -> 121 | AO9: =COUNTIF(L34:L40,AN9) -> 0 | AP9: =AO9/(AQ4-AO7) ->  | AQ9: =IF(AP9=0,0,(AP9*((LOG(AP9))/LOG(2)))) ->  | AS9: =N9 -> 121 | AT9: =COUNTIF(L41:L47,AS9) -> 0 | AU9: =AT9/(AV4-AT7) ->  | AV9: =IF(AU9=0,0,(AU9*((LOG(AU9))/LOG(2)))) -> 
A10: 11 | B10: 436 | C10: 11 | D10: 455 | E10: 11 | F10: 460 | K10: 0 | L10: 111 | N10: 122 | O10: =COUNTIF($L$7:$L$500,N10) -> 0 | P10: =O10/$Q$4 -> 0 | Q10: =IF(P10=0,0,(P10*((LOG(P10))/LOG(2)))) -> 0 | T10: =N10 -> 122 | U10: =COUNTIF(L7:L13,T10) -> 0 | V10: =U10/(W4-U7) -> 0 | W10: =IF(V10=0,0,(V10*((LOG(V10))/LOG(2)))) -> 0 | Y10: =N10 -> 122 | Z10: =COUNTIF(L14:L20,Y10) -> 0 | AA10: =Z10/(AB4-Z7) ->  | AB10: =IF(AA10=0,0,(AA10*((LOG(AA10))/LOG(2)))) ->  | AD10: =N10 -> 122 | AE10: =COUNTIF(L21:L26,AD10) -> 0 | AF10: =AE10/(AG4-AE7) ->  | AG10: =IF(AF10=0,0,(AF10*((LOG(AF10))/LOG(2)))) ->  | AI10: =N10 -> 122 | AJ10: =COUNTIF(L27:L33,AI10) -> 0 | AK10: =AJ10/(AL4-AJ7) ->  | AL10: =IF(AK10=0,0,(AK10*((LOG(AK10))/LOG(2)))) ->  | AN10: =N10 -> 122 | AO10: =COUNTIF(L34:L40,AN10) -> 0 | AP10: =AO10/(AQ4-AO7) ->  | AQ10: =IF(AP10=0,0,(AP10*((LOG(AP10))/LOG(2)))) ->  | AS10: =N10 -> 122 | AT10: =COUNTIF(L41:L47,AS10) -> 0 | AU10: =AT10/(AV4-AT7) ->  | AV10: =IF(AU10=0,0,(AU10*((LOG(AU10))/LOG(2)))) -> 
A11: 11 | B11: 560 | C11: 11 | D11: 576 | E11: 11 | F11: 584 | K11: 0 | L11: 111 | N11: 211 | O11: =COUNTIF($L$7:$L$500,N11) -> 0 | P11: =O11/$Q$4 -> 0 | Q11: =IF(P11=0,0,(P11*((LOG(P11))/LOG(2)))) -> 0 | T11: =N11 -> 211 | U11: =COUNTIF(L7:L13,T11) -> 0 | V11: =U11/(W4-U7) -> 0 | W11: =IF(V11=0,0,(V11*((LOG(V11))/LOG(2)))) -> 0 | Y11: =N11 -> 211 | Z11: =COUNTIF(L14:L20,Y11) -> 0 | AA11: =Z11/(AB4-Z7) ->  | AB11: =IF(AA11=0,0,(AA11*((LOG(AA11))/LOG(2)))) ->  | AD11: =N11 -> 211 | AE11: =COUNTIF(L21:L26,AD11) -> 0 | AF11: =AE11/(AG4-AE7) ->  | AG11: =IF(AF11=0,0,(AF11*((LOG(AF11))/LOG(2)))) ->  | AI11: =N11 -> 211 | AJ11: =COUNTIF(L27:L33,AI11) -> 0 | AK11: =AJ11/(AL4-AJ7) ->  | AL11: =IF(AK11=0,0,(AK11*((LOG(AK11))/LOG(2)))) ->  | AN11: =N11 -> 211 | AO11: =COUNTIF(L34:L40,AN11) -> 0 | AP11: =AO11/(AQ4-AO7) ->  | AQ11: =IF(AP11=0,0,(AP11*((LOG(AP11))/LOG(2)))) ->  | AS11: =N11 -> 211 | AT11: =COUNTIF(L41:L47,AS11) -> 0 | AU11: =AT11/(AV4-AT7) ->  | AV11: =IF(AU11=0,0,(AU11*((LOG(AU11))/LOG(2)))) -> 
A12: 11 | B12: 673 | C12: 11 | D12: 677 | E12: 11 | F12: 739 | K12: 0 | L12: 111 | N12: 212 | O12: =COUNTIF($L$7:$L$500,N12) -> 0 | P12: =O12/$Q$4 -> 0 | Q12: =IF(P12=0,0,(P12*((LOG(P12))/LOG(2)))) -> 0 | T12: =N12 -> 212 | U12: =COUNTIF(L7:L13,T12) -> 0 | V12: =U12/(W4-U7) -> 0 | W12: =IF(V12=0,0,(V12*((LOG(V12))/LOG(2)))) -> 0 | Y12: =N12 -> 212 | Z12: =COUNTIF(L14:L20,Y12) -> 0 | AA12: =Z12/(AB4-Z7) ->  | AB12: =IF(AA12=0,0,(AA12*((LOG(AA12))/LOG(2)))) ->  | AD12: =N12 -> 212 | AE12: =COUNTIF(L21:L26,AD12) -> 0 | AF12: =AE12/(AG4-AE7) ->  | AG12: =IF(AF12=0,0,(AF12*((LOG(AF12))/LOG(2)))) ->  | AI12: =N12 -> 212 | AJ12: =COUNTIF(L27:L33,AI12) -> 0 | AK12: =AJ12/(AL4-AJ7) ->  | AL12: =IF(AK12=0,0,(AK12*((LOG(AK12))/LOG(2)))) ->  | AN12: =N12 -> 212 | AO12: =COUNTIF(L34:L40,AN12) -> 0 | AP12: =AO12/(AQ4-AO7) ->  | AQ12: =IF(AP12=0,0,(AP12*((LOG(AP12))/LOG(2)))) ->  | AS12: =N12 -> 212 | AT12: =COUNTIF(L41:L47,AS12) -> 0 | AU12: =AT12/(AV4-AT7) ->  | AV12: =IF(AU12=0,0,(AU12*((LOG(AU12))/LOG(2)))) -> 
A13: 11 | B13: 853 | C13: 11 | D13: 871 | E13: 11 | F13: 891 | K13: 0 | L13: 111 | N13: 221 | O13: =COUNTIF($L$7:$L$500,N13) -> 0 | P13: =O13/$Q$4 -> 0 | Q13: =IF(P13=0,0,(P13*((LOG(P13))/LOG(2)))) -> 0 | T13: =N13 -> 221 | U13: =COUNTIF(L7:L13,T13) -> 0 | V13: =U13/(W4-U7) -> 0 | W13: =IF(V13=0,0,(V13*((LOG(V13))/LOG(2)))) -> 0 | Y13: =N13 -> 221 | Z13: =COUNTIF(L14:L20,Y13) -> 0 | AA13: =Z13/(AB4-Z7) ->  | AB13: =IF(AA13=0,0,(AA13*((LOG(AA13))/LOG(2)))) ->  | AD13: =N13 -> 221 | AE13: =COUNTIF(L21:L26,AD13) -> 0 | AF13: =AE13/(AG4-AE7) ->  | AG13: =IF(AF13=0,0,(AF13*((LOG(AF13))/LOG(2)))) ->  | AI13: =N13 -> 221 | AJ13: =COUNTIF(L27:L33,AI13) -> 0 | AK13: =AJ13/(AL4-AJ7) ->  | AL13: =IF(AK13=0,0,(AK13*((LOG(AK13))/LOG(2)))) ->  | AN13: =N13 -> 221 | AO13: =COUNTIF(L34:L40,AN13) -> 0 | AP13: =AO13/(AQ4-AO7) ->  | AQ13: =IF(AP13=0,0,(AP13*((LOG(AP13))/LOG(2)))) ->  | AS13: =N13 -> 221 | AT13: =COUNTIF(L41:L47,AS13) -> 0 | AU13: =AT13/(AV4-AT7) ->  | AV13: =IF(AU13=0,0,(AU13*((LOG(AU13))/LOG(2)))) -> 
A14: 11 | B14: 1056 | C14: 11 | D14: 1072 | E14: 11 | F14: 1093 | K14: 0 | L14: 111 | N14: 222 | O14: =COUNTIF($L$7:$L$500,N14) -> 0 | P14: =O14/$Q$4 -> 0 | Q14: =IF(P14=0,0,(P14*((LOG(P14))/LOG(2)))) -> 0 | T14: =N14 -> 222 | U14: =COUNTIF(L7:L13,T14) -> 0 | V14: =U14/(W4-U7) -> 0 | W14: =IF(V14=0,0,(V14*((LOG(V14))/LOG(2)))) -> 0 | Y14: =N14 -> 222 | Z14: =COUNTIF(L14:L20,Y14) -> 0 | AA14: =Z14/(AB4-Z7) ->  | AB14: =IF(AA14=0,0,(AA14*((LOG(AA14))/LOG(2)))) ->  | AD14: =N14 -> 222 | AE14: =COUNTIF(L21:L26,AD14) -> 0 | AF14: =AE14/(AG4-AE7) ->  | AG14: =IF(AF14=0,0,(AF14*((LOG(AF14))/LOG(2)))) ->  | AI14: =N14 -> 222 | AJ14: =COUNTIF(L27:L33,AI14) -> 0 | AK14: =AJ14/(AL4-AJ7) ->  | AL14: =IF(AK14=0,0,(AK14*((LOG(AK14))/LOG(2)))) ->  | AN14: =N14 -> 222 | AO14: =COUNTIF(L34:L40,AN14) -> 0 | AP14: =AO14/(AQ4-AO7) ->  | AQ14: =IF(AP14=0,0,(AP14*((LOG(AP14))/LOG(2)))) ->  | AS14: =N14 -> 222 | AT14: =COUNTIF(L41:L47,AS14) -> 0 | AU14: =AT14/(AV4-AT7) ->  | AV14: =IF(AU14=0,0,(AU14*((LOG(AU14))/LOG(2)))) -> 
A15: 11 | B15: 1198 | C15: 11 | D15: 1218 | E15: 11 | F15: 1239 | K15: 0 | L15: 111 | P15: =SUM(P7:P14) -> 1 | Q15: =-SUM(Q7:Q14) -> 0.165427034 | V15: =SUM(V7:V14) -> 1 | W15: =-SUM(W7:W14) -> 0 | AA15: =SUM(AA7:AA14) ->  | AB15: =-SUM(AB7:AB14) ->  | AF15: =SUM(AF7:AF14) ->  | AG15: =-SUM(AG7:AG14) ->  | AK15: =SUM(AK7:AK14) ->  | AL15: =-SUM(AL7:AL14) ->  | AP15: =SUM(AP7:AP14) ->  | AQ15: =-SUM(AQ7:AQ14) ->  | AU15: =SUM(AU7:AU14) ->  | AV15: =-SUM(AV7:AV14) -> 
A16: 11 | B16: 1372 | C16: 11 | D16: 1387 | E16: 11 | F16: 1406 | K16: 0 | L16: 111 | P16: U= | Q16: =Q15/(LOG(Q4)/LOG(2)) -> 0.03087735478 | V16: U1= | W16: =W15/(LOG(W4)/LOG(2)) -> 0 | AA16: U2= | AB16: =AB15/(LOG(AB4)/LOG(2)) ->  | AF16: U3= | AG16: =AG15/(LOG(AG4)/LOG(2)) ->  | AK16: U4= | AL16: =AL15/(LOG(AL4)/LOG(2)) ->  | AP16: U5= | AQ16: =AQ15/(LOG(AQ4)/LOG(2)) ->  | AU16: U6= | AV16: =AV15/(LOG(AV4)/LOG(2)) -> 
A17: 11 | B17: 1492 | C17: 11 | D17: 1513 | E17: 11 | F17: 1540 | K17: 0 | L17: 111
A18: 11 | B18: 1631 | C18: 11 | D18: 1645 | E18: 11 | F18: 1669 | K18: 0 | L18: 111
A19: 11 | B19: 1788 | C19: 11 | D19: 1814 | E19: 11 | F19: 1842 | K19: 0 | L19: 111 | N19: Total Target Seq
A20: 11 | B20: 1933 | C20: 11 | D20: 1953 | E20: 11 | F20: 1973 | K20: 0 | L20: 111 | N20: =COUNTIF(L7:L47,G3) -> 40 | P20: 7 | Q20: 7 | R20: 6 | S20: 7 | T20: 7 | U20: 7
A21: 11 | B21: 2079 | C21: 11 | D21: 2091 | E21: 11 | F21: 2107 | K21: 0 | L21: 111 | P21: % of reinforcement given in 6 equal intervals based on number of trials
A22: 11 | B22: 2248 | C22: 11 | D22: 2259 | E22: 11 | F22: 2267 | K22: 0 | L22: 111 | P22: %_1 | Q22: %_2 | R22: %_3 | S22: %_4 | T22: %_5 | U22: %_6
A23: 11 | B23: 2417 | C23: 11 | D23: 2436 | E23: 11 | F23: 2454 | K23: 0 | L23: 111 | O23: target sequence | P23: =$G$3 -> 111 | Q23: =$G$3 -> 111 | R23: =$G$3 -> 111 | S23: =$G$3 -> 111 | T23: =$G$3 -> 111 | U23: =$G$3 -> 111
A24: 11 | B24: 2596 | C24: 11 | D24: 2622 | E24: 11 | F24: 2646 | K24: 0 | L24: 111 | O24: total reinforcement | P24: =U7 -> 6 | Q24: =Z7 -> 7 | R24: =AE7 -> 6 | S24: =AJ7 -> 7 | T24: =AO7 -> 7 | U24: =AT7 -> 7
A25: 11 | B25: 2745 | C25: 11 | D25: 2788 | E25: 11 | F25: 2804 | K25: 0 | L25: 111 | O25: % target
A26: 11 | B26: 2984 | C26: 11 | D26: 2999 | E26: 11 | F26: 3016 | K26: 0 | L26: 111 | O26: CCRF
A27: 11 | B27: 3203 | C27: 11 | D27: 3219 | E27: 11 | F27: 3236 | K27: 0 | L27: 111 | O27: % CCRf
A28: 11 | B28: 3352 | C28: 11 | D28: 3373 | E28: 11 | F28: 3391 | K28: 0 | L28: 111 | O28: average response rate | P28: =F13/P20 -> 127.2857143 | Q28: =(F20-F13)/Q20 -> 154.5714286 | R28: =(F26-F20)/R20 -> 173.8333333 | S28: =(F33-F26)/S20 -> 173.2857143 | T28: =(F40-F33)/T20 -> 180.8571429 | U28: =(F47-F40)/U20 -> 204
A29: 11 | B29: 3533 | C29: 11 | D29: 3555 | E29: 11 | F29: 3570 | K29: 0 | L29: 111
A30: 11 | B30: 3679 | C30: 11 | D30: 3697 | E30: 11 | F30: 3716 | K30: 0 | L30: 111
A31: 11 | B31: 3832 | C31: 11 | D31: 3850 | E31: 11 | F31: 3870 | K31: 0 | L31: 111
A32: 11 | B32: 4016 | C32: 11 | D32: 4042 | E32: 11 | F32: 4069 | K32: 0 | L32: 111
A33: 11 | B33: 4193 | C33: 11 | D33: 4211 | E33: 11 | F33: 4229 | K33: 0 | L33: 111
A34: 11 | B34: 4401 | C34: 11 | D34: 4421 | E34: 11 | F34: 4443 | K34: 0 | L34: 111
A35: 11 | B35: 4630 | C35: 11 | D35: 4643 | E35: 11 | F35: 4657 | K35: 0 | L35: 111
A36: 11 | B36: 4775 | C36: 11 | D36: 4780 | E36: 11 | F36: 4796 | K36: 0 | L36: 111
A37: 11 | B37: 4901 | C37: 11 | D37: 4921 | E37: 11 | F37: 4968 | K37: 0 | L37: 111
A38: 11 | B38: 5097 | C38: 11 | D38: 5112 | E38: 11 | F38: 5127 | K38: 0 | L38: 111
A39: 11 | B39: 5230 | C39: 11 | D39: 5249 | E39: 11 | F39: 5268 | K39: 0 | L39: 111
A40: 11 | B40: 5446 | C40: 11 | D40: 5476 | E40: 11 | F40: 5495 | K40: 0 | L40: 111
A41: 11 | B41: 5677 | C41: 11 | D41: 5696 | E41: 11 | F41: 5718 | K41: 0 | L41: 111
A42: 11 | B42: 5820 | C42: 11 | D42: 5852 | E42: 11 | F42: 5871 | K42: 0 | L42: 111
A43: 11 | B43: 5991 | C43: 11 | D43: 6009 | E43: 11 | F43: 6025 | K43: 0 | L43: 111
A44: 11 | B44: 6185 | C44: 11 | D44: 6205 | E44: 11 | F44: 6227 | K44: 0 | L44: 111
A45: 11 | B45: 6356 | C45: 11 | D45: 6369 | E45: 11 | F45: 6386 | K45: 0 | L45: 111
A46: 11 | B46: 6511 | C46: 11 | D46: 6530 | E46: 11 | F46: 6549 | K46: 0 | L46: 111
A47: 11 | B47: 6906 | C47: 11 | D47: 6911 | E47: 11 | F47: 6923 | K47: 1 | L47: 111

Sheet !N13092B.AXT
A1: Report for:!N13092B.AXT
A2: Date: | B2: <date>
A3: Hen: | B3: <hen> | F3: Correct Sequence | G3: =Start!J2 -> 111 | P3: Total Sequences in Data | Q3: =4994-COUNTBLANK(L7:L5000) -> 42 | V3: Total Sequences in Block Data | W3: =COUNTA(L7:L13) -> 7 | AA3: Total Sequences in Block Data | AB3: =COUNTA(L14:L20) -> 7 | AF3: Total Sequences in Block Data | AG3: =COUNTA(L21:L27) -> 7 | AK3: Total Sequences in Block Data | AL3: =COUNTA(L28:L34) -> 7 | AP3: Total Sequences in Block Data | AQ3: =COUNTA(L35:L41) -> 7 | AU3: Total Sequences in Block Data | AV3: =COUNTA(L42:L48) -> 7
P4: Total Sequences in Summary | Q4: =SUM(O7:O14) -> 42 | V4: Total Sequences in Block Summary | W4: =SUM(U7:U14) -> 7 | AA4: Total Sequences in Block Summary | AB4: =SUM(Z7:Z14) -> 7 | AF4: Total Sequences in Block Summary | AG4: =SUM(AE7:AE14) -> 7 | AK4: Total Sequences in Block Summary | AL4: =SUM(AJ7:AJ14) -> 7 | AP4: Total Sequences in Block Summary | AQ4: =SUM(AO7:AO14) -> 7 | AU4: Total Sequences in Block Summary | AV4: =SUM(AT7:AT14) -> 7
T5: Block 1 | Y5: Block 2 | AD5: Block 3 | AI5: Block 4 | AN5: Block 5 | AS5: Block 6
A6: Sequence Component 1 | B6: Time 1 | C6: Sequence Component 2 | D6: Time 2 | E6: Sequence Component 3 | F6: Time 3 | G6: Sequence Component 4 | H6: Time 4 | I6: Sequence Component 5 | J6: Time 5 | K6: Correct? 0=No 1=Yes | L6: Sequence | N6: Frequency | P6: Relative Frequency | Q6: Variability | T6: Frequency | V6: Relative Frequency | W6: Variability | Y6: Frequency | AA6: Relative Frequency | AB6: Variability | AD6: Frequency | AF6: Relative Frequency | AG6: Variability | AI6: Frequency | AK6: Relative Frequency | AL6: Variability | AN6: Frequency | AP6: Relative Frequency | AQ6: Variability | AS6: Frequency | AU6: Relative Frequency | AV6: Variability
A7: 11 | B7: 45 | C7: 11 | D7: 61 | E7: 11 | F7: 73 | K7: 0 | L7: 111 | N7: 111 | O7: =COUNTIF($L$7:$L$500,N7) -> 40 | P7: =O7/$Q$4 -> 0.9523809524 | Q7: =IF(P7=0,0,(P7*((LOG(P7))/LOG(2)))) -> -0.06703745513 | T7: =N7 -> 111 | U7: =COUNTIF(L7:L13,T7) -> 7 | Y7: =N7 -> 111 | Z7: =COUNTIF(L14:L20,Y7) -> 6 | AD7: =N7 -> 111 | AE7: =COUNTIF(L21:L27,AD7) -> 7 | AI7: =N7 -> 111 | AJ7: =COUNTIF(L28:L34,AI7) -> 7 | AN7: =N7 -> 111 | AO7: =COUNTIF(L35:L41,AN7) -> 7 | AS7: =N7 -> 111 | AT7: =COUNTIF(L42:L48,AS7) -> 6
A8: 11 | B8: 167 | C8: 11 | D8: 170 | E8: 11 | F8: 186 | K8: 0 | L8: 111 | N8: 112 | O8: =COUNTIF($L$7:$L$500,N8) -> 0 | P8: =O8/$Q$4 -> 0 | Q8: =IF(P8=0,0,(P8*((LOG(P8))/LOG(2)))) -> 0 | T8: =N8 -> 112 | U8: =COUNTIF(L7:L13,T8) -> 0 | V8: =U8/(W4-U7) ->  | W8: =IF(V8=0,0,(V8*((LOG(V8))/LOG(2)))) ->  | Y8: =N8 -> 112 | Z8: =COUNTIF(L14:L20,Y8) -> 0 | AA8: =Z8/(AB4-Z7) -> 0 | AB8: =IF(AA8=0,0,(AA8*((LOG(AA8))/LOG(2)))) -> 0 | AD8: =N8 -> 112 | AE8: =COUNTIF(L21:L27,AD8) -> 0 | AF8: =AE8/(AG4-AE7) ->  | AG8: =IF(AF8=0,0,(AF8*((LOG(AF8))/LOG(2)))) ->  | AI8: =N8 -> 112 | AJ8: =COUNTIF(L28:L34,AI8) -> 0 | AK8: =AJ8/(AL4-AJ7) ->  | AL8: =IF(AK8=0,0,(AK8*((LOG(AK8))/LOG(2)))) ->  | AN8: =N8 -> 112 | AO8: =COUNTIF(L35:L41,AN8) -> 0 | AP8: =AO8/(AQ4-AO7) ->  | AQ8: =IF(AP8=0,0,(AP8*((LOG(AP8))/LOG(2)))) ->  | AS8: =N8 -> 112 | AT8: =COUNTIF(L42:L48,AS8) -> 0 | AU8: =AT8/(AV4-AT7) -> 0 | AV8: =IF(AU8=0,0,(AU8*((LOG(AU8))/LOG(2)))) -> 0
A9: 11 | B9: 289 | C9: 11 | D9: 312 | E9: 11 | F9: 319 | K9: 0 | L9: 111 | N9: 121 | O9: =COUNTIF($L$7:$L$500,N9) -> 0 | P9: =O9/$Q$4 -> 0 | Q9: =IF(P9=0,0,(P9*((LOG(P9))/LOG(2)))) -> 0 | T9: =N9 -> 121 | U9: =COUNTIF(L7:L13,T9) -> 0 | V9: =U9/(W4-U7) ->  | W9: =IF(V9=0,0,(V9*((LOG(V9))/LOG(2)))) ->  | Y9: =N9 -> 121 | Z9: =COUNTIF(L14:L20,Y9) -> 0 | AA9: =Z9/(AB4-Z7) -> 0 | AB9: =IF(AA9=0,0,(AA9*((LOG(AA9))/LOG(2)))) -> 0 | AD9: =N9 -> 121 | AE9: =COUNTIF(L21:L27,AD9) -> 0 | AF9: =AE9/(AG4-AE7) ->  | AG9: =IF(AF9=0,0,(AF9*((LOG(AF9))/LOG(2)))) ->  | AI9: =N9 -> 121 | AJ9: =COUNTIF(L28:L34,AI9) -> 0 | AK9: =AJ9/(AL4-AJ7) ->  | AL9: =IF(AK9=0,0,(AK9*((LOG(AK9))/LOG(2)))) ->  | AN9: =N9 -> 121 | AO9: =COUNTIF(L35:L41,AN9) -> 0 | AP9: =AO9/(AQ4-AO7) ->  | AQ9: =IF(AP9=0,0,(AP9*((LOG(AP9))/LOG(2)))) ->  | AS9: =N9 -> 121 | AT9: =COUNTIF(L42:L48,AS9) -> 0 | AU9: =AT9/(AV4-AT7) -> 0 | AV9: =IF(AU9=0,0,(AU9*((LOG(AU9))/LOG(2)))) -> 0
A10: 11 | B10: 428 | C10: 11 | D10: 444 | E10: 11 | F10: 459 | K10: 0 | L10: 111 | N10: 122 | O10: =COUNTIF($L$7:$L$500,N10) -> 0 | P10: =O10/$Q$4 -> 0 | Q10: =IF(P10=0,0,(P10*((LOG(P10))/LOG(2)))) -> 0 | T10: =N10 -> 122 | U10: =COUNTIF(L7:L13,T10) -> 0 | V10: =U10/(W4-U7) ->  | W10: =IF(V10=0,0,(V10*((LOG(V10))/LOG(2)))) ->  | Y10: =N10 -> 122 | Z10: =COUNTIF(L14:L20,Y10) -> 0 | AA10: =Z10/(AB4-Z7) -> 0 | AB10: =IF(AA10=0,0,(AA10*((LOG(AA10))/LOG(2)))) -> 0 | AD10: =N10 -> 122 | AE10: =COUNTIF(L21:L27,AD10) -> 0 | AF10: =AE10/(AG4-AE7) ->  | AG10: =IF(AF10=0,0,(AF10*((LOG(AF10))/LOG(2)))) ->  | AI10: =N10 -> 122 | AJ10: =COUNTIF(L28:L34,AI10) -> 0 | AK10: =AJ10/(AL4-AJ7) ->  | AL10: =IF(AK10=0,0,(AK10*((LOG(AK10))/LOG(2)))) ->  | AN10: =N10 -> 122 | AO10: =COUNTIF(L35:L41,AN10) -> 0 | AP10: =AO10/(AQ4-AO7) ->  | AQ10: =IF(AP10=0,0,(AP10*((LOG(AP10))/LOG(2)))) ->  | AS10: =N10 -> 122 | AT10: =COUNTIF(L42:L48,AS10) -> 0 | AU10: =AT10/(AV4-AT7) -> 0 | AV10: =IF(AU10=0,0,(AU10*((LOG(AU10))/LOG(2)))) -> 0
A11: 11 | B11: 603 | C11: 11 | D11: 620 | E11: 11 | F11: 636 | K11: 0 | L11: 111 | N11: 211 | O11: =COUNTIF($L$7:$L$500,N11) -> 1 | P11: =O11/$Q$4 -> 0.02380952381 | Q11: =IF(P11=0,0,(P11*((LOG(P11))/LOG(2)))) -> -0.1283885101 | T11: =N11 -> 211 | U11: =COUNTIF(L7:L13,T11) -> 0 | V11: =U11/(W4-U7) ->  | W11: =IF(V11=0,0,(V11*((LOG(V11))/LOG(2)))) ->  | Y11: =N11 -> 211 | Z11: =COUNTIF(L14:L20,Y11) -> 1 | AA11: =Z11/(AB4-Z7) -> 1 | AB11: =IF(AA11=0,0,(AA11*((LOG(AA11))/LOG(2)))) -> 0 | AD11: =N11 -> 211 | AE11: =COUNTIF(L21:L27,AD11) -> 0 | AF11: =AE11/(AG4-AE7) ->  | AG11: =IF(AF11=0,0,(AF11*((LOG(AF11))/LOG(2)))) ->  | AI11: =N11 -> 211 | AJ11: =COUNTIF(L28:L34,AI11) -> 0 | AK11: =AJ11/(AL4-AJ7) ->  | AL11: =IF(AK11=0,0,(AK11*((LOG(AK11))/LOG(2)))) ->  | AN11: =N11 -> 211 | AO11: =COUNTIF(L35:L41,AN11) -> 0 | AP11: =AO11/(AQ4-AO7) ->  | AQ11: =IF(AP11=0,0,(AP11*((LOG(AP11))/LOG(2)))) ->  | AS11: =N11 -> 211 | AT11: =COUNTIF(L42:L48,AS11) -> 0 | AU11: =AT11/(AV4-AT7) -> 0 | AV11: =IF(AU11=0,0,(AU11*((LOG(AU11))/LOG(2)))) -> 0
A12: 11 | B12: 735 | C12: 11 | D12: 752 | E12: 11 | F12: 773 | K12: 0 | L12: 111 | N12: 212 | O12: =COUNTIF($L$7:$L$500,N12) -> 1 | P12: =O12/$Q$4 -> 0.02380952381 | Q12: =IF(P12=0,0,(P12*((LOG(P12))/LOG(2)))) -> -0.1283885101 | T12: =N12 -> 212 | U12: =COUNTIF(L7:L13,T12) -> 0 | V12: =U12/(W4-U7) ->  | W12: =IF(V12=0,0,(V12*((LOG(V12))/LOG(2)))) ->  | Y12: =N12 -> 212 | Z12: =COUNTIF(L14:L20,Y12) -> 0 | AA12: =Z12/(AB4-Z7) -> 0 | AB12: =IF(AA12=0,0,(AA12*((LOG(AA12))/LOG(2)))) -> 0 | AD12: =N12 -> 212 | AE12: =COUNTIF(L21:L27,AD12) -> 0 | AF12: =AE12/(AG4-AE7) ->  | AG12: =IF(AF12=0,0,(AF12*((LOG(AF12))/LOG(2)))) ->  | AI12: =N12 -> 212 | AJ12: =COUNTIF(L28:L34,AI12) -> 0 | AK12: =AJ12/(AL4-AJ7) ->  | AL12: =IF(AK12=0,0,(AK12*((LOG(AK12))/LOG(2)))) ->  | AN12: =N12 -> 212 | AO12: =COUNTIF(L35:L41,AN12) -> 0 | AP12: =AO12/(AQ4-AO7) ->  | AQ12: =IF(AP12=0,0,(AP12*((LOG(AP12))/LOG(2)))) ->  | AS12: =N12 -> 212 | AT12: =COUNTIF(L42:L48,AS12) -> 1 | AU12: =AT12/(AV4-AT7) -> 1 | AV12: =IF(AU12=0,0,(AU12*((LOG(AU12))/LOG(2)))) -> 0
A13: 11 | B13: 873 | C13: 11 | D13: 894 | E13: 11 | F13: 914 | K13: 0 | L13: 111 | N13: 221 | O13: =COUNTIF($L$7:$L$500,N13) -> 0 | P13: =O13/$Q$4 -> 0 | Q13: =IF(P13=0,0,(P13*((LOG(P13))/LOG(2)))) -> 0 | T13: =N13 -> 221 | U13: =COUNTIF(L7:L13,T13) -> 0 | V13: =U13/(W4-U7) ->  | W13: =IF(V13=0,0,(V13*((LOG(V13))/LOG(2)))) ->  | Y13: =N13 -> 221 | Z13: =COUNTIF(L14:L20,Y13) -> 0 | AA13: =Z13/(AB4-Z7) -> 0 | AB13: =IF(AA13=0,0,(AA13*((LOG(AA13))/LOG(2)))) -> 0 | AD13: =N13 -> 221 | AE13: =COUNTIF(L21:L27,AD13) -> 0 | AF13: =AE13/(AG4-AE7) ->  | AG13: =IF(AF13=0,0,(AF13*((LOG(AF13))/LOG(2)))) ->  | AI13: =N13 -> 221 | AJ13: =COUNTIF(L28:L34,AI13) -> 0 | AK13: =AJ13/(AL4-AJ7) ->  | AL13: =IF(AK13=0,0,(AK13*((LOG(AK13))/LOG(2)))) ->  | AN13: =N13 -> 221 | AO13: =COUNTIF(L35:L41,AN13) -> 0 | AP13: =AO13/(AQ4-AO7) ->  | AQ13: =IF(AP13=0,0,(AP13*((LOG(AP13))/LOG(2)))) ->  | AS13: =N13 -> 221 | AT13: =COUNTIF(L42:L48,AS13) -> 0 | AU13: =AT13/(AV4-AT7) -> 0 | AV13: =IF(AU13=0,0,(AU13*((LOG(AU13))/LOG(2)))) -> 0
A14: 11 | B14: 1030 | C14: 11 | D14: 1072 | E14: 11 | F14: 1112 | K14: 0 | L14: 111 | N14: 222 | O14: =COUNTIF($L$7:$L$500,N14) -> 0 | P14: =O14/$Q$4 -> 0 | Q14: =IF(P14=0,0,(P14*((LOG(P14))/LOG(2)))) -> 0 | T14: =N14 -> 222 | U14: =COUNTIF(L7:L13,T14) -> 0 | V14: =U14/(W4-U7) ->  | W14: =IF(V14=0,0,(V14*((LOG(V14))/LOG(2)))) ->  | Y14: =N14 -> 222 | Z14: =COUNTIF(L14:L20,Y14) -> 0 | AA14: =Z14/(AB4-Z7) -> 0 | AB14: =IF(AA14=0,0,(AA14*((LOG(AA14))/LOG(2)))) -> 0 | AD14: =N14 -> 222 | AE14: =COUNTIF(L21:L27,AD14) -> 0 | AF14: =AE14/(AG4-AE7) ->  | AG14: =IF(AF14=0,0,(AF14*((LOG(AF14))/LOG(2)))) ->  | AI14: =N14 -> 222 | AJ14: =COUNTIF(L28:L34,AI14) -> 0 | AK14: =AJ14/(AL4-AJ7) ->  | AL14: =IF(AK14=0,0,(AK14*((LOG(AK14))/LOG(2)))) ->  | AN14: =N14 -> 222 | AO14: =COUNTIF(L35:L41,AN14) -> 0 | AP14: =AO14/(AQ4-AO7) ->  | AQ14: =IF(AP14=0,0,(AP14*((LOG(AP14))/LOG(2)))) ->  | AS14: =N14 -> 222 | AT14: =COUNTIF(L42:L48,AS14) -> 0 | AU14: =AT14/(AV4-AT7) -> 0 | AV14: =IF(AU14=0,0,(AU14*((LOG(AU14))/LOG(2)))) -> 0
A15: 11 | B15: 1282 | C15: 11 | D15: 1306 | E15: 11 | F15: 1327 | K15: 0 | L15: 111 | P15: =SUM(P7:P14) -> 1 | Q15: =-SUM(Q7:Q14) -> 0.3238144753 | V15: =SUM(V7:V14) ->  | W15: =-SUM(W7:W14) ->  | AA15: =SUM(AA7:AA14) -> 1 | AB15: =-SUM(AB7:AB14) -> 0 | AF15: =SUM(AF7:AF14) ->  | AG15: =-SUM(AG7:AG14) ->  | AK15: =SUM(AK7:AK14) ->  | AL15: =-SUM(AL7:AL14) ->  | AP15: =SUM(AP7:AP14) ->  | AQ15: =-SUM(AQ7:AQ14) ->  | AU15: =SUM(AU7:AU14) -> 1 | AV15: =-SUM(AV7:AV14) -> 0
A16: 11 | B16: 1415 | C16: 11 | D16: 1435 | E16: 11 | F16: 1454 | K16: 0 | L16: 111 | P16: U= | Q16: =Q15/(LOG(Q4)/LOG(2)) -> 0.06005107821 | V16: U1= | W16: =W15/(LOG(W4)/LOG(2)) ->  | AA16: U2= | AB16: =AB15/(LOG(AB4)/LOG(2)) -> 0 | AF16: U3= | AG16: =AG15/(LOG(AG4)/LOG(2)) ->  | AK16: U4= | AL16: =AL15/(LOG(AL4)/LOG(2)) ->  | AP16: U5= | AQ16: =AQ15/(LOG(AQ4)/LOG(2)) ->  | AU16: U6= | AV16: =AV15/(LOG(AV4)/LOG(2)) -> 0
A17: 11 | B17: 1547 | C17: 11 | D17: 1565 | E17: 11 | F17: 1581 | K17: 0 | L17: 111
A18: 11 | B18: 1844 | C18: 11 | D18: 1880 | E18: 11 | F18: 1903 | K18: 0 | L18: 111
A19: 22 | B19: 2112 | C19: 13 | D19: 2125 | E19: 13 | F19: 2142 | K19: 0 | L19: 211 | N19: Total Target Seq
A20: 11 | B20: 2301 | C20: 11 | D20: 2315 | E20: 11 | F20: 2329 | K20: 0 | L20: 111 | N20: =COUNTIF(L7:L48,G3) -> 40 | P20: 7 | Q20: 7 | R20: 7 | S20: 7 | T20: 7 | U20: 7
A21: 11 | B21: 2446 | C21: 11 | D21: 2462 | E21: 11 | F21: 2481 | K21: 0 | L21: 111 | P21: % of reinforcement given in 6 equal intervals based on number of trials
A22: 11 | B22: 2586 | C22: 11 | D22: 2603 | E22: 11 | F22: 2619 | K22: 0 | L22: 111 | P22: %_1 | Q22: %_2 | R22: %_3 | S22: %_4 | T22: %_5 | U22: %_6
A23: 11 | B23: 2729 | C23: 11 | D23: 2742 | E23: 11 | F23: 2751 | K23: 0 | L23: 111 | O23: target sequence | P23: =$G$3 -> 111 | Q23: =$G$3 -> 111 | R23: =$G$3 -> 111 | S23: =$G$3 -> 111 | T23: =$G$3 -> 111 | U23: =$G$3 -> 111
A24: 11 | B24: 2848 | C24: 11 | D24: 2863 | E24: 11 | F24: 2873 | K24: 0 | L24: 111 | O24: total reinforcement | P24: =U7 -> 7 | Q24: =Z7 -> 6 | R24: =AE7 -> 7 | S24: =AJ7 -> 7 | T24: =AO7 -> 7 | U24: =AT7 -> 6
A25: 11 | B25: 3004 | C25: 11 | D25: 3044 | E25: 11 | F25: 3100 | K25: 0 | L25: 111 | O25: % target
A26: 11 | B26: 3187 | C26: 11 | D26: 3211 | E26: 11 | F26: 3227 | K26: 0 | L26: 111 | O26: CCRF
A27: 11 | B27: 3353 | C27: 11 | D27: 3377 | E27: 11 | F27: 3401 | K27: 0 | L27: 111 | O27: % CCRf
A28: 11 | B28: 3512 | C28: 11 | D28: 3529 | E28: 11 | F28: 3558 | K28: 0 | L28: 111 | O28: average response rate | P28: =F13/P20 -> 130.5714286 | Q28: =(F20-F13)/Q20 -> 202.1428571 | R28: =(F27-F20)/R20 -> 153.1428571 | S28: =(F34-F27)/S20 -> 179.4285714 | T28: =(F41-F34)/T20 -> 170.2857143 | U28: =(F48-F41)/U20 -> 161.7142857
A29: 11 | B29: 3708 | C29: 11 | D29: 3728 | E29: 11 | F29: 3765 | K29: 0 | L29: 111
A30: 11 | B30: 3859 | C30: 11 | D30: 3875 | E30: 11 | F30: 3892 | K30: 0 | L30: 111
A31: 11 | B31: 4085 | C31: 11 | D31: 4103 | E31: 11 | F31: 4128 | K31: 0 | L31: 111
A32: 11 | B32: 4316 | C32: 11 | D32: 4332 | E32: 11 | F32: 4351 | K32: 0 | L32: 111
A33: 11 | B33: 4493 | C33: 11 | D33: 4517 | E33: 11 | F33: 4533 | K33: 0 | L33: 111
A34: 11 | B34: 4620 | C34: 11 | D34: 4638 | E34: 11 | F34: 4657 | K34: 0 | L34: 111
A35: 11 | B35: 4744 | C35: 11 | D35: 4761 | E35: 11 | F35: 4785 | K35: 0 | L35: 111
A36: 11 | B36: 4925 | C36: 11 | D36: 4942 | E36: 11 | F36: 4960 | K36: 0 | L36: 111
A37: 11 | B37: 5119 | C37: 11 | D37: 5135 | E37: 11 | F37: 5149 | K37: 0 | L37: 111
A38: 11 | B38: 5308 | C38: 11 | D38: 5324 | E38: 11 | F38: 5345 | K38: 0 | L38: 111
A39: 11 | B39: 5439 | C39: 11 | D39: 5449 | E39: 11 | F39: 5465 | K39: 0 | L39: 111
A40: 11 | B40: 5641 | C40: 11 | D40: 5660 | E40: 11 | F40: 5681 | K40: 0 | L40: 111
A41: 11 | B41: 5778 | C41: 11 | D41: 5829 | E41: 11 | F41: 5849 | K41: 0 | L41: 111
A42: 11 | B42: 5977 | C42: 11 | D42: 5999 | E42: 11 | F42: 6018 | K42: 0 | L42: 111
A43: 11 | B43: 6128 | C43: 11 | D43: 6145 | E43: 11 | F43: 6163 | K43: 0 | L43: 111
A44: 11 | B44: 6270 | C44: 11 | D44: 6287 | E44: 11 | F44: 6304 | K44: 0 | L44: 111
A45: 22 | B45: 6485 | C45: 13 | D45: 6501 | E45: 24 | F45: 6512 | K45: 0 | L45: 212
A46: 11 | B46: 6647 | C46: 11 | D46: 6662 | E46: 11 | F46: 6676 | K46: 0 | L46: 111
A47: 11 | B47: 6808 | C47: 11 | D47: 6830 | E47: 11 | F47: 6846 | K47: 0 | L47: 111
A48: 11 | B48: 6945 | C48: 11 | D48: 6963 | E48: 11 | F48: 6981 | K48: 1 | L48: 111

Sheet !N13192B.AXT
A1: Report for:!N13192B.AXT
A2: Date: | B2: <date>
A3: Hen: | B3: <hen> | F3: Correct Sequence | G3: =Start!J2 -> 111 | P3: Total Sequences in Data | Q3: =4994-COUNTBLANK(L7:L5000) -> 41 | V3: Total Sequences in Block Data | W3: =COUNTA(L7:L13) -> 7 | AA3: Total Sequences in Block Data | AB3: =COUNTA(L14:L20) -> 7 | AF3: Total Sequences in Block Data | AG3: =COUNTA(L21:L26) -> 6 | AK3: Total Sequences in Block Data | AL3: =COUNTA(L27:L33) -> 7 | AP3: Total Sequences in Block Data | AQ3: =COUNTA(L34:L40) -> 7 | AU3: Total Sequences in Block Data | AV3: =COUNTA(L41:L47) -> 7
P4: Total Sequences in Summary | Q4: =SUM(O7:O14) -> 41 | V4: Total Sequences in Block Summary | W4: =SUM(U7:U14) -> 7 | AA4: Total Sequences in Block Summary | AB4: =SUM(Z7:Z14) -> 7 | AF4: Total Sequences in Block Summary | AG4: =SUM(AE7:AE14) -> 6 | AK4: Total Sequences in Block Summary | AL4: =SUM(AJ7:AJ14) -> 7 | AP4: Total Sequences in Block Summary | AQ4: =SUM(AO7:AO14) -> 7 | AU4: Total Sequences in Block Summary | AV4: =SUM(AT7:AT14) -> 7
T5: Block 1 | Y5: Block 2 | AD5: Block 3 | AI5: Block 4 | AN5: Block 5 | AS5: Block 6
A6: Sequence Component 1 | B6: Time 1 | C6: Sequence Component 2 | D6: Time 2 | E6: Sequence Component 3 | F6: Time 3 | G6: Sequence Component 4 | H6: Time 4 | I6: Sequence Component 5 | J6: Time 5 | K6: Correct? 0=No 1=Yes | L6: Sequence | N6: Frequency | P6: Relative Frequency | Q6: Variability | T6: Frequency | V6: Relative Frequency | W6: Variability | Y6: Frequency | AA6: Relative Frequency | AB6: Variability | AD6: Frequency | AF6: Relative Frequency | AG6: Variability | AI6: Frequency | AK6: Relative Frequency | AL6: Variability | AN6: Frequency | AP6: Relative Frequency | AQ6: Variability | AS6: Frequency | AU6: Relative Frequency | AV6: Variability
A7: 11 | B7: 17 | C7: 22 | D7: 35 | E7: 24 | F7: 41 | K7: 0 | L7: 122 | N7: 111 | O7: =COUNTIF($L$7:$L$500,N7) -> 40 | P7: =O7/$Q$4 -> 0.9756097561 | Q7: =IF(P7=0,0,(P7*((LOG(P7))/LOG(2)))) -> -0.03475503388 | T7: =N7 -> 111 | U7: =COUNTIF(L7:L13,T7) -> 6 | Y7: =N7 -> 111 | Z7: =COUNTIF(L14:L20,Y7) -> 7 | AD7: =N7 -> 111 | AE7: =COUNTIF(L21:L26,AD7) -> 6 | AI7: =N7 -> 111 | AJ7: =COUNTIF(L27:L33,AI7) -> 7 | AN7: =N7 -> 111 | AO7: =COUNTIF(L34:L40,AN7) -> 7 | AS7: =N7 -> 111 | AT7: =COUNTIF(L41:L47,AS7) -> 7
A8: 11 | B8: 160 | C8: 11 | D8: 176 | E8: 11 | F8: 201 | K8: 0 | L8: 111 | N8: 112 | O8: =COUNTIF($L$7:$L$500,N8) -> 0 | P8: =O8/$Q$4 -> 0 | Q8: =IF(P8=0,0,(P8*((LOG(P8))/LOG(2)))) -> 0 | T8: =N8 -> 112 | U8: =COUNTIF(L7:L13,T8) -> 0 | V8: =U8/(W4-U7) -> 0 | W8: =IF(V8=0,0,(V8*((LOG(V8))/LOG(2)))) -> 0 | Y8: =N8 -> 112 | Z8: =COUNTIF(L14:L20,Y8) -> 0 | AA8: =Z8/(AB4-Z7) ->  | AB8: =IF(AA8=0,0,(AA8*((LOG(AA8))/LOG(2)))) ->  | AD8: =N8 -> 112 | AE8: =COUNTIF(L21:L26,AD8) -> 0 | AF8: =AE8/(AG4-AE7) ->  | AG8: =IF(AF8=0,0,(AF8*((LOG(AF8))/LOG(2)))) ->  | AI8: =N8 -> 112 | AJ8: =COUNTIF(L27:L33,AI8) -> 0 | AK8: =AJ8/(AL4-AJ7) ->  | AL8: =IF(AK8=0,0,(AK8*((LOG(AK8))/LOG(2)))) ->  | AN8: =N8 -> 112 | AO8: =COUNTIF(L34:L40,AN8) -> 0 | AP8: =AO8/(AQ4-AO7) ->  | AQ8: =IF(AP8=0,0,(AP8*((LOG(AP8))/LOG(2)))) ->  | AS8: =N8 -> 112 | AT8: =COUNTIF(L41:L47,AS8) -> 0 | AU8: =AT8/(AV4-AT7) ->  | AV8: =IF(AU8=0,0,(AU8*((LOG(AU8))/LOG(2)))) -> 
A9: 11 | B9: 324 | C9: 11 | D9: 370 | E9: 11 | F9: 388 | K9: 0 | L9: 111 | N9: 121 | O9: =COUNTIF($L$7:$L$500,N9) -> 0 | P9: =O9/$Q$4 -> 0 | Q9: =IF(P9=0,0,(P9*((LOG(P9))/LOG(2)))) -> 0 | T9: =N9 -> 121 | U9: =COUNTIF(L7:L13,T9) -> 0 | V9: =U9/(W4-U7) -> 0 | W9: =IF(V9=0,0,(V9*((LOG(V9))/LOG(2)))) -> 0 | Y9: =N9 -> 121 | Z9: =COUNTIF(L14:L20,Y9) -> 0 | AA9: =Z9/(AB4-Z7) ->  | AB9: =IF(AA9=0,0,(AA9*((LOG(AA9))/LOG(2)))) ->  | AD9: =N9 -> 121 | AE9: =COUNTIF(L21:L26,AD9) -> 0 | AF9: =AE9/(AG4-AE7) ->  | AG9: =IF(AF9=0,0,(AF9*((LOG(AF9))/LOG(2)))) ->  | AI9: =N9 -> 121 | AJ9: =COUNTIF(L27:L33,AI9) -> 0 | AK9: =AJ9/(AL4-AJ7) ->  | AL9: =IF(AK9=0,0,(AK9*((LOG(AK9))/LOG(2)))) ->  | AN9: =N9 -> 121 | AO9: =COUNTIF(L34:L40,AN9) -> 0 | AP9: =AO9/(AQ4-AO7) ->  | AQ9: =IF(AP9=0,0,(AP9*((LOG(AP9))/LOG(2)))) ->  | AS9: =N9 -> 121 | AT9: =COUNTIF(L41:L47,AS9) -> 0 | AU9: =AT9/(AV4-AT7) ->  | AV9: =IF(AU9=0,0,(AU9*((LOG(AU9))/LOG(2)))) -> 
A10: 11 | B10: 545 | C10: 11 | D10: 569 | E10: 11 | F10: 595 | K10: 0 | L10: 111 | N10: 122 | O10: =COUNTIF($L$7:$L$500,N10) -> 1 | P10: =O10/$Q$4 -> 0.0243902439 | Q10: =IF(P10=0,0,(P10*((LOG(P10))/LOG(2)))) -> -0.1306720001 | T10: =N10 -> 122 | U10: =COUNTIF(L7:L13,T10) -> 1 | V10: =U10/(W4-U7) -> 1 | W10: =IF(V10=0,0,(V10*((LOG(V10))/LOG(2)))) -> 0 | Y10: =N10 -> 122 | Z10: =COUNTIF(L14:L20,Y10) -> 0 | AA10: =Z10/(AB4-Z7) ->  | AB10: =IF(AA10=0,0,(AA10*((LOG(AA10))/LOG(2)))) ->  | AD10: =N10 -> 122 | AE10: =COUNTIF(L21:L26,AD10) -> 0 | AF10: =AE10/(AG4-AE7) ->  | AG10: =IF(AF10=0,0,(AF10*((LOG(AF10))/LOG(2)))) ->  | AI10: =N10 -> 122 | AJ10: =COUNTIF(L27:L33,AI10) -> 0 | AK10: =AJ10/(AL4-AJ7) ->  | AL10: =IF(AK10=0,0,(AK10*((LOG(AK10))/LOG(2)))) ->  | AN10: =N10 -> 122 | AO10: =COUNTIF(L34:L40,AN10) -> 0 | AP10: =AO10/(AQ4-AO7) ->  | AQ10: =IF(AP10=0,0,(AP10*((LOG(AP10))/LOG(2)))) ->  | AS10: =N10 -> 122 | AT10: =COUNTIF(L41:L47,AS10) -> 0 | AU10: =AT10/(AV4-AT7) ->  | AV10: =IF(AU10=0,0,(AU10*((LOG(AU10))/LOG(2)))) -> 
A11: 11 | B11: 694 | C11: 11 | D11: 717 | E11: 11 | F11: 771 | K11: 0 | L11: 111 | N11: 211 | O11: =COUNTIF($L$7:$L$500,N11) -> 0 | P11: =O11/$Q$4 -> 0 | Q11: =IF(P11=0,0,(P11*((LOG(P11))/LOG(2)))) -> 0 | T11: =N11 -> 211 | U11: =COUNTIF(L7:L13,T11) -> 0 | V11: =U11/(W4-U7) -> 0 | W11: =IF(V11=0,0,(V11*((LOG(V11))/LOG(2)))) -> 0 | Y11: =N11 -> 211 | Z11: =COUNTIF(L14:L20,Y11) -> 0 | AA11: =Z11/(AB4-Z7) ->  | AB11: =IF(AA11=0,0,(AA11*((LOG(AA11))/LOG(2)))) ->  | AD11: =N11 -> 211 | AE11: =COUNTIF(L21:L26,AD11) -> 0 | AF11: =AE11/(AG4-AE7) ->  | AG11: =IF(AF11=0,0,(AF11*((LOG(AF11))/LOG(2)))) ->  | AI11: =N11 -> 211 | AJ11: =COUNTIF(L27:L33,AI11) -> 0 | AK11: =AJ11/(AL4-AJ7) ->  | AL11: =IF(AK11=0,0,(AK11*((LOG(AK11))/LOG(2)))) ->  | AN11: =N11 -> 211 | AO11: =COUNTIF(L34:L40,AN11) -> 0 | AP11: =AO11/(AQ4-AO7) ->  | AQ11: =IF(AP11=0,0,(AP11*((LOG(AP11))/LOG(2)))) ->  | AS11: =N11 -> 211 | AT11: =COUNTIF(L41:L47,AS11) -> 0 | AU11: =AT11/(AV4-AT7) ->  | AV11: =IF(AU11=0,0,(AU11*((LOG(AU11))/LOG(2)))) -> 
A12: 11 | B12: 885 | C12: 11 | D12: 905 | E12: 11 | F12: 929 | K12: 0 | L12: 111 | N12: 212 | O12: =COUNTIF($L$7:$L$500,N12) -> 0 | P12: =O12/$Q$4 -> 0 | Q12: =IF(P12=0,0,(P12*((LOG(P12))/LOG(2)))) -> 0 | T12: =N12 -> 212 | U12: =COUNTIF(L7:L13,T12) -> 0 | V12: =U12/(W4-U7) -> 0 | W12: =IF(V12=0,0,(V12*((LOG(V12))/LOG(2)))) -> 0 | Y12: =N12 -> 212 | Z12: =COUNTIF(L14:L20,Y12) -> 0 | AA12: =Z12/(AB4-Z7) ->  | AB12: =IF(AA12=0,0,(AA12*((LOG(AA12))/LOG(2)))) ->  | AD12: =N12 -> 212 | AE12: =COUNTIF(L21:L26,AD12) -> 0 | AF12: =AE12/(AG4-AE7) ->  | AG12: =IF(AF12=0,0,(AF12*((LOG(AF12))/LOG(2)))) ->  | AI12: =N12 -> 212 | AJ12: =COUNTIF(L27:L33,AI12) -> 0 | AK12: =AJ12/(AL4-AJ7) ->  | AL12: =IF(AK12=0,0,(AK12*((LOG(AK12))/LOG(2)))) ->  | AN12: =N12 -> 212 | AO12: =COUNTIF(L34:L40,AN12) -> 0 | AP12: =AO12/(AQ4-AO7) ->  | AQ12: =IF(AP12=0,0,(AP12*((LOG(AP12))/LOG(2)))) ->  | AS12: =N12 -> 212 | AT12: =COUNTIF(L41:L47,AS12) -> 0 | AU12: =AT12/(AV4-AT7) ->  | AV12: =IF(AU12=0,0,(AU12*((LOG(AU12))/LOG(2)))) -> 
A13: 11 | B13: 1029 | C13: 11 | D13: 1055 | E13: 11 | F13: 1117 | K13: 0 | L13: 111 | N13: 221 | O13: =COUNTIF($L$7:$L$500,N13) -> 0 | P13: =O13/$Q$4 -> 0 | Q13: =IF(P13=0,0,(P13*((LOG(P13))/LOG(2)))) -> 0 | T13: =N13 -> 221 | U13: =COUNTIF(L7:L13,T13) -> 0 | V13: =U13/(W4-U7) -> 0 | W13: =IF(V13=0,0,(V13*((LOG(V13))/LOG(2)))) -> 0 | Y13: =N13 -> 221 | Z13: =COUNTIF(L14:L20,Y13) -> 0 | AA13: =Z13/(AB4-Z7) ->  | AB13: =IF(AA13=0,0,(AA13*((LOG(AA13))/LOG(2)))) ->  | AD13: =N13 -> 221 | AE13: =COUNTIF(L21:L26,AD13) -> 0 | AF13: =AE13/(AG4-AE7) ->  | AG13: =IF(AF13=0,0,(AF13*((LOG(AF13))/LOG(2)))) ->  | AI13: =N13 -> 221 | AJ13: =COUNTIF(L27:L33,AI13) -> 0 | AK13: =AJ13/(AL4-AJ7) ->  | AL13: =IF(AK13=0,0,(AK13*((LOG(AK13))/LOG(2)))) ->  | AN13: =N13 -> 221 | AO13: =COUNTIF(L34:L40,AN13) -> 0 | AP13: =AO13/(AQ4-AO7) ->  | AQ13: =IF(AP13=0,0,(AP13*((LOG(AP13))/LOG(2)))) ->  | AS13: =N13 -> 221 | AT13: =COUNTIF(L41:L47,AS13) -> 0 | AU13: =AT13/(AV4-AT7) ->  | AV13: =IF(AU13=0,0,(AU13*((LOG(AU13))/LOG(2)))) -> 
A14: 11 | B14: 1210 | C14: 11 | D14: 1227 | E14: 11 | F14: 1252 | K14: 0 | L14: 111 | N14: 222 | O14: =COUNTIF($L$7:$L$500,N14) -> 0 | P14: =O14/$Q$4 -> 0 | Q14: =IF(P14=0,0,(P14*((LOG(P14))/LOG(2)))) -> 0 | T14: =N14 -> 222 | U14: =COUNTIF(L7:L13,T14) -> 0 | V14: =U14/(W4-U7) -> 0 | W14: =IF(V14=0,0,(V14*((LOG(V14))/LOG(2)))) -> 0 | Y14: =N14 -> 222 | Z14: =COUNTIF(L14:L20,Y14) -> 0 | AA14: =Z14/(AB4-Z7) ->  | AB14: =IF(AA14=0,0,(AA14*((LOG(AA14))/LOG(2)))) ->  | AD14: =N14 -> 222 | AE14: =COUNTIF(L21:L26,AD14) -> 0 | AF14: =AE14/(AG4-AE7) ->  | AG14: =IF(AF14=0,0,(AF14*((LOG(AF14))/LOG(2)))) ->  | AI14: =N14 -> 222 | AJ14: =COUNTIF(L27:L33,AI14) -> 0 | AK14: =AJ14/(AL4-AJ7) ->  | AL14: =IF(AK14=0,0,(AK14*((LOG(AK14))/LOG(2)))) ->  | AN14: =N14 -> 222 | AO14: =COUNTIF(L34:L40,AN14) -> 0 | AP14: =AO14/(AQ4-AO7) ->  | AQ14: =IF(AP14=0,0,(AP14*((LOG(AP14))/LOG(2)))) ->  | AS14: =N14 -> 222 | AT14: =COUNTIF(L41:L47,AS14) -> 0 | AU14: =AT14/(AV4-AT7) ->  | AV14: =IF(AU14=0,0,(AU14*((LOG(AU14))/LOG(2)))) -> 
A15: 11 | B15: 1401 | C15: 11 | D15: 1420 | E15: 11 | F15: 1441 | K15: 0 | L15: 111 | P15: =SUM(P7:P14) -> 1 | Q15: =-SUM(Q7:Q14) -> 0.165427034 | V15: =SUM(V7:V14) -> 1 | W15: =-SUM(W7:W14) -> 0 | AA15: =SUM(AA7:AA14) ->  | AB15: =-SUM(AB7:AB14) ->  | AF15: =SUM(AF7:AF14) ->  | AG15: =-SUM(AG7:AG14) ->  | AK15: =SUM(AK7:AK14) ->  | AL15: =-SUM(AL7:AL14) ->  | AP15: =SUM(AP7:AP14) ->  | AQ15: =-SUM(AQ7:AQ14) ->  | AU15: =SUM(AU7:AU14) ->  | AV15: =-SUM(AV7:AV14) -> 
A16: 11 | B16: 1601 | C16: 11 | D16: 1615 | E16: 11 | F16: 1638 | K16: 0 | L16: 111 | P16: U= | Q16: =Q15/(LOG(Q4)/LOG(2)) -> 0.03087735478 | V16: U1= | W16: =W15/(LOG(W4)/LOG(2)) -> 0 | AA16: U2= | AB16: =AB15/(LOG(AB4)/LOG(2)) ->  | AF16: U3= | AG16: =AG15/(LOG(AG4)/LOG(2)) ->  | AK16: U4= | AL16: =AL15/(LOG(AL4)/LOG(2)) ->  | AP16: U5= | AQ16: =AQ15/(LOG(AQ4)/LOG(2)) ->  | AU16: U6= | AV16: =AV15/(LOG(AV4)/LOG(2)) -> 
A17: 11 | B17: 1897 | C17: 11 | D17: 1917 | E17: 11 | F17: 1935 | K17: 0 | L17: 111
A18: 11 | B18: 2050 | C18: 11 | D18: 2068 | E18: 11 | F18: 2085 | K18: 0 | L18: 111
A19: 11 | B19: 2252 | C19: 11 | D19: 2275 | E19: 11 | F19: 2298 | K19: 0 | L19: 111 | N19: Total Target Seq
A20: 11 | B20: 2398 | C20: 11 | D20: 2417 | E20: 11 | F20: 2457 | K20: 0 | L20: 111 | N20: =COUNTIF(L7:L47,G3) -> 40 | P20: 7 | Q20: 7 | R20: 6 | S20: 7 | T20: 7 | U20: 7
A21: 11 | B21: 2627 | C21: 11 | D21: 2648 | E21: 11 | F21: 2688 | K21: 0 | L21: 111 | P21: % of reinforcement given in 6 equal intervals based on number of trials
A22: 11 | B22: 2777 | C22: 11 | D22: 2805 | E22: 11 | F22: 2821 | K22: 0 | L22: 111 | P22: %_1 | Q22: %_2 | R22: %_3 | S22: %_4 | T22: %_5 | U22: %_6
A23: 11 | B23: 2937 | C23: 11 | D23: 2950 | E23: 11 | F23: 2987 | K23: 0 | L23: 111 | O23: target sequence | P23: =$G$3 -> 111 | Q23: =$G$3 -> 111 | R23: =$G$3 -> 111 | S23: =$G$3 -> 111 | T23: =$G$3 -> 111 | U23: =$G$3 -> 111
A24: 11 | B24: 3173 | C24: 11 | D24: 3202 | E24: 11 | F24: 3224 | K24: 0 | L24: 111 | O24: total reinforcement | P24: =U7 -> 6 | Q24: =Z7 -> 7 | R24: =AE7 -> 6 | S24: =AJ7 -> 7 | T24: =AO7 -> 7 | U24: =AT7 -> 7
A25: 11 | B25: 3321 | C25: 11 | D25: 3335 | E25: 11 | F25: 3359 | K25: 0 | L25: 111 | O25: % target
A26: 11 | B26: 3481 | C26: 11 | D26: 3497 | E26: 11 | F26: 3514 | K26: 0 | L26: 111 | O26: CCRF
A27: 11 | B27: 3635 | C27: 11 | D27: 3662 | E27: 11 | F27: 3697 | K27: 0 | L27: 111 | O27: % CCRf
A28: 11 | B28: 3915 | C28: 11 | D28: 3951 | E28: 11 | F28: 3978 | K28: 0 | L28: 111 | O28: average response rate | P28: =F13/P20 -> 159.5714286 | Q28: =(F20-F13)/Q20 -> 191.4285714 | R28: =(F26-F20)/R20 -> 176.1666667 | S28: =(F33-F26)/S20 -> 219.8571429 | T28: =(F40-F33)/T20 -> 186.8571429 | U28: =(F47-F40)/U20 -> 199.7142857
A29: 11 | B29: 4146 | C29: 11 | D29: 4165 | E29: 11 | F29: 4187 | K29: 0 | L29: 111
A30: 11 | B30: 4324 | C30: 11 | D30: 4345 | E30: 11 | F30: 4363 | K30: 0 | L30: 111
A31: 11 | B31: 4498 | C31: 11 | D31: 4542 | E31: 11 | F31: 4582 | K31: 0 | L31: 111
A32: 11 | B32: 4706 | C32: 11 | D32: 4772 | E32: 11 | F32: 4789 | K32: 0 | L32: 111
A33: 11 | B33: 5019 | C33: 11 | D33: 5036 | E33: 11 | F33: 5053 | K33: 0 | L33: 111
A34: 11 | B34: 5220 | C34: 11 | D34: 5248 | E34: 11 | F34: 5267 | K34: 0 | L34: 111
A35: 11 | B35: 5446 | C35: 11 | D35: 5463 | E35: 11 | F35: 5480 | K35: 0 | L35: 111
A36: 11 | B36: 5631 | C36: 11 | D36: 5646 | E36: 11 | F36: 5663 | K36: 0 | L36: 111
A37: 11 | B37: 5817 | C37: 11 | D37: 5833 | E37: 11 | F37: 5853 | K37: 0 | L37: 111
A38: 11 | B38: 6014 | C38: 11 | D38: 6029 | E38: 11 | F38: 6050 | K38: 0 | L38: 111
A39: 11 | B39: 6192 | C39: 11 | D39: 6210 | E39: 11 | F39: 6226 | K39: 0 | L39: 111
A40: 11 | B40: 6318 | C40: 11 | D40: 6341 | E40: 11 | F40: 6361 | K40: 0 | L40: 111
A41: 11 | B41: 6492 | C41: 11 | D41: 6507 | E41: 11 | F41: 6533 | K41: 0 | L41: 111
A42: 11 | B42: 6669 | C42: 11 | D42: 6685 | E42: 11 | F42: 6710 | K42: 0 | L42: 111
A43: 11 | B43: 6933 | C43: 11 | D43: 6947 | E43: 11 | F43: 6962 | K43: 0 | L43: 111
A44: 11 | B44: 7107 | C44: 11 | D44: 7122 | E44: 11 | F44: 7138 | K44: 0 | L44: 111
A45: 11 | B45: 7347 | C45: 11 | D45: 7362 | E45: 11 | F45: 7379 | K45: 0 | L45: 111
A46: 11 | B46: 7517 | C46: 11 | D46: 7546 | E46: 11 | F46: 7568 | K46: 0 | L46: 111
A47: 11 | B47: 7724 | C47: 11 | D47: 7742 | E47: 11 | F47: 7759 | K47: 1 | L47: 111

Sheet !N20192B.AXT
A1: Report for:!N20192B.AXT
A2: Date: | B2: <date>
A3: Hen: | B3: <hen> | F3: Correct Sequence | G3: =Start!J2 -> 111 | P3: Total Sequences in Data | Q3: =4994-COUNTBLANK(L7:L5000) -> 45 | V3: Total Sequences in Block Data | W3: =COUNTA(L7:L14) -> 8 | AA3: Total Sequences in Block Data | AB3: =COUNTA(L15:L21) -> 7 | AF3: Total Sequences in Block Data | AG3: =COUNTA(L22:L29) -> 8 | AK3: Total Sequences in Block Data | AL3: =COUNTA(L30:L36) -> 7 | AP3: Total Sequences in Block Data | AQ3: =COUNTA(L37:L44) -> 8 | AU3: Total Sequences in Block Data | AV3: =COUNTA(L45:L51) -> 7
P4: Total Sequences in Summary | Q4: =SUM(O7:O14) -> 45 | V4: Total Sequences in Block Summary | W4: =SUM(U7:U14) -> 8 | AA4: Total Sequences in Block Summary | AB4: =SUM(Z7:Z14) -> 7 | AF4: Total Sequences in Block Summary | AG4: =SUM(AE7:AE14) -> 8 | AK4: Total Sequences in Block Summary | AL4: =SUM(AJ7:AJ14) -> 7 | AP4: Total Sequences in Block Summary | AQ4: =SUM(AO7:AO14) -> 8 | AU4: Total Sequences in Block Summary | AV4: =SUM(AT7:AT14) -> 7
T5: Block 1 | Y5: Block 2 | AD5: Block 3 | AI5: Block 4 | AN5: Block 5 | AS5: Block 6
A6: Sequence Component 1 | B6: Time 1 | C6: Sequence Component 2 | D6: Time 2 | E6: Sequence Component 3 | F6: Time 3 | G6: Sequence Component 4 | H6: Time 4 | I6: Sequence Component 5 | J6: Time 5 | K6: Correct? 0=No 1=Yes | L6: Sequence | N6: Frequency | P6: Relative Frequency | Q6: Variability | T6: Frequency | V6: Relative Frequency | W6: Variability | Y6: Frequency | AA6: Relative Frequency | AB6: Variability | AD6: Frequency | AF6: Relative Frequency | AG6: Variability | AI6: Frequency | AK6: Relative Frequency | AL6: Variability | AN6: Frequency | AP6: Relative Frequency | AQ6: Variability | AS6: Frequency | AU6: Relative Frequency | AV6: Variability
A7: 11 | B7: 22 | C7: 22 | D7: 33 | E7: 13 | F7: 47 | K7: 0 | L7: 121 | N7: 111 | O7: =COUNTIF($L$7:$L$500,N7) -> 40 | P7: =O7/$Q$4 -> 0.8888888889 | Q7: =IF(P7=0,0,(P7*((LOG(P7))/LOG(2)))) -> -0.1510444457 | T7: =N7 -> 111 | U7: =COUNTIF(L7:L14,T7) -> 5 | Y7: =N7 -> 111 | Z7: =COUNTIF(L15:L21,Y7) -> 7 | AD7: =N7 -> 111 | AE7: =COUNTIF(L22:L29,AD7) -> 8 | AI7: =N7 -> 111 | AJ7: =COUNTIF(L30:L36,AI7) -> 7 | AN7: =N7 -> 111 | AO7: =COUNTIF(L37:L44,AN7) -> 6 | AS7: =N7 -> 111 | AT7: =COUNTIF(L45:L51,AS7) -> 7
A8: 11 | B8: 140 | C8: 11 | D8: 144 | E8: 11 | F8: 157 | K8: 0 | L8: 111 | N8: 112 | O8: =COUNTIF($L$7:$L$500,N8) -> 0 | P8: =O8/$Q$4 -> 0 | Q8: =IF(P8=0,0,(P8*((LOG(P8))/LOG(2)))) -> 0 | T8: =N8 -> 112 | U8: =COUNTIF(L7:L14,T8) -> 0 | V8: =U8/(W4-U7) -> 0 | W8: =IF(V8=0,0,(V8*((LOG(V8))/LOG(2)))) -> 0 | Y8: =N8 -> 112 | Z8: =COUNTIF(L15:L21,Y8) -> 0 | AA8: =Z8/(AB4-Z7) ->  | AB8: =IF(AA8=0,0,(AA8*((LOG(AA8))/LOG(2)))) ->  | AD8: =N8 -> 112 | AE8: =COUNTIF(L22:L29,AD8) -> 0 | AF8: =AE8/(AG4-AE7) ->  | AG8: =IF(AF8=0,0,(AF8*((LOG(AF8))/LOG(2)))) ->  | AI8: =N8 -> 112 | AJ8: =COUNTIF(L30:L36,AI8) -> 0 | AK8: =AJ8/(AL4-AJ7) ->  | AL8: =IF(AK8=0,0,(AK8*((LOG(AK8))/LOG(2)))) ->  | AN8: =N8 -> 112 | AO8: =COUNTIF(L37:L44,AN8) -> 0 | AP8: =AO8/(AQ4-AO7) -> 0 | AQ8: =IF(AP8=0,0,(AP8*((LOG(AP8))/LOG(2)))) -> 0 | AS8: =N8 -> 112 | AT8: =COUNTIF(L45:L51,AS8) -> 0 | AU8: =AT8/(AV4-AT7) ->  | AV8: =IF(AU8=0,0,(AU8*((LOG(AU8))/LOG(2)))) -> 
A9: 11 | B9: 280 | C9: 11 | D9: 295 | E9: 11 | F9: 315 | K9: 0 | L9: 111 | N9: 121 | O9: =COUNTIF($L$7:$L$500,N9) -> 1 | P9: =O9/$Q$4 -> 0.02222222222 | Q9: =IF(P9=0,0,(P9*((LOG(P9))/LOG(2)))) -> -0.1220411799 | T9: =N9 -> 121 | U9: =COUNTIF(L7:L14,T9) -> 1 | V9: =U9/(W4-U7) -> 0.3333333333 | W9: =IF(V9=0,0,(V9*((LOG(V9))/LOG(2)))) -> -0.5283208336 | Y9: =N9 -> 121 | Z9: =COUNTIF(L15:L21,Y9) -> 0 | AA9: =Z9/(AB4-Z7) ->  | AB9: =IF(AA9=0,0,(AA9*((LOG(AA9))/LOG(2)))) ->  | AD9: =N9 -> 121 | AE9: =COUNTIF(L22:L29,AD9) -> 0 | AF9: =AE9/(AG4-AE7) ->  | AG9: =IF(AF9=0,0,(AF9*((LOG(AF9))/LOG(2)))) ->  | AI9: =N9 -> 121 | AJ9: =COUNTIF(L30:L36,AI9) -> 0 | AK9: =AJ9/(AL4-AJ7) ->  | AL9: =IF(AK9=0,0,(AK9*((LOG(AK9))/LOG(2)))) ->  | AN9: =N9 -> 121 | AO9: =COUNTIF(L37:L44,AN9) -> 0 | AP9: =AO9/(AQ4-AO7) -> 0 | AQ9: =IF(AP9=0,0,(AP9*((LOG(AP9))/LOG(2)))) -> 0 | AS9: =N9 -> 121 | AT9: =COUNTIF(L45:L51,AS9) -> 0 | AU9: =AT9/(AV4-AT7) ->  | AV9: =IF(AU9=0,0,(AU9*((LOG(AU9))/LOG(2)))) -> 
A10: 22 | B10: 438 | C10: 13 | D10: 468 | E10: 13 | F10: 488 | K10: 0 | L10: 211 | N10: 122 | O10: =COUNTIF($L$7:$L$500,N10) -> 0 | P10: =O10/$Q$4 -> 0 | Q10: =IF(P10=0,0,(P10*((LOG(P10))/LOG(2)))) -> 0 | T10: =N10 -> 122 | U10: =COUNTIF(L7:L14,T10) -> 0 | V10: =U10/(W4-U7) -> 0 | W10: =IF(V10=0,0,(V10*((LOG(V10))/LOG(2)))) -> 0 | Y10: =N10 -> 122 | Z10: =COUNTIF(L15:L21,Y10) -> 0 | AA10: =Z10/(AB4-Z7) ->  | AB10: =IF(AA10=0,0,(AA10*((LOG(AA10))/LOG(2)))) ->  | AD10: =N10 -> 122 | AE10: =COUNTIF(L22:L29,AD10) -> 0 | AF10: =AE10/(AG4-AE7) ->  | AG10: =IF(AF10=0,0,(AF10*((LOG(AF10))/LOG(2)))) ->  | AI10: =N10 -> 122 | AJ10: =COUNTIF(L30:L36,AI10) -> 0 | AK10: =AJ10/(AL4-AJ7) ->  | AL10: =IF(AK10=0,0,(AK10*((LOG(AK10))/LOG(2)))) ->  | AN10: =N10 -> 122 | AO10: =COUNTIF(L37:L44,AN10) -> 0 | AP10: =AO10/(AQ4-AO7) -> 0 | AQ10: =IF(AP10=0,0,(AP10*((LOG(AP10))/LOG(2)))) -> 0 | AS10: =N10 -> 122 | AT10: =COUNTIF(L45:L51,AS10) -> 0 | AU10: =AT10/(AV4-AT7) ->  | AV10: =IF(AU10=0,0,(AU10*((LOG(AU10))/LOG(2)))) -> 
A11: 11 | B11: 596 | C11: 11 | D11: 603 | E11: 11 | F11: 605 | K11: 0 | L11: 111 | N11: 211 | O11: =COUNTIF($L$7:$L$500,N11) -> 3 | P11: =O11/$Q$4 -> 0.06666666667 | Q11: =IF(P11=0,0,(P11*((LOG(P11))/LOG(2)))) -> -0.260459373 | T11: =N11 -> 211 | U11: =COUNTIF(L7:L14,T11) -> 2 | V11: =U11/(W4-U7) -> 0.6666666667 | W11: =IF(V11=0,0,(V11*((LOG(V11))/LOG(2)))) -> -0.3899750005 | Y11: =N11 -> 211 | Z11: =COUNTIF(L15:L21,Y11) -> 0 | AA11: =Z11/(AB4-Z7) ->  | AB11: =IF(AA11=0,0,(AA11*((LOG(AA11))/LOG(2)))) ->  | AD11: =N11 -> 211 | AE11: =COUNTIF(L22:L29,AD11) -> 0 | AF11: =AE11/(AG4-AE7) ->  | AG11: =IF(AF11=0,0,(AF11*((LOG(AF11))/LOG(2)))) ->  | AI11: =N11 -> 211 | AJ11: =COUNTIF(L30:L36,AI11) -> 0 | AK11: =AJ11/(AL4-AJ7) ->  | AL11: =IF(AK11=0,0,(AK11*((LOG(AK11))/LOG(2)))) ->  | AN11: =N11 -> 211 | AO11: =COUNTIF(L37:L44,AN11) -> 1 | AP11: =AO11/(AQ4-AO7) -> 0.5 | AQ11: =IF(AP11=0,0,(AP11*((LOG(AP11))/LOG(2)))) -> -0.5 | AS11: =N11 -> 211 | AT11: =COUNTIF(L45:L51,AS11) -> 0 | AU11: =AT11/(AV4-AT7) ->  | AV11: =IF(AU11=0,0,(AU11*((LOG(AU11))/LOG(2)))) -> 
A12: 11 | B12: 693 | C12: 11 | D12: 709 | E12: 11 | F12: 722 | K12: 0 | L12: 111 | N12: 212 | O12: =COUNTIF($L$7:$L$500,N12) -> 1 | P12: =O12/$Q$4 -> 0.02222222222 | Q12: =IF(P12=0,0,(P12*((LOG(P12))/LOG(2)))) -> -0.1220411799 | T12: =N12 -> 212 | U12: =COUNTIF(L7:L14,T12) -> 0 | V12: =U12/(W4-U7) -> 0 | W12: =IF(V12=0,0,(V12*((LOG(V12))/LOG(2)))) -> 0 | Y12: =N12 -> 212 | Z12: =COUNTIF(L15:L21,Y12) -> 0 | AA12: =Z12/(AB4-Z7) ->  | AB12: =IF(AA12=0,0,(AA12*((LOG(AA12))/LOG(2)))) ->  | AD12: =N12 -> 212 | AE12: =COUNTIF(L22:L29,AD12) -> 0 | AF12: =AE12/(AG4-AE7) ->  | AG12: =IF(AF12=0,0,(AF12*((LOG(AF12))/LOG(2)))) ->  | AI12: =N12 -> 212 | AJ12: =COUNTIF(L30:L36,AI12) -> 0 | AK12: =AJ12/(AL4-AJ7) ->  | AL12: =IF(AK12=0,0,(AK12*((LOG(AK12))/LOG(2)))) ->  | AN12: =N12 -> 212 | AO12: =COUNTIF(L37:L44,AN12) -> 1 | AP12: =AO12/(AQ4-AO7) -> 0.5 | AQ12: =IF(AP12=0,0,(AP12*((LOG(AP12))/LOG(2)))) -> -0.5 | AS12: =N12 -> 212 | AT12: =COUNTIF(L45:L51,AS12) -> 0 | AU12: =AT12/(AV4-AT7) ->  | AV12: =IF(AU12=0,0,(AU12*((LOG(AU12))/LOG(2)))) -> 
A13: 22 | B13: 867 | C13: 13 | D13: 873 | E13: 13 | F13: 885 | K13: 0 | L13: 211 | N13: 221 | O13: =COUNTIF($L$7:$L$500,N13) -> 0 | P13: =O13/$Q$4 -> 0 | Q13: =IF(P13=0,0,(P13*((LOG(P13))/LOG(2)))) -> 0 | T13: =N13 -> 221 | U13: =COUNTIF(L7:L14,T13) -> 0 | V13: =U13/(W4-U7) -> 0 | W13: =IF(V13=0,0,(V13*((LOG(V13))/LOG(2)))) -> 0 | Y13: =N13 -> 221 | Z13: =COUNTIF(L15:L21,Y13) -> 0 | AA13: =Z13/(AB4-Z7) ->  | AB13: =IF(AA13=0,0,(AA13*((LOG(AA13))/LOG(2)))) ->  | AD13: =N13 -> 221 | AE13: =COUNTIF(L22:L29,AD13) -> 0 | AF13: =AE13/(AG4-AE7) ->  | AG13: =IF(AF13=0,0,(AF13*((LOG(AF13))/LOG(2)))) ->  | AI13: =N13 -> 221 | AJ13: =COUNTIF(L30:L36,AI13) -> 0 | AK13: =AJ13/(AL4-AJ7) ->  | AL13: =IF(AK13=0,0,(AK13*((LOG(AK13))/LOG(2)))) ->  | AN13: =N13 -> 221 | AO13: =COUNTIF(L37:L44,AN13) -> 0 | AP13: =AO13/(AQ4-AO7) -> 0 | AQ13: =IF(AP13=0,0,(AP13*((LOG(AP13))/LOG(2)))) -> 0 | AS13: =N13 -> 221 | AT13: =COUNTIF(L45:L51,AS13) -> 0 | AU13: =AT13/(AV4-AT7) ->  | AV13: =IF(AU13=0,0,(AU13*((LOG(AU13))/LOG(2)))) -> 
A14: 11 | B14: 1103 | C14: 11 | D14: 1110 | E14: 11 | F14: 1119 | K14: 0 | L14: 111 | N14: 222 | O14: =COUNTIF($L$7:$L$500,N14) -> 0 | P14: =O14/$Q$4 -> 0 | Q14: =IF(P14=0,0,(P14*((LOG(P14))/LOG(2)))) -> 0 | T14: =N14 -> 222 | U14: =COUNTIF(L7:L14,T14) -> 0 | V14: =U14/(W4-U7) -> 0 | W14: =IF(V14=0,0,(V14*((LOG(V14))/LOG(2)))) -> 0 | Y14: =N14 -> 222 | Z14: =COUNTIF(L15:L21,Y14) -> 0 | AA14: =Z14/(AB4-Z7) ->  | AB14: =IF(AA14=0,0,(AA14*((LOG(AA14))/LOG(2)))) ->  | AD14: =N14 -> 222 | AE14: =COUNTIF(L22:L29,AD14) -> 0 | AF14: =AE14/(AG4-AE7) ->  | AG14: =IF(AF14=0,0,(AF14*((LOG(AF14))/LOG(2)))) ->  | AI14: =N14 -> 222 | AJ14: =COUNTIF(L30:L36,AI14) -> 0 | AK14: =AJ14/(AL4-AJ7) ->  | AL14: =IF(AK14=0,0,(AK14*((LOG(AK14))/LOG(2)))) ->  | AN14: =N14 -> 222 | AO14: =COUNTIF(L37:L44,AN14) -> 0 | AP14: =AO14/(AQ4-AO7) -> 0 | AQ14: =IF(AP14=0,0,(AP14*((LOG(AP14))/LOG(2)))) -> 0 | AS14: =N14 -> 222 | AT14: =COUNTIF(L45:L51,AS14) -> 0 | AU14: =AT14/(AV4-AT7) ->  | AV14: =IF(AU14=0,0,(AU14*((LOG(AU14))/LOG(2)))) -> 
A15: 11 | B15: 1209 | C15: 11 | D15: 1225 | E15: 11 | F15: 1241 | K15: 0 | L15: 111 | P15: =SUM(P7:P14) -> 1 | Q15: =-SUM(Q7:Q14) -> 0.6555861786 | V15: =SUM(V7:V14) -> 1 | W15: =-SUM(W7:W14) -> 0.9182958341 | AA15: =SUM(AA7:AA14) ->  | AB15: =-SUM(AB7:AB14) ->  | AF15: =SUM(AF7:AF14) ->  | AG15: =-SUM(AG7:AG14) ->  | AK15: =SUM(AK7:AK14) ->  | AL15: =-SUM(AL7:AL14) ->  | AP15: =SUM(AP7:AP14) -> 1 | AQ15: =-SUM(AQ7:AQ14) -> 1 | AU15: =SUM(AU7:AU14) ->  | AV15: =-SUM(AV7:AV14) -> 
A16: 11 | B16: 1332 | C16: 11 | D16: 1358 | E16: 11 | F16: 1372 | K16: 0 | L16: 111 | P16: U= | Q16: =Q15/(LOG(Q4)/LOG(2)) -> 0.1193743108 | V16: U1= | W16: =W15/(LOG(W4)/LOG(2)) -> 0.3060986114 | AA16: U2= | AB16: =AB15/(LOG(AB4)/LOG(2)) ->  | AF16: U3= | AG16: =AG15/(LOG(AG4)/LOG(2)) ->  | AK16: U4= | AL16: =AL15/(LOG(AL4)/LOG(2)) ->  | AP16: U5= | AQ16: =AQ15/(LOG(AQ4)/LOG(2)) -> 0.3333333333 | AU16: U6= | AV16: =AV15/(LOG(AV4)/LOG(2)) -> 
A17: 11 | B17: 1486 | C17: 11 | D17: 1525 | E17: 11 | F17: 1553 | K17: 0 | L17: 111
A18: 11 | B18: 1646 | C18: 11 | D18: 1674 | E18: 11 | F18: 1688 | K18: 0 | L18: 111
A19: 11 | B19: 1837 | C19: 11 | D19: 1856 | E19: 11 | F19: 1897 | K19: 0 | L19: 111 | N19: Total Target Seq
A20: 11 | B20: 1999 | C20: 11 | D20: 2017 | E20: 11 | F20: 2067 | K20: 0 | L20: 111 | N20: =COUNTIF(L7:L51,G3) -> 40 | P20: 8 | Q20: 7 | R20: 8 | S20: 7 | T20: 8 | U20: 7
A21: 11 | B21: 2183 | C21: 11 | D21: 2204 | E21: 11 | F21: 2225 | K21: 0 | L21: 111 | P21: % of reinforcement given in 6 equal intervals based on number of trials
A22: 11 | B22: 2333 | C22: 11 | D22: 2348 | E22: 11 | F22: 2371 | K22: 0 | L22: 111 | P22: %_1 | Q22: %_2 | R22: %_3 | S22: %_4 | T22: %_5 | U22: %_6
A23: 11 | B23: 2464 | C23: 11 | D23: 2484 | E23: 11 | F23: 2503 | K23: 0 | L23: 111 | O23: target sequence | P23: =$G$3 -> 111 | Q23: =$G$3 -> 111 | R23: =$G$3 -> 111 | S23: =$G$3 -> 111 | T23: =$G$3 -> 111 | U23: =$G$3 -> 111
A24: 11 | B24: 2706 | C24: 11 | D24: 2725 | E24: 11 | F24: 2744 | K24: 0 | L24: 111 | O24: total reinforcement | P24: =U7 -> 5 | Q24: =Z7 -> 7 | R24: =AE7 -> 8 | S24: =AJ7 -> 7 | T24: =AO7 -> 6 | U24: =AT7 -> 7
A25: 11 | B25: 2840 | C25: 11 | D25: 2852 | E25: 11 | F25: 2869 | K25: 0 | L25: 111 | O25: % target
A26: 11 | B26: 2970 | C26: 11 | D26: 2979 | E26: 11 | F26: 2997 | K26: 0 | L26: 111 | O26: CCRF
A27: 11 | B27: 3137 | C27: 11 | D27: 3175 | E27: 11 | F27: 3193 | K27: 0 | L27: 111 | O27: % CCRf
A28: 11 | B28: 3308 | C28: 11 | D28: 3320 | E28: 11 | F28: 3337 | K28: 0 | L28: 111 | O28: average response rate | P28: =F14/P20 -> 139.875 | Q28: =(F21-F14)/Q20 -> 158 | R28: =(F29-F21)/R20 -> 156.75 | S28: =(F36-F29)/S20 -> 204 | T28: =(F44-F36)/T20 -> 170.875 | U28: =(F51-F44)/U20 -> 199.1428571
A29: 11 | B29: 3449 | C29: 11 | D29: 3462 | E29: 11 | F29: 3479 | K29: 0 | L29: 111
A30: 11 | B30: 3592 | C30: 11 | D30: 3612 | E30: 11 | F30: 3630 | K30: 0 | L30: 111
A31: 11 | B31: 3766 | C31: 11 | D31: 3788 | E31: 11 | F31: 3815 | K31: 0 | L31: 111
A32: 11 | B32: 3991 | C32: 11 | D32: 4022 | E32: 11 | F32: 4061 | K32: 0 | L32: 111
A33: 11 | B33: 4261 | C33: 11 | D33: 4282 | E33: 11 | F33: 4298 | K33: 0 | L33: 111
A34: 11 | B34: 4394 | C34: 11 | D34: 4407 | E34: 11 | F34: 4484 | K34: 0 | L34: 111
A35: 11 | B35: 4662 | C35: 11 | D35: 4679 | E35: 11 | F35: 4700 | K35: 0 | L35: 111
A36: 11 | B36: 4870 | C36: 11 | D36: 4889 | E36: 11 | F36: 4907 | K36: 0 | L36: 111
A37: 11 | B37: 5032 | C37: 11 | D37: 5062 | E37: 11 | F37: 5092 | K37: 0 | L37: 111
A38: 11 | B38: 5218 | C38: 11 | D38: 5238 | E38: 11 | F38: 5259 | K38: 0 | L38: 111
A39: 11 | B39: 5374 | C39: 11 | D39: 5385 | E39: 11 | F39: 5441 | K39: 0 | L39: 111
A40: 11 | B40: 5580 | C40: 11 | D40: 5602 | E40: 11 | F40: 5620 | K40: 0 | L40: 111
A41: 11 | B41: 5745 | C41: 11 | D41: 5760 | E41: 11 | F41: 5778 | K41: 0 | L41: 111
A42: 22 | B42: 5948 | C42: 13 | D42: 5981 | E42: 13 | F42: 5987 | K42: 0 | L42: 211
A43: 11 | B43: 6139 | C43: 11 | D43: 6157 | E43: 11 | F43: 6172 | K43: 0 | L43: 111
A44: 22 | B44: 6270 | C44: 13 | D44: 6272 | E44: 24 | F44: 6274 | K44: 0 | L44: 212
A45: 11 | B45: 6479 | C45: 11 | D45: 6494 | E45: 11 | F45: 6510 | K45: 0 | L45: 111
A46: 11 | B46: 6650 | C46: 11 | D46: 6667 | E46: 11 | F46: 6686 | K46: 0 | L46: 111
A47: 11 | B47: 6827 | C47: 11 | D47: 6842 | E47: 11 | F47: 6861 | K47: 0 | L47: 111
A48: 11 | B48: 7038 | C48: 11 | D48: 7059 | E48: 11 | F48: 7077 | K48: 0 | L48: 111
A49: 11 | B49: 7216 | C49: 11 | D49: 7249 | E49: 11 | F49: 7273 | K49: 0 | L49: 111
A50: 11 | B50: 7388 | C50: 11 | D50: 7405 | E50: 11 | F50: 7423 | K50: 0 | L50: 111
A51: 11 | B51: 7615 | C51: 11 | D51: 7633 | E51: 11 | F51: 7668 | K51: 1 | L51: 111

Sheet !N202B0B.AXT
A1: Report for:!N202B0B.AXT
A2: Date: | B2: <date>
A3: Hen: | B3: <hen> | F3: Correct Sequence | G3: =Start!J2 -> 111 | P3: Total Sequences in Data | Q3: =4994-COUNTBLANK(L7:L5000) -> 40 | V3: Total Sequences in Block Data | W3: =COUNTA(L7:L13) -> 7 | AA3: Total Sequences in Block Data | AB3: =COUNTA(L14:L19) -> 6 | AF3: Total Sequences in Block Data | AG3: =COUNTA(L20:L26) -> 7 | AK3: Total Sequences in Block Data | AL3: =COUNTA(L27:L33) -> 7 | AP3: Total Sequences in Block Data | AQ3: =COUNTA(L34:L39) -> 6 | AU3: Total Sequences in Block Data | AV3: =COUNTA(L40:L46) -> 7
P4: Total Sequences in Summary | Q4: =SUM(O7:O14) -> 40 | V4: Total Sequences in Block Summary | W4: =SUM(U7:U14) -> 7 | AA4: Total Sequences in Block Summary | AB4: =SUM(Z7:Z14) -> 6 | AF4: Total Sequences in Block Summary | AG4: =SUM(AE7:AE14) -> 7 | AK4: Total Sequences in Block Summary | AL4: =SUM(AJ7:AJ14) -> 7 | AP4: Total Sequences in Block Summary | AQ4: =SUM(AO7:AO14) -> 6 | AU4: Total Sequences in Block Summary | AV4: =SUM(AT7:AT14) -> 7
T5: Block 1 | Y5: Block 2 | AD5: Block 3 | AI5: Block 4 | AN5: Block 5 | AS5: Block 6
A6: Sequence Component 1 | B6: Time 1 | C6: Sequence Component 2 | D6: Time 2 | E6: Sequence Component 3 | F6: Time 3 | G6: Sequence Component 4 | H6: Time 4 | I6: Sequence Component 5 | J6: Time 5 | K6: Correct? 0=No 1=Yes | L6: Sequence | N6: Frequency | P6: Relative Frequency | Q6: Variability | T6: Frequency | V6: Relative Frequency | W6: Variability | Y6: Frequency | AA6: Relative Frequency | AB6: Variability | AD6: Frequency | AF6: Relative Frequency | AG6: Variability | AI6: Frequency | AK6: Relative Frequency | AL6: Variability | AN6: Frequency | AP6: Relative Frequency | AQ6: Variability | AS6: Frequency | AU6: Relative Frequency | AV6: Variability
A7: 11 | B7: 721 | C7: 11 | D7: 737 | E7: 11 | F7: 752 | K7: 0 | L7: 111 | N7: 111 | O7: =COUNTIF($L$7:$L$500,N7) -> 40 | P7: =O7/$Q$4 -> 1 | Q7: =IF(P7=0,0,(P7*((LOG(P7))/LOG(2)))) -> 0 | T7: =N7 -> 111 | U7: =COUNTIF(L7:L13,T7) -> 7 | Y7: =N7 -> 111 | Z7: =COUNTIF(L14:L19,Y7) -> 6 | AD7: =N7 -> 111 | AE7: =COUNTIF(L20:L26,AD7) -> 7 | AI7: =N7 -> 111 | AJ7: =COUNTIF(L27:L33,AI7) -> 7 | AN7: =N7 -> 111 | AO7: =COUNTIF(L34:L39,AN7) -> 6 | AS7: =N7 -> 111 | AT7: =COUNTIF(L40:L46,AS7) -> 7
A8: 11 | B8: 994 | C8: 11 | D8: 1017 | E8: 11 | F8: 1083 | K8: 0 | L8: 111 | N8: 112 | O8: =COUNTIF($L$7:$L$500,N8) -> 0 | P8: =O8/$Q$4 -> 0 | Q8: =IF(P8=0,0,(P8*((LOG(P8))/LOG(2)))) -> 0 | T8: =N8 -> 112 | U8: =COUNTIF(L7:L13,T8) -> 0 | V8: =U8/(W4-U7) ->  | W8: =IF(V8=0,0,(V8*((LOG(V8))/LOG(2)))) ->  | Y8: =N8 -> 112 | Z8: =COUNTIF(L14:L19,Y8) -> 0 | AA8: =Z8/(AB4-Z7) ->  | AB8: =IF(AA8=0,0,(AA8*((LOG(AA8))/LOG(2)))) ->  | AD8: =N8 -> 112 | AE8: =COUNTIF(L20:L26,AD8) -> 0 | AF8: =AE8/(AG4-AE7) ->  | AG8: =IF(AF8=0,0,(AF8*((LOG(AF8))/LOG(2)))) ->  | AI8: =N8 -> 112 | AJ8: =COUNTIF(L27:L33,AI8) -> 0 | AK8: =AJ8/(AL4-AJ7) ->  | AL8: =IF(AK8=0,0,(AK8*((LOG(AK8))/LOG(2)))) ->  | AN8: =N8 -> 112 | AO8: =COUNTIF(L34:L39,AN8) -> 0 | AP8: =AO8/(AQ4-AO7) ->  | AQ8: =IF(AP8=0,0,(AP8*((LOG(AP8))/LOG(2)))) ->  | AS8: =N8 -> 112 | AT8: =COUNTIF(L40:L46,AS8) -> 0 | AU8: =AT8/(AV4-AT7) ->  | AV8: =IF(AU8=0,0,(AU8*((LOG(AU8))/LOG(2)))) -> 
A9: 11 | B9: 1450 | C9: 11 | D9: 1486 | E9: 11 | F9: 1500 | K9: 0 | L9: 111 | N9: 121 | O9: =COUNTIF($L$7:$L$500,N9) -> 0 | P9: =O9/$Q$4 -> 0 | Q9: =IF(P9=0,0,(P9*((LOG(P9))/LOG(2)))) -> 0 | T9: =N9 -> 121 | U9: =COUNTIF(L7:L13,T9) -> 0 | V9: =U9/(W4-U7) ->  | W9: =IF(V9=0,0,(V9*((LOG(V9))/LOG(2)))) ->  | Y9: =N9 -> 121 | Z9: =COUNTIF(L14:L19,Y9) -> 0 | AA9: =Z9/(AB4-Z7) ->  | AB9: =IF(AA9=0,0,(AA9*((LOG(AA9))/LOG(2)))) ->  | AD9: =N9 -> 121 | AE9: =COUNTIF(L20:L26,AD9) -> 0 | AF9: =AE9/(AG4-AE7) ->  | AG9: =IF(AF9=0,0,(AF9*((LOG(AF9))/LOG(2)))) ->  | AI9: =N9 -> 121 | AJ9: =COUNTIF(L27:L33,AI9) -> 0 | AK9: =AJ9/(AL4-AJ7) ->  | AL9: =IF(AK9=0,0,(AK9*((LOG(AK9))/LOG(2)))) ->  | AN9: =N9 -> 121 | AO9: =COUNTIF(L34:L39,AN9) -> 0 | AP9: =AO9/(AQ4-AO7) ->  | AQ9: =IF(AP9=0,0,(AP9*((LOG(AP9))/LOG(2)))) ->  | AS9: =N9 -> 121 | AT9: =COUNTIF(L40:L46,AS9) -> 0 | AU9: =AT9/(AV4-AT7) ->  | AV9: =IF(AU9=0,0,(AU9*((LOG(AU9))/LOG(2)))) -> 
A10: 11 | B10: 1680 | C10: 11 | D10: 1703 | E10: 11 | F10: 1732 | K10: 0 | L10: 111 | N10: 122 | O10: =COUNTIF($L$7:$L$500,N10) -> 0 | P10: =O10/$Q$4 -> 0 | Q10: =IF(P10=0,0,(P10*((LOG(P10))/LOG(2)))) -> 0 | T10: =N10 -> 122 | U10: =COUNTIF(L7:L13,T10) -> 0 | V10: =U10/(W4-U7) ->  | W10: =IF(V10=0,0,(V10*((LOG(V10))/LOG(2)))) ->  | Y10: =N10 -> 122 | Z10: =COUNTIF(L14:L19,Y10) -> 0 | AA10: =Z10/(AB4-Z7) ->  | AB10: =IF(AA10=0,0,(AA10*((LOG(AA10))/LOG(2)))) ->  | AD10: =N10 -> 122 | AE10: =COUNTIF(L20:L26,AD10) -> 0 | AF10: =AE10/(AG4-AE7) ->  | AG10: =IF(AF10=0,0,(AF10*((LOG(AF10))/LOG(2)))) ->  | AI10: =N10 -> 122 | AJ10: =COUNTIF(L27:L33,AI10) -> 0 | AK10: =AJ10/(AL4-AJ7) ->  | AL10: =IF(AK10=0,0,(AK10*((LOG(AK10))/LOG(2)))) ->  | AN10: =N10 -> 122 | AO10: =COUNTIF(L34:L39,AN10) -> 0 | AP10: =AO10/(AQ4-AO7) ->  | AQ10: =IF(AP10=0,0,(AP10*((LOG(AP10))/LOG(2)))) ->  | AS10: =N10 -> 122 | AT10: =COUNTIF(L40:L46,AS10) -> 0 | AU10: =AT10/(AV4-AT7) ->  | AV10: =IF(AU10=0,0,(AU10*((LOG(AU10))/LOG(2)))) -> 
A11: 11 | B11: 1871 | C11: 11 | D11: 1886 | E11: 11 | F11: 1902 | K11: 0 | L11: 111 | N11: 211 | O11: =COUNTIF($L$7:$L$500,N11) -> 0 | P11: =O11/$Q$4 -> 0 | Q11: =IF(P11=0,0,(P11*((LOG(P11))/LOG(2)))) -> 0 | T11: =N11 -> 211 | U11: =COUNTIF(L7:L13,T11) -> 0 | V11: =U11/(W4-U7) ->  | W11: =IF(V11=0,0,(V11*((LOG(V11))/LOG(2)))) ->  | Y11: =N11 -> 211 | Z11: =COUNTIF(L14:L19,Y11) -> 0 | AA11: =Z11/(AB4-Z7) ->  | AB11: =IF(AA11=0,0,(AA11*((LOG(AA11))/LOG(2)))) ->  | AD11: =N11 -> 211 | AE11: =COUNTIF(L20:L26,AD11) -> 0 | AF11: =AE11/(AG4-AE7) ->  | AG11: =IF(AF11=0,0,(AF11*((LOG(AF11))/LOG(2)))) ->  | AI11: =N11 -> 211 | AJ11: =COUNTIF(L27:L33,AI11) -> 0 | AK11: =AJ11/(AL4-AJ7) ->  | AL11: =IF(AK11=0,0,(AK11*((LOG(AK11))/LOG(2)))) ->  | AN11: =N11 -> 211 | AO11: =COUNTIF(L34:L39,AN11) -> 0 | AP11: =AO11/(AQ4-AO7) ->  | AQ11: =IF(AP11=0,0,(AP11*((LOG(AP11))/LOG(2)))) ->  | AS11: =N11 -> 211 | AT11: =COUNTIF(L40:L46,AS11) -> 0 | AU11: =AT11/(AV4-AT7) ->  | AV11: =IF(AU11=0,0,(AU11*((LOG(AU11))/LOG(2)))) -> 
A12: 11 | B12: 2092 | C12: 11 | D12: 2135 | E12: 11 | F12: 2153 | K12: 0 | L12: 111 | N12: 212 | O12: =COUNTIF($L$7:$L$500,N12) -> 0 | P12: =O12/$Q$4 -> 0 | Q12: =IF(P12=0,0,(P12*((LOG(P12))/LOG(2)))) -> 0 | T12: =N12 -> 212 | U12: =COUNTIF(L7:L13,T12) -> 0 | V12: =U12/(W4-U7) ->  | W12: =IF(V12=0,0,(V12*((LOG(V12))/LOG(2)))) ->  | Y12: =N12 -> 212 | Z12: =COUNTIF(L14:L19,Y12) -> 0 | AA12: =Z12/(AB4-Z7) ->  | AB12: =IF(AA12=0,0,(AA12*((LOG(AA12))/LOG(2)))) ->  | AD12: =N12 -> 212 | AE12: =COUNTIF(L20:L26,AD12) -> 0 | AF12: =AE12/(AG4-AE7) ->  | AG12: =IF(AF12=0,0,(AF12*((LOG(AF12))/LOG(2)))) ->  | AI12: =N12 -> 212 | AJ12: =COUNTIF(L27:L33,AI12) -> 0 | AK12: =AJ12/(AL4-AJ7) ->  | AL12: =IF(AK12=0,0,(AK12*((LOG(AK12))/LOG(2)))) ->  | AN12: =N12 -> 212 | AO12: =COUNTIF(L34:L39,AN12) -> 0 | AP12: =AO12/(AQ4-AO7) ->  | AQ12: =IF(AP12=0,0,(AP12*((LOG(AP12))/LOG(2)))) ->  | AS12: =N12 -> 212 | AT12: =COUNTIF(L40:L46,AS12) -> 0 | AU12: =AT12/(AV4-AT7) ->  | AV12: =IF(AU12=0,0,(AU12*((LOG(AU12))/LOG(2)))) -> 
A13: 11 | B13: 2288 | C13: 11 | D13: 2305 | E13: 11 | F13: 2324 | K13: 0 | L13: 111 | N13: 221 | O13: =COUNTIF($L$7:$L$500,N13) -> 0 | P13: =O13/$Q$4 -> 0 | Q13: =IF(P13=0,0,(P13*((LOG(P13))/LOG(2)))) -> 0 | T13: =N13 -> 221 | U13: =COUNTIF(L7:L13,T13) -> 0 | V13: =U13/(W4-U7) ->  | W13: =IF(V13=0,0,(V13*((LOG(V13))/LOG(2)))) ->  | Y13: =N13 -> 221 | Z13: =COUNTIF(L14:L19,Y13) -> 0 | AA13: =Z13/(AB4-Z7) ->  | AB13: =IF(AA13=0,0,(AA13*((LOG(AA13))/LOG(2)))) ->  | AD13: =N13 -> 221 | AE13: =COUNTIF(L20:L26,AD13) -> 0 | AF13: =AE13/(AG4-AE7) ->  | AG13: =IF(AF13=0,0,(AF13*((LOG(AF13))/LOG(2)))) ->  | AI13: =N13 -> 221 | AJ13: =COUNTIF(L27:L33,AI13) -> 0 | AK13: =AJ13/(AL4-AJ7) ->  | AL13: =IF(AK13=0,0,(AK13*((LOG(AK13))/LOG(2)))) ->  | AN13: =N13 -> 221 | AO13: =COUNTIF(L34:L39,AN13) -> 0 | AP13: =AO13/(AQ4-AO7) ->  | AQ13: =IF(AP13=0,0,(AP13*((LOG(AP13))/LOG(2)))) ->  | AS13: =N13 -> 221 | AT13: =COUNTIF(L40:L46,AS13) -> 0 | AU13: =AT13/(AV4-AT7) ->  | AV13: =IF(AU13=0,0,(AU13*((LOG(AU13))/LOG(2)))) -> 
A14: 11 | B14: 2466 | C14: 11 | D14: 2487 | E14: 11 | F14: 2506 | K14: 0 | L14: 111 | N14: 222 | O14: =COUNTIF($L$7:$L$500,N14) -> 0 | P14: =O14/$Q$4 -> 0 | Q14: =IF(P14=0,0,(P14*((LOG(P14))/LOG(2)))) -> 0 | T14: =N14 -> 222 | U14: =COUNTIF(L7:L13,T14) -> 0 | V14: =U14/(W4-U7) ->  | W14: =IF(V14=0,0,(V14*((LOG(V14))/LOG(2)))) ->  | Y14: =N14 -> 222 | Z14: =COUNTIF(L14:L19,Y14) -> 0 | AA14: =Z14/(AB4-Z7) ->  | AB14: =IF(AA14=0,0,(AA14*((LOG(AA14))/LOG(2)))) ->  | AD14: =N14 -> 222 | AE14: =COUNTIF(L20:L26,AD14) -> 0 | AF14: =AE14/(AG4-AE7) ->  | AG14: =IF(AF14=0,0,(AF14*((LOG(AF14))/LOG(2)))) ->  | AI14: =N14 -> 222 | AJ14: =COUNTIF(L27:L33,AI14) -> 0 | AK14: =AJ14/(AL4-AJ7) ->  | AL14: =IF(AK14=0,0,(AK14*((LOG(AK14))/LOG(2)))) ->  | AN14: =N14 -> 222 | AO14: =COUNTIF(L34:L39,AN14) -> 0 | AP14: =AO14/(AQ4-AO7) ->  | AQ14: =IF(AP14=0,0,(AP14*((LOG(AP14))/LOG(2)))) ->  | AS14: =N14 -> 222 | AT14: =COUNTIF(L40:L46,AS14) -> 0 | AU14: =AT14/(AV4-AT7) ->  | AV14: =IF(AU14=0,0,(AU14*((LOG(AU14))/LOG(2)))) -> 
A15: 11 | B15: 2666 | C15: 11 | D15: 2695 | E15: 11 | F15: 2713 | K15: 0 | L15: 111 | P15: =SUM(P7:P14) -> 1 | Q15: =-SUM(Q7:Q14) -> 0 | V15: =SUM(V7:V14) ->  | W15: =-SUM(W7:W14) ->  | AA15: =SUM(AA7:AA14) ->  | AB15: =-SUM(AB7:AB14) ->  | AF15: =SUM(AF7:AF14) ->  | AG15: =-SUM(AG7:AG14) ->  | AK15: =SUM(AK7:AK14) ->  | AL15: =-SUM(AL7:AL14) ->  | AP15: =SUM(AP7:AP14) ->  | AQ15: =-SUM(AQ7:AQ14) ->  | AU15: =SUM(AU7:AU14) ->  | AV15: =-SUM(AV7:AV14) -> 
A16: 11 | B16: 2912 | C16: 11 | D16: 2931 | E16: 11 | F16: 2963 | K16: 0 | L16: 111 | P16: U= | Q16: =Q15/(LOG(Q4)/LOG(2)) -> 0 | V16: U1= | W16: =W15/(LOG(W4)/LOG(2)) ->  | AA16: U2= | AB16: =AB15/(LOG(AB4)/LOG(2)) ->  | AF16: U3= | AG16: =AG15/(LOG(AG4)/LOG(2)) ->  | AK16: U4= | AL16: =AL15/(LOG(AL4)/LOG(2)) ->  | AP16: U5= | AQ16: =AQ15/(LOG(AQ4)/LOG(2)) ->  | AU16: U6= | AV16: =AV15/(LOG(AV4)/LOG(2)) -> 
A17: 11 | B17: 3130 | C17: 11 | D17: 3147 | E17: 11 | F17: 3163 | K17: 0 | L17: 111
A18: 11 | B18: 3281 | C18: 11 | D18: 3300 | E18: 11 | F18: 3304 | K18: 0 | L18: 111
A19: 11 | B19: 3681 | C19: 11 | D19: 3694 | E19: 11 | F19: 3706 | K19: 0 | L19: 111 | N19: Total Target Seq
A20: 11 | B20: 3830 | C20: 11 | D20: 3856 | E20: 11 | F20: 3889 | K20: 0 | L20: 111 | N20: =COUNTIF(L7:L46,G3) -> 40 | P20: 7 | Q20: 6 | R20: 7 | S20: 7 | T20: 6 | U20: 7
A21: 11 | B21: 4049 | C21: 11 | D21: 4071 | E21: 11 | F21: 4141 | K21: 0 | L21: 111 | P21: % of reinforcement given in 6 equal intervals based on number of trials
A22: 11 | B22: 4331 | C22: 11 | D22: 4348 | E22: 11 | F22: 4364 | K22: 0 | L22: 111 | P22: %_1 | Q22: %_2 | R22: %_3 | S22: %_4 | T22: %_5 | U22: %_6
A23: 11 | B23: 4709 | C23: 11 | D23: 4725 | E23: 11 | F23: 4746 | K23: 0 | L23: 111 | O23: target sequence | P23: =$G$3 -> 111 | Q23: =$G$3 -> 111 | R23: =$G$3 -> 111 | S23: =$G$3 -> 111 | T23: =$G$3 -> 111 | U23: =$G$3 -> 111
A24: 11 | B24: 4843 | C24: 11 | D24: 4864 | E24: 11 | F24: 4886 | K24: 0 | L24: 111 | O24: total reinforcement | P24: =U7 -> 7 | Q24: =Z7 -> 6 | R24: =AE7 -> 7 | S24: =AJ7 -> 7 | T24: =AO7 -> 6 | U24: =AT7 -> 7
A25: 11 | B25: 5099 | C25: 11 | D25: 5119 | E25: 11 | F25: 5146 | K25: 0 | L25: 111 | O25: % target
A26: 11 | B26: 5333 | C26: 11 | D26: 5348 | E26: 11 | F26: 5369 | K26: 0 | L26: 111 | O26: CCRF
A27: 11 | B27: 5647 | C27: 11 | D27: 5665 | E27: 11 | F27: 5681 | K27: 0 | L27: 111 | O27: % CCRf
A28: 11 | B28: 5804 | C28: 11 | D28: 5820 | E28: 11 | F28: 5845 | K28: 0 | L28: 111 | O28: average response rate | P28: =F13/P20 -> 332 | Q28: =(F19-F13)/Q20 -> 230.3333333 | R28: =(F26-F19)/R20 -> 237.5714286 | S28: =(F33-F26)/S20 -> 223.5714286 | T28: =(F39-F33)/T20 -> 185.6666667 | U28: =(F46-F39)/U20 -> 242.2857143
A29: 11 | B29: 5989 | C29: 11 | D29: 6004 | E29: 11 | F29: 6036 | K29: 0 | L29: 111
A30: 11 | B30: 6191 | C30: 11 | D30: 6212 | E30: 11 | F30: 6234 | K30: 0 | L30: 111
A31: 11 | B31: 6399 | C31: 11 | D31: 6429 | E31: 11 | F31: 6446 | K31: 0 | L31: 111
A32: 11 | B32: 6585 | C32: 11 | D32: 6603 | E32: 11 | F32: 6635 | K32: 0 | L32: 111
A33: 11 | B33: 6900 | C33: 11 | D33: 6916 | E33: 11 | F33: 6934 | K33: 0 | L33: 111
A34: 11 | B34: 7075 | C34: 11 | D34: 7091 | E34: 11 | F34: 7108 | K34: 0 | L34: 111
A35: 11 | B35: 7293 | C35: 11 | D35: 7312 | E35: 11 | F35: 7326 | K35: 0 | L35: 111
A36: 11 | B36: 7491 | C36: 11 | D36: 7510 | E36: 11 | F36: 7527 | K36: 0 | L36: 111
A37: 11 | B37: 7654 | C37: 11 | D37: 7671 | E37: 11 | F37: 7688 | K37: 0 | L37: 111
A38: 11 | B38: 7861 | C38: 11 | D38: 7883 | E38: 11 | F38: 7900 | K38: 0 | L38: 111
A39: 11 | B39: 8021 | C39: 11 | D39: 8034 | E39: 11 | F39: 8048 | K39: 0 | L39: 111
A40: 11 | B40: 8146 | C40: 11 | D40: 8195 | E40: 11 | F40: 8211 | K40: 0 | L40: 111
A41: 11 | B41: 8460 | C41: 11 | D41: 8474 | E41: 11 | F41: 8506 | K41: 0 | L41: 111
A42: 11 | B42: 8839 | C42: 11 | D42: 8852 | E42: 11 | F42: 8867 | K42: 0 | L42: 111
A43: 11 | B43: 9081 | C43: 11 | D43: 9103 | E43: 11 | F43: 9124 | K43: 0 | L43: 111
A44: 11 | B44: 9254 | C44: 11 | D44: 9273 | E44: 11 | F44: 9290 | K44: 0 | L44: 111
A45: 11 | B45: 9533 | C45: 11 | D45: 9543 | E45: 11 | F45: 9572 | K45: 0 | L45: 111
A46: 11 | B46: 9678 | C46: 11 | D46: 9730 | E46: 11 | F46: 9744 | K46: 1 | L46: 111

Sheet !N20385B.AXT
A1: Report for:!N20385B.AXT
A2: Date: | B2: <date>
A3: Hen: | B3: <hen> | F3: Correct Sequence | G3: =Start!J2 -> 111 | P3: Total Sequences in Data | Q3: =4994-COUNTBLANK(L7:L5000) -> 40 | V3: Total Sequences in Block Data | W3: =COUNTA(L7:L13) -> 7 | AA3: Total Sequences in Block Data | AB3: =COUNTA(L14:L19) -> 6 | AF3: Total Sequences in Block Data | AG3: =COUNTA(L20:L26) -> 7 | AK3: Total Sequences in Block Data | AL3: =COUNTA(L27:L33) -> 7 | AP3: Total Sequences in Block Data | AQ3: =COUNTA(L34:L39) -> 6 | AU3: Total Sequences in Block Data | AV3: =COUNTA(L40:L46) -> 7
P4: Total Sequences in Summary | Q4: =SUM(O7:O14) -> 40 | V4: Total Sequences in Block Summary | W4: =SUM(U7:U14) -> 7 | AA4: Total Sequences in Block Summary | AB4: =SUM(Z7:Z14) -> 6 | AF4: Total Sequences in Block Summary | AG4: =SUM(AE7:AE14) -> 7 | AK4: Total Sequences in Block Summary | AL4: =SUM(AJ7:AJ14) -> 7 | AP4: Total Sequences in Block Summary | AQ4: =SUM(AO7:AO14) -> 6 | AU4: Total Sequences in Block Summary | AV4: =SUM(AT7:AT14) -> 7
T5: Block 1 | Y5: Block 2 | AD5: Block 3 | AI5: Block 4 | AN5: Block 5 | AS5: Block 6
A6: Sequence Component 1 | B6: Time 1 | C6: Sequence Component 2 | D6: Time 2 | E6: Sequence Component 3 | F6: Time 3 | G6: Sequence Component 4 | H6: Time 4 | I6: Sequence Component 5 | J6: Time 5 | K6: Correct? 0=No 1=Yes | L6: Sequence | N6: Frequency | P6: Relative Frequency | Q6: Variability | T6: Frequency | V6: Relative Frequency | W6: Variability | Y6: Frequency | AA6: Relative Frequency | AB6: Variability | AD6: Frequency | AF6: Relative Frequency | AG6: Variability | AI6: Frequency | AK6: Relative Frequency | AL6: Variability | AN6: Frequency | AP6: Relative Frequency | AQ6: Variability | AS6: Frequency | AU6: Relative Frequency | AV6: Variability
A7: 11 | B7: 208 | C7: 11 | D7: 212 | E7: 22 | F7: 240 | K7: 0 | L7: 112 | N7: 111 | O7: =COUNTIF($L$7:$L$500,N7) -> 39 | P7: =O7/$Q$4 -> 0.975 | Q7: =IF(P7=0,0,(P7*((LOG(P7))/LOG(2)))) -> -0.03561272912 | T7: =N7 -> 111 | U7: =COUNTIF(L7:L13,T7) -> 6 | Y7: =N7 -> 111 | Z7: =COUNTIF(L14:L19,Y7) -> 6 | AD7: =N7 -> 111 | AE7: =COUNTIF(L20:L26,AD7) -> 7 | AI7: =N7 -> 111 | AJ7: =COUNTIF(L27:L33,AI7) -> 7 | AN7: =N7 -> 111 | AO7: =COUNTIF(L34:L39,AN7) -> 6 | AS7: =N7 -> 111 | AT7: =COUNTIF(L40:L46,AS7) -> 7
A8: 11 | B8: 342 | C8: 11 | D8: 358 | E8: 11 | F8: 376 | K8: 0 | L8: 111 | N8: 112 | O8: =COUNTIF($L$7:$L$500,N8) -> 1 | P8: =O8/$Q$4 -> 0.025 | Q8: =IF(P8=0,0,(P8*((LOG(P8))/LOG(2)))) -> -0.1330482024 | T8: =N8 -> 112 | U8: =COUNTIF(L7:L13,T8) -> 1 | V8: =U8/(W4-U7) -> 1 | W8: =IF(V8=0,0,(V8*((LOG(V8))/LOG(2)))) -> 0 | Y8: =N8 -> 112 | Z8: =COUNTIF(L14:L19,Y8) -> 0 | AA8: =Z8/(AB4-Z7) ->  | AB8: =IF(AA8=0,0,(AA8*((LOG(AA8))/LOG(2)))) ->  | AD8: =N8 -> 112 | AE8: =COUNTIF(L20:L26,AD8) -> 0 | AF8: =AE8/(AG4-AE7) ->  | AG8: =IF(AF8=0,0,(AF8*((LOG(AF8))/LOG(2)))) ->  | AI8: =N8 -> 112 | AJ8: =COUNTIF(L27:L33,AI8) -> 0 | AK8: =AJ8/(AL4-AJ7) ->  | AL8: =IF(AK8=0,0,(AK8*((LOG(AK8))/LOG(2)))) ->  | AN8: =N8 -> 112 | AO8: =COUNTIF(L34:L39,AN8) -> 0 | AP8: =AO8/(AQ4-AO7) ->  | AQ8: =IF(AP8=0,0,(AP8*((LOG(AP8))/LOG(2)))) ->  | AS8: =N8 -> 112 | AT8: =COUNTIF(L40:L46,AS8) -> 0 | AU8: =AT8/(AV4-AT7) ->  | AV8: =IF(AU8=0,0,(AU8*((LOG(AU8))/LOG(2)))) -> 
A9: 11 | B9: 521 | C9: 11 | D9: 540 | E9: 11 | F9: 571 | K9: 0 | L9: 111 | N9: 121 | O9: =COUNTIF($L$7:$L$500,N9) -> 0 | P9: =O9/$Q$4 -> 0 | Q9: =IF(P9=0,0,(P9*((LOG(P9))/LOG(2)))) -> 0 | T9: =N9 -> 121 | U9: =COUNTIF(L7:L13,T9) -> 0 | V9: =U9/(W4-U7) -> 0 | W9: =IF(V9=0,0,(V9*((LOG(V9))/LOG(2)))) -> 0 | Y9: =N9 -> 121 | Z9: =COUNTIF(L14:L19,Y9) -> 0 | AA9: =Z9/(AB4-Z7) ->  | AB9: =IF(AA9=0,0,(AA9*((LOG(AA9))/LOG(2)))) ->  | AD9: =N9 -> 121 | AE9: =COUNTIF(L20:L26,AD9) -> 0 | AF9: =AE9/(AG4-AE7) ->  | AG9: =IF(AF9=0,0,(AF9*((LOG(AF9))/LOG(2)))) ->  | AI9: =N9 -> 121 | AJ9: =COUNTIF(L27:L33,AI9) -> 0 | AK9: =AJ9/(AL4-AJ7) ->  | AL9: =IF(AK9=0,0,(AK9*((LOG(AK9))/LOG(2)))) ->  | AN9: =N9 -> 121 | AO9: =COUNTIF(L34:L39,AN9) -> 0 | AP9: =AO9/(AQ4-AO7) ->  | AQ9: =IF(AP9=0,0,(AP9*((LOG(AP9))/LOG(2)))) ->  | AS9: =N9 -> 121 | AT9: =COUNTIF(L40:L46,AS9) -> 0 | AU9: =AT9/(AV4-AT7) ->  | AV9: =IF(AU9=0,0,(AU9*((LOG(AU9))/LOG(2)))) -> 
A10: 11 | B10: 775 | C10: 11 | D10: 793 | E10: 11 | F10: 810 | K10: 0 | L10: 111 | N10: 122 | O10: =COUNTIF($L$7:$L$500,N10) -> 0 | P10: =O10/$Q$4 -> 0 | Q10: =IF(P10=0,0,(P10*((LOG(P10))/LOG(2)))) -> 0 | T10: =N10 -> 122 | U10: =COUNTIF(L7:L13,T10) -> 0 | V10: =U10/(W4-U7) -> 0 | W10: =IF(V10=0,0,(V10*((LOG(V10))/LOG(2)))) -> 0 | Y10: =N10 -> 122 | Z10: =COUNTIF(L14:L19,Y10) -> 0 | AA10: =Z10/(AB4-Z7) ->  | AB10: =IF(AA10=0,0,(AA10*((LOG(AA10))/LOG(2)))) ->  | AD10: =N10 -> 122 | AE10: =COUNTIF(L20:L26,AD10) -> 0 | AF10: =AE10/(AG4-AE7) ->  | AG10: =IF(AF10=0,0,(AF10*((LOG(AF10))/LOG(2)))) ->  | AI10: =N10 -> 122 | AJ10: =COUNTIF(L27:L33,AI10) -> 0 | AK10: =AJ10/(AL4-AJ7) ->  | AL10: =IF(AK10=0,0,(AK10*((LOG(AK10))/LOG(2)))) ->  | AN10: =N10 -> 122 | AO10: =COUNTIF(L34:L39,AN10) -> 0 | AP10: =AO10/(AQ4-AO7) ->  | AQ10: =IF(AP10=0,0,(AP10*((LOG(AP10))/LOG(2)))) ->  | AS10: =N10 -> 122 | AT10: =COUNTIF(L40:L46,AS10) -> 0 | AU10: =AT10/(AV4-AT7) ->  | AV10: =IF(AU10=0,0,(AU10*((LOG(AU10))/LOG(2)))) -> 
A11: 11 | B11: 907 | C11: 11 | D11: 928 | E11: 11 | F11: 971 | K11: 0 | L11: 111 | N11: 211 | O11: =COUNTIF($L$7:$L$500,N11) -> 0 | P11: =O11/$Q$4 -> 0 | Q11: =IF(P11=0,0,(P11*((LOG(P11))/LOG(2)))) -> 0 | T11: =N11 -> 211 | U11: =COUNTIF(L7:L13,T11) -> 0 | V11: =U11/(W4-U7) -> 0 | W11: =IF(V11=0,0,(V11*((LOG(V11))/LOG(2)))) -> 0 | Y11: =N11 -> 211 | Z11: =COUNTIF(L14:L19,Y11) -> 0 | AA11: =Z11/(AB4-Z7) ->  | AB11: =IF(AA11=0,0,(AA11*((LOG(AA11))/LOG(2)))) ->  | AD11: =N11 -> 211 | AE11: =COUNTIF(L20:L26,AD11) -> 0 | AF11: =AE11/(AG4-AE7) ->  | AG11: =IF(AF11=0,0,(AF11*((LOG(AF11))/LOG(2)))) ->  | AI11: =N11 -> 211 | AJ11: =COUNTIF(L27:L33,AI11) -> 0 | AK11: =AJ11/(AL4-AJ7) ->  | AL11: =IF(AK11=0,0,(AK11*((LOG(AK11))/LOG(2)))) ->  | AN11: =N11 -> 211 | AO11: =COUNTIF(L34:L39,AN11) -> 0 | AP11: =AO11/(AQ4-AO7) ->  | AQ11: =IF(AP11=0,0,(AP11*((LOG(AP11))/LOG(2)))) ->  | AS11: =N11 -> 211 | AT11: =COUNTIF(L40:L46,AS11) -> 0 | AU11: =AT11/(AV4-AT7) ->  | AV11: =IF(AU11=0,0,(AU11*((LOG(AU11))/LOG(2)))) -> 
A12: 11 | B12: 1089 | C12: 11 | D12: 1100 | E12: 11 | F12: 1132 | K12: 0 | L12: 111 | N12: 212 | O12: =COUNTIF($L$7:$L$500,N12) -> 0 | P12: =O12/$Q$4 -> 0 | Q12: =IF(P12=0,0,(P12*((LOG(P12))/LOG(2)))) -> 0 | T12: =N12 -> 212 | U12: =COUNTIF(L7:L13,T12) -> 0 | V12: =U12/(W4-U7) -> 0 | W12: =IF(V12=0,0,(V12*((LOG(V12))/LOG(2)))) -> 0 | Y12: =N12 -> 212 | Z12: =COUNTIF(L14:L19,Y12) -> 0 | AA12: =Z12/(AB4-Z7) ->  | AB12: =IF(AA12=0,0,(AA12*((LOG(AA12))/LOG(2)))) ->  | AD12: =N12 -> 212 | AE12: =COUNTIF(L20:L26,AD12) -> 0 | AF12: =AE12/(AG4-AE7) ->  | AG12: =IF(AF12=0,0,(AF12*((LOG(AF12))/LOG(2)))) ->  | AI12: =N12 -> 212 | AJ12: =COUNTIF(L27:L33,AI12) -> 0 | AK12: =AJ12/(AL4-AJ7) ->  | AL12: =IF(AK12=0,0,(AK12*((LOG(AK12))/LOG(2)))) ->  | AN12: =N12 -> 212 | AO12: =COUNTIF(L34:L39,AN12) -> 0 | AP12: =AO12/(AQ4-AO7) ->  | AQ12: =IF(AP12=0,0,(AP12*((LOG(AP12))/LOG(2)))) ->  | AS12: =N12 -> 212 | AT12: =COUNTIF(L40:L46,AS12) -> 0 | AU12: =AT12/(AV4-AT7) ->  | AV12: =IF(AU12=0,0,(AU12*((LOG(AU12))/LOG(2)))) -> 
A13: 11 | B13: 1254 | C13: 11 | D13: 1348 | E13: 11 | F13: 1359 | K13: 0 | L13: 111 | N13: 221 | O13: =COUNTIF($L$7:$L$500,N13) -> 0 | P13: =O13/$Q$4 -> 0 | Q13: =IF(P13=0,0,(P13*((LOG(P13))/LOG(2)))) -> 0 | T13: =N13 -> 221 | U13: =COUNTIF(L7:L13,T13) -> 0 | V13: =U13/(W4-U7) -> 0 | W13: =IF(V13=0,0,(V13*((LOG(V13))/LOG(2)))) -> 0 | Y13: =N13 -> 221 | Z13: =COUNTIF(L14:L19,Y13) -> 0 | AA13: =Z13/(AB4-Z7) ->  | AB13: =IF(AA13=0,0,(AA13*((LOG(AA13))/LOG(2)))) ->  | AD13: =N13 -> 221 | AE13: =COUNTIF(L20:L26,AD13) -> 0 | AF13: =AE13/(AG4-AE7) ->  | AG13: =IF(AF13=0,0,(AF13*((LOG(AF13))/LOG(2)))) ->  | AI13: =N13 -> 221 | AJ13: =COUNTIF(L27:L33,AI13) -> 0 | AK13: =AJ13/(AL4-AJ7) ->  | AL13: =IF(AK13=0,0,(AK13*((LOG(AK13))/LOG(2)))) ->  | AN13: =N13 -> 221 | AO13: =COUNTIF(L34:L39,AN13) -> 0 | AP13: =AO13/(AQ4-AO7) ->  | AQ13: =IF(AP13=0,0,(AP13*((LOG(AP13))/LOG(2)))) ->  | AS13: =N13 -> 221 | AT13: =COUNTIF(L40:L46,AS13) -> 0 | AU13: =AT13/(AV4-AT7) ->  | AV13: =IF(AU13=0,0,(AU13*((LOG(AU13))/LOG(2)))) -> 
A14: 11 | B14: 1578 | C14: 11 | D14: 1599 | E14: 11 | F14: 1617 | K14: 0 | L14: 111 | N14: 222 | O14: =COUNTIF($L$7:$L$500,N14) -> 0 | P14: =O14/$Q$4 -> 0 | Q14: =IF(P14=0,0,(P14*((LOG(P14))/LOG(2)))) -> 0 | T14: =N14 -> 222 | U14: =COUNTIF(L7:L13,T14) -> 0 | V14: =U14/(W4-U7) -> 0 | W14: =IF(V14=0,0,(V14*((LOG(V14))/LOG(2)))) -> 0 | Y14: =N14 -> 222 | Z14: =COUNTIF(L14:L19,Y14) -> 0 | AA14: =Z14/(AB4-Z7) ->  | AB14: =IF(AA14=0,0,(AA14*((LOG(AA14))/LOG(2)))) ->  | AD14: =N14 -> 222 | AE14: =COUNTIF(L20:L26,AD14) -> 0 | AF14: =AE14/(AG4-AE7) ->  | AG14: =IF(AF14=0,0,(AF14*((LOG(AF14))/LOG(2)))) ->  | AI14: =N14 -> 222 | AJ14: =COUNTIF(L27:L33,AI14) -> 0 | AK14: =AJ14/(AL4-AJ7) ->  | AL14: =IF(AK14=0,0,(AK14*((LOG(AK14))/LOG(2)))) ->  | AN14: =N14 -> 222 | AO14: =COUNTIF(L34:L39,AN14) -> 0 | AP14: =AO14/(AQ4-AO7) ->  | AQ14: =IF(AP14=0,0,(AP14*((LOG(AP14))/LOG(2)))) ->  | AS14: =N14 -> 222 | AT14: =COUNTIF(L40:L46,AS14) -> 0 | AU14: =AT14/(AV4-AT7) ->  | AV14: =IF(AU14=0,0,(AU14*((LOG(AU14))/LOG(2)))) -> 
A15: 11 | B15: 1775 | C15: 11 | D15: 1796 | E15: 11 | F15: 1815 | K15: 0 | L15: 111 | P15: =SUM(P7:P14) -> 1 | Q15: =-SUM(Q7:Q14) -> 0.1686609315 | V15: =SUM(V7:V14) -> 1 | W15: =-SUM(W7:W14) -> 0 | AA15: =SUM(AA7:AA14) ->  | AB15: =-SUM(AB7:AB14) ->  | AF15: =SUM(AF7:AF14) ->  | AG15: =-SUM(AG7:AG14) ->  | AK15: =SUM(AK7:AK14) ->  | AL15: =-SUM(AL7:AL14) ->  | AP15: =SUM(AP7:AP14) ->  | AQ15: =-SUM(AQ7:AQ14) ->  | AU15: =SUM(AU7:AU14) ->  | AV15: =-SUM(AV7:AV14) -> 
A16: 11 | B16: 1943 | C16: 11 | D16: 1976 | E16: 11 | F16: 2031 | K16: 0 | L16: 111 | P16: U= | Q16: =Q15/(LOG(Q4)/LOG(2)) -> 0.03169169679 | V16: U1= | W16: =W15/(LOG(W4)/LOG(2)) -> 0 | AA16: U2= | AB16: =AB15/(LOG(AB4)/LOG(2)) ->  | AF16: U3= | AG16: =AG15/(LOG(AG4)/LOG(2)) ->  | AK16: U4= | AL16: =AL15/(LOG(AL4)/LOG(2)) ->  | AP16: U5= | AQ16: =AQ15/(LOG(AQ4)/LOG(2)) ->  | AU16: U6= | AV16: =AV15/(LOG(AV4)/LOG(2)) -> 
A17: 11 | B17: 2133 | C17: 11 | D17: 2154 | E17: 11 | F17: 2171 | K17: 0 | L17: 111
A18: 11 | B18: 2309 | C18: 11 | D18: 2321 | E18: 11 | F18: 2381 | K18: 0 | L18: 111
A19: 11 | B19: 2485 | C19: 11 | D19: 2505 | E19: 11 | F19: 2588 | K19: 0 | L19: 111 | N19: Total Target Seq
A20: 11 | B20: 2769 | C20: 11 | D20: 2795 | E20: 11 | F20: 2815 | K20: 0 | L20: 111 | N20: =COUNTIF(L7:L46,G3) -> 39 | P20: 7 | Q20: 6 | R20: 7 | S20: 7 | T20: 6 | U20: 7
A21: 11 | B21: 2951 | C21: 11 | D21: 2971 | E21: 11 | F21: 3017 | K21: 0 | L21: 111 | P21: % of reinforcement given in 6 equal intervals based on number of trials
A22: 11 | B22: 3128 | C22: 11 | D22: 3146 | E22: 11 | F22: 3184 | K22: 0 | L22: 111 | P22: %_1 | Q22: %_2 | R22: %_3 | S22: %_4 | T22: %_5 | U22: %_6
A23: 11 | B23: 3289 | C23: 11 | D23: 3309 | E23: 11 | F23: 3330 | K23: 0 | L23: 111 | O23: target sequence | P23: =$G$3 -> 111 | Q23: =$G$3 -> 111 | R23: =$G$3 -> 111 | S23: =$G$3 -> 111 | T23: =$G$3 -> 111 | U23: =$G$3 -> 111
A24: 11 | B24: 3575 | C24: 11 | D24: 3601 | E24: 11 | F24: 3612 | K24: 0 | L24: 111 | O24: total reinforcement | P24: =U7 -> 6 | Q24: =Z7 -> 6 | R24: =AE7 -> 7 | S24: =AJ7 -> 7 | T24: =AO7 -> 6 | U24: =AT7 -> 7
A25: 11 | B25: 4013 | C25: 11 | D25: 4027 | E25: 11 | F25: 4042 | K25: 0 | L25: 111 | O25: % target
A26: 11 | B26: 4129 | C26: 11 | D26: 4151 | E26: 11 | F26: 4174 | K26: 0 | L26: 111 | O26: CCRF
A27: 11 | B27: 4381 | C27: 11 | D27: 4411 | E27: 11 | F27: 4430 | K27: 0 | L27: 111 | O27: % CCRf
A28: 11 | B28: 4590 | C28: 11 | D28: 4642 | E28: 11 | F28: 4661 | K28: 0 | L28: 111 | O28: average response rate | P28: =F13/P20 -> 194.1428571 | Q28: =(F19-F13)/Q20 -> 204.8333333 | R28: =(F26-F19)/R20 -> 226.5714286 | S28: =(F33-F26)/S20 -> 212.4285714 | T28: =(F39-F33)/T20 -> 216 | U28: =(F46-F39)/U20 -> 201.5714286
A29: 11 | B29: 4802 | C29: 11 | D29: 4810 | E29: 11 | F29: 4839 | K29: 0 | L29: 111
A30: 11 | B30: 5009 | C30: 11 | D30: 5027 | E30: 11 | F30: 5048 | K30: 0 | L30: 111
A31: 11 | B31: 5177 | C31: 11 | D31: 5191 | E31: 11 | F31: 5208 | K31: 0 | L31: 111
A32: 11 | B32: 5347 | C32: 11 | D32: 5364 | E32: 11 | F32: 5401 | K32: 0 | L32: 111
A33: 11 | B33: 5588 | C33: 11 | D33: 5642 | E33: 11 | F33: 5661 | K33: 0 | L33: 111
A34: 11 | B34: 5819 | C34: 11 | D34: 5840 | E34: 11 | F34: 5867 | K34: 0 | L34: 111
A35: 11 | B35: 6071 | C35: 11 | D35: 6089 | E35: 11 | F35: 6108 | K35: 0 | L35: 111
A36: 11 | B36: 6255 | C36: 11 | D36: 6272 | E36: 11 | F36: 6290 | K36: 0 | L36: 111
A37: 11 | B37: 6459 | C37: 11 | D37: 6478 | E37: 11 | F37: 6496 | K37: 0 | L37: 111
A38: 11 | B38: 6711 | C38: 11 | D38: 6731 | E38: 11 | F38: 6772 | K38: 0 | L38: 111
A39: 11 | B39: 6922 | C39: 11 | D39: 6938 | E39: 11 | F39: 6957 | K39: 0 | L39: 111
A40: 11 | B40: 7137 | C40: 11 | D40: 7156 | E40: 11 | F40: 7174 | K40: 0 | L40: 111
A41: 11 | B41: 7332 | C41: 11 | D41: 7350 | E41: 11 | F41: 7369 | K41: 0 | L41: 111
A42: 11 | B42: 7505 | C42: 11 | D42: 7521 | E42: 11 | F42: 7542 | K42: 0 | L42: 111
A43: 11 | B43: 7775 | C43: 11 | D43: 7798 | E43: 11 | F43: 7814 | K43: 0 | L43: 111
A44: 11 | B44: 7950 | C44: 11 | D44: 7968 | E44: 11 | F44: 7988 | K44: 0 | L44: 111
A45: 11 | B45: 8211 | C45: 11 | D45: 8226 | E45: 11 | F45: 8246 | K45: 0 | L45: 111
A46: 11 | B46: 8338 | C46: 11 | D46: 8355 | E46: 11 | F46: 8368 | K46: 1 | L46: 111

Sheet !N204A1B.AXT
A1: Report for:!N204A1B.AXT
A2: Date: | B2: <date>
A3: Hen: | B3: <hen> | F3: Correct Sequence | G3: =Start!J2 -> 111 | P3: Total Sequences in Data | Q3: =4994-COUNTBLANK(L7:L5000) -> 46 | V3: Total Sequences in Block Data | W3: =COUNTA(L7:L14) -> 8 | AA3: Total Sequences in Block Data | AB3: =COUNTA(L15:L21) -> 7 | AF3: Total Sequences in Block Data | AG3: =COUNTA(L22:L29) -> 8 | AK3: Total Sequences in Block Data | AL3: =COUNTA(L30:L37) -> 8 | AP3: Total Sequences in Block Data | AQ3: =COUNTA(L38:L44) -> 7 | AU3: Total Sequences in Block Data | AV3: =COUNTA(L45:L52) -> 8
P4: Total Sequences in Summary | Q4: =SUM(O7:O14) -> 46 | V4: Total Sequences in Block Summary | W4: =SUM(U7:U14) -> 8 | AA4: Total Sequences in Block Summary | AB4: =SUM(Z7:Z14) -> 7 | AF4: Total Sequences in Block Summary | AG4: =SUM(AE7:AE14) -> 8 | AK4: Total Sequences in Block Summary | AL4: =SUM(AJ7:AJ14) -> 8 | AP4: Total Sequences in Block Summary | AQ4: =SUM(AO7:AO14) -> 7 | AU4: Total Sequences in Block Summary | AV4: =SUM(AT7:AT14) -> 8
T5: Block 1 | Y5: Block 2 | AD5: Block 3 | AI5: Block 4 | AN5: Block 5 | AS5: Block 6
A6: Sequence Component 1 | B6: Time 1 | C6: Sequence Component 2 | D6: Time 2 | E6: Sequence Component 3 | F6: Time 3 | G6: Sequence Component 4 | H6: Time 4 | I6: Sequence Component 5 | J6: Time 5 | K6: Correct? 0=No 1=Yes | L6: Sequence | N6: Frequency | P6: Relative Frequency | Q6: Variability | T6: Frequency | V6: Relative Frequency | W6: Variability | Y6: Frequency | AA6: Relative Frequency | AB6: Variability | AD6: Frequency | AF6: Relative Frequency | AG6: Variability | AI6: Frequency | AK6: Relative Frequency | AL6: Variability | AN6: Frequency | AP6: Relative Frequency | AQ6: Variability | AS6: Frequency | AU6: Relative Frequency | AV6: Variability
A7: 11 | B7: 5 | C7: 11 | D7: 9 | E7: 11 | F7: 39 | K7: 0 | L7: 111 | N7: 111 | O7: =COUNTIF($L$7:$L$500,N7) -> 39 | P7: =O7/$Q$4 -> 0.847826087 | Q7: =IF(P7=0,0,(P7*((LOG(P7))/LOG(2)))) -> -0.2019180381 | T7: =N7 -> 111 | U7: =COUNTIF(L7:L14,T7) -> 8 | Y7: =N7 -> 111 | Z7: =COUNTIF(L15:L21,Y7) -> 7 | AD7: =N7 -> 111 | AE7: =COUNTIF(L22:L29,AD7) -> 7 | AI7: =N7 -> 111 | AJ7: =COUNTIF(L30:L37,AI7) -> 7 | AN7: =N7 -> 111 | AO7: =COUNTIF(L38:L44,AN7) -> 5 | AS7: =N7 -> 111 | AT7: =COUNTIF(L45:L52,AS7) -> 5
A8: 11 | B8: 136 | C8: 11 | D8: 157 | E8: 11 | F8: 184 | K8: 0 | L8: 111 | N8: 112 | O8: =COUNTIF($L$7:$L$500,N8) -> 2 | P8: =O8/$Q$4 -> 0.04347826087 | Q8: =IF(P8=0,0,(P8*((LOG(P8))/LOG(2)))) -> -0.1966766068 | T8: =N8 -> 112 | U8: =COUNTIF(L7:L14,T8) -> 0 | V8: =U8/(W4-U7) ->  | W8: =IF(V8=0,0,(V8*((LOG(V8))/LOG(2)))) ->  | Y8: =N8 -> 112 | Z8: =COUNTIF(L15:L21,Y8) -> 0 | AA8: =Z8/(AB4-Z7) ->  | AB8: =IF(AA8=0,0,(AA8*((LOG(AA8))/LOG(2)))) ->  | AD8: =N8 -> 112 | AE8: =COUNTIF(L22:L29,AD8) -> 0 | AF8: =AE8/(AG4-AE7) -> 0 | AG8: =IF(AF8=0,0,(AF8*((LOG(AF8))/LOG(2)))) -> 0 | AI8: =N8 -> 112 | AJ8: =COUNTIF(L30:L37,AI8) -> 0 | AK8: =AJ8/(AL4-AJ7) -> 0 | AL8: =IF(AK8=0,0,(AK8*((LOG(AK8))/LOG(2)))) -> 0 | AN8: =N8 -> 112 | AO8: =COUNTIF(L38:L44,AN8) -> 1 | AP8: =AO8/(AQ4-AO7) -> 0.5 | AQ8: =IF(AP8=0,0,(AP8*((LOG(AP8))/LOG(2)))) -> -0.5 | AS8: =N8 -> 112 | AT8: =COUNTIF(L45:L52,AS8) -> 1 | AU8: =AT8/(AV4-AT7) -> 0.3333333333 | AV8: =IF(AU8=0,0,(AU8*((LOG(AU8))/LOG(2)))) -> -0.5283208336
A9: 11 | B9: 273 | C9: 11 | D9: 294 | E9: 11 | F9: 324 | K9: 0 | L9: 111 | N9: 121 | O9: =COUNTIF($L$7:$L$500,N9) -> 1 | P9: =O9/$Q$4 -> 0.02173913043 | Q9: =IF(P9=0,0,(P9*((LOG(P9))/LOG(2)))) -> -0.1200774338 | T9: =N9 -> 121 | U9: =COUNTIF(L7:L14,T9) -> 0 | V9: =U9/(W4-U7) ->  | W9: =IF(V9=0,0,(V9*((LOG(V9))/LOG(2)))) ->  | Y9: =N9 -> 121 | Z9: =COUNTIF(L15:L21,Y9) -> 0 | AA9: =Z9/(AB4-Z7) ->  | AB9: =IF(AA9=0,0,(AA9*((LOG(AA9))/LOG(2)))) ->  | AD9: =N9 -> 121 | AE9: =COUNTIF(L22:L29,AD9) -> 1 | AF9: =AE9/(AG4-AE7) -> 1 | AG9: =IF(AF9=0,0,(AF9*((LOG(AF9))/LOG(2)))) -> 0 | AI9: =N9 -> 121 | AJ9: =COUNTIF(L30:L37,AI9) -> 0 | AK9: =AJ9/(AL4-AJ7) -> 0 | AL9: =IF(AK9=0,0,(AK9*((LOG(AK9))/LOG(2)))) -> 0 | AN9: =N9 -> 121 | AO9: =COUNTIF(L38:L44,AN9) -> 0 | AP9: =AO9/(AQ4-AO7) -> 0 | AQ9: =IF(AP9=0,0,(AP9*((LOG(AP9))/LOG(2)))) -> 0 | AS9: =N9 -> 121 | AT9: =COUNTIF(L45:L52,AS9) -> 0 | AU9: =AT9/(AV4-AT7) -> 0 | AV9: =IF(AU9=0,0,(AU9*((LOG(AU9))/LOG(2)))) -> 0
A10: 11 | B10: 414 | C10: 11 | D10: 432 | E10: 11 | F10: 450 | K10: 0 | L10: 111 | N10: 122 | O10: =COUNTIF($L$7:$L$500,N10) -> 1 | P10: =O10/$Q$4 -> 0.02173913043 | Q10: =IF(P10=0,0,(P10*((LOG(P10))/LOG(2)))) -> -0.1200774338 | T10: =N10 -> 122 | U10: =COUNTIF(L7:L14,T10) -> 0 | V10: =U10/(W4-U7) ->  | W10: =IF(V10=0,0,(V10*((LOG(V10))/LOG(2)))) ->  | Y10: =N10 -> 122 | Z10: =COUNTIF(L15:L21,Y10) -> 0 | AA10: =Z10/(AB4-Z7) ->  | AB10: =IF(AA10=0,0,(AA10*((LOG(AA10))/LOG(2)))) ->  | AD10: =N10 -> 122 | AE10: =COUNTIF(L22:L29,AD10) -> 0 | AF10: =AE10/(AG4-AE7) -> 0 | AG10: =IF(AF10=0,0,(AF10*((LOG(AF10))/LOG(2)))) -> 0 | AI10: =N10 -> 122 | AJ10: =COUNTIF(L30:L37,AI10) -> 1 | AK10: =AJ10/(AL4-AJ7) -> 1 | AL10: =IF(AK10=0,0,(AK10*((LOG(AK10))/LOG(2)))) -> 0 | AN10: =N10 -> 122 | AO10: =COUNTIF(L38:L44,AN10) -> 0 | AP10: =AO10/(AQ4-AO7) -> 0 | AQ10: =IF(AP10=0,0,(AP10*((LOG(AP10))/LOG(2)))) -> 0 | AS10: =N10 -> 122 | AT10: =COUNTIF(L45:L52,AS10) -> 0 | AU10: =AT10/(AV4-AT7) -> 0 | AV10: =IF(AU10=0,0,(AU10*((LOG(AU10))/LOG(2)))) -> 0
A11: 11 | B11: 597 | C11: 11 | D11: 617 | E11: 11 | F11: 636 | K11: 0 | L11: 111 | N11: 211 | O11: =COUNTIF($L$7:$L$500,N11) -> 3 | P11: =O11/$Q$4 -> 0.0652173913 | Q11: =IF(P11=0,0,(P11*((LOG(P11))/LOG(2)))) -> -0.2568651819 | T11: =N11 -> 211 | U11: =COUNTIF(L7:L14,T11) -> 0 | V11: =U11/(W4-U7) ->  | W11: =IF(V11=0,0,(V11*((LOG(V11))/LOG(2)))) ->  | Y11: =N11 -> 211 | Z11: =COUNTIF(L15:L21,Y11) -> 0 | AA11: =Z11/(AB4-Z7) ->  | AB11: =IF(AA11=0,0,(AA11*((LOG(AA11))/LOG(2)))) ->  | AD11: =N11 -> 211 | AE11: =COUNTIF(L22:L29,AD11) -> 0 | AF11: =AE11/(AG4-AE7) -> 0 | AG11: =IF(AF11=0,0,(AF11*((LOG(AF11))/LOG(2)))) -> 0 | AI11: =N11 -> 211 | AJ11: =COUNTIF(L30:L37,AI11) -> 0 | AK11: =AJ11/(AL4-AJ7) -> 0 | AL11: =IF(AK11=0,0,(AK11*((LOG(AK11))/LOG(2)))) -> 0 | AN11: =N11 -> 211 | AO11: =COUNTIF(L38:L44,AN11) -> 1 | AP11: =AO11/(AQ4-AO7) -> 0.5 | AQ11: =IF(AP11=0,0,(AP11*((LOG(AP11))/LOG(2)))) -> -0.5 | AS11: =N11 -> 211 | AT11: =COUNTIF(L45:L52,AS11) -> 2 | AU11: =AT11/(AV4-AT7) -> 0.6666666667 | AV11: =IF(AU11=0,0,(AU11*((LOG(AU11))/LOG(2)))) -> -0.3899750005
A12: 11 | B12: 728 | C12: 11 | D12: 747 | E12: 11 | F12: 768 | K12: 0 | L12: 111 | N12: 212 | O12: =COUNTIF($L$7:$L$500,N12) -> 0 | P12: =O12/$Q$4 -> 0 | Q12: =IF(P12=0,0,(P12*((LOG(P12))/LOG(2)))) -> 0 | T12: =N12 -> 212 | U12: =COUNTIF(L7:L14,T12) -> 0 | V12: =U12/(W4-U7) ->  | W12: =IF(V12=0,0,(V12*((LOG(V12))/LOG(2)))) ->  | Y12: =N12 -> 212 | Z12: =COUNTIF(L15:L21,Y12) -> 0 | AA12: =Z12/(AB4-Z7) ->  | AB12: =IF(AA12=0,0,(AA12*((LOG(AA12))/LOG(2)))) ->  | AD12: =N12 -> 212 | AE12: =COUNTIF(L22:L29,AD12) -> 0 | AF12: =AE12/(AG4-AE7) -> 0 | AG12: =IF(AF12=0,0,(AF12*((LOG(AF12))/LOG(2)))) -> 0 | AI12: =N12 -> 212 | AJ12: =COUNTIF(L30:L37,AI12) -> 0 | AK12: =AJ12/(AL4-AJ7) -> 0 | AL12: =IF(AK12=0,0,(AK12*((LOG(AK12))/LOG(2)))) -> 0 | AN12: =N12 -> 212 | AO12: =COUNTIF(L38:L44,AN12) -> 0 | AP12: =AO12/(AQ4-AO7) -> 0 | AQ12: =IF(AP12=0,0,(AP12*((LOG(AP12))/LOG(2)))) -> 0 | AS12: =N12 -> 212 | AT12: =COUNTIF(L45:L52,AS12) -> 0 | AU12: =AT12/(AV4-AT7) -> 0 | AV12: =IF(AU12=0,0,(AU12*((LOG(AU12))/LOG(2)))) -> 0
A13: 11 | B13: 886 | C13: 11 | D13: 915 | E13: 11 | F13: 940 | K13: 0 | L13: 111 | N13: 221 | O13: =COUNTIF($L$7:$L$500,N13) -> 0 | P13: =O13/$Q$4 -> 0 | Q13: =IF(P13=0,0,(P13*((LOG(P13))/LOG(2)))) -> 0 | T13: =N13 -> 221 | U13: =COUNTIF(L7:L14,T13) -> 0 | V13: =U13/(W4-U7) ->  | W13: =IF(V13=0,0,(V13*((LOG(V13))/LOG(2)))) ->  | Y13: =N13 -> 221 | Z13: =COUNTIF(L15:L21,Y13) -> 0 | AA13: =Z13/(AB4-Z7) ->  | AB13: =IF(AA13=0,0,(AA13*((LOG(AA13))/LOG(2)))) ->  | AD13: =N13 -> 221 | AE13: =COUNTIF(L22:L29,AD13) -> 0 | AF13: =AE13/(AG4-AE7) -> 0 | AG13: =IF(AF13=0,0,(AF13*((LOG(AF13))/LOG(2)))) -> 0 | AI13: =N13 -> 221 | AJ13: =COUNTIF(L30:L37,AI13) -> 0 | AK13: =AJ13/(AL4-AJ7) -> 0 | AL13: =IF(AK13=0,0,(AK13*((LOG(AK13))/LOG(2)))) -> 0 | AN13: =N13 -> 221 | AO13: =COUNTIF(L38:L44,AN13) -> 0 | AP13: =AO13/(AQ4-AO7) -> 0 | AQ13: =IF(AP13=0,0,(AP13*((LOG(AP13))/LOG(2)))) -> 0 | AS13: =N13 -> 221 | AT13: =COUNTIF(L45:L52,AS13) -> 0 | AU13: =AT13/(AV4-AT7) -> 0 | AV13: =IF(AU13=0,0,(AU13*((LOG(AU13))/LOG(2)))) -> 0
A14: 11 | B14: 1165 | C14: 11 | D14: 1250 | E14: 11 | F14: 1271 | K14: 0 | L14: 111 | N14: 222 | O14: =COUNTIF($L$7:$L$500,N14) -> 0 | P14: =O14/$Q$4 -> 0 | Q14: =IF(P14=0,0,(P14*((LOG(P14))/LOG(2)))) -> 0 | T14: =N14 -> 222 | U14: =COUNTIF(L7:L14,T14) -> 0 | V14: =U14/(W4-U7) ->  | W14: =IF(V14=0,0,(V14*((LOG(V14))/LOG(2)))) ->  | Y14: =N14 -> 222 | Z14: =COUNTIF(L15:L21,Y14) -> 0 | AA14: =Z14/(AB4-Z7) ->  | AB14: =IF(AA14=0,0,(AA14*((LOG(AA14))/LOG(2)))) ->  | AD14: =N14 -> 222 | AE14: =COUNTIF(L22:L29,AD14) -> 0 | AF14: =AE14/(AG4-AE7) -> 0 | AG14: =IF(AF14=0,0,(AF14*((LOG(AF14))/LOG(2)))) -> 0 | AI14: =N14 -> 222 | AJ14: =COUNTIF(L30:L37,AI14) -> 0 | AK14: =AJ14/(AL4-AJ7) -> 0 | AL14: =IF(AK14=0,0,(AK14*((LOG(AK14))/LOG(2)))) -> 0 | AN14: =N14 -> 222 | AO14: =COUNTIF(L38:L44,AN14) -> 0 | AP14: =AO14/(AQ4-AO7) -> 0 | AQ14: =IF(AP14=0,0,(AP14*((LOG(AP14))/LOG(2)))) -> 0 | AS14: =N14 -> 222 | AT14: =COUNTIF(L45:L52,AS14) -> 0 | AU14: =AT14/(AV4-AT7) -> 0 | AV14: =IF(AU14=0,0,(AU14*((LOG(AU14))/LOG(2)))) -> 0
A15: 11 | B15: 1406 | C15: 11 | D15: 1433 | E15: 11 | F15: 1556 | K15: 0 | L15: 111 | P15: =SUM(P7:P14) -> 1 | Q15: =-SUM(Q7:Q14) -> 0.8956146944 | V15: =SUM(V7:V14) ->  | W15: =-SUM(W7:W14) ->  | AA15: =SUM(AA7:AA14) ->  | AB15: =-SUM(AB7:AB14) ->  | AF15: =SUM(AF7:AF14) -> 1 | AG15: =-SUM(AG7:AG14) -> 0 | AK15: =SUM(AK7:AK14) -> 1 | AL15: =-SUM(AL7:AL14) -> 0 | AP15: =SUM(AP7:AP14) -> 1 | AQ15: =-SUM(AQ7:AQ14) -> 1 | AU15: =SUM(AU7:AU14) -> 1 | AV15: =-SUM(AV7:AV14) -> 0.9182958341
A16: 11 | B16: 1746 | C16: 11 | D16: 1764 | E16: 11 | F16: 1785 | K16: 0 | L16: 111 | P16: U= | Q16: =Q15/(LOG(Q4)/LOG(2)) -> 0.16214441 | V16: U1= | W16: =W15/(LOG(W4)/LOG(2)) ->  | AA16: U2= | AB16: =AB15/(LOG(AB4)/LOG(2)) ->  | AF16: U3= | AG16: =AG15/(LOG(AG4)/LOG(2)) -> 0 | AK16: U4= | AL16: =AL15/(LOG(AL4)/LOG(2)) -> 0 | AP16: U5= | AQ16: =AQ15/(LOG(AQ4)/LOG(2)) -> 0.3562071871 | AU16: U6= | AV16: =AV15/(LOG(AV4)/LOG(2)) -> 0.3060986114
A17: 11 | B17: 1919 | C17: 11 | D17: 1933 | E17: 11 | F17: 1947 | K17: 0 | L17: 111
A18: 11 | B18: 2051 | C18: 11 | D18: 2069 | E18: 11 | F18: 2113 | K18: 0 | L18: 111
A19: 11 | B19: 2211 | C19: 11 | D19: 2229 | E19: 11 | F19: 2247 | K19: 0 | L19: 111 | N19: Total Target Seq
A20: 11 | B20: 2358 | C20: 11 | D20: 2374 | E20: 11 | F20: 2451 | K20: 0 | L20: 111 | N20: =COUNTIF(L7:L52,G3) -> 39 | P20: 8 | Q20: 7 | R20: 8 | S20: 8 | T20: 7 | U20: 8
A21: 11 | B21: 2550 | C21: 11 | D21: 2565 | E21: 11 | F21: 2582 | K21: 0 | L21: 111 | P21: % of reinforcement given in 6 equal intervals based on number of trials
A22: 11 | B22: 2739 | C22: 11 | D22: 2755 | E22: 11 | F22: 2770 | K22: 0 | L22: 111 | P22: %_1 | Q22: %_2 | R22: %_3 | S22: %_4 | T22: %_5 | U22: %_6
A23: 11 | B23: 2867 | C23: 11 | D23: 2888 | E23: 11 | F23: 2964 | K23: 0 | L23: 111 | O23: target sequence | P23: =$G$3 -> 111 | Q23: =$G$3 -> 111 | R23: =$G$3 -> 111 | S23: =$G$3 -> 111 | T23: =$G$3 -> 111 | U23: =$G$3 -> 111
A24: 11 | B24: 3123 | C24: 22 | D24: 3145 | E24: 13 | F24: 3153 | K24: 0 | L24: 121 | O24: total reinforcement | P24: =U7 -> 8 | Q24: =Z7 -> 7 | R24: =AE7 -> 7 | S24: =AJ7 -> 7 | T24: =AO7 -> 5 | U24: =AT7 -> 5
A25: 11 | B25: 3246 | C25: 11 | D25: 3259 | E25: 11 | F25: 3274 | K25: 0 | L25: 111 | O25: % target
A26: 11 | B26: 3416 | C26: 11 | D26: 3435 | E26: 11 | F26: 3470 | K26: 0 | L26: 111 | O26: CCRF
A27: 11 | B27: 3559 | C27: 11 | D27: 3577 | E27: 11 | F27: 3591 | K27: 0 | L27: 111 | O27: % CCRf
A28: 11 | B28: 3736 | C28: 11 | D28: 3751 | E28: 11 | F28: 3765 | K28: 0 | L28: 111 | O28: average response rate | P28: =F14/P20 -> 158.875 | Q28: =(F21-F14)/Q20 -> 187.2857143 | R28: =(F29-F21)/R20 -> 168.75 | S28: =(F37-F29)/S20 -> 198.625 | T28: =(F44-F37)/T20 -> 185.2857143 | U28: =(F52-F44)/U20 -> 144.375
A29: 11 | B29: 3896 | C29: 11 | D29: 3916 | E29: 11 | F29: 3932 | K29: 0 | L29: 111
A30: 11 | B30: 4030 | C30: 11 | D30: 4087 | E30: 11 | F30: 4106 | K30: 0 | L30: 111
A31: 11 | B31: 4241 | C31: 22 | D31: 4276 | E31: 24 | F31: 4280 | K31: 0 | L31: 122
A32: 11 | B32: 4389 | C32: 11 | D32: 4407 | E32: 11 | F32: 4421 | K32: 0 | L32: 111
A33: 11 | B33: 4579 | C33: 11 | D33: 4612 | E33: 11 | F33: 4632 | K33: 0 | L33: 111
A34: 11 | B34: 4761 | C34: 11 | D34: 4856 | E34: 11 | F34: 4864 | K34: 0 | L34: 111
A35: 11 | B35: 5022 | C35: 11 | D35: 5050 | E35: 11 | F35: 5068 | K35: 0 | L35: 111
A36: 11 | B36: 5286 | C36: 11 | D36: 5297 | E36: 11 | F36: 5316 | K36: 0 | L36: 111
A37: 11 | B37: 5494 | C37: 11 | D37: 5508 | E37: 11 | F37: 5521 | K37: 0 | L37: 111
A38: 11 | B38: 5664 | C38: 11 | D38: 5677 | E38: 11 | F38: 5700 | K38: 0 | L38: 111
A39: 11 | B39: 5843 | C39: 11 | D39: 5861 | E39: 11 | F39: 5896 | K39: 0 | L39: 111
A40: 11 | B40: 6042 | C40: 11 | D40: 6089 | E40: 11 | F40: 6098 | K40: 0 | L40: 111
A41: 11 | B41: 6244 | C41: 11 | D41: 6280 | E41: 11 | F41: 6305 | K41: 0 | L41: 111
A42: 11 | B42: 6448 | C42: 11 | D42: 6462 | E42: 11 | F42: 6480 | K42: 0 | L42: 111
A43: 11 | B43: 6617 | C43: 11 | D43: 6653 | E43: 22 | F43: 6692 | K43: 0 | L43: 112
A44: 22 | B44: 6803 | C44: 13 | D44: 6810 | E44: 13 | F44: 6818 | K44: 0 | L44: 211
A45: 22 | B45: 6920 | C45: 13 | D45: 6926 | E45: 13 | F45: 6932 | K45: 0 | L45: 211
A46: 11 | B46: 7031 | C46: 11 | D46: 7037 | E46: 11 | F46: 7040 | K46: 0 | L46: 111
A47: 11 | B47: 7167 | C47: 11 | D47: 7186 | E47: 22 | F47: 7190 | K47: 0 | L47: 112
A48: 11 | B48: 7290 | C48: 11 | D48: 7293 | E48: 11 | F48: 7304 | K48: 0 | L48: 111
A49: 22 | B49: 7399 | C49: 13 | D49: 7408 | E49: 13 | F49: 7411 | K49: 0 | L49: 211
A50: 11 | B50: 7520 | C50: 11 | D50: 7524 | E50: 11 | F50: 7542 | K50: 0 | L50: 111
A51: 11 | B51: 7703 | C51: 11 | D51: 7723 | E51: 11 | F51: 7740 | K51: 0 | L51: 111
A52: 11 | B52: 7947 | C52: 11 | D52: 7958 | E52: 11 | F52: 7973 | K52: 1 | L52: 111

Sheet !N20592B.AXT
A1: Report for:!N20592B.AXT
A2: Date: | B2: <date>
A3: Hen: | B3: <hen> | F3: Correct Sequence | G3: =Start!J2 -> 111 | P3: Total Sequences in Data | Q3: =4994-COUNTBLANK(L7:L5000) -> 40 | V3: Total Sequences in Block Data | W3: =COUNTA(L7:L13) -> 7 | AA3: Total Sequences in Block Data | AB3: =COUNTA(L14:L19) -> 6 | AF3: Total Sequences in Block Data | AG3: =COUNTA(L20:L26) -> 7 | AK3: Total Sequences in Block Data | AL3: =COUNTA(L27:L33) -> 7 | AP3: Total Sequences in Block Data | AQ3: =COUNTA(L34:L39) -> 6 | AU3: Total Sequences in Block Data | AV3: =COUNTA(L40:L46) -> 7
P4: Total Sequences in Summary | Q4: =SUM(O7:O14) -> 40 | V4: Total Sequences in Block Summary | W4: =SUM(U7:U14) -> 7 | AA4: Total Sequences in Block Summary | AB4: =SUM(Z7:Z14) -> 6 | AF4: Total Sequences in Block Summary | AG4: =SUM(AE7:AE14) -> 7 | AK4: Total Sequences in Block Summary | AL4: =SUM(AJ7:AJ14) -> 7 | AP4: Total Sequences in Block Summary | AQ4: =SUM(AO7:AO14) -> 6 | AU4: Total Sequences in Block Summary | AV4: =SUM(AT7:AT14) -> 7
T5: Block 1 | Y5: Block 2 | AD5: Block 3 | AI5: Block 4 | AN5: Block 5 | AS5: Block 6
A6: Sequence Component 1 | B6: Time 1 | C6: Sequence Component 2 | D6: Time 2 | E6: Sequence Component 3 | F6: Time 3 | G6: Sequence Component 4 | H6: Time 4 | I6: Sequence Component 5 | J6: Time 5 | K6: Correct? 0=No 1=Yes | L6: Sequence | N6: Frequency | P6: Relative Frequency | Q6: Variability | T6: Frequency | V6: Relative Frequency | W6: Variability | Y6: Frequency | AA6: Relative Frequency | AB6: Variability | AD6: Frequency | AF6: Relative Frequency | AG6: Variability | AI6: Frequency | AK6: Relative Frequency | AL6: Variability | AN6: Frequency | AP6: Relative Frequency | AQ6: Variability | AS6: Frequency | AU6: Relative Frequency | AV6: Variability
A7: 11 | B7: 10 | C7: 11 | D7: 21 | E7: 11 | F7: 29 | K7: 0 | L7: 111 | N7: 111 | O7: =COUNTIF($L$7:$L$500,N7) -> 40 | P7: =O7/$Q$4 -> 1 | Q7: =IF(P7=0,0,(P7*((LOG(P7))/LOG(2)))) -> 0 | T7: =N7 -> 111 | U7: =COUNTIF(L7:L13,T7) -> 7 | Y7: =N7 -> 111 | Z7: =COUNTIF(L14:L19,Y7) -> 6 | AD7: =N7 -> 111 | AE7: =COUNTIF(L20:L26,AD7) -> 7 | AI7: =N7 -> 111 | AJ7: =COUNTIF(L27:L33,AI7) -> 7 | AN7: =N7 -> 111 | AO7: =COUNTIF(L34:L39,AN7) -> 6 | AS7: =N7 -> 111 | AT7: =COUNTIF(L40:L46,AS7) -> 7
A8: 11 | B8: 122 | C8: 11 | D8: 135 | E8: 11 | F8: 144 | K8: 0 | L8: 111 | N8: 112 | O8: =COUNTIF($L$7:$L$500,N8) -> 0 | P8: =O8/$Q$4 -> 0 | Q8: =IF(P8=0,0,(P8*((LOG(P8))/LOG(2)))) -> 0 | T8: =N8 -> 112 | U8: =COUNTIF(L7:L13,T8) -> 0 | V8: =U8/(W4-U7) ->  | W8: =IF(V8=0,0,(V8*((LOG(V8))/LOG(2)))) ->  | Y8: =N8 -> 112 | Z8: =COUNTIF(L14:L19,Y8) -> 0 | AA8: =Z8/(AB4-Z7) ->  | AB8: =IF(AA8=0,0,(AA8*((LOG(AA8))/LOG(2)))) ->  | AD8: =N8 -> 112 | AE8: =COUNTIF(L20:L26,AD8) -> 0 | AF8: =AE8/(AG4-AE7) ->  | AG8: =IF(AF8=0,0,(AF8*((LOG(AF8))/LOG(2)))) ->  | AI8: =N8 -> 112 | AJ8: =COUNTIF(L27:L33,AI8) -> 0 | AK8: =AJ8/(AL4-AJ7) ->  | AL8: =IF(AK8=0,0,(AK8*((LOG(AK8))/LOG(2)))) ->  | AN8: =N8 -> 112 | AO8: =COUNTIF(L34:L39,AN8) -> 0 | AP8: =AO8/(AQ4-AO7) ->  | AQ8: =IF(AP8=0,0,(AP8*((LOG(AP8))/LOG(2)))) ->  | AS8: =N8 -> 112 | AT8: =COUNTIF(L40:L46,AS8) -> 0 | AU8: =AT8/(AV4-AT7) ->  | AV8: =IF(AU8=0,0,(AU8*((LOG(AU8))/LOG(2)))) -> 
A9: 11 | B9: 248 | C9: 11 | D9: 260 | E9: 11 | F9: 273 | K9: 0 | L9: 111 | N9: 121 | O9: =COUNTIF($L$7:$L$500,N9) -> 0 | P9: =O9/$Q$4 -> 0 | Q9: =IF(P9=0,0,(P9*((LOG(P9))/LOG(2)))) -> 0 | T9: =N9 -> 121 | U9: =COUNTIF(L7:L13,T9) -> 0 | V9: =U9/(W4-U7) ->  | W9: =IF(V9=0,0,(V9*((LOG(V9))/LOG(2)))) ->  | Y9: =N9 -> 121 | Z9: =COUNTIF(L14:L19,Y9) -> 0 | AA9: =Z9/(AB4-Z7) ->  | AB9: =IF(AA9=0,0,(AA9*((LOG(AA9))/LOG(2)))) ->  | AD9: =N9 -> 121 | AE9: =COUNTIF(L20:L26,AD9) -> 0 | AF9: =AE9/(AG4-AE7) ->  | AG9: =IF(AF9=0,0,(AF9*((LOG(AF9))/LOG(2)))) ->  | AI9: =N9 -> 121 | AJ9: =COUNTIF(L27:L33,AI9) -> 0 | AK9: =AJ9/(AL4-AJ7) ->  | AL9: =IF(AK9=0,0,(AK9*((LOG(AK9))/LOG(2)))) ->  | AN9: =N9 -> 121 | AO9: =COUNTIF(L34:L39,AN9) -> 0 | AP9: =AO9/(AQ4-AO7) ->  | AQ9: =IF(AP9=0,0,(AP9*((LOG(AP9))/LOG(2)))) ->  | AS9: =N9 -> 121 | AT9: =COUNTIF(L40:L46,AS9) -> 0 | AU9: =AT9/(AV4-AT7) ->  | AV9: =IF(AU9=0,0,(AU9*((LOG(AU9))/LOG(2)))) -> 
A10: 11 | B10: 374 | C10: 11 | D10: 408 | E10: 11 | F10: 442 | K10: 0 | L10: 111 | N10: 122 | O10: =COUNTIF($L$7:$L$500,N10) -> 0 | P10: =O10/$Q$4 -> 0 | Q10: =IF(P10=0,0,(P10*((LOG(P10))/LOG(2)))) -> 0 | T10: =N10 -> 122 | U10: =COUNTIF(L7:L13,T10) -> 0 | V10: =U10/(W4-U7) ->  | W10: =IF(V10=0,0,(V10*((LOG(V10))/LOG(2)))) ->  | Y10: =N10 -> 122 | Z10: =COUNTIF(L14:L19,Y10) -> 0 | AA10: =Z10/(AB4-Z7) ->  | AB10: =IF(AA10=0,0,(AA10*((LOG(AA10))/LOG(2)))) ->  | AD10: =N10 -> 122 | AE10: =COUNTIF(L20:L26,AD10) -> 0 | AF10: =AE10/(AG4-AE7) ->  | AG10: =IF(AF10=0,0,(AF10*((LOG(AF10))/LOG(2)))) ->  | AI10: =N10 -> 122 | AJ10: =COUNTIF(L27:L33,AI10) -> 0 | AK10: =AJ10/(AL4-AJ7) ->  | AL10: =IF(AK10=0,0,(AK10*((LOG(AK10))/LOG(2)))) ->  | AN10: =N10 -> 122 | AO10: =COUNTIF(L34:L39,AN10) -> 0 | AP10: =AO10/(AQ4-AO7) ->  | AQ10: =IF(AP10=0,0,(AP10*((LOG(AP10))/LOG(2)))) ->  | AS10: =N10 -> 122 | AT10: =COUNTIF(L40:L46,AS10) -> 0 | AU10: =AT10/(AV4-AT7) ->  | AV10: =IF(AU10=0,0,(AU10*((LOG(AU10))/LOG(2)))) -> 
A11: 11 | B11: 536 | C11: 11 | D11: 555 | E11: 11 | F11: 575 | K11: 0 | L11: 111 | N11: 211 | O11: =COUNTIF($L$7:$L$500,N11) -> 0 | P11: =O11/$Q$4 -> 0 | Q11: =IF(P11=0,0,(P11*((LOG(P11))/LOG(2)))) -> 0 | T11: =N11 -> 211 | U11: =COUNTIF(L7:L13,T11) -> 0 | V11: =U11/(W4-U7) ->  | W11: =IF(V11=0,0,(V11*((LOG(V11))/LOG(2)))) ->  | Y11: =N11 -> 211 | Z11: =COUNTIF(L14:L19,Y11) -> 0 | AA11: =Z11/(AB4-Z7) ->  | AB11: =IF(AA11=0,0,(AA11*((LOG(AA11))/LOG(2)))) ->  | AD11: =N11 -> 211 | AE11: =COUNTIF(L20:L26,AD11) -> 0 | AF11: =AE11/(AG4-AE7) ->  | AG11: =IF(AF11=0,0,(AF11*((LOG(AF11))/LOG(2)))) ->  | AI11: =N11 -> 211 | AJ11: =COUNTIF(L27:L33,AI11) -> 0 | AK11: =AJ11/(AL4-AJ7) ->  | AL11: =IF(AK11=0,0,(AK11*((LOG(AK11))/LOG(2)))) ->  | AN11: =N11 -> 211 | AO11: =COUNTIF(L34:L39,AN11) -> 0 | AP11: =AO11/(AQ4-AO7) ->  | AQ11: =IF(AP11=0,0,(AP11*((LOG(AP11))/LOG(2)))) ->  | AS11: =N11 -> 211 | AT11: =COUNTIF(L40:L46,AS11) -> 0 | AU11: =AT11/(AV4-AT7) ->  | AV11: =IF(AU11=0,0,(AU11*((LOG(AU11))/LOG(2)))) -> 
A12: 11 | B12: 681 | C12: 11 | D12: 724 | E12: 11 | F12: 743 | K12: 0 | L12: 111 | N12: 212 | O12: =COUNTIF($L$7:$L$500,N12) -> 0 | P12: =O12/$Q$4 -> 0 | Q12: =IF(P12=0,0,(P12*((LOG(P12))/LOG(2)))) -> 0 | T12: =N12 -> 212 | U12: =COUNTIF(L7:L13,T12) -> 0 | V12: =U12/(W4-U7) ->  | W12: =IF(V12=0,0,(V12*((LOG(V12))/LOG(2)))) ->  | Y12: =N12 -> 212 | Z12: =COUNTIF(L14:L19,Y12) -> 0 | AA12: =Z12/(AB4-Z7) ->  | AB12: =IF(AA12=0,0,(AA12*((LOG(AA12))/LOG(2)))) ->  | AD12: =N12 -> 212 | AE12: =COUNTIF(L20:L26,AD12) -> 0 | AF12: =AE12/(AG4-AE7) ->  | AG12: =IF(AF12=0,0,(AF12*((LOG(AF12))/LOG(2)))) ->  | AI12: =N12 -> 212 | AJ12: =COUNTIF(L27:L33,AI12) -> 0 | AK12: =AJ12/(AL4-AJ7) ->  | AL12: =IF(AK12=0,0,(AK12*((LOG(AK12))/LOG(2)))) ->  | AN12: =N12 -> 212 | AO12: =COUNTIF(L34:L39,AN12) -> 0 | AP12: =AO12/(AQ4-AO7) ->  | AQ12: =IF(AP12=0,0,(AP12*((LOG(AP12))/LOG(2)))) ->  | AS12: =N12 -> 212 | AT12: =COUNTIF(L40:L46,AS12) -> 0 | AU12: =AT12/(AV4-AT7) ->  | AV12: =IF(AU12=0,0,(AU12*((LOG(AU12))/LOG(2)))) -> 
A13: 11 | B13: 844 | C13: 11 | D13: 865 | E13: 11 | F13: 883 | K13: 0 | L13: 111 | N13: 221 | O13: =COUNTIF($L$7:$L$500,N13) -> 0 | P13: =O13/$Q$4 -> 0 | Q13: =IF(P13=0,0,(P13*((LOG(P13))/LOG(2)))) -> 0 | T13: =N13 -> 221 | U13: =COUNTIF(L7:L13,T13) -> 0 | V13: =U13/(W4-U7) ->  | W13: =IF(V13=0,0,(V13*((LOG(V13))/LOG(2)))) ->  | Y13: =N13 -> 221 | Z13: =COUNTIF(L14:L19,Y13) -> 0 | AA13: =Z13/(AB4-Z7) ->  | AB13: =IF(AA13=0,0,(AA13*((LOG(AA13))/LOG(2)))) ->  | AD13: =N13 -> 221 | AE13: =COUNTIF(L20:L26,AD13) -> 0 | AF13: =AE13/(AG4-AE7) ->  | AG13: =IF(AF13=0,0,(AF13*((LOG(AF13))/LOG(2)))) ->  | AI13: =N13 -> 221 | AJ13: =COUNTIF(L27:L33,AI13) -> 0 | AK13: =AJ13/(AL4-AJ7) ->  | AL13: =IF(AK13=0,0,(AK13*((LOG(AK13))/LOG(2)))) ->  | AN13: =N13 -> 221 | AO13: =COUNTIF(L34:L39,AN13) -> 0 | AP13: =AO13/(AQ4-AO7) ->  | AQ13: =IF(AP13=0,0,(AP13*((LOG(AP13))/LOG(2)))) ->  | AS13: =N13 -> 221 | AT13: =COUNTIF(L40:L46,AS13) -> 0 | AU13: =AT13/(AV4-AT7) ->  | AV13: =IF(AU13=0,0,(AU13*((LOG(AU13))/LOG(2)))) -> 
A14: 11 | B14: 1018 | C14: 11 | D14: 1040 | E14: 11 | F14: 1062 | K14: 0 | L14: 111 | N14: 222 | O14: =COUNTIF($L$7:$L$500,N14) -> 0 | P14: =O14/$Q$4 -> 0 | Q14: =IF(P14=0,0,(P14*((LOG(P14))/LOG(2)))) -> 0 | T14: =N14 -> 222 | U14: =COUNTIF(L7:L13,T14) -> 0 | V14: =U14/(W4-U7) ->  | W14: =IF(V14=0,0,(V14*((LOG(V14))/LOG(2)))) ->  | Y14: =N14 -> 222 | Z14: =COUNTIF(L14:L19,Y14) -> 0 | AA14: =Z14/(AB4-Z7) ->  | AB14: =IF(AA14=0,0,(AA14*((LOG(AA14))/LOG(2)))) ->  | AD14: =N14 -> 222 | AE14: =COUNTIF(L20:L26,AD14) -> 0 | AF14: =AE14/(AG4-AE7) ->  | AG14: =IF(AF14=0,0,(AF14*((LOG(AF14))/LOG(2)))) ->  | AI14: =N14 -> 222 | AJ14: =COUNTIF(L27:L33,AI14) -> 0 | AK14: =AJ14/(AL4-AJ7) ->  | AL14: =IF(AK14=0,0,(AK14*((LOG(AK14))/LOG(2)))) ->  | AN14: =N14 -> 222 | AO14: =COUNTIF(L34:L39,AN14) -> 0 | AP14: =AO14/(AQ4-AO7) ->  | AQ14: =IF(AP14=0,0,(AP14*((LOG(AP14))/LOG(2)))) ->  | AS14: =N14 -> 222 | AT14: =COUNTIF(L40:L46,AS14) -> 0 | AU14: =AT14/(AV4-AT7) ->  | AV14: =IF(AU14=0,0,(AU14*((LOG(AU14))/LOG(2)))) -> 
A15: 11 | B15: 1175 | C15: 11 | D15: 1190 | E15: 11 | F15: 1214 | K15: 0 | L15: 111 | P15: =SUM(P7:P14) -> 1 | Q15: =-SUM(Q7:Q14) -> 0 | V15: =SUM(V7:V14) ->  | W15: =-SUM(W7:W14) ->  | AA15: =SUM(AA7:AA14) ->  | AB15: =-SUM(AB7:AB14) ->  | AF15: =SUM(AF7:AF14) ->  | AG15: =-SUM(AG7:AG14) ->  | AK15: =SUM(AK7:AK14) ->  | AL15: =-SUM(AL7:AL14) ->  | AP15: =SUM(AP7:AP14) ->  | AQ15: =-SUM(AQ7:AQ14) ->  | AU15: =SUM(AU7:AU14) ->  | AV15: =-SUM(AV7:AV14) -> 
A16: 11 | B16: 1334 | C16: 11 | D16: 1358 | E16: 11 | F16: 1411 | K16: 0 | L16: 111 | P16: U= | Q16: =Q15/(LOG(Q4)/LOG(2)) -> 0 | V16: U1= | W16: =W15/(LOG(W4)/LOG(2)) ->  | AA16: U2= | AB16: =AB15/(LOG(AB4)/LOG(2)) ->  | AF16: U3= | AG16: =AG15/(LOG(AG4)/LOG(2)) ->  | AK16: U4= | AL16: =AL15/(LOG(AL4)/LOG(2)) ->  | AP16: U5= | AQ16: =AQ15/(LOG(AQ4)/LOG(2)) ->  | AU16: U6= | AV16: =AV15/(LOG(AV4)/LOG(2)) -> 
A17: 11 | B17: 1622 | C17: 11 | D17: 1671 | E17: 11 | F17: 1691 | K17: 0 | L17: 111
A18: 11 | B18: 1801 | C18: 11 | D18: 1818 | E18: 11 | F18: 1836 | K18: 0 | L18: 111
A19: 11 | B19: 1981 | C19: 11 | D19: 2004 | E19: 11 | F19: 2027 | K19: 0 | L19: 111 | N19: Total Target Seq
A20: 11 | B20: 2141 | C20: 11 | D20: 2173 | E20: 11 | F20: 2212 | K20: 0 | L20: 111 | N20: =COUNTIF(L7:L46,G3) -> 40 | P20: 7 | Q20: 6 | R20: 7 | S20: 7 | T20: 6 | U20: 7
A21: 11 | B21: 2365 | C21: 11 | D21: 2395 | E21: 11 | F21: 2413 | K21: 0 | L21: 111 | P21: % of reinforcement given in 6 equal intervals based on number of trials
A22: 11 | B22: 2610 | C22: 11 | D22: 2626 | E22: 11 | F22: 2641 | K22: 0 | L22: 111 | P22: %_1 | Q22: %_2 | R22: %_3 | S22: %_4 | T22: %_5 | U22: %_6
A23: 11 | B23: 2868 | C23: 11 | D23: 2888 | E23: 11 | F23: 2914 | K23: 0 | L23: 111 | O23: target sequence | P23: =$G$3 -> 111 | Q23: =$G$3 -> 111 | R23: =$G$3 -> 111 | S23: =$G$3 -> 111 | T23: =$G$3 -> 111 | U23: =$G$3 -> 111
A24: 11 | B24: 3037 | C24: 11 | D24: 3056 | E24: 11 | F24: 3085 | K24: 0 | L24: 111 | O24: total reinforcement | P24: =U7 -> 7 | Q24: =Z7 -> 6 | R24: =AE7 -> 7 | S24: =AJ7 -> 7 | T24: =AO7 -> 6 | U24: =AT7 -> 7
A25: 11 | B25: 3273 | C25: 11 | D25: 3320 | E25: 11 | F25: 3340 | K25: 0 | L25: 111 | O25: % target
A26: 11 | B26: 3456 | C26: 11 | D26: 3467 | E26: 11 | F26: 3498 | K26: 0 | L26: 111 | O26: CCRF
A27: 11 | B27: 3714 | C27: 11 | D27: 3737 | E27: 11 | F27: 3766 | K27: 0 | L27: 111 | O27: % CCRf
A28: 11 | B28: 3943 | C28: 11 | D28: 3967 | E28: 11 | F28: 3992 | K28: 0 | L28: 111 | O28: average response rate | P28: =F13/P20 -> 126.1428571 | Q28: =(F19-F13)/Q20 -> 190.6666667 | R28: =(F26-F19)/R20 -> 210.1428571 | S28: =(F33-F26)/S20 -> 202.1428571 | T28: =(F39-F33)/T20 -> 185.6666667 | U28: =(F46-F39)/U20 -> 223.5714286
A29: 11 | B29: 4116 | C29: 11 | D29: 4143 | E29: 11 | F29: 4153 | K29: 0 | L29: 111
A30: 11 | B30: 4345 | C30: 11 | D30: 4362 | E30: 11 | F30: 4380 | K30: 0 | L30: 111
A31: 11 | B31: 4473 | C31: 11 | D31: 4489 | E31: 11 | F31: 4505 | K31: 0 | L31: 111
A32: 11 | B32: 4690 | C32: 11 | D32: 4720 | E32: 11 | F32: 4738 | K32: 0 | L32: 111
A33: 11 | B33: 4871 | C33: 11 | D33: 4894 | E33: 11 | F33: 4913 | K33: 0 | L33: 111
A34: 11 | B34: 5069 | C34: 11 | D34: 5086 | E34: 11 | F34: 5120 | K34: 0 | L34: 111
A35: 11 | B35: 5285 | C35: 11 | D35: 5308 | E35: 11 | F35: 5332 | K35: 0 | L35: 111
A36: 11 | B36: 5464 | C36: 11 | D36: 5483 | E36: 11 | F36: 5500 | K36: 0 | L36: 111
A37: 11 | B37: 5626 | C37: 11 | D37: 5638 | E37: 11 | F37: 5655 | K37: 0 | L37: 111
A38: 11 | B38: 5854 | C38: 11 | D38: 5886 | E38: 11 | F38: 5899 | K38: 0 | L38: 111
A39: 11 | B39: 5994 | C39: 11 | D39: 6010 | E39: 11 | F39: 6027 | K39: 0 | L39: 111
A40: 11 | B40: 6193 | C40: 11 | D40: 6207 | E40: 11 | F40: 6221 | K40: 0 | L40: 111
A41: 11 | B41: 6352 | C41: 11 | D41: 6384 | E41: 11 | F41: 6414 | K41: 0 | L41: 111
A42: 11 | B42: 6591 | C42: 11 | D42: 6607 | E42: 11 | F42: 6625 | K42: 0 | L42: 111
A43: 11 | B43: 6795 | C43: 11 | D43: 6807 | E43: 11 | F43: 6825 | K43: 0 | L43: 111
A44: 11 | B44: 6979 | C44: 11 | D44: 6991 | E44: 11 | F44: 7042 | K44: 0 | L44: 111
A45: 11 | B45: 7171 | C45: 11 | D45: 7184 | E45: 11 | F45: 7201 | K45: 0 | L45: 111
A46: 11 | B46: 7564 | C46: 11 | D46: 7578 | E46: 11 | F46: 7592 | K46: 1 | L46: 111

Sheet !N206A3B.AXT
A1: Report for:!N206A3B.AXT
A2: Date: | B2: <date>
A3: Hen: | B3: <hen> | F3: Correct Sequence | G3: =Start!J2 -> 111 | P3: Total Sequences in Data | Q3: =4994-COUNTBLANK(L7:L5000) -> 45 | V3: Total Sequences in Block Data | W3: =COUNTA(L7:L14) -> 8 | AA3: Total Sequences in Block Data | AB3: =COUNTA(L15:L21) -> 7 | AF3: Total Sequences in Block Data | AG3: =COUNTA(L22:L29) -> 8 | AK3: Total Sequences in Block Data | AL3: =COUNTA(L30:L36) -> 7 | AP3: Total Sequences in Block Data | AQ3: =COUNTA(L37:L44) -> 8 | AU3: Total Sequences in Block Data | AV3: =COUNTA(L45:L51) -> 7
P4: Total Sequences in Summary | Q4: =SUM(O7:O14) -> 45 | V4: Total Sequences in Block Summary | W4: =SUM(U7:U14) -> 8 | AA4: Total Sequences in Block Summary | AB4: =SUM(Z7:Z14) -> 7 | AF4: Total Sequences in Block Summary | AG4: =SUM(AE7:AE14) -> 8 | AK4: Total Sequences in Block Summary | AL4: =SUM(AJ7:AJ14) -> 7 | AP4: Total Sequences in Block Summary | AQ4: =SUM(AO7:AO14) -> 8 | AU4: Total Sequences in Block Summary | AV4: =SUM(AT7:AT14) -> 7
T5: Block 1 | Y5: Block 2 | AD5: Block 3 | AI5: Block 4 | AN5: Block 5 | AS5: Block 6
A6: Sequence Component 1 | B6: Time 1 | C6: Sequence Component 2 | D6: Time 2 | E6: Sequence Component 3 | F6: Time 3 | G6: Sequence Component 4 | H6: Time 4 | I6: Sequence Component 5 | J6: Time 5 | K6: Correct? 0=No 1=Yes | L6: Sequence | N6: Frequency | P6: Relative Frequency | Q6: Variability | T6: Frequency | V6: Relative Frequency | W6: Variability | Y6: Frequency | AA6: Relative Frequency | AB6: Variability | AD6: Frequency | AF6: Relative Frequency | AG6: Variability | AI6: Frequency | AK6: Relative Frequency | AL6: Variability | AN6: Frequency | AP6: Relative Frequency | AQ6: Variability | AS6: Frequency | AU6: Relative Frequency | AV6: Variability
A7: 11 | B7: 3 | C7: 11 | D7: 12 | E7: 11 | F7: 16 | K7: 0 | L7: 111 | N7: 111 | O7: =COUNTIF($L$7:$L$500,N7) -> 38 | P7: =O7/$Q$4 -> 0.8444444444 | Q7: =IF(P7=0,0,(P7*((LOG(P7))/LOG(2)))) -> -0.2059816033 | T7: =N7 -> 111 | U7: =COUNTIF(L7:L14,T7) -> 6 | Y7: =N7 -> 111 | Z7: =COUNTIF(L15:L21,Y7) -> 4 | AD7: =N7 -> 111 | AE7: =COUNTIF(L22:L29,AD7) -> 8 | AI7: =N7 -> 111 | AJ7: =COUNTIF(L30:L36,AI7) -> 6 | AN7: =N7 -> 111 | AO7: =COUNTIF(L37:L44,AN7) -> 7 | AS7: =N7 -> 111 | AT7: =COUNTIF(L45:L51,AS7) -> 7
A8: 11 | B8: 112 | C8: 22 | D8: 118 | E8: 13 | F8: 125 | K8: 0 | L8: 121 | N8: 112 | O8: =COUNTIF($L$7:$L$500,N8) -> 0 | P8: =O8/$Q$4 -> 0 | Q8: =IF(P8=0,0,(P8*((LOG(P8))/LOG(2)))) -> 0 | T8: =N8 -> 112 | U8: =COUNTIF(L7:L14,T8) -> 0 | V8: =U8/(W4-U7) -> 0 | W8: =IF(V8=0,0,(V8*((LOG(V8))/LOG(2)))) -> 0 | Y8: =N8 -> 112 | Z8: =COUNTIF(L15:L21,Y8) -> 0 | AA8: =Z8/(AB4-Z7) -> 0 | AB8: =IF(AA8=0,0,(AA8*((LOG(AA8))/LOG(2)))) -> 0 | AD8: =N8 -> 112 | AE8: =COUNTIF(L22:L29,AD8) -> 0 | AF8: =AE8/(AG4-AE7) ->  | AG8: =IF(AF8=0,0,(AF8*((LOG(AF8))/LOG(2)))) ->  | AI8: =N8 -> 112 | AJ8: =COUNTIF(L30:L36,AI8) -> 0 | AK8: =AJ8/(AL4-AJ7) -> 0 | AL8: =IF(AK8=0,0,(AK8*((LOG(AK8))/LOG(2)))) -> 0 | AN8: =N8 -> 112 | AO8: =COUNTIF(L37:L44,AN8) -> 0 | AP8: =AO8/(AQ4-AO7) -> 0 | AQ8: =IF(AP8=0,0,(AP8*((LOG(AP8))/LOG(2)))) -> 0 | AS8: =N8 -> 112 | AT8: =COUNTIF(L45:L51,AS8) -> 0 | AU8: =AT8/(AV4-AT7) ->  | AV8: =IF(AU8=0,0,(AU8*((LOG(AU8))/LOG(2)))) -> 
A9: 22 | B9: 278 | C9: 13 | D9: 297 | E9: 13 | F9: 310 | K9: 0 | L9: 211 | N9: 121 | O9: =COUNTIF($L$7:$L$500,N9) -> 2 | P9: =O9/$Q$4 -> 0.04444444444 | Q9: =IF(P9=0,0,(P9*((LOG(P9))/LOG(2)))) -> -0.1996379154 | T9: =N9 -> 121 | U9: =COUNTIF(L7:L14,T9) -> 1 | V9: =U9/(W4-U7) -> 0.5 | W9: =IF(V9=0,0,(V9*((LOG(V9))/LOG(2)))) -> -0.5 | Y9: =N9 -> 121 | Z9: =COUNTIF(L15:L21,Y9) -> 1 | AA9: =Z9/(AB4-Z7) -> 0.3333333333 | AB9: =IF(AA9=0,0,(AA9*((LOG(AA9))/LOG(2)))) -> -0.5283208336 | AD9: =N9 -> 121 | AE9: =COUNTIF(L22:L29,AD9) -> 0 | AF9: =AE9/(AG4-AE7) ->  | AG9: =IF(AF9=0,0,(AF9*((LOG(AF9))/LOG(2)))) ->  | AI9: =N9 -> 121 | AJ9: =COUNTIF(L30:L36,AI9) -> 0 | AK9: =AJ9/(AL4-AJ7) -> 0 | AL9: =IF(AK9=0,0,(AK9*((LOG(AK9))/LOG(2)))) -> 0 | AN9: =N9 -> 121 | AO9: =COUNTIF(L37:L44,AN9) -> 0 | AP9: =AO9/(AQ4-AO7) -> 0 | AQ9: =IF(AP9=0,0,(AP9*((LOG(AP9))/LOG(2)))) -> 0 | AS9: =N9 -> 121 | AT9: =COUNTIF(L45:L51,AS9) -> 0 | AU9: =AT9/(AV4-AT7) ->  | AV9: =IF(AU9=0,0,(AU9*((LOG(AU9))/LOG(2)))) -> 
A10: 11 | B10: 413 | C10: 11 | D10: 419 | E10: 11 | F10: 431 | K10: 0 | L10: 111 | N10: 122 | O10: =COUNTIF($L$7:$L$500,N10) -> 1 | P10: =O10/$Q$4 -> 0.02222222222 | Q10: =IF(P10=0,0,(P10*((LOG(P10))/LOG(2)))) -> -0.1220411799 | T10: =N10 -> 122 | U10: =COUNTIF(L7:L14,T10) -> 0 | V10: =U10/(W4-U7) -> 0 | W10: =IF(V10=0,0,(V10*((LOG(V10))/LOG(2)))) -> 0 | Y10: =N10 -> 122 | Z10: =COUNTIF(L15:L21,Y10) -> 1 | AA10: =Z10/(AB4-Z7) -> 0.3333333333 | AB10: =IF(AA10=0,0,(AA10*((LOG(AA10))/LOG(2)))) -> -0.5283208336 | AD10: =N10 -> 122 | AE10: =COUNTIF(L22:L29,AD10) -> 0 | AF10: =AE10/(AG4-AE7) ->  | AG10: =IF(AF10=0,0,(AF10*((LOG(AF10))/LOG(2)))) ->  | AI10: =N10 -> 122 | AJ10: =COUNTIF(L30:L36,AI10) -> 0 | AK10: =AJ10/(AL4-AJ7) -> 0 | AL10: =IF(AK10=0,0,(AK10*((LOG(AK10))/LOG(2)))) -> 0 | AN10: =N10 -> 122 | AO10: =COUNTIF(L37:L44,AN10) -> 0 | AP10: =AO10/(AQ4-AO7) -> 0 | AQ10: =IF(AP10=0,0,(AP10*((LOG(AP10))/LOG(2)))) -> 0 | AS10: =N10 -> 122 | AT10: =COUNTIF(L45:L51,AS10) -> 0 | AU10: =AT10/(AV4-AT7) ->  | AV10: =IF(AU10=0,0,(AU10*((LOG(AU10))/LOG(2)))) -> 
A11: 11 | B11: 534 | C11: 11 | D11: 596 | E11: 11 | F11: 612 | K11: 0 | L11: 111 | N11: 211 | O11: =COUNTIF($L$7:$L$500,N11) -> 2 | P11: =O11/$Q$4 -> 0.04444444444 | Q11: =IF(P11=0,0,(P11*((LOG(P11))/LOG(2)))) -> -0.1996379154 | T11: =N11 -> 211 | U11: =COUNTIF(L7:L14,T11) -> 1 | V11: =U11/(W4-U7) -> 0.5 | W11: =IF(V11=0,0,(V11*((LOG(V11))/LOG(2)))) -> -0.5 | Y11: =N11 -> 211 | Z11: =COUNTIF(L15:L21,Y11) -> 1 | AA11: =Z11/(AB4-Z7) -> 0.3333333333 | AB11: =IF(AA11=0,0,(AA11*((LOG(AA11))/LOG(2)))) -> -0.5283208336 | AD11: =N11 -> 211 | AE11: =COUNTIF(L22:L29,AD11) -> 0 | AF11: =AE11/(AG4-AE7) ->  | AG11: =IF(AF11=0,0,(AF11*((LOG(AF11))/LOG(2)))) ->  | AI11: =N11 -> 211 | AJ11: =COUNTIF(L30:L36,AI11) -> 0 | AK11: =AJ11/(AL4-AJ7) -> 0 | AL11: =IF(AK11=0,0,(AK11*((LOG(AK11))/LOG(2)))) -> 0 | AN11: =N11 -> 211 | AO11: =COUNTIF(L37:L44,AN11) -> 0 | AP11: =AO11/(AQ4-AO7) -> 0 | AQ11: =IF(AP11=0,0,(AP11*((LOG(AP11))/LOG(2)))) -> 0 | AS11: =N11 -> 211 | AT11: =COUNTIF(L45:L51,AS11) -> 0 | AU11: =AT11/(AV4-AT7) ->  | AV11: =IF(AU11=0,0,(AU11*((LOG(AU11))/LOG(2)))) -> 
A12: 11 | B12: 786 | C12: 11 | D12: 806 | E12: 11 | F12: 842 | K12: 0 | L12: 111 | N12: 212 | O12: =COUNTIF($L$7:$L$500,N12) -> 0 | P12: =O12/$Q$4 -> 0 | Q12: =IF(P12=0,0,(P12*((LOG(P12))/LOG(2)))) -> 0 | T12: =N12 -> 212 | U12: =COUNTIF(L7:L14,T12) -> 0 | V12: =U12/(W4-U7) -> 0 | W12: =IF(V12=0,0,(V12*((LOG(V12))/LOG(2)))) -> 0 | Y12: =N12 -> 212 | Z12: =COUNTIF(L15:L21,Y12) -> 0 | AA12: =Z12/(AB4-Z7) -> 0 | AB12: =IF(AA12=0,0,(AA12*((LOG(AA12))/LOG(2)))) -> 0 | AD12: =N12 -> 212 | AE12: =COUNTIF(L22:L29,AD12) -> 0 | AF12: =AE12/(AG4-AE7) ->  | AG12: =IF(AF12=0,0,(AF12*((LOG(AF12))/LOG(2)))) ->  | AI12: =N12 -> 212 | AJ12: =COUNTIF(L30:L36,AI12) -> 0 | AK12: =AJ12/(AL4-AJ7) -> 0 | AL12: =IF(AK12=0,0,(AK12*((LOG(AK12))/LOG(2)))) -> 0 | AN12: =N12 -> 212 | AO12: =COUNTIF(L37:L44,AN12) -> 0 | AP12: =AO12/(AQ4-AO7) -> 0 | AQ12: =IF(AP12=0,0,(AP12*((LOG(AP12))/LOG(2)))) -> 0 | AS12: =N12 -> 212 | AT12: =COUNTIF(L45:L51,AS12) -> 0 | AU12: =AT12/(AV4-AT7) ->  | AV12: =IF(AU12=0,0,(AU12*((LOG(AU12))/LOG(2)))) -> 
A13: 11 | B13: 947 | C13: 11 | D13: 995 | E13: 11 | F13: 1031 | K13: 0 | L13: 111 | N13: 221 | O13: =COUNTIF($L$7:$L$500,N13) -> 1 | P13: =O13/$Q$4 -> 0.02222222222 | Q13: =IF(P13=0,0,(P13*((LOG(P13))/LOG(2)))) -> -0.1220411799 | T13: =N13 -> 221 | U13: =COUNTIF(L7:L14,T13) -> 0 | V13: =U13/(W4-U7) -> 0 | W13: =IF(V13=0,0,(V13*((LOG(V13))/LOG(2)))) -> 0 | Y13: =N13 -> 221 | Z13: =COUNTIF(L15:L21,Y13) -> 0 | AA13: =Z13/(AB4-Z7) -> 0 | AB13: =IF(AA13=0,0,(AA13*((LOG(AA13))/LOG(2)))) -> 0 | AD13: =N13 -> 221 | AE13: =COUNTIF(L22:L29,AD13) -> 0 | AF13: =AE13/(AG4-AE7) ->  | AG13: =IF(AF13=0,0,(AF13*((LOG(AF13))/LOG(2)))) ->  | AI13: =N13 -> 221 | AJ13: =COUNTIF(L30:L36,AI13) -> 0 | AK13: =AJ13/(AL4-AJ7) -> 0 | AL13: =IF(AK13=0,0,(AK13*((LOG(AK13))/LOG(2)))) -> 0 | AN13: =N13 -> 221 | AO13: =COUNTIF(L37:L44,AN13) -> 1 | AP13: =AO13/(AQ4-AO7) -> 1 | AQ13: =IF(AP13=0,0,(AP13*((LOG(AP13))/LOG(2)))) -> 0 | AS13: =N13 -> 221 | AT13: =COUNTIF(L45:L51,AS13) -> 0 | AU13: =AT13/(AV4-AT7) ->  | AV13: =IF(AU13=0,0,(AU13*((LOG(AU13))/LOG(2)))) -> 
A14: 11 | B14: 1151 | C14: 11 | D14: 1168 | E14: 11 | F14: 1196 | K14: 0 | L14: 111 | N14: 222 | O14: =COUNTIF($L$7:$L$500,N14) -> 1 | P14: =O14/$Q$4 -> 0.02222222222 | Q14: =IF(P14=0,0,(P14*((LOG(P14))/LOG(2)))) -> -0.1220411799 | T14: =N14 -> 222 | U14: =COUNTIF(L7:L14,T14) -> 0 | V14: =U14/(W4-U7) -> 0 | W14: =IF(V14=0,0,(V14*((LOG(V14))/LOG(2)))) -> 0 | Y14: =N14 -> 222 | Z14: =COUNTIF(L15:L21,Y14) -> 0 | AA14: =Z14/(AB4-Z7) -> 0 | AB14: =IF(AA14=0,0,(AA14*((LOG(AA14))/LOG(2)))) -> 0 | AD14: =N14 -> 222 | AE14: =COUNTIF(L22:L29,AD14) -> 0 | AF14: =AE14/(AG4-AE7) ->  | AG14: =IF(AF14=0,0,(AF14*((LOG(AF14))/LOG(2)))) ->  | AI14: =N14 -> 222 | AJ14: =COUNTIF(L30:L36,AI14) -> 1 | AK14: =AJ14/(AL4-AJ7) -> 1 | AL14: =IF(AK14=0,0,(AK14*((LOG(AK14))/LOG(2)))) -> 0 | AN14: =N14 -> 222 | AO14: =COUNTIF(L37:L44,AN14) -> 0 | AP14: =AO14/(AQ4-AO7) -> 0 | AQ14: =IF(AP14=0,0,(AP14*((LOG(AP14))/LOG(2)))) -> 0 | AS14: =N14 -> 222 | AT14: =COUNTIF(L45:L51,AS14) -> 0 | AU14: =AT14/(AV4-AT7) ->  | AV14: =IF(AU14=0,0,(AU14*((LOG(AU14))/LOG(2)))) -> 
A15: 11 | B15: 1308 | C15: 11 | D15: 1323 | E15: 11 | F15: 1340 | K15: 0 | L15: 111 | P15: =SUM(P7:P14) -> 1 | Q15: =-SUM(Q7:Q14) -> 0.9713809739 | V15: =SUM(V7:V14) -> 1 | W15: =-SUM(W7:W14) -> 1 | AA15: =SUM(AA7:AA14) -> 1 | AB15: =-SUM(AB7:AB14) -> 1.584962501 | AF15: =SUM(AF7:AF14) ->  | AG15: =-SUM(AG7:AG14) ->  | AK15: =SUM(AK7:AK14) -> 1 | AL15: =-SUM(AL7:AL14) -> 0 | AP15: =SUM(AP7:AP14) -> 1 | AQ15: =-SUM(AQ7:AQ14) -> 0 | AU15: =SUM(AU7:AU14) ->  | AV15: =-SUM(AV7:AV14) -> 
A16: 11 | B16: 1706 | C16: 22 | D16: 1737 | E16: 13 | F16: 1747 | K16: 0 | L16: 121 | P16: U= | Q16: =Q15/(LOG(Q4)/LOG(2)) -> 0.1768767221 | V16: U1= | W16: =W15/(LOG(W4)/LOG(2)) -> 0.3333333333 | AA16: U2= | AB16: =AB15/(LOG(AB4)/LOG(2)) -> 0.5645750341 | AF16: U3= | AG16: =AG15/(LOG(AG4)/LOG(2)) ->  | AK16: U4= | AL16: =AL15/(LOG(AL4)/LOG(2)) -> 0 | AP16: U5= | AQ16: =AQ15/(LOG(AQ4)/LOG(2)) -> 0 | AU16: U6= | AV16: =AV15/(LOG(AV4)/LOG(2)) -> 
A17: 11 | B17: 1849 | C17: 11 | D17: 1853 | E17: 11 | F17: 1864 | K17: 0 | L17: 111
A18: 11 | B18: 1965 | C18: 22 | D18: 1970 | E18: 24 | F18: 1979 | K18: 0 | L18: 122
A19: 11 | B19: 2074 | C19: 11 | D19: 2089 | E19: 11 | F19: 2098 | K19: 0 | L19: 111 | N19: Total Target Seq
A20: 22 | B20: 2193 | C20: 13 | D20: 2209 | E20: 13 | F20: 2217 | K20: 0 | L20: 211 | N20: =COUNTIF(L7:L51,G3) -> 38 | P20: 8 | Q20: 7 | R20: 8 | S20: 7 | T20: 8 | U20: 7
A21: 11 | B21: 2314 | C21: 11 | D21: 2322 | E21: 11 | F21: 2325 | K21: 0 | L21: 111 | P21: % of reinforcement given in 6 equal intervals based on number of trials
A22: 11 | B22: 2449 | C22: 11 | D22: 2466 | E22: 11 | F22: 2484 | K22: 0 | L22: 111 | P22: %_1 | Q22: %_2 | R22: %_3 | S22: %_4 | T22: %_5 | U22: %_6
A23: 11 | B23: 2575 | C23: 11 | D23: 2591 | E23: 11 | F23: 2630 | K23: 0 | L23: 111 | O23: target sequence | P23: =$G$3 -> 111 | Q23: =$G$3 -> 111 | R23: =$G$3 -> 111 | S23: =$G$3 -> 111 | T23: =$G$3 -> 111 | U23: =$G$3 -> 111
A24: 11 | B24: 2798 | C24: 11 | D24: 2865 | E24: 11 | F24: 2883 | K24: 0 | L24: 111 | O24: total reinforcement | P24: =U7 -> 6 | Q24: =Z7 -> 4 | R24: =AE7 -> 8 | S24: =AJ7 -> 6 | T24: =AO7 -> 7 | U24: =AT7 -> 7
A25: 11 | B25: 3094 | C25: 11 | D25: 3130 | E25: 11 | F25: 3150 | K25: 0 | L25: 111 | O25: % target
A26: 11 | B26: 3307 | C26: 11 | D26: 3348 | E26: 11 | F26: 3367 | K26: 0 | L26: 111 | O26: CCRF
A27: 11 | B27: 3570 | C27: 11 | D27: 3639 | E27: 11 | F27: 3660 | K27: 0 | L27: 111 | O27: % CCRf
A28: 11 | B28: 3777 | C28: 11 | D28: 3793 | E28: 11 | F28: 3812 | K28: 0 | L28: 111 | O28: average response rate | P28: =F14/P20 -> 149.5 | Q28: =(F21-F14)/Q20 -> 161.2857143 | R28: =(F29-F21)/R20 -> 205.75 | S28: =(F36-F29)/S20 -> 210.4285714 | T28: =(F44-F36)/T20 -> 176.375 | U28: =(F51-F44)/U20 -> 184.7142857
A29: 11 | B29: 3938 | C29: 11 | D29: 3955 | E29: 11 | F29: 3971 | K29: 0 | L29: 111
A30: 11 | B30: 4090 | C30: 11 | D30: 4110 | E30: 11 | F30: 4131 | K30: 0 | L30: 111
A31: 11 | B31: 4363 | C31: 11 | D31: 4567 | E31: 11 | F31: 4578 | K31: 0 | L31: 111
A32: 22 | B32: 4695 | C32: 24 | D32: 4697 | E32: 24 | F32: 4701 | K32: 0 | L32: 222
A33: 11 | B33: 4809 | C33: 11 | D33: 4816 | E33: 11 | F33: 4826 | K33: 0 | L33: 111
A34: 11 | B34: 4986 | C34: 11 | D34: 5006 | E34: 11 | F34: 5036 | K34: 0 | L34: 111
A35: 11 | B35: 5199 | C35: 11 | D35: 5221 | E35: 11 | F35: 5241 | K35: 0 | L35: 111
A36: 11 | B36: 5408 | C36: 11 | D36: 5428 | E36: 11 | F36: 5444 | K36: 0 | L36: 111
A37: 11 | B37: 5561 | C37: 11 | D37: 5575 | E37: 11 | F37: 5592 | K37: 0 | L37: 111
A38: 11 | B38: 5731 | C38: 11 | D38: 5747 | E38: 11 | F38: 5767 | K38: 0 | L38: 111
A39: 11 | B39: 5899 | C39: 11 | D39: 5916 | E39: 11 | F39: 5933 | K39: 0 | L39: 111
A40: 22 | B40: 6121 | C40: 24 | D40: 6125 | E40: 13 | F40: 6150 | K40: 0 | L40: 221
A41: 11 | B41: 6314 | C41: 11 | D41: 6335 | E41: 11 | F41: 6361 | K41: 0 | L41: 111
A42: 11 | B42: 6473 | C42: 11 | D42: 6487 | E42: 11 | F42: 6512 | K42: 0 | L42: 111
A43: 11 | B43: 6647 | C43: 11 | D43: 6664 | E43: 11 | F43: 6681 | K43: 0 | L43: 111
A44: 11 | B44: 6831 | C44: 11 | D44: 6841 | E44: 11 | F44: 6855 | K44: 0 | L44: 111
A45: 11 | B45: 6957 | C45: 11 | D45: 6969 | E45: 11 | F45: 6983 | K45: 0 | L45: 111
A46: 11 | B46: 7170 | C46: 11 | D46: 7214 | E46: 11 | F46: 7228 | K46: 0 | L46: 111
A47: 11 | B47: 7492 | C47: 11 | D47: 7505 | E47: 11 | F47: 7520 | K47: 0 | L47: 111
A48: 11 | B48: 7662 | C48: 11 | D48: 7676 | E48: 11 | F48: 7693 | K48: 0 | L48: 111
A49: 11 | B49: 7820 | C49: 11 | D49: 7833 | E49: 11 | F49: 7853 | K49: 0 | L49: 111
A50: 11 | B50: 7986 | C50: 11 | D50: 7998 | E50: 11 | F50: 8012 | K50: 0 | L50: 111
A51: 11 | B51: 8117 | C51: 11 | D51: 8131 | E51: 11 | F51: 8148 | K51: 1 | L51: 111

Sheet !N207A1B.AXT
A1: Report for:!N207A1B.AXT
A2: Date: | B2: <date>
A3: Hen: | B3: <hen> | F3: Correct Sequence | G3: =Start!J2 -> 111 | P3: Total Sequences in Data | Q3: =4994-COUNTBLANK(L7:L5000) -> 41 | V3: Total Sequences in Block Data | W3: =COUNTA(L7:L13) -> 7 | AA3: Total Sequences in Block Data | AB3: =COUNTA(L14:L20) -> 7 | AF3: Total Sequences in Block Data | AG3: =COUNTA(L21:L26) -> 6 | AK3: Total Sequences in Block Data | AL3: =COUNTA(L27:L33) -> 7 | AP3: Total Sequences in Block Data | AQ3: =COUNTA(L34:L40) -> 7 | AU3: Total Sequences in Block Data | AV3: =COUNTA(L41:L47) -> 7
P4: Total Sequences in Summary | Q4: =SUM(O7:O14) -> 41 | V4: Total Sequences in Block Summary | W4: =SUM(U7:U14) -> 7 | AA4: Total Sequences in Block Summary | AB4: =SUM(Z7:Z14) -> 7 | AF4: Total Sequences in Block Summary | AG4: =SUM(AE7:AE14) -> 6 | AK4: Total Sequences in Block Summary | AL4: =SUM(AJ7:AJ14) -> 7 | AP4: Total Sequences in Block Summary | AQ4: =SUM(AO7:AO14) -> 7 | AU4: Total Sequences in Block Summary | AV4: =SUM(AT7:AT14) -> 7
T5: Block 1 | Y5: Block 2 | AD5: Block 3 | AI5: Block 4 | AN5: Block 5 | AS5: Block 6
A6: Sequence Component 1 | B6: Time 1 | C6: Sequence Component 2 | D6: Time 2 | E6: Sequence Component 3 | F6: Time 3 | G6: Sequence Component 4 | H6: Time 4 | I6: Sequence Component 5 | J6: Time 5 | K6: Correct? 0=No 1=Yes | L6: Sequence | N6: Frequency | P6: Relative Frequency | Q6: Variability | T6: Frequency | V6: Relative Frequency | W6: Variability | Y6: Frequency | AA6: Relative Frequency | AB6: Variability | AD6: Frequency | AF6: Relative Frequency | AG6: Variability | AI6: Frequency | AK6: Relative Frequency | AL6: Variability | AN6: Frequency | AP6: Relative Frequency | AQ6: Variability | AS6: Frequency | AU6: Relative Frequency | AV6: Variability
A7: 11 | B7: 66 | C7: 11 | D7: 81 | E7: 11 | F7: 99 | K7: 0 | L7: 111 | N7: 111 | O7: =COUNTIF($L$7:$L$500,N7) -> 40 | P7: =O7/$Q$4 -> 0.9756097561 | Q7: =IF(P7=0,0,(P7*((LOG(P7))/LOG(2)))) -> -0.03475503388 | T7: =N7 -> 111 | U7: =COUNTIF(L7:L13,T7) -> 6 | Y7: =N7 -> 111 | Z7: =COUNTIF(L14:L20,Y7) -> 7 | AD7: =N7 -> 111 | AE7: =COUNTIF(L21:L26,AD7) -> 6 | AI7: =N7 -> 111 | AJ7: =COUNTIF(L27:L33,AI7) -> 7 | AN7: =N7 -> 111 | AO7: =COUNTIF(L34:L40,AN7) -> 7 | AS7: =N7 -> 111 | AT7: =COUNTIF(L41:L47,AS7) -> 7
A8: 11 | B8: 201 | C8: 11 | D8: 211 | E8: 11 | F8: 235 | K8: 0 | L8: 111 | N8: 112 | O8: =COUNTIF($L$7:$L$500,N8) -> 0 | P8: =O8/$Q$4 -> 0 | Q8: =IF(P8=0,0,(P8*((LOG(P8))/LOG(2)))) -> 0 | T8: =N8 -> 112 | U8: =COUNTIF(L7:L13,T8) -> 0 | V8: =U8/(W4-U7) -> 0 | W8: =IF(V8=0,0,(V8*((LOG(V8))/LOG(2)))) -> 0 | Y8: =N8 -> 112 | Z8: =COUNTIF(L14:L20,Y8) -> 0 | AA8: =Z8/(AB4-Z7) ->  | AB8: =IF(AA8=0,0,(AA8*((LOG(AA8))/LOG(2)))) ->  | AD8: =N8 -> 112 | AE8: =COUNTIF(L21:L26,AD8) -> 0 | AF8: =AE8/(AG4-AE7) ->  | AG8: =IF(AF8=0,0,(AF8*((LOG(AF8))/LOG(2)))) ->  | AI8: =N8 -> 112 | AJ8: =COUNTIF(L27:L33,AI8) -> 0 | AK8: =AJ8/(AL4-AJ7) ->  | AL8: =IF(AK8=0,0,(AK8*((LOG(AK8))/LOG(2)))) ->  | AN8: =N8 -> 112 | AO8: =COUNTIF(L34:L40,AN8) -> 0 | AP8: =AO8/(AQ4-AO7) ->  | AQ8: =IF(AP8=0,0,(AP8*((LOG(AP8))/LOG(2)))) ->  | AS8: =N8 -> 112 | AT8: =COUNTIF(L41:L47,AS8) -> 0 | AU8: =AT8/(AV4-AT7) ->  | AV8: =IF(AU8=0,0,(AU8*((LOG(AU8))/LOG(2)))) -> 
A9: 22 | B9: 332 | C9: 13 | D9: 345 | E9: 13 | F9: 352 | K9: 0 | L9: 211 | N9: 121 | O9: =COUNTIF($L$7:$L$500,N9) -> 0 | P9: =O9/$Q$4 -> 0 | Q9: =IF(P9=0,0,(P9*((LOG(P9))/LOG(2)))) -> 0 | T9: =N9 -> 121 | U9: =COUNTIF(L7:L13,T9) -> 0 | V9: =U9/(W4-U7) -> 0 | W9: =IF(V9=0,0,(V9*((LOG(V9))/LOG(2)))) -> 0 | Y9: =N9 -> 121 | Z9: =COUNTIF(L14:L20,Y9) -> 0 | AA9: =Z9/(AB4-Z7) ->  | AB9: =IF(AA9=0,0,(AA9*((LOG(AA9))/LOG(2)))) ->  | AD9: =N9 -> 121 | AE9: =COUNTIF(L21:L26,AD9) -> 0 | AF9: =AE9/(AG4-AE7) ->  | AG9: =IF(AF9=0,0,(AF9*((LOG(AF9))/LOG(2)))) ->  | AI9: =N9 -> 121 | AJ9: =COUNTIF(L27:L33,AI9) -> 0 | AK9: =AJ9/(AL4-AJ7) ->  | AL9: =IF(AK9=0,0,(AK9*((LOG(AK9))/LOG(2)))) ->  | AN9: =N9 -> 121 | AO9: =COUNTIF(L34:L40,AN9) -> 0 | AP9: =AO9/(AQ4-AO7) ->  | AQ9: =IF(AP9=0,0,(AP9*((LOG(AP9))/LOG(2)))) ->  | AS9: =N9 -> 121 | AT9: =COUNTIF(L41:L47,AS9) -> 0 | AU9: =AT9/(AV4-AT7) ->  | AV9: =IF(AU9=0,0,(AU9*((LOG(AU9))/LOG(2)))) -> 
A10: 11 | B10: 451 | C10: 11 | D10: 455 | E10: 11 | F10: 472 | K10: 0 | L10: 111 | N10: 122 | O10: =COUNTIF($L$7:$L$500,N10) -> 0 | P10: =O10/$Q$4 -> 0 | Q10: =IF(P10=0,0,(P10*((LOG(P10))/LOG(2)))) -> 0 | T10: =N10 -> 122 | U10: =COUNTIF(L7:L13,T10) -> 0 | V10: =U10/(W4-U7) -> 0 | W10: =IF(V10=0,0,(V10*((LOG(V10))/LOG(2)))) -> 0 | Y10: =N10 -> 122 | Z10: =COUNTIF(L14:L20,Y10) -> 0 | AA10: =Z10/(AB4-Z7) ->  | AB10: =IF(AA10=0,0,(AA10*((LOG(AA10))/LOG(2)))) ->  | AD10: =N10 -> 122 | AE10: =COUNTIF(L21:L26,AD10) -> 0 | AF10: =AE10/(AG4-AE7) ->  | AG10: =IF(AF10=0,0,(AF10*((LOG(AF10))/LOG(2)))) ->  | AI10: =N10 -> 122 | AJ10: =COUNTIF(L27:L33,AI10) -> 0 | AK10: =AJ10/(AL4-AJ7) ->  | AL10: =IF(AK10=0,0,(AK10*((LOG(AK10))/LOG(2)))) ->  | AN10: =N10 -> 122 | AO10: =COUNTIF(L34:L40,AN10) -> 0 | AP10: =AO10/(AQ4-AO7) ->  | AQ10: =IF(AP10=0,0,(AP10*((LOG(AP10))/LOG(2)))) ->  | AS10: =N10 -> 122 | AT10: =COUNTIF(L41:L47,AS10) -> 0 | AU10: =AT10/(AV4-AT7) ->  | AV10: =IF(AU10=0,0,(AU10*((LOG(AU10))/LOG(2)))) -> 
A11: 11 | B11: 622 | C11: 11 | D11: 641 | E11: 11 | F11: 663 | K11: 0 | L11: 111 | N11: 211 | O11: =COUNTIF($L$7:$L$500,N11) -> 1 | P11: =O11/$Q$4 -> 0.0243902439 | Q11: =IF(P11=0,0,(P11*((LOG(P11))/LOG(2)))) -> -0.1306720001 | T11: =N11 -> 211 | U11: =COUNTIF(L7:L13,T11) -> 1 | V11: =U11/(W4-U7) -> 1 | W11: =IF(V11=0,0,(V11*((LOG(V11))/LOG(2)))) -> 0 | Y11: =N11 -> 211 | Z11: =COUNTIF(L14:L20,Y11) -> 0 | AA11: =Z11/(AB4-Z7) ->  | AB11: =IF(AA11=0,0,(AA11*((LOG(AA11))/LOG(2)))) ->  | AD11: =N11 -> 211 | AE11: =COUNTIF(L21:L26,AD11) -> 0 | AF11: =AE11/(AG4-AE7) ->  | AG11: =IF(AF11=0,0,(AF11*((LOG(AF11))/LOG(2)))) ->  | AI11: =N11 -> 211 | AJ11: =COUNTIF(L27:L33,AI11) -> 0 | AK11: =AJ11/(AL4-AJ7) ->  | AL11: =IF(AK11=0,0,(AK11*((LOG(AK11))/LOG(2)))) ->  | AN11: =N11 -> 211 | AO11: =COUNTIF(L34:L40,AN11) -> 0 | AP11: =AO11/(AQ4-AO7) ->  | AQ11: =IF(AP11=0,0,(AP11*((LOG(AP11))/LOG(2)))) ->  | AS11: =N11 -> 211 | AT11: =COUNTIF(L41:L47,AS11) -> 0 | AU11: =AT11/(AV4-AT7) ->  | AV11: =IF(AU11=0,0,(AU11*((LOG(AU11))/LOG(2)))) -> 
A12: 11 | B12: 775 | C12: 11 | D12: 798 | E12: 11 | F12: 820 | K12: 0 | L12: 111 | N12: 212 | O12: =COUNTIF($L$7:$L$500,N12) -> 0 | P12: =O12/$Q$4 -> 0 | Q12: =IF(P12=0,0,(P12*((LOG(P12))/LOG(2)))) -> 0 | T12: =N12 -> 212 | U12: =COUNTIF(L7:L13,T12) -> 0 | V12: =U12/(W4-U7) -> 0 | W12: =IF(V12=0,0,(V12*((LOG(V12))/LOG(2)))) -> 0 | Y12: =N12 -> 212 | Z12: =COUNTIF(L14:L20,Y12) -> 0 | AA12: =Z12/(AB4-Z7) ->  | AB12: =IF(AA12=0,0,(AA12*((LOG(AA12))/LOG(2)))) ->  | AD12: =N12 -> 212 | AE12: =COUNTIF(L21:L26,AD12) -> 0 | AF12: =AE12/(AG4-AE7) ->  | AG12: =IF(AF12=0,0,(AF12*((LOG(AF12))/LOG(2)))) ->  | AI12: =N12 -> 212 | AJ12: =COUNTIF(L27:L33,AI12) -> 0 | AK12: =AJ12/(AL4-AJ7) ->  | AL12: =IF(AK12=0,0,(AK12*((LOG(AK12))/LOG(2)))) ->  | AN12: =N12 -> 212 | AO12: =COUNTIF(L34:L40,AN12) -> 0 | AP12: =AO12/(AQ4-AO7) ->  | AQ12: =IF(AP12=0,0,(AP12*((LOG(AP12))/LOG(2)))) ->  | AS12: =N12 -> 212 | AT12: =COUNTIF(L41:L47,AS12) -> 0 | AU12: =AT12/(AV4-AT7) ->  | AV12: =IF(AU12=0,0,(AU12*((LOG(AU12))/LOG(2)))) -> 
A13: 11 | B13: 1015 | C13: 11 | D13: 1035 | E13: 11 | F13: 1073 | K13: 0 | L13: 111 | N13: 221 | O13: =COUNTIF($L$7:$L$500,N13) -> 0 | P13: =O13/$Q$4 -> 0 | Q13: =IF(P13=0,0,(P13*((LOG(P13))/LOG(2)))) -> 0 | T13: =N13 -> 221 | U13: =COUNTIF(L7:L13,T13) -> 0 | V13: =U13/(W4-U7) -> 0 | W13: =IF(V13=0,0,(V13*((LOG(V13))/LOG(2)))) -> 0 | Y13: =N13 -> 221 | Z13: =COUNTIF(L14:L20,Y13) -> 0 | AA13: =Z13/(AB4-Z7) ->  | AB13: =IF(AA13=0,0,(AA13*((LOG(AA13))/LOG(2)))) ->  | AD13: =N13 -> 221 | AE13: =COUNTIF(L21:L26,AD13) -> 0 | AF13: =AE13/(AG4-AE7) ->  | AG13: =IF(AF13=0,0,(AF13*((LOG(AF13))/LOG(2)))) ->  | AI13: =N13 -> 221 | AJ13: =COUNTIF(L27:L33,AI13) -> 0 | AK13: =AJ13/(AL4-AJ7) ->  | AL13: =IF(AK13=0,0,(AK13*((LOG(AK13))/LOG(2)))) ->  | AN13: =N13 -> 221 | AO13: =COUNTIF(L34:L40,AN13) -> 0 | AP13: =AO13/(AQ4-AO7) ->  | AQ13: =IF(AP13=0,0,(AP13*((LOG(AP13))/LOG(2)))) ->  | AS13: =N13 -> 221 | AT13: =COUNTIF(L41:L47,AS13) -> 0 | AU13: =AT13/(AV4-AT7) ->  | AV13: =IF(AU13=0,0,(AU13*((LOG(AU13))/LOG(2)))) -> 
A14: 11 | B14: 1167 | C14: 11 | D14: 1200 | E14: 11 | F14: 1218 | K14: 0 | L14: 111 | N14: 222 | O14: =COUNTIF($L$7:$L$500,N14) -> 0 | P14: =O14/$Q$4 -> 0 | Q14: =IF(P14=0,0,(P14*((LOG(P14))/LOG(2)))) -> 0 | T14: =N14 -> 222 | U14: =COUNTIF(L7:L13,T14) -> 0 | V14: =U14/(W4-U7) -> 0 | W14: =IF(V14=0,0,(V14*((LOG(V14))/LOG(2)))) -> 0 | Y14: =N14 -> 222 | Z14: =COUNTIF(L14:L20,Y14) -> 0 | AA14: =Z14/(AB4-Z7) ->  | AB14: =IF(AA14=0,0,(AA14*((LOG(AA14))/LOG(2)))) ->  | AD14: =N14 -> 222 | AE14: =COUNTIF(L21:L26,AD14) -> 0 | AF14: =AE14/(AG4-AE7) ->  | AG14: =IF(AF14=0,0,(AF14*((LOG(AF14))/LOG(2)))) ->  | AI14: =N14 -> 222 | AJ14: =COUNTIF(L27:L33,AI14) -> 0 | AK14: =AJ14/(AL4-AJ7) ->  | AL14: =IF(AK14=0,0,(AK14*((LOG(AK14))/LOG(2)))) ->  | AN14: =N14 -> 222 | AO14: =COUNTIF(L34:L40,AN14) -> 0 | AP14: =AO14/(AQ4-AO7) ->  | AQ14: =IF(AP14=0,0,(AP14*((LOG(AP14))/LOG(2)))) ->  | AS14: =N14 -> 222 | AT14: =COUNTIF(L41:L47,AS14) -> 0 | AU14: =AT14/(AV4-AT7) ->  | AV14: =IF(AU14=0,0,(AU14*((LOG(AU14))/LOG(2)))) -> 
A15: 11 | B15: 1393 | C15: 11 | D15: 1422 | E15: 11 | F15: 1446 | K15: 0 | L15: 111 | P15: =SUM(P7:P14) -> 1 | Q15: =-SUM(Q7:Q14) -> 0.165427034 | V15: =SUM(V7:V14) -> 1 | W15: =-SUM(W7:W14) -> 0 | AA15: =SUM(AA7:AA14) ->  | AB15: =-SUM(AB7:AB14) ->  | AF15: =SUM(AF7:AF14) ->  | AG15: =-SUM(AG7:AG14) ->  | AK15: =SUM(AK7:AK14) ->  | AL15: =-SUM(AL7:AL14) ->  | AP15: =SUM(AP7:AP14) ->  | AQ15: =-SUM(AQ7:AQ14) ->  | AU15: =SUM(AU7:AU14) ->  | AV15: =-SUM(AV7:AV14) -> 
A16: 11 | B16: 1598 | C16: 11 | D16: 1645 | E16: 11 | F16: 1665 | K16: 0 | L16: 111 | P16: U= | Q16: =Q15/(LOG(Q4)/LOG(2)) -> 0.03087735478 | V16: U1= | W16: =W15/(LOG(W4)/LOG(2)) -> 0 | AA16: U2= | AB16: =AB15/(LOG(AB4)/LOG(2)) ->  | AF16: U3= | AG16: =AG15/(LOG(AG4)/LOG(2)) ->  | AK16: U4= | AL16: =AL15/(LOG(AL4)/LOG(2)) ->  | AP16: U5= | AQ16: =AQ15/(LOG(AQ4)/LOG(2)) ->  | AU16: U6= | AV16: =AV15/(LOG(AV4)/LOG(2)) -> 
A17: 11 | B17: 1803 | C17: 11 | D17: 1821 | E17: 11 | F17: 1849 | K17: 0 | L17: 111
A18: 11 | B18: 2003 | C18: 11 | D18: 2035 | E18: 11 | F18: 2046 | K18: 0 | L18: 111
A19: 11 | B19: 2301 | C19: 11 | D19: 2320 | E19: 11 | F19: 2337 | K19: 0 | L19: 111 | N19: Total Target Seq
A20: 11 | B20: 2456 | C20: 11 | D20: 2470 | E20: 11 | F20: 2487 | K20: 0 | L20: 111 | N20: =COUNTIF(L7:L47,G3) -> 40 | P20: 7 | Q20: 7 | R20: 6 | S20: 7 | T20: 7 | U20: 7
A21: 11 | B21: 2696 | C21: 11 | D21: 2713 | E21: 11 | F21: 2727 | K21: 0 | L21: 111 | P21: % of reinforcement given in 6 equal intervals based on number of trials
A22: 11 | B22: 2938 | C22: 11 | D22: 2954 | E22: 11 | F22: 2968 | K22: 0 | L22: 111 | P22: %_1 | Q22: %_2 | R22: %_3 | S22: %_4 | T22: %_5 | U22: %_6
A23: 11 | B23: 3110 | C23: 11 | D23: 3125 | E23: 11 | F23: 3140 | K23: 0 | L23: 111 | O23: target sequence | P23: =$G$3 -> 111 | Q23: =$G$3 -> 111 | R23: =$G$3 -> 111 | S23: =$G$3 -> 111 | T23: =$G$3 -> 111 | U23: =$G$3 -> 111
A24: 11 | B24: 3261 | C24: 11 | D24: 3278 | E24: 11 | F24: 3301 | K24: 0 | L24: 111 | O24: total reinforcement | P24: =U7 -> 6 | Q24: =Z7 -> 7 | R24: =AE7 -> 6 | S24: =AJ7 -> 7 | T24: =AO7 -> 7 | U24: =AT7 -> 7
A25: 11 | B25: 3402 | C25: 11 | D25: 3424 | E25: 11 | F25: 3439 | K25: 0 | L25: 111 | O25: % target
A26: 11 | B26: 3668 | C26: 11 | D26: 3720 | E26: 11 | F26: 3741 | K26: 0 | L26: 111 | O26: CCRF
A27: 11 | B27: 3867 | C27: 11 | D27: 3890 | E27: 11 | F27: 3900 | K27: 0 | L27: 111 | O27: % CCRf
A28: 11 | B28: 4011 | C28: 11 | D28: 4027 | E28: 11 | F28: 4047 | K28: 0 | L28: 111 | O28: average response rate | P28: =F13/P20 -> 153.2857143 | Q28: =(F20-F13)/Q20 -> 202 | R28: =(F26-F20)/R20 -> 209 | S28: =(F33-F26)/S20 -> 172.7142857 | T28: =(F40-F33)/T20 -> 171.8571429 | U28: =(F47-F40)/U20 -> 186.1428571
A29: 11 | B29: 4261 | C29: 11 | D29: 4271 | E29: 11 | F29: 4284 | K29: 0 | L29: 111
A30: 11 | B30: 4437 | C30: 11 | D30: 4465 | E30: 11 | F30: 4487 | K30: 0 | L30: 111
A31: 11 | B31: 4614 | C31: 11 | D31: 4633 | E31: 11 | F31: 4661 | K31: 0 | L31: 111
A32: 11 | B32: 4758 | C32: 11 | D32: 4780 | E32: 11 | F32: 4801 | K32: 0 | L32: 111
A33: 11 | B33: 4921 | C33: 11 | D33: 4934 | E33: 11 | F33: 4950 | K33: 0 | L33: 111
A34: 11 | B34: 5073 | C34: 11 | D34: 5082 | E34: 11 | F34: 5094 | K34: 0 | L34: 111
A35: 11 | B35: 5294 | C35: 11 | D35: 5304 | E35: 11 | F35: 5321 | K35: 0 | L35: 111
A36: 11 | B36: 5412 | C36: 11 | D36: 5429 | E36: 11 | F36: 5447 | K36: 0 | L36: 111
A37: 11 | B37: 5550 | C37: 11 | D37: 5570 | E37: 11 | F37: 5586 | K37: 0 | L37: 111
A38: 11 | B38: 5751 | C38: 11 | D38: 5765 | E38: 11 | F38: 5777 | K38: 0 | L38: 111
A39: 11 | B39: 5961 | C39: 11 | D39: 5975 | E39: 11 | F39: 5989 | K39: 0 | L39: 111
A40: 11 | B40: 6093 | C40: 11 | D40: 6134 | E40: 11 | F40: 6153 | K40: 0 | L40: 111
A41: 11 | B41: 6301 | C41: 11 | D41: 6321 | E41: 11 | F41: 6346 | K41: 0 | L41: 111
A42: 11 | B42: 6464 | C42: 11 | D42: 6481 | E42: 11 | F42: 6496 | K42: 0 | L42: 111
A43: 11 | B43: 6629 | C43: 11 | D43: 6644 | E43: 11 | F43: 6660 | K43: 0 | L43: 111
A44: 11 | B44: 6824 | C44: 11 | D44: 6833 | E44: 11 | F44: 6846 | K44: 0 | L44: 111
A45: 11 | B45: 7079 | C45: 11 | D45: 7092 | E45: 11 | F45: 7107 | K45: 0 | L45: 111
A46: 11 | B46: 7255 | C46: 11 | D46: 7272 | E46: 11 | F46: 7293 | K46: 0 | L46: 111
A47: 11 | B47: 7417 | C47: 11 | D47: 7438 | E47: 11 | F47: 7456 | K47: 1 | L47: 111

Sheet !N20893B.AXT
A1: Report for:!N20893B.AXT
A2: Date: | B2: <date>
A3: Hen: | B3: <hen> | F3: Correct Sequence | G3: =Start!J2 -> 111 | P3: Total Sequences in Data | Q3: =4994-COUNTBLANK(L7:L5000) -> 43 | V3: Total Sequences in Block Data | W3: =COUNTA(L7:L13) -> 7 | AA3: Total Sequences in Block Data | AB3: =COUNTA(L14:L20) -> 7 | AF3: Total Sequences in Block Data | AG3: =COUNTA(L21:L28) -> 8 | AK3: Total Sequences in Block Data | AL3: =COUNTA(L29:L35) -> 7 | AP3: Total Sequences in Block Data | AQ3: =COUNTA(L36:L42) -> 7 | AU3: Total Sequences in Block Data | AV3: =COUNTA(L43:L49) -> 7
P4: Total Sequences in Summary | Q4: =SUM(O7:O14) -> 43 | V4: Total Sequences in Block Summary | W4: =SUM(U7:U14) -> 7 | AA4: Total Sequences in Block Summary | AB4: =SUM(Z7:Z14) -> 7 | AF4: Total Sequences in Block Summary | AG4: =SUM(AE7:AE14) -> 8 | AK4: Total Sequences in Block Summary | AL4: =SUM(AJ7:AJ14) -> 7 | AP4: Total Sequences in Block Summary | AQ4: =SUM(AO7:AO14) -> 7 | AU4: Total Sequences in Block Summary | AV4: =SUM(AT7:AT14) -> 7
T5: Block 1 | Y5: Block 2 | AD5: Block 3 | AI5: Block 4 | AN5: Block 5 | AS5: Block 6
A6: Sequence Component 1 | B6: Time 1 | C6: Sequence Component 2 | D6: Time 2 | E6: Sequence Component 3 | F6: Time 3 | G6: Sequence Component 4 | H6: Time 4 | I6: Sequence Component 5 | J6: Time 5 | K6: Correct? 0=No 1=Yes | L6: Sequence | N6: Frequency | P6: Relative Frequency | Q6: Variability | T6: Frequency | V6: Relative Frequency | W6: Variability | Y6: Frequency | AA6: Relative Frequency | AB6: Variability | AD6: Frequency | AF6: Relative Frequency | AG6: Variability | AI6: Frequency | AK6: Relative Frequency | AL6: Variability | AN6: Frequency | AP6: Relative Frequency | AQ6: Variability | AS6: Frequency | AU6: Relative Frequency | AV6: Variability
A7: 11 | B7: 78 | C7: 11 | D7: 93 | E7: 11 | F7: 107 | K7: 0 | L7: 111 | N7: 111 | O7: =COUNTIF($L$7:$L$500,N7) -> 40 | P7: =O7/$Q$4 -> 0.9302325581 | Q7: =IF(P7=0,0,(P7*((LOG(P7))/LOG(2)))) -> -0.09705735797 | T7: =N7 -> 111 | U7: =COUNTIF(L7:L13,T7) -> 7 | Y7: =N7 -> 111 | Z7: =COUNTIF(L14:L20,Y7) -> 7 | AD7: =N7 -> 111 | AE7: =COUNTIF(L21:L28,AD7) -> 6 | AI7: =N7 -> 111 | AJ7: =COUNTIF(L29:L35,AI7) -> 6 | AN7: =N7 -> 111 | AO7: =COUNTIF(L36:L42,AN7) -> 7 | AS7: =N7 -> 111 | AT7: =COUNTIF(L43:L49,AS7) -> 7
A8: 11 | B8: 237 | C8: 11 | D8: 255 | E8: 11 | F8: 294 | K8: 0 | L8: 111 | N8: 112 | O8: =COUNTIF($L$7:$L$500,N8) -> 0 | P8: =O8/$Q$4 -> 0 | Q8: =IF(P8=0,0,(P8*((LOG(P8))/LOG(2)))) -> 0 | T8: =N8 -> 112 | U8: =COUNTIF(L7:L13,T8) -> 0 | V8: =U8/(W4-U7) ->  | W8: =IF(V8=0,0,(V8*((LOG(V8))/LOG(2)))) ->  | Y8: =N8 -> 112 | Z8: =COUNTIF(L14:L20,Y8) -> 0 | AA8: =Z8/(AB4-Z7) ->  | AB8: =IF(AA8=0,0,(AA8*((LOG(AA8))/LOG(2)))) ->  | AD8: =N8 -> 112 | AE8: =COUNTIF(L21:L28,AD8) -> 0 | AF8: =AE8/(AG4-AE7) -> 0 | AG8: =IF(AF8=0,0,(AF8*((LOG(AF8))/LOG(2)))) -> 0 | AI8: =N8 -> 112 | AJ8: =COUNTIF(L29:L35,AI8) -> 0 | AK8: =AJ8/(AL4-AJ7) -> 0 | AL8: =IF(AK8=0,0,(AK8*((LOG(AK8))/LOG(2)))) -> 0 | AN8: =N8 -> 112 | AO8: =COUNTIF(L36:L42,AN8) -> 0 | AP8: =AO8/(AQ4-AO7) ->  | AQ8: =IF(AP8=0,0,(AP8*((LOG(AP8))/LOG(2)))) ->  | AS8: =N8 -> 112 | AT8: =COUNTIF(L43:L49,AS8) -> 0 | AU8: =AT8/(AV4-AT7) ->  | AV8: =IF(AU8=0,0,(AU8*((LOG(AU8))/LOG(2)))) -> 
A9: 11 | B9: 587 | C9: 11 | D9: 605 | E9: 11 | F9: 633 | K9: 0 | L9: 111 | N9: 121 | O9: =COUNTIF($L$7:$L$500,N9) -> 0 | P9: =O9/$Q$4 -> 0 | Q9: =IF(P9=0,0,(P9*((LOG(P9))/LOG(2)))) -> 0 | T9: =N9 -> 121 | U9: =COUNTIF(L7:L13,T9) -> 0 | V9: =U9/(W4-U7) ->  | W9: =IF(V9=0,0,(V9*((LOG(V9))/LOG(2)))) ->  | Y9: =N9 -> 121 | Z9: =COUNTIF(L14:L20,Y9) -> 0 | AA9: =Z9/(AB4-Z7) ->  | AB9: =IF(AA9=0,0,(AA9*((LOG(AA9))/LOG(2)))) ->  | AD9: =N9 -> 121 | AE9: =COUNTIF(L21:L28,AD9) -> 0 | AF9: =AE9/(AG4-AE7) -> 0 | AG9: =IF(AF9=0,0,(AF9*((LOG(AF9))/LOG(2)))) -> 0 | AI9: =N9 -> 121 | AJ9: =COUNTIF(L29:L35,AI9) -> 0 | AK9: =AJ9/(AL4-AJ7) -> 0 | AL9: =IF(AK9=0,0,(AK9*((LOG(AK9))/LOG(2)))) -> 0 | AN9: =N9 -> 121 | AO9: =COUNTIF(L36:L42,AN9) -> 0 | AP9: =AO9/(AQ4-AO7) ->  | AQ9: =IF(AP9=0,0,(AP9*((LOG(AP9))/LOG(2)))) ->  | AS9: =N9 -> 121 | AT9: =COUNTIF(L43:L49,AS9) -> 0 | AU9: =AT9/(AV4-AT7) ->  | AV9: =IF(AU9=0,0,(AU9*((LOG(AU9))/LOG(2)))) -> 
A10: 11 | B10: 729 | C10: 11 | D10: 744 | E10: 11 | F10: 759 | K10: 0 | L10: 111 | N10: 122 | O10: =COUNTIF($L$7:$L$500,N10) -> 0 | P10: =O10/$Q$4 -> 0 | Q10: =IF(P10=0,0,(P10*((LOG(P10))/LOG(2)))) -> 0 | T10: =N10 -> 122 | U10: =COUNTIF(L7:L13,T10) -> 0 | V10: =U10/(W4-U7) ->  | W10: =IF(V10=0,0,(V10*((LOG(V10))/LOG(2)))) ->  | Y10: =N10 -> 122 | Z10: =COUNTIF(L14:L20,Y10) -> 0 | AA10: =Z10/(AB4-Z7) ->  | AB10: =IF(AA10=0,0,(AA10*((LOG(AA10))/LOG(2)))) ->  | AD10: =N10 -> 122 | AE10: =COUNTIF(L21:L28,AD10) -> 0 | AF10: =AE10/(AG4-AE7) -> 0 | AG10: =IF(AF10=0,0,(AF10*((LOG(AF10))/LOG(2)))) -> 0 | AI10: =N10 -> 122 | AJ10: =COUNTIF(L29:L35,AI10) -> 0 | AK10: =AJ10/(AL4-AJ7) -> 0 | AL10: =IF(AK10=0,0,(AK10*((LOG(AK10))/LOG(2)))) -> 0 | AN10: =N10 -> 122 | AO10: =COUNTIF(L36:L42,AN10) -> 0 | AP10: =AO10/(AQ4-AO7) ->  | AQ10: =IF(AP10=0,0,(AP10*((LOG(AP10))/LOG(2)))) ->  | AS10: =N10 -> 122 | AT10: =COUNTIF(L43:L49,AS10) -> 0 | AU10: =AT10/(AV4-AT7) ->  | AV10: =IF(AU10=0,0,(AU10*((LOG(AU10))/LOG(2)))) -> 
A11: 11 | B11: 877 | C11: 11 | D11: 895 | E11: 11 | F11: 915 | K11: 0 | L11: 111 | N11: 211 | O11: =COUNTIF($L$7:$L$500,N11) -> 2 | P11: =O11/$Q$4 -> 0.04651162791 | Q11: =IF(P11=0,0,(P11*((LOG(P11))/LOG(2)))) -> -0.2058727793 | T11: =N11 -> 211 | U11: =COUNTIF(L7:L13,T11) -> 0 | V11: =U11/(W4-U7) ->  | W11: =IF(V11=0,0,(V11*((LOG(V11))/LOG(2)))) ->  | Y11: =N11 -> 211 | Z11: =COUNTIF(L14:L20,Y11) -> 0 | AA11: =Z11/(AB4-Z7) ->  | AB11: =IF(AA11=0,0,(AA11*((LOG(AA11))/LOG(2)))) ->  | AD11: =N11 -> 211 | AE11: =COUNTIF(L21:L28,AD11) -> 2 | AF11: =AE11/(AG4-AE7) -> 1 | AG11: =IF(AF11=0,0,(AF11*((LOG(AF11))/LOG(2)))) -> 0 | AI11: =N11 -> 211 | AJ11: =COUNTIF(L29:L35,AI11) -> 0 | AK11: =AJ11/(AL4-AJ7) -> 0 | AL11: =IF(AK11=0,0,(AK11*((LOG(AK11))/LOG(2)))) -> 0 | AN11: =N11 -> 211 | AO11: =COUNTIF(L36:L42,AN11) -> 0 | AP11: =AO11/(AQ4-AO7) ->  | AQ11: =IF(AP11=0,0,(AP11*((LOG(AP11))/LOG(2)))) ->  | AS11: =N11 -> 211 | AT11: =COUNTIF(L43:L49,AS11) -> 0 | AU11: =AT11/(AV4-AT7) ->  | AV11: =IF(AU11=0,0,(AU11*((LOG(AU11))/LOG(2)))) -> 
A12: 11 | B12: 1214 | C12: 11 | D12: 1231 | E12: 11 | F12: 1253 | K12: 0 | L12: 111 | N12: 212 | O12: =COUNTIF($L$7:$L$500,N12) -> 1 | P12: =O12/$Q$4 -> 0.02325581395 | Q12: =IF(P12=0,0,(P12*((LOG(P12))/LOG(2)))) -> -0.1261922036 | T12: =N12 -> 212 | U12: =COUNTIF(L7:L13,T12) -> 0 | V12: =U12/(W4-U7) ->  | W12: =IF(V12=0,0,(V12*((LOG(V12))/LOG(2)))) ->  | Y12: =N12 -> 212 | Z12: =COUNTIF(L14:L20,Y12) -> 0 | AA12: =Z12/(AB4-Z7) ->  | AB12: =IF(AA12=0,0,(AA12*((LOG(AA12))/LOG(2)))) ->  | AD12: =N12 -> 212 | AE12: =COUNTIF(L21:L28,AD12) -> 0 | AF12: =AE12/(AG4-AE7) -> 0 | AG12: =IF(AF12=0,0,(AF12*((LOG(AF12))/LOG(2)))) -> 0 | AI12: =N12 -> 212 | AJ12: =COUNTIF(L29:L35,AI12) -> 1 | AK12: =AJ12/(AL4-AJ7) -> 1 | AL12: =IF(AK12=0,0,(AK12*((LOG(AK12))/LOG(2)))) -> 0 | AN12: =N12 -> 212 | AO12: =COUNTIF(L36:L42,AN12) -> 0 | AP12: =AO12/(AQ4-AO7) ->  | AQ12: =IF(AP12=0,0,(AP12*((LOG(AP12))/LOG(2)))) ->  | AS12: =N12 -> 212 | AT12: =COUNTIF(L43:L49,AS12) -> 0 | AU12: =AT12/(AV4-AT7) ->  | AV12: =IF(AU12=0,0,(AU12*((LOG(AU12))/LOG(2)))) -> 
A13: 11 | B13: 1365 | C13: 11 | D13: 1380 | E13: 11 | F13: 1397 | K13: 0 | L13: 111 | N13: 221 | O13: =COUNTIF($L$7:$L$500,N13) -> 0 | P13: =O13/$Q$4 -> 0 | Q13: =IF(P13=0,0,(P13*((LOG(P13))/LOG(2)))) -> 0 | T13: =N13 -> 221 | U13: =COUNTIF(L7:L13,T13) -> 0 | V13: =U13/(W4-U7) ->  | W13: =IF(V13=0,0,(V13*((LOG(V13))/LOG(2)))) ->  | Y13: =N13 -> 221 | Z13: =COUNTIF(L14:L20,Y13) -> 0 | AA13: =Z13/(AB4-Z7) ->  | AB13: =IF(AA13=0,0,(AA13*((LOG(AA13))/LOG(2)))) ->  | AD13: =N13 -> 221 | AE13: =COUNTIF(L21:L28,AD13) -> 0 | AF13: =AE13/(AG4-AE7) -> 0 | AG13: =IF(AF13=0,0,(AF13*((LOG(AF13))/LOG(2)))) -> 0 | AI13: =N13 -> 221 | AJ13: =COUNTIF(L29:L35,AI13) -> 0 | AK13: =AJ13/(AL4-AJ7) -> 0 | AL13: =IF(AK13=0,0,(AK13*((LOG(AK13))/LOG(2)))) -> 0 | AN13: =N13 -> 221 | AO13: =COUNTIF(L36:L42,AN13) -> 0 | AP13: =AO13/(AQ4-AO7) ->  | AQ13: =IF(AP13=0,0,(AP13*((LOG(AP13))/LOG(2)))) ->  | AS13: =N13 -> 221 | AT13: =COUNTIF(L43:L49,AS13) -> 0 | AU13: =AT13/(AV4-AT7) ->  | AV13: =IF(AU13=0,0,(AU13*((LOG(AU13))/LOG(2)))) -> 
A14: 11 | B14: 1532 | C14: 11 | D14: 1549 | E14: 11 | F14: 1565 | K14: 0 | L14: 111 | N14: 222 | O14: =COUNTIF($L$7:$L$500,N14) -> 0 | P14: =O14/$Q$4 -> 0 | Q14: =IF(P14=0,0,(P14*((LOG(P14))/LOG(2)))) -> 0 | T14: =N14 -> 222 | U14: =COUNTIF(L7:L13,T14) -> 0 | V14: =U14/(W4-U7) ->  | W14: =IF(V14=0,0,(V14*((LOG(V14))/LOG(2)))) ->  | Y14: =N14 -> 222 | Z14: =COUNTIF(L14:L20,Y14) -> 0 | AA14: =Z14/(AB4-Z7) ->  | AB14: =IF(AA14=0,0,(AA14*((LOG(AA14))/LOG(2)))) ->  | AD14: =N14 -> 222 | AE14: =COUNTIF(L21:L28,AD14) -> 0 | AF14: =AE14/(AG4-AE7) -> 0 | AG14: =IF(AF14=0,0,(AF14*((LOG(AF14))/LOG(2)))) -> 0 | AI14: =N14 -> 222 | AJ14: =COUNTIF(L29:L35,AI14) -> 0 | AK14: =AJ14/(AL4-AJ7) -> 0 | AL14: =IF(AK14=0,0,(AK14*((LOG(AK14))/LOG(2)))) -> 0 | AN14: =N14 -> 222 | AO14: =COUNTIF(L36:L42,AN14) -> 0 | AP14: =AO14/(AQ4-AO7) ->  | AQ14: =IF(AP14=0,0,(AP14*((LOG(AP14))/LOG(2)))) ->  | AS14: =N14 -> 222 | AT14: =COUNTIF(L43:L49,AS14) -> 0 | AU14: =AT14/(AV4-AT7) ->  | AV14: =IF(AU14=0,0,(AU14*((LOG(AU14))/LOG(2)))) -> 
A15: 11 | B15: 1734 | C15: 11 | D15: 1755 | E15: 11 | F15: 1774 | K15: 0 | L15: 111 | P15: =SUM(P7:P14) -> 1 | Q15: =-SUM(Q7:Q14) -> 0.4291223409 | V15: =SUM(V7:V14) ->  | W15: =-SUM(W7:W14) ->  | AA15: =SUM(AA7:AA14) ->  | AB15: =-SUM(AB7:AB14) ->  | AF15: =SUM(AF7:AF14) -> 1 | AG15: =-SUM(AG7:AG14) -> 0 | AK15: =SUM(AK7:AK14) -> 1 | AL15: =-SUM(AL7:AL14) -> 0 | AP15: =SUM(AP7:AP14) ->  | AQ15: =-SUM(AQ7:AQ14) ->  | AU15: =SUM(AU7:AU14) ->  | AV15: =-SUM(AV7:AV14) -> 
A16: 11 | B16: 2064 | C16: 11 | D16: 2084 | E16: 11 | F16: 2103 | K16: 0 | L16: 111 | P16: U= | Q16: =Q15/(LOG(Q4)/LOG(2)) -> 0.07908245547 | V16: U1= | W16: =W15/(LOG(W4)/LOG(2)) ->  | AA16: U2= | AB16: =AB15/(LOG(AB4)/LOG(2)) ->  | AF16: U3= | AG16: =AG15/(LOG(AG4)/LOG(2)) -> 0 | AK16: U4= | AL16: =AL15/(LOG(AL4)/LOG(2)) -> 0 | AP16: U5= | AQ16: =AQ15/(LOG(AQ4)/LOG(2)) ->  | AU16: U6= | AV16: =AV15/(LOG(AV4)/LOG(2)) -> 
A17: 11 | B17: 2222 | C17: 11 | D17: 2262 | E17: 11 | F17: 2282 | K17: 0 | L17: 111
A18: 11 | B18: 2453 | C18: 11 | D18: 2473 | E18: 11 | F18: 2496 | K18: 0 | L18: 111
A19: 11 | B19: 2705 | C19: 11 | D19: 2732 | E19: 11 | F19: 2757 | K19: 0 | L19: 111 | N19: Total Target Seq
A20: 11 | B20: 2987 | C20: 11 | D20: 3012 | E20: 11 | F20: 3041 | K20: 0 | L20: 111 | N20: =COUNTIF(L7:L49,G3) -> 40 | P20: 7 | Q20: 7 | R20: 8 | S20: 7 | T20: 7 | U20: 7
A21: 11 | B21: 3408 | C21: 11 | D21: 3412 | E21: 11 | F21: 3431 | K21: 0 | L21: 111 | P21: % of reinforcement given in 6 equal intervals based on number of trials
A22: 11 | B22: 3542 | C22: 11 | D22: 3560 | E22: 11 | F22: 3578 | K22: 0 | L22: 111 | P22: %_1 | Q22: %_2 | R22: %_3 | S22: %_4 | T22: %_5 | U22: %_6
A23: 11 | B23: 3680 | C23: 11 | D23: 3695 | E23: 11 | F23: 3711 | K23: 0 | L23: 111 | O23: target sequence | P23: =$G$3 -> 111 | Q23: =$G$3 -> 111 | R23: =$G$3 -> 111 | S23: =$G$3 -> 111 | T23: =$G$3 -> 111 | U23: =$G$3 -> 111
A24: 11 | B24: 3800 | C24: 11 | D24: 3820 | E24: 11 | F24: 3836 | K24: 0 | L24: 111 | O24: total reinforcement | P24: =U7 -> 7 | Q24: =Z7 -> 7 | R24: =AE7 -> 6 | S24: =AJ7 -> 6 | T24: =AO7 -> 7 | U24: =AT7 -> 7
A25: 22 | B25: 3934 | C25: 13 | D25: 3937 | E25: 13 | F25: 3989 | K25: 0 | L25: 211 | O25: % target
A26: 22 | B26: 4139 | C26: 13 | D26: 4151 | E26: 13 | F26: 4157 | K26: 0 | L26: 211 | O26: CCRF
A27: 11 | B27: 4277 | C27: 11 | D27: 4291 | E27: 11 | F27: 4305 | K27: 0 | L27: 111 | O27: % CCRf
A28: 11 | B28: 4430 | C28: 11 | D28: 4447 | E28: 11 | F28: 4466 | K28: 0 | L28: 111 | O28: average response rate | P28: =F13/P20 -> 199.5714286 | Q28: =(F20-F13)/Q20 -> 234.8571429 | R28: =(F28-F20)/R20 -> 178.125 | S28: =(F35-F28)/S20 -> 177.4285714 | T28: =(F42-F35)/T20 -> 229.7142857 | U28: =(F49-F42)/U20 -> 188
A29: 11 | B29: 4638 | C29: 11 | D29: 4651 | E29: 11 | F29: 4667 | K29: 0 | L29: 111
A30: 11 | B30: 4768 | C30: 11 | D30: 4783 | E30: 11 | F30: 4800 | K30: 0 | L30: 111
A31: 11 | B31: 5035 | C31: 11 | D31: 5057 | E31: 11 | F31: 5073 | K31: 0 | L31: 111
A32: 11 | B32: 5279 | C32: 11 | D32: 5294 | E32: 11 | F32: 5309 | K32: 0 | L32: 111
A33: 22 | B33: 5406 | C33: 13 | D33: 5409 | E33: 24 | F33: 5411 | K33: 0 | L33: 212
A34: 11 | B34: 5508 | C34: 11 | D34: 5522 | E34: 11 | F34: 5539 | K34: 0 | L34: 111
A35: 11 | B35: 5685 | C35: 11 | D35: 5688 | E35: 11 | F35: 5708 | K35: 0 | L35: 111
A36: 11 | B36: 5881 | C36: 11 | D36: 5900 | E36: 11 | F36: 5917 | K36: 0 | L36: 111
A37: 11 | B37: 6134 | C37: 11 | D37: 6155 | E37: 11 | F37: 6177 | K37: 0 | L37: 111
A38: 11 | B38: 6343 | C38: 11 | D38: 6361 | E38: 11 | F38: 6378 | K38: 0 | L38: 111
A39: 11 | B39: 6647 | C39: 11 | D39: 6662 | E39: 11 | F39: 6677 | K39: 0 | L39: 111
A40: 11 | B40: 6918 | C40: 11 | D40: 6921 | E40: 11 | F40: 6943 | K40: 0 | L40: 111
A41: 11 | B41: 7137 | C41: 11 | D41: 7152 | E41: 11 | F41: 7166 | K41: 0 | L41: 111
A42: 11 | B42: 7287 | C42: 11 | D42: 7301 | E42: 11 | F42: 7316 | K42: 0 | L42: 111
A43: 11 | B43: 7489 | C43: 11 | D43: 7501 | E43: 11 | F43: 7515 | K43: 0 | L43: 111
A44: 11 | B44: 7611 | C44: 11 | D44: 7629 | E44: 11 | F44: 7671 | K44: 0 | L44: 111
A45: 11 | B45: 7845 | C45: 11 | D45: 7861 | E45: 11 | F45: 7879 | K45: 0 | L45: 111
A46: 11 | B46: 7990 | C46: 11 | D46: 8005 | E46: 11 | F46: 8028 | K46: 0 | L46: 111
A47: 11 | B47: 8151 | C47: 11 | D47: 8165 | E47: 11 | F47: 8181 | K47: 0 | L47: 111
A48: 11 | B48: 8455 | C48: 11 | D48: 8474 | E48: 11 | F48: 8487 | K48: 0 | L48: 111
A49: 11 | B49: 8600 | C49: 11 | D49: 8617 | E49: 11 | F49: 8632 | K49: 1 | L49: 111

Sheet !N20994B.AXT
A1: Report for:!N20994B.AXT
A2: Date: | B2: <date>
A3: Hen: | B3: <hen> | F3: Correct Sequence | G3: =Start!J2 -> 111 | P3: Total Sequences in Data | Q3: =4994-COUNTBLANK(L7:L5000) -> 41 | V3: Total Sequences in Block Data | W3: =COUNTA(L7:L13) -> 7 | AA3: Total Sequences in Block Data | AB3: =COUNTA(L14:L20) -> 7 | AF3: Total Sequences in Block Data | AG3: =COUNTA(L21:L26) -> 6 | AK3: Total Sequences in Block Data | AL3: =COUNTA(L27:L33) -> 7 | AP3: Total Sequences in Block Data | AQ3: =COUNTA(L34:L40) -> 7 | AU3: Total Sequences in Block Data | AV3: =COUNTA(L41:L47) -> 7
P4: Total Sequences in Summary | Q4: =SUM(O7:O14) -> 41 | V4: Total Sequences in Block Summary | W4: =SUM(U7:U14) -> 7 | AA4: Total Sequences in Block Summary | AB4: =SUM(Z7:Z14) -> 7 | AF4: Total Sequences in Block Summary | AG4: =SUM(AE7:AE14) -> 6 | AK4: Total Sequences in Block Summary | AL4: =SUM(AJ7:AJ14) -> 7 | AP4: Total Sequences in Block Summary | AQ4: =SUM(AO7:AO14) -> 7 | AU4: Total Sequences in Block Summary | AV4: =SUM(AT7:AT14) -> 7
T5: Block 1 | Y5: Block 2 | AD5: Block 3 | AI5: Block 4 | AN5: Block 5 | AS5: Block 6
A6: Sequence Component 1 | B6: Time 1 | C6: Sequence Component 2 | D6: Time 2 | E6: Sequence Component 3 | F6: Time 3 | G6: Sequence Component 4 | H6: Time 4 | I6: Sequence Component 5 | J6: Time 5 | K6: Correct? 0=No 1=Yes | L6: Sequence | N6: Frequency | P6: Relative Frequency | Q6: Variability | T6: Frequency | V6: Relative Frequency | W6: Variability | Y6: Frequency | AA6: Relative Frequency | AB6: Variability | AD6: Frequency | AF6: Relative Frequency | AG6: Variability | AI6: Frequency | AK6: Relative Frequency | AL6: Variability | AN6: Frequency | AP6: Relative Frequency | AQ6: Variability | AS6: Frequency | AU6: Relative Frequency | AV6: Variability
A7: 11 | B7: 13042 | C7: 22 | D7: 13060 | E7: 13 | F7: 13064 | K7: 0 | L7: 121 | N7: 111 | O7: =COUNTIF($L$7:$L$500,N7) -> 39 | P7: =O7/$Q$4 -> 0.9512195122 | Q7: =IF(P7=0,0,(P7*((LOG(P7))/LOG(2)))) -> -0.06863028401 | T7: =N7 -> 111 | U7: =COUNTIF(L7:L13,T7) -> 6 | Y7: =N7 -> 111 | Z7: =COUNTIF(L14:L20,Y7) -> 7 | AD7: =N7 -> 111 | AE7: =COUNTIF(L21:L26,AD7) -> 5 | AI7: =N7 -> 111 | AJ7: =COUNTIF(L27:L33,AI7) -> 7 | AN7: =N7 -> 111 | AO7: =COUNTIF(L34:L40,AN7) -> 7 | AS7: =N7 -> 111 | AT7: =COUNTIF(L41:L47,AS7) -> 7
A8: 11 | B8: 13153 | C8: 11 | D8: 13156 | E8: 11 | F8: 13160 | K8: 0 | L8: 111 | N8: 112 | O8: =COUNTIF($L$7:$L$500,N8) -> 0 | P8: =O8/$Q$4 -> 0 | Q8: =IF(P8=0,0,(P8*((LOG(P8))/LOG(2)))) -> 0 | T8: =N8 -> 112 | U8: =COUNTIF(L7:L13,T8) -> 0 | V8: =U8/(W4-U7) -> 0 | W8: =IF(V8=0,0,(V8*((LOG(V8))/LOG(2)))) -> 0 | Y8: =N8 -> 112 | Z8: =COUNTIF(L14:L20,Y8) -> 0 | AA8: =Z8/(AB4-Z7) ->  | AB8: =IF(AA8=0,0,(AA8*((LOG(AA8))/LOG(2)))) ->  | AD8: =N8 -> 112 | AE8: =COUNTIF(L21:L26,AD8) -> 0 | AF8: =AE8/(AG4-AE7) -> 0 | AG8: =IF(AF8=0,0,(AF8*((LOG(AF8))/LOG(2)))) -> 0 | AI8: =N8 -> 112 | AJ8: =COUNTIF(L27:L33,AI8) -> 0 | AK8: =AJ8/(AL4-AJ7) ->  | AL8: =IF(AK8=0,0,(AK8*((LOG(AK8))/LOG(2)))) ->  | AN8: =N8 -> 112 | AO8: =COUNTIF(L34:L40,AN8) -> 0 | AP8: =AO8/(AQ4-AO7) ->  | AQ8: =IF(AP8=0,0,(AP8*((LOG(AP8))/LOG(2)))) ->  | AS8: =N8 -> 112 | AT8: =COUNTIF(L41:L47,AS8) -> 0 | AU8: =AT8/(AV4-AT7) ->  | AV8: =IF(AU8=0,0,(AU8*((LOG(AU8))/LOG(2)))) -> 
A9: 11 | B9: 13269 | C9: 11 | D9: 13319 | E9: 11 | F9: 13337 | K9: 0 | L9: 111 | N9: 121 | O9: =COUNTIF($L$7:$L$500,N9) -> 1 | P9: =O9/$Q$4 -> 0.0243902439 | Q9: =IF(P9=0,0,(P9*((LOG(P9))/LOG(2)))) -> -0.1306720001 | T9: =N9 -> 121 | U9: =COUNTIF(L7:L13,T9) -> 1 | V9: =U9/(W4-U7) -> 1 | W9: =IF(V9=0,0,(V9*((LOG(V9))/LOG(2)))) -> 0 | Y9: =N9 -> 121 | Z9: =COUNTIF(L14:L20,Y9) -> 0 | AA9: =Z9/(AB4-Z7) ->  | AB9: =IF(AA9=0,0,(AA9*((LOG(AA9))/LOG(2)))) ->  | AD9: =N9 -> 121 | AE9: =COUNTIF(L21:L26,AD9) -> 0 | AF9: =AE9/(AG4-AE7) -> 0 | AG9: =IF(AF9=0,0,(AF9*((LOG(AF9))/LOG(2)))) -> 0 | AI9: =N9 -> 121 | AJ9: =COUNTIF(L27:L33,AI9) -> 0 | AK9: =AJ9/(AL4-AJ7) ->  | AL9: =IF(AK9=0,0,(AK9*((LOG(AK9))/LOG(2)))) ->  | AN9: =N9 -> 121 | AO9: =COUNTIF(L34:L40,AN9) -> 0 | AP9: =AO9/(AQ4-AO7) ->  | AQ9: =IF(AP9=0,0,(AP9*((LOG(AP9))/LOG(2)))) ->  | AS9: =N9 -> 121 | AT9: =COUNTIF(L41:L47,AS9) -> 0 | AU9: =AT9/(AV4-AT7) ->  | AV9: =IF(AU9=0,0,(AU9*((LOG(AU9))/LOG(2)))) -> 
A10: 11 | B10: 13448 | C10: 11 | D10: 13464 | E10: 11 | F10: 13483 | K10: 0 | L10: 111 | N10: 122 | O10: =COUNTIF($L$7:$L$500,N10) -> 0 | P10: =O10/$Q$4 -> 0 | Q10: =IF(P10=0,0,(P10*((LOG(P10))/LOG(2)))) -> 0 | T10: =N10 -> 122 | U10: =COUNTIF(L7:L13,T10) -> 0 | V10: =U10/(W4-U7) -> 0 | W10: =IF(V10=0,0,(V10*((LOG(V10))/LOG(2)))) -> 0 | Y10: =N10 -> 122 | Z10: =COUNTIF(L14:L20,Y10) -> 0 | AA10: =Z10/(AB4-Z7) ->  | AB10: =IF(AA10=0,0,(AA10*((LOG(AA10))/LOG(2)))) ->  | AD10: =N10 -> 122 | AE10: =COUNTIF(L21:L26,AD10) -> 0 | AF10: =AE10/(AG4-AE7) -> 0 | AG10: =IF(AF10=0,0,(AF10*((LOG(AF10))/LOG(2)))) -> 0 | AI10: =N10 -> 122 | AJ10: =COUNTIF(L27:L33,AI10) -> 0 | AK10: =AJ10/(AL4-AJ7) ->  | AL10: =IF(AK10=0,0,(AK10*((LOG(AK10))/LOG(2)))) ->  | AN10: =N10 -> 122 | AO10: =COUNTIF(L34:L40,AN10) -> 0 | AP10: =AO10/(AQ4-AO7) ->  | AQ10: =IF(AP10=0,0,(AP10*((LOG(AP10))/LOG(2)))) ->  | AS10: =N10 -> 122 | AT10: =COUNTIF(L41:L47,AS10) -> 0 | AU10: =AT10/(AV4-AT7) ->  | AV10: =IF(AU10=0,0,(AU10*((LOG(AU10))/LOG(2)))) -> 
A11: 11 | B11: 13584 | C11: 11 | D11: 13590 | E11: 11 | F11: 13602 | K11: 0 | L11: 111 | N11: 211 | O11: =COUNTIF($L$7:$L$500,N11) -> 0 | P11: =O11/$Q$4 -> 0 | Q11: =IF(P11=0,0,(P11*((LOG(P11))/LOG(2)))) -> 0 | T11: =N11 -> 211 | U11: =COUNTIF(L7:L13,T11) -> 0 | V11: =U11/(W4-U7) -> 0 | W11: =IF(V11=0,0,(V11*((LOG(V11))/LOG(2)))) -> 0 | Y11: =N11 -> 211 | Z11: =COUNTIF(L14:L20,Y11) -> 0 | AA11: =Z11/(AB4-Z7) ->  | AB11: =IF(AA11=0,0,(AA11*((LOG(AA11))/LOG(2)))) ->  | AD11: =N11 -> 211 | AE11: =COUNTIF(L21:L26,AD11) -> 0 | AF11: =AE11/(AG4-AE7) -> 0 | AG11: =IF(AF11=0,0,(AF11*((LOG(AF11))/LOG(2)))) -> 0 | AI11: =N11 -> 211 | AJ11: =COUNTIF(L27:L33,AI11) -> 0 | AK11: =AJ11/(AL4-AJ7) ->  | AL11: =IF(AK11=0,0,(AK11*((LOG(AK11))/LOG(2)))) ->  | AN11: =N11 -> 211 | AO11: =COUNTIF(L34:L40,AN11) -> 0 | AP11: =AO11/(AQ4-AO7) ->  | AQ11: =IF(AP11=0,0,(AP11*((LOG(AP11))/LOG(2)))) ->  | AS11: =N11 -> 211 | AT11: =COUNTIF(L41:L47,AS11) -> 0 | AU11: =AT11/(AV4-AT7) ->  | AV11: =IF(AU11=0,0,(AU11*((LOG(AU11))/LOG(2)))) -> 
A12: 11 | B12: 13751 | C12: 11 | D12: 13771 | E12: 11 | F12: 13801 | K12: 0 | L12: 111 | N12: 212 | O12: =COUNTIF($L$7:$L$500,N12) -> 0 | P12: =O12/$Q$4 -> 0 | Q12: =IF(P12=0,0,(P12*((LOG(P12))/LOG(2)))) -> 0 | T12: =N12 -> 212 | U12: =COUNTIF(L7:L13,T12) -> 0 | V12: =U12/(W4-U7) -> 0 | W12: =IF(V12=0,0,(V12*((LOG(V12))/LOG(2)))) -> 0 | Y12: =N12 -> 212 | Z12: =COUNTIF(L14:L20,Y12) -> 0 | AA12: =Z12/(AB4-Z7) ->  | AB12: =IF(AA12=0,0,(AA12*((LOG(AA12))/LOG(2)))) ->  | AD12: =N12 -> 212 | AE12: =COUNTIF(L21:L26,AD12) -> 0 | AF12: =AE12/(AG4-AE7) -> 0 | AG12: =IF(AF12=0,0,(AF12*((LOG(AF12))/LOG(2)))) -> 0 | AI12: =N12 -> 212 | AJ12: =COUNTIF(L27:L33,AI12) -> 0 | AK12: =AJ12/(AL4-AJ7) ->  | AL12: =IF(AK12=0,0,(AK12*((LOG(AK12))/LOG(2)))) ->  | AN12: =N12 -> 212 | AO12: =COUNTIF(L34:L40,AN12) -> 0 | AP12: =AO12/(AQ4-AO7) ->  | AQ12: =IF(AP12=0,0,(AP12*((LOG(AP12))/LOG(2)))) ->  | AS12: =N12 -> 212 | AT12: =COUNTIF(L41:L47,AS12) -> 0 | AU12: =AT12/(AV4-AT7) ->  | AV12: =IF(AU12=0,0,(AU12*((LOG(AU12))/LOG(2)))) -> 
A13: 11 | B13: 13967 | C13: 11 | D13: 13993 | E13: 11 | F13: 14011 | K13: 0 | L13: 111 | N13: 221 | O13: =COUNTIF($L$7:$L$500,N13) -> 1 | P13: =O13/$Q$4 -> 0.0243902439 | Q13: =IF(P13=0,0,(P13*((LOG(P13))/LOG(2)))) -> -0.1306720001 | T13: =N13 -> 221 | U13: =COUNTIF(L7:L13,T13) -> 0 | V13: =U13/(W4-U7) -> 0 | W13: =IF(V13=0,0,(V13*((LOG(V13))/LOG(2)))) -> 0 | Y13: =N13 -> 221 | Z13: =COUNTIF(L14:L20,Y13) -> 0 | AA13: =Z13/(AB4-Z7) ->  | AB13: =IF(AA13=0,0,(AA13*((LOG(AA13))/LOG(2)))) ->  | AD13: =N13 -> 221 | AE13: =COUNTIF(L21:L26,AD13) -> 1 | AF13: =AE13/(AG4-AE7) -> 1 | AG13: =IF(AF13=0,0,(AF13*((LOG(AF13))/LOG(2)))) -> 0 | AI13: =N13 -> 221 | AJ13: =COUNTIF(L27:L33,AI13) -> 0 | AK13: =AJ13/(AL4-AJ7) ->  | AL13: =IF(AK13=0,0,(AK13*((LOG(AK13))/LOG(2)))) ->  | AN13: =N13 -> 221 | AO13: =COUNTIF(L34:L40,AN13) -> 0 | AP13: =AO13/(AQ4-AO7) ->  | AQ13: =IF(AP13=0,0,(AP13*((LOG(AP13))/LOG(2)))) ->  | AS13: =N13 -> 221 | AT13: =COUNTIF(L41:L47,AS13) -> 0 | AU13: =AT13/(AV4-AT7) ->  | AV13: =IF(AU13=0,0,(AU13*((LOG(AU13))/LOG(2)))) -> 
A14: 11 | B14: 14160 | C14: 11 | D14: 14173 | E14: 11 | F14: 14186 | K14: 0 | L14: 111 | N14: 222 | O14: =COUNTIF($L$7:$L$500,N14) -> 0 | P14: =O14/$Q$4 -> 0 | Q14: =IF(P14=0,0,(P14*((LOG(P14))/LOG(2)))) -> 0 | T14: =N14 -> 222 | U14: =COUNTIF(L7:L13,T14) -> 0 | V14: =U14/(W4-U7) -> 0 | W14: =IF(V14=0,0,(V14*((LOG(V14))/LOG(2)))) -> 0 | Y14: =N14 -> 222 | Z14: =COUNTIF(L14:L20,Y14) -> 0 | AA14: =Z14/(AB4-Z7) ->  | AB14: =IF(AA14=0,0,(AA14*((LOG(AA14))/LOG(2)))) ->  | AD14: =N14 -> 222 | AE14: =COUNTIF(L21:L26,AD14) -> 0 | AF14: =AE14/(AG4-AE7) -> 0 | AG14: =IF(AF14=0,0,(AF14*((LOG(AF14))/LOG(2)))) -> 0 | AI14: =N14 -> 222 | AJ14: =COUNTIF(L27:L33,AI14) -> 0 | AK14: =AJ14/(AL4-AJ7) ->  | AL14: =IF(AK14=0,0,(AK14*((LOG(AK14))/LOG(2)))) ->  | AN14: =N14 -> 222 | AO14: =COUNTIF(L34:L40,AN14) -> 0 | AP14: =AO14/(AQ4-AO7) ->  | AQ14: =IF(AP14=0,0,(AP14*((LOG(AP14))/LOG(2)))) ->  | AS14: =N14 -> 222 | AT14: =COUNTIF(L41:L47,AS14) -> 0 | AU14: =AT14/(AV4-AT7) ->  | AV14: =IF(AU14=0,0,(AU14*((LOG(AU14))/LOG(2)))) -> 
A15: 11 | B15: 14332 | C15: 11 | D15: 14349 | E15: 11 | F15: 14367 | K15: 0 | L15: 111 | P15: =SUM(P7:P14) -> 1 | Q15: =-SUM(Q7:Q14) -> 0.3299742842 | V15: =SUM(V7:V14) -> 1 | W15: =-SUM(W7:W14) -> 0 | AA15: =SUM(AA7:AA14) ->  | AB15: =-SUM(AB7:AB14) ->  | AF15: =SUM(AF7:AF14) -> 1 | AG15: =-SUM(AG7:AG14) -> 0 | AK15: =SUM(AK7:AK14) ->  | AL15: =-SUM(AL7:AL14) ->  | AP15: =SUM(AP7:AP14) ->  | AQ15: =-SUM(AQ7:AQ14) ->  | AU15: =SUM(AU7:AU14) ->  | AV15: =-SUM(AV7:AV14) -> 
A16: 11 | B16: 14521 | C16: 11 | D16: 14537 | E16: 11 | F16: 14573 | K16: 0 | L16: 111 | P16: U= | Q16: =Q15/(LOG(Q4)/LOG(2)) -> 0.0615904958 | V16: U1= | W16: =W15/(LOG(W4)/LOG(2)) -> 0 | AA16: U2= | AB16: =AB15/(LOG(AB4)/LOG(2)) ->  | AF16: U3= | AG16: =AG15/(LOG(AG4)/LOG(2)) -> 0 | AK16: U4= | AL16: =AL15/(LOG(AL4)/LOG(2)) ->  | AP16: U5= | AQ16: =AQ15/(LOG(AQ4)/LOG(2)) ->  | AU16: U6= | AV16: =AV15/(LOG(AV4)/LOG(2)) -> 
A17: 11 | B17: 14803 | C17: 11 | D17: 14819 | E17: 11 | F17: 14853 | K17: 0 | L17: 111
A18: 11 | B18: 14987 | C18: 11 | D18: 15007 | E18: 11 | F18: 15034 | K18: 0 | L18: 111
A19: 11 | B19: 15183 | C19: 11 | D19: 15199 | E19: 11 | F19: 15214 | K19: 0 | L19: 111 | N19: Total Target Seq
A20: 11 | B20: 15316 | C20: 11 | D20: 15334 | E20: 11 | F20: 15352 | K20: 0 | L20: 111 | N20: =COUNTIF(L7:L47,G3) -> 39 | P20: 7 | Q20: 7 | R20: 6 | S20: 7 | T20: 7 | U20: 7
A21: 11 | B21: 15678 | C21: 11 | D21: 15689 | E21: 11 | F21: 15701 | K21: 0 | L21: 111 | P21: % of reinforcement given in 6 equal intervals based on number of trials
A22: 22 | B22: 15794 | C22: 24 | D22: 15802 | E22: 13 | F22: 15856 | K22: 0 | L22: 221 | P22: %_1 | Q22: %_2 | R22: %_3 | S22: %_4 | T22: %_5 | U22: %_6
A23: 11 | B23: 15959 | C23: 11 | D23: 15975 | E23: 11 | F23: 15993 | K23: 0 | L23: 111 | O23: target sequence | P23: =$G$3 -> 111 | Q23: =$G$3 -> 111 | R23: =$G$3 -> 111 | S23: =$G$3 -> 111 | T23: =$G$3 -> 111 | U23: =$G$3 -> 111
A24: 11 | B24: 16140 | C24: 11 | D24: 16154 | E24: 11 | F24: 16169 | K24: 0 | L24: 111 | O24: total reinforcement | P24: =U7 -> 6 | Q24: =Z7 -> 7 | R24: =AE7 -> 5 | S24: =AJ7 -> 7 | T24: =AO7 -> 7 | U24: =AT7 -> 7
A25: 11 | B25: 16377 | C25: 11 | D25: 16393 | E25: 11 | F25: 16406 | K25: 0 | L25: 111 | O25: % target
A26: 11 | B26: 16688 | C26: 11 | D26: 16704 | E26: 11 | F26: 16719 | K26: 0 | L26: 111 | O26: CCRF
A27: 11 | B27: 16868 | C27: 11 | D27: 16883 | E27: 11 | F27: 16897 | K27: 0 | L27: 111 | O27: % CCRf
A28: 11 | B28: 17135 | C28: 11 | D28: 17150 | E28: 11 | F28: 17164 | K28: 0 | L28: 111 | O28: average response rate | P28: =F13/P20 -> 2001.571429 | Q28: =(F20-F13)/Q20 -> 191.5714286 | R28: =(F26-F20)/R20 -> 227.8333333 | S28: =(F33-F26)/S20 -> 194 | T28: =(F40-F33)/T20 -> 239.4285714 | U28: =(F47-F40)/U20 -> 238.5714286
A29: 11 | B29: 17328 | C29: 11 | D29: 17341 | E29: 11 | F29: 17353 | K29: 0 | L29: 111
A30: 11 | B30: 17505 | C30: 11 | D30: 17522 | E30: 11 | F30: 17537 | K30: 0 | L30: 111
A31: 11 | B31: 17685 | C31: 11 | D31: 17703 | E31: 11 | F31: 17723 | K31: 0 | L31: 111
A32: 11 | B32: 17913 | C32: 11 | D32: 17925 | E32: 11 | F32: 17940 | K32: 0 | L32: 111
A33: 11 | B33: 18051 | C33: 11 | D33: 18063 | E33: 11 | F33: 18077 | K33: 0 | L33: 111
A34: 11 | B34: 18181 | C34: 11 | D34: 18195 | E34: 11 | F34: 18198 | K34: 0 | L34: 111
A35: 11 | B35: 18496 | C35: 11 | D35: 18508 | E35: 11 | F35: 18520 | K35: 0 | L35: 111
A36: 11 | B36: 18752 | C36: 11 | D36: 18770 | E36: 11 | F36: 18788 | K36: 0 | L36: 111
A37: 11 | B37: 19003 | C37: 11 | D37: 19023 | E37: 11 | F37: 19039 | K37: 0 | L37: 111
A38: 11 | B38: 19241 | C38: 11 | D38: 19260 | E38: 11 | F38: 19275 | K38: 0 | L38: 111
A39: 11 | B39: 19472 | C39: 11 | D39: 19489 | E39: 11 | F39: 19507 | K39: 0 | L39: 111
A40: 11 | B40: 19722 | C40: 11 | D40: 19734 | E40: 11 | F40: 19753 | K40: 0 | L40: 111
A41: 11 | B41: 19931 | C41: 11 | D41: 19946 | E41: 11 | F41: 19962 | K41: 0 | L41: 111
A42: 11 | B42: 20406 | C42: 11 | D42: 20417 | E42: 11 | F42: 20432 | K42: 0 | L42: 111
A43: 11 | B43: 20560 | C43: 11 | D43: 20577 | E43: 11 | F43: 20592 | K43: 0 | L43: 111
A44: 11 | B44: 20819 | C44: 11 | D44: 20833 | E44: 11 | F44: 20856 | K44: 0 | L44: 111
A45: 11 | B45: 21031 | C45: 11 | D45: 21046 | E45: 11 | F45: 21060 | K45: 0 | L45: 111
A46: 11 | B46: 21184 | C46: 11 | D46: 21200 | E46: 11 | F46: 21222 | K46: 0 | L46: 111
A47: 11 | B47: 21388 | C47: 11 | D47: 21406 | E47: 11 | F47: 21423 | K47: 1 | L47: 111

Sheet !N21094B.AXT
A1: Report for:!N21094B.AXT
A2: Date: | B2: <date>
A3: Hen: | B3: <hen> | F3: Correct Sequence | G3: =Start!J2 -> 111 | P3: Total Sequences in Data | Q3: =4994-COUNTBLANK(L7:L5000) -> 40 | V3: Total Sequences in Block Data | W3: =COUNTA(L7:L13) -> 7 | AA3: Total Sequences in Block Data | AB3: =COUNTA(L14:L19) -> 6 | AF3: Total Sequences in Block Data | AG3: =COUNTA(L20:L26) -> 7 | AK3: Total Sequences in Block Data | AL3: =COUNTA(L27:L33) -> 7 | AP3: Total Sequences in Block Data | AQ3: =COUNTA(L34:L39) -> 6 | AU3: Total Sequences in Block Data | AV3: =COUNTA(L40:L46) -> 7
P4: Total Sequences in Summary | Q4: =SUM(O7:O14) -> 40 | V4: Total Sequences in Block Summary | W4: =SUM(U7:U14) -> 7 | AA4: Total Sequences in Block Summary | AB4: =SUM(Z7:Z14) -> 6 | AF4: Total Sequences in Block Summary | AG4: =SUM(AE7:AE14) -> 7 | AK4: Total Sequences in Block Summary | AL4: =SUM(AJ7:AJ14) -> 7 | AP4: Total Sequences in Block Summary | AQ4: =SUM(AO7:AO14) -> 6 | AU4: Total Sequences in Block Summary | AV4: =SUM(AT7:AT14) -> 7
T5: Block 1 | Y5: Block 2 | AD5: Block 3 | AI5: Block 4 | AN5: Block 5 | AS5: Block 6
A6: Sequence Component 1 | B6: Time 1 | C6: Sequence Component 2 | D6: Time 2 | E6: Sequence Component 3 | F6: Time 3 | G6: Sequence Component 4 | H6: Time 4 | I6: Sequence Component 5 | J6: Time 5 | K6: Correct? 0=No 1=Yes | L6: Sequence | N6: Frequency | P6: Relative Frequency | Q6: Variability | T6: Frequency | V6: Relative Frequency | W6: Variability | Y6: Frequency | AA6: Relative Frequency | AB6: Variability | AD6: Frequency | AF6: Relative Frequency | AG6: Variability | AI6: Frequency | AK6: Relative Frequency | AL6: Variability | AN6: Frequency | AP6: Relative Frequency | AQ6: Variability | AS6: Frequency | AU6: Relative Frequency | AV6: Variability
A7: 11 | B7: 48 | C7: 11 | D7: 53 | E7: 11 | F7: 56 | K7: 0 | L7: 111 | N7: 111 | O7: =COUNTIF($L$7:$L$500,N7) -> 40 | P7: =O7/$Q$4 -> 1 | Q7: =IF(P7=0,0,(P7*((LOG(P7))/LOG(2)))) -> 0 | T7: =N7 -> 111 | U7: =COUNTIF(L7:L13,T7) -> 7 | Y7: =N7 -> 111 | Z7: =COUNTIF(L14:L19,Y7) -> 6 | AD7: =N7 -> 111 | AE7: =COUNTIF(L20:L26,AD7) -> 7 | AI7: =N7 -> 111 | AJ7: =COUNTIF(L27:L33,AI7) -> 7 | AN7: =N7 -> 111 | AO7: =COUNTIF(L34:L39,AN7) -> 6 | AS7: =N7 -> 111 | AT7: =COUNTIF(L40:L46,AS7) -> 7
A8: 11 | B8: 163 | C8: 11 | D8: 193 | E8: 11 | F8: 211 | K8: 0 | L8: 111 | N8: 112 | O8: =COUNTIF($L$7:$L$500,N8) -> 0 | P8: =O8/$Q$4 -> 0 | Q8: =IF(P8=0,0,(P8*((LOG(P8))/LOG(2)))) -> 0 | T8: =N8 -> 112 | U8: =COUNTIF(L7:L13,T8) -> 0 | V8: =U8/(W4-U7) ->  | W8: =IF(V8=0,0,(V8*((LOG(V8))/LOG(2)))) ->  | Y8: =N8 -> 112 | Z8: =COUNTIF(L14:L19,Y8) -> 0 | AA8: =Z8/(AB4-Z7) ->  | AB8: =IF(AA8=0,0,(AA8*((LOG(AA8))/LOG(2)))) ->  | AD8: =N8 -> 112 | AE8: =COUNTIF(L20:L26,AD8) -> 0 | AF8: =AE8/(AG4-AE7) ->  | AG8: =IF(AF8=0,0,(AF8*((LOG(AF8))/LOG(2)))) ->  | AI8: =N8 -> 112 | AJ8: =COUNTIF(L27:L33,AI8) -> 0 | AK8: =AJ8/(AL4-AJ7) ->  | AL8: =IF(AK8=0,0,(AK8*((LOG(AK8))/LOG(2)))) ->  | AN8: =N8 -> 112 | AO8: =COUNTIF(L34:L39,AN8) -> 0 | AP8: =AO8/(AQ4-AO7) ->  | AQ8: =IF(AP8=0,0,(AP8*((LOG(AP8))/LOG(2)))) ->  | AS8: =N8 -> 112 | AT8: =COUNTIF(L40:L46,AS8) -> 0 | AU8: =AT8/(AV4-AT7) ->  | AV8: =IF(AU8=0,0,(AU8*((LOG(AU8))/LOG(2)))) -> 
A9: 11 | B9: 308 | C9: 11 | D9: 332 | E9: 11 | F9: 359 | K9: 0 | L9: 111 | N9: 121 | O9: =COUNTIF($L$7:$L$500,N9) -> 0 | P9: =O9/$Q$4 -> 0 | Q9: =IF(P9=0,0,(P9*((LOG(P9))/LOG(2)))) -> 0 | T9: =N9 -> 121 | U9: =COUNTIF(L7:L13,T9) -> 0 | V9: =U9/(W4-U7) ->  | W9: =IF(V9=0,0,(V9*((LOG(V9))/LOG(2)))) ->  | Y9: =N9 -> 121 | Z9: =COUNTIF(L14:L19,Y9) -> 0 | AA9: =Z9/(AB4-Z7) ->  | AB9: =IF(AA9=0,0,(AA9*((LOG(AA9))/LOG(2)))) ->  | AD9: =N9 -> 121 | AE9: =COUNTIF(L20:L26,AD9) -> 0 | AF9: =AE9/(AG4-AE7) ->  | AG9: =IF(AF9=0,0,(AF9*((LOG(AF9))/LOG(2)))) ->  | AI9: =N9 -> 121 | AJ9: =COUNTIF(L27:L33,AI9) -> 0 | AK9: =AJ9/(AL4-AJ7) ->  | AL9: =IF(AK9=0,0,(AK9*((LOG(AK9))/LOG(2)))) ->  | AN9: =N9 -> 121 | AO9: =COUNTIF(L34:L39,AN9) -> 0 | AP9: =AO9/(AQ4-AO7) ->  | AQ9: =IF(AP9=0,0,(AP9*((LOG(AP9))/LOG(2)))) ->  | AS9: =N9 -> 121 | AT9: =COUNTIF(L40:L46,AS9) -> 0 | AU9: =AT9/(AV4-AT7) ->  | AV9: =IF(AU9=0,0,(AU9*((LOG(AU9))/LOG(2)))) -> 
A10: 11 | B10: 465 | C10: 11 | D10: 482 | E10: 11 | F10: 499 | K10: 0 | L10: 111 | N10: 122 | O10: =COUNTIF($L$7:$L$500,N10) -> 0 | P10: =O10/$Q$4 -> 0 | Q10: =IF(P10=0,0,(P10*((LOG(P10))/LOG(2)))) -> 0 | T10: =N10 -> 122 | U10: =COUNTIF(L7:L13,T10) -> 0 | V10: =U10/(W4-U7) ->  | W10: =IF(V10=0,0,(V10*((LOG(V10))/LOG(2)))) ->  | Y10: =N10 -> 122 | Z10: =COUNTIF(L14:L19,Y10) -> 0 | AA10: =Z10/(AB4-Z7) ->  | AB10: =IF(AA10=0,0,(AA10*((LOG(AA10))/LOG(2)))) ->  | AD10: =N10 -> 122 | AE10: =COUNTIF(L20:L26,AD10) -> 0 | AF10: =AE10/(AG4-AE7) ->  | AG10: =IF(AF10=0,0,(AF10*((LOG(AF10))/LOG(2)))) ->  | AI10: =N10 -> 122 | AJ10: =COUNTIF(L27:L33,AI10) -> 0 | AK10: =AJ10/(AL4-AJ7) ->  | AL10: =IF(AK10=0,0,(AK10*((LOG(AK10))/LOG(2)))) ->  | AN10: =N10 -> 122 | AO10: =COUNTIF(L34:L39,AN10) -> 0 | AP10: =AO10/(AQ4-AO7) ->  | AQ10: =IF(AP10=0,0,(AP10*((LOG(AP10))/LOG(2)))) ->  | AS10: =N10 -> 122 | AT10: =COUNTIF(L40:L46,AS10) -> 0 | AU10: =AT10/(AV4-AT7) ->  | AV10: =IF(AU10=0,0,(AU10*((LOG(AU10))/LOG(2)))) -> 
A11: 11 | B11: 598 | C11: 11 | D11: 652 | E11: 11 | F11: 676 | K11: 0 | L11: 111 | N11: 211 | O11: =COUNTIF($L$7:$L$500,N11) -> 0 | P11: =O11/$Q$4 -> 0 | Q11: =IF(P11=0,0,(P11*((LOG(P11))/LOG(2)))) -> 0 | T11: =N11 -> 211 | U11: =COUNTIF(L7:L13,T11) -> 0 | V11: =U11/(W4-U7) ->  | W11: =IF(V11=0,0,(V11*((LOG(V11))/LOG(2)))) ->  | Y11: =N11 -> 211 | Z11: =COUNTIF(L14:L19,Y11) -> 0 | AA11: =Z11/(AB4-Z7) ->  | AB11: =IF(AA11=0,0,(AA11*((LOG(AA11))/LOG(2)))) ->  | AD11: =N11 -> 211 | AE11: =COUNTIF(L20:L26,AD11) -> 0 | AF11: =AE11/(AG4-AE7) ->  | AG11: =IF(AF11=0,0,(AF11*((LOG(AF11))/LOG(2)))) ->  | AI11: =N11 -> 211 | AJ11: =COUNTIF(L27:L33,AI11) -> 0 | AK11: =AJ11/(AL4-AJ7) ->  | AL11: =IF(AK11=0,0,(AK11*((LOG(AK11))/LOG(2)))) ->  | AN11: =N11 -> 211 | AO11: =COUNTIF(L34:L39,AN11) -> 0 | AP11: =AO11/(AQ4-AO7) ->  | AQ11: =IF(AP11=0,0,(AP11*((LOG(AP11))/LOG(2)))) ->  | AS11: =N11 -> 211 | AT11: =COUNTIF(L40:L46,AS11) -> 0 | AU11: =AT11/(AV4-AT7) ->  | AV11: =IF(AU11=0,0,(AU11*((LOG(AU11))/LOG(2)))) -> 
A12: 11 | B12: 777 | C12: 11 | D12: 795 | E12: 11 | F12: 813 | K12: 0 | L12: 111 | N12: 212 | O12: =COUNTIF($L$7:$L$500,N12) -> 0 | P12: =O12/$Q$4 -> 0 | Q12: =IF(P12=0,0,(P12*((LOG(P12))/LOG(2)))) -> 0 | T12: =N12 -> 212 | U12: =COUNTIF(L7:L13,T12) -> 0 | V12: =U12/(W4-U7) ->  | W12: =IF(V12=0,0,(V12*((LOG(V12))/LOG(2)))) ->  | Y12: =N12 -> 212 | Z12: =COUNTIF(L14:L19,Y12) -> 0 | AA12: =Z12/(AB4-Z7) ->  | AB12: =IF(AA12=0,0,(AA12*((LOG(AA12))/LOG(2)))) ->  | AD12: =N12 -> 212 | AE12: =COUNTIF(L20:L26,AD12) -> 0 | AF12: =AE12/(AG4-AE7) ->  | AG12: =IF(AF12=0,0,(AF12*((LOG(AF12))/LOG(2)))) ->  | AI12: =N12 -> 212 | AJ12: =COUNTIF(L27:L33,AI12) -> 0 | AK12: =AJ12/(AL4-AJ7) ->  | AL12: =IF(AK12=0,0,(AK12*((LOG(AK12))/LOG(2)))) ->  | AN12: =N12 -> 212 | AO12: =COUNTIF(L34:L39,AN12) -> 0 | AP12: =AO12/(AQ4-AO7) ->  | AQ12: =IF(AP12=0,0,(AP12*((LOG(AP12))/LOG(2)))) ->  | AS12: =N12 -> 212 | AT12: =COUNTIF(L40:L46,AS12) -> 0 | AU12: =AT12/(AV4-AT7) ->  | AV12: =IF(AU12=0,0,(AU12*((LOG(AU12))/LOG(2)))) -> 
A13: 11 | B13: 1025 | C13: 11 | D13: 1043 | E13: 11 | F13: 1058 | K13: 0 | L13: 111 | N13: 221 | O13: =COUNTIF($L$7:$L$500,N13) -> 0 | P13: =O13/$Q$4 -> 0 | Q13: =IF(P13=0,0,(P13*((LOG(P13))/LOG(2)))) -> 0 | T13: =N13 -> 221 | U13: =COUNTIF(L7:L13,T13) -> 0 | V13: =U13/(W4-U7) ->  | W13: =IF(V13=0,0,(V13*((LOG(V13))/LOG(2)))) ->  | Y13: =N13 -> 221 | Z13: =COUNTIF(L14:L19,Y13) -> 0 | AA13: =Z13/(AB4-Z7) ->  | AB13: =IF(AA13=0,0,(AA13*((LOG(AA13))/LOG(2)))) ->  | AD13: =N13 -> 221 | AE13: =COUNTIF(L20:L26,AD13) -> 0 | AF13: =AE13/(AG4-AE7) ->  | AG13: =IF(AF13=0,0,(AF13*((LOG(AF13))/LOG(2)))) ->  | AI13: =N13 -> 221 | AJ13: =COUNTIF(L27:L33,AI13) -> 0 | AK13: =AJ13/(AL4-AJ7) ->  | AL13: =IF(AK13=0,0,(AK13*((LOG(AK13))/LOG(2)))) ->  | AN13: =N13 -> 221 | AO13: =COUNTIF(L34:L39,AN13) -> 0 | AP13: =AO13/(AQ4-AO7) ->  | AQ13: =IF(AP13=0,0,(AP13*((LOG(AP13))/LOG(2)))) ->  | AS13: =N13 -> 221 | AT13: =COUNTIF(L40:L46,AS13) -> 0 | AU13: =AT13/(AV4-AT7) ->  | AV13: =IF(AU13=0,0,(AU13*((LOG(AU13))/LOG(2)))) -> 
A14: 11 | B14: 1193 | C14: 11 | D14: 1222 | E14: 11 | F14: 1267 | K14: 0 | L14: 111 | N14: 222 | O14: =COUNTIF($L$7:$L$500,N14) -> 0 | P14: =O14/$Q$4 -> 0 | Q14: =IF(P14=0,0,(P14*((LOG(P14))/LOG(2)))) -> 0 | T14: =N14 -> 222 | U14: =COUNTIF(L7:L13,T14) -> 0 | V14: =U14/(W4-U7) ->  | W14: =IF(V14=0,0,(V14*((LOG(V14))/LOG(2)))) ->  | Y14: =N14 -> 222 | Z14: =COUNTIF(L14:L19,Y14) -> 0 | AA14: =Z14/(AB4-Z7) ->  | AB14: =IF(AA14=0,0,(AA14*((LOG(AA14))/LOG(2)))) ->  | AD14: =N14 -> 222 | AE14: =COUNTIF(L20:L26,AD14) -> 0 | AF14: =AE14/(AG4-AE7) ->  | AG14: =IF(AF14=0,0,(AF14*((LOG(AF14))/LOG(2)))) ->  | AI14: =N14 -> 222 | AJ14: =COUNTIF(L27:L33,AI14) -> 0 | AK14: =AJ14/(AL4-AJ7) ->  | AL14: =IF(AK14=0,0,(AK14*((LOG(AK14))/LOG(2)))) ->  | AN14: =N14 -> 222 | AO14: =COUNTIF(L34:L39,AN14) -> 0 | AP14: =AO14/(AQ4-AO7) ->  | AQ14: =IF(AP14=0,0,(AP14*((LOG(AP14))/LOG(2)))) ->  | AS14: =N14 -> 222 | AT14: =COUNTIF(L40:L46,AS14) -> 0 | AU14: =AT14/(AV4-AT7) ->  | AV14: =IF(AU14=0,0,(AU14*((LOG(AU14))/LOG(2)))) -> 
A15: 11 | B15: 1367 | C15: 11 | D15: 1386 | E15: 11 | F15: 1403 | K15: 0 | L15: 111 | P15: =SUM(P7:P14) -> 1 | Q15: =-SUM(Q7:Q14) -> 0 | V15: =SUM(V7:V14) ->  | W15: =-SUM(W7:W14) ->  | AA15: =SUM(AA7:AA14) ->  | AB15: =-SUM(AB7:AB14) ->  | AF15: =SUM(AF7:AF14) ->  | AG15: =-SUM(AG7:AG14) ->  | AK15: =SUM(AK7:AK14) ->  | AL15: =-SUM(AL7:AL14) ->  | AP15: =SUM(AP7:AP14) ->  | AQ15: =-SUM(AQ7:AQ14) ->  | AU15: =SUM(AU7:AU14) ->  | AV15: =-SUM(AV7:AV14) -> 
A16: 11 | B16: 1503 | C16: 11 | D16: 1524 | E16: 11 | F16: 1547 | K16: 0 | L16: 111 | P16: U= | Q16: =Q15/(LOG(Q4)/LOG(2)) -> 0 | V16: U1= | W16: =W15/(LOG(W4)/LOG(2)) ->  | AA16: U2= | AB16: =AB15/(LOG(AB4)/LOG(2)) ->  | AF16: U3= | AG16: =AG15/(LOG(AG4)/LOG(2)) ->  | AK16: U4= | AL16: =AL15/(LOG(AL4)/LOG(2)) ->  | AP16: U5= | AQ16: =AQ15/(LOG(AQ4)/LOG(2)) ->  | AU16: U6= | AV16: =AV15/(LOG(AV4)/LOG(2)) -> 
A17: 11 | B17: 1637 | C17: 11 | D17: 1658 | E17: 11 | F17: 1676 | K17: 0 | L17: 111
A18: 11 | B18: 1862 | C18: 11 | D18: 1879 | E18: 11 | F18: 1895 | K18: 0 | L18: 111
A19: 11 | B19: 2033 | C19: 11 | D19: 2048 | E19: 11 | F19: 2063 | K19: 0 | L19: 111 | N19: Total Target Seq
A20: 11 | B20: 2166 | C20: 11 | D20: 2184 | E20: 11 | F20: 2222 | K20: 0 | L20: 111 | N20: =COUNTIF(L7:L46,G3) -> 40 | P20: 7 | Q20: 6 | R20: 7 | S20: 7 | T20: 6 | U20: 7
A21: 11 | B21: 2381 | C21: 11 | D21: 2414 | E21: 11 | F21: 2439 | K21: 0 | L21: 111 | P21: % of reinforcement given in 6 equal intervals based on number of trials
A22: 11 | B22: 2565 | C22: 11 | D22: 2637 | E22: 11 | F22: 2666 | K22: 0 | L22: 111 | P22: %_1 | Q22: %_2 | R22: %_3 | S22: %_4 | T22: %_5 | U22: %_6
A23: 11 | B23: 2855 | C23: 11 | D23: 2875 | E23: 11 | F23: 2900 | K23: 0 | L23: 111 | O23: target sequence | P23: =$G$3 -> 111 | Q23: =$G$3 -> 111 | R23: =$G$3 -> 111 | S23: =$G$3 -> 111 | T23: =$G$3 -> 111 | U23: =$G$3 -> 111
A24: 11 | B24: 3125 | C24: 11 | D24: 3139 | E24: 11 | F24: 3156 | K24: 0 | L24: 111 | O24: total reinforcement | P24: =U7 -> 7 | Q24: =Z7 -> 6 | R24: =AE7 -> 7 | S24: =AJ7 -> 7 | T24: =AO7 -> 6 | U24: =AT7 -> 7
A25: 11 | B25: 3272 | C25: 11 | D25: 3293 | E25: 11 | F25: 3309 | K25: 0 | L25: 111 | O25: % target
A26: 11 | B26: 3432 | C26: 11 | D26: 3454 | E26: 11 | F26: 3469 | K26: 0 | L26: 111 | O26: CCRF
A27: 11 | B27: 3644 | C27: 11 | D27: 3665 | E27: 11 | F27: 3683 | K27: 0 | L27: 111 | O27: % CCRf
A28: 11 | B28: 3810 | C28: 11 | D28: 3839 | E28: 11 | F28: 3854 | K28: 0 | L28: 111 | O28: average response rate | P28: =F13/P20 -> 151.1428571 | Q28: =(F19-F13)/Q20 -> 167.5 | R28: =(F26-F19)/R20 -> 200.8571429 | S28: =(F33-F26)/S20 -> 186.4285714 | T28: =(F39-F33)/T20 -> 261.3333333 | U28: =(F46-F39)/U20 -> 196.7142857
A29: 11 | B29: 3984 | C29: 11 | D29: 4010 | E29: 11 | F29: 4030 | K29: 0 | L29: 111
A30: 11 | B30: 4123 | C30: 11 | D30: 4154 | E30: 11 | F30: 4170 | K30: 0 | L30: 111
A31: 11 | B31: 4294 | C31: 11 | D31: 4322 | E31: 11 | F31: 4340 | K31: 0 | L31: 111
A32: 11 | B32: 4508 | C32: 11 | D32: 4529 | E32: 11 | F32: 4552 | K32: 0 | L32: 111
A33: 11 | B33: 4746 | C33: 11 | D33: 4759 | E33: 11 | F33: 4774 | K33: 0 | L33: 111
A34: 11 | B34: 4867 | C34: 11 | D34: 4882 | E34: 11 | F34: 4949 | K34: 0 | L34: 111
A35: 11 | B35: 5168 | C35: 11 | D35: 5184 | E35: 11 | F35: 5202 | K35: 0 | L35: 111
A36: 11 | B36: 5417 | C36: 11 | D36: 5433 | E36: 11 | F36: 5448 | K36: 0 | L36: 111
A37: 11 | B37: 5765 | C37: 11 | D37: 5778 | E37: 11 | F37: 5795 | K37: 0 | L37: 111
A38: 11 | B38: 6135 | C38: 11 | D38: 6146 | E38: 11 | F38: 6159 | K38: 0 | L38: 111
A39: 11 | B39: 6308 | C39: 11 | D39: 6322 | E39: 11 | F39: 6342 | K39: 0 | L39: 111
A40: 11 | B40: 6483 | C40: 11 | D40: 6499 | E40: 11 | F40: 6515 | K40: 0 | L40: 111
A41: 11 | B41: 6659 | C41: 11 | D41: 6675 | E41: 11 | F41: 6693 | K41: 0 | L41: 111
A42: 11 | B42: 6848 | C42: 11 | D42: 6868 | E42: 11 | F42: 6927 | K42: 0 | L42: 111
A43: 11 | B43: 7117 | C43: 11 | D43: 7133 | E43: 11 | F43: 7164 | K43: 0 | L43: 111
A44: 11 | B44: 7293 | C44: 11 | D44: 7314 | E44: 11 | F44: 7330 | K44: 0 | L44: 111
A45: 11 | B45: 7508 | C45: 11 | D45: 7524 | E45: 11 | F45: 7558 | K45: 0 | L45: 111
A46: 11 | B46: 7695 | C46: 11 | D46: 7706 | E46: 11 | F46: 7719 | K46: 1 | L46: 111

Sheet !N211A5B.AXT
A1: Report for:!N211A5B.AXT
A2: Date: | B2: <date>
A3: Hen: | B3: <hen> | F3: Correct Sequence | G3: =Start!J2 -> 111 | P3: Total Sequences in Data | Q3: =4994-COUNTBLANK(L7:L5000) -> 45 | V3: Total Sequences in Block Data | W3: =COUNTA(L7:L14) -> 8 | AA3: Total Sequences in Block Data | AB3: =COUNTA(L15:L21) -> 7 | AF3: Total Sequences in Block Data | AG3: =COUNTA(L22:L29) -> 8 | AK3: Total Sequences in Block Data | AL3: =COUNTA(L30:L36) -> 7 | AP3: Total Sequences in Block Data | AQ3: =COUNTA(L37:L44) -> 8 | AU3: Total Sequences in Block Data | AV3: =COUNTA(L45:L51) -> 7
P4: Total Sequences in Summary | Q4: =SUM(O7:O14) -> 45 | V4: Total Sequences in Block Summary | W4: =SUM(U7:U14) -> 8 | AA4: Total Sequences in Block Summary | AB4: =SUM(Z7:Z14) -> 7 | AF4: Total Sequences in Block Summary | AG4: =SUM(AE7:AE14) -> 8 | AK4: Total Sequences in Block Summary | AL4: =SUM(AJ7:AJ14) -> 7 | AP4: Total Sequences in Block Summary | AQ4: =SUM(AO7:AO14) -> 8 | AU4: Total Sequences in Block Summary | AV4: =SUM(AT7:AT14) -> 7
T5: Block 1 | Y5: Block 2 | AD5: Block 3 | AI5: Block 4 | AN5: Block 5 | AS5: Block 6
A6: Sequence Component 1 | B6: Time 1 | C6: Sequence Component 2 | D6: Time 2 | E6: Sequence Component 3 | F6: Time 3 | G6: Sequence Component 4 | H6: Time 4 | I6: Sequence Component 5 | J6: Time 5 | K6: Correct? 0=No 1=Yes | L6: Sequence | N6: Frequency | P6: Relative Frequency | Q6: Variability | T6: Frequency | V6: Relative Frequency | W6: Variability | Y6: Frequency | AA6: Relative Frequency | AB6: Variability | AD6: Frequency | AF6: Relative Frequency | AG6: Variability | AI6: Frequency | AK6: Relative Frequency | AL6: Variability | AN6: Frequency | AP6: Relative Frequency | AQ6: Variability | AS6: Frequency | AU6: Relative Frequency | AV6: Variability
A7: 11 | B7: 63 | C7: 22 | D7: 70 | E7: 24 | F7: 72 | K7: 0 | L7: 122 | N7: 111 | O7: =COUNTIF($L$7:$L$500,N7) -> 39 | P7: =O7/$Q$4 -> 0.8666666667 | Q7: =IF(P7=0,0,(P7*((LOG(P7))/LOG(2)))) -> -0.1789240938 | T7: =N7 -> 111 | U7: =COUNTIF(L7:L14,T7) -> 3 | Y7: =N7 -> 111 | Z7: =COUNTIF(L15:L21,Y7) -> 7 | AD7: =N7 -> 111 | AE7: =COUNTIF(L22:L29,AD7) -> 8 | AI7: =N7 -> 111 | AJ7: =COUNTIF(L30:L36,AI7) -> 7 | AN7: =N7 -> 111 | AO7: =COUNTIF(L37:L44,AN7) -> 7 | AS7: =N7 -> 111 | AT7: =COUNTIF(L45:L51,AS7) -> 7
A8: 11 | B8: 190 | C8: 11 | D8: 209 | E8: 11 | F8: 231 | K8: 0 | L8: 111 | N8: 112 | O8: =COUNTIF($L$7:$L$500,N8) -> 0 | P8: =O8/$Q$4 -> 0 | Q8: =IF(P8=0,0,(P8*((LOG(P8))/LOG(2)))) -> 0 | T8: =N8 -> 112 | U8: =COUNTIF(L7:L14,T8) -> 0 | V8: =U8/(W4-U7) -> 0 | W8: =IF(V8=0,0,(V8*((LOG(V8))/LOG(2)))) -> 0 | Y8: =N8 -> 112 | Z8: =COUNTIF(L15:L21,Y8) -> 0 | AA8: =Z8/(AB4-Z7) ->  | AB8: =IF(AA8=0,0,(AA8*((LOG(AA8))/LOG(2)))) ->  | AD8: =N8 -> 112 | AE8: =COUNTIF(L22:L29,AD8) -> 0 | AF8: =AE8/(AG4-AE7) ->  | AG8: =IF(AF8=0,0,(AF8*((LOG(AF8))/LOG(2)))) ->  | AI8: =N8 -> 112 | AJ8: =COUNTIF(L30:L36,AI8) -> 0 | AK8: =AJ8/(AL4-AJ7) ->  | AL8: =IF(AK8=0,0,(AK8*((LOG(AK8))/LOG(2)))) ->  | AN8: =N8 -> 112 | AO8: =COUNTIF(L37:L44,AN8) -> 0 | AP8: =AO8/(AQ4-AO7) -> 0 | AQ8: =IF(AP8=0,0,(AP8*((LOG(AP8))/LOG(2)))) -> 0 | AS8: =N8 -> 112 | AT8: =COUNTIF(L45:L51,AS8) -> 0 | AU8: =AT8/(AV4-AT7) ->  | AV8: =IF(AU8=0,0,(AU8*((LOG(AU8))/LOG(2)))) -> 
A9: 11 | B9: 385 | C9: 11 | D9: 421 | E9: 11 | F9: 440 | K9: 0 | L9: 111 | N9: 121 | O9: =COUNTIF($L$7:$L$500,N9) -> 2 | P9: =O9/$Q$4 -> 0.04444444444 | Q9: =IF(P9=0,0,(P9*((LOG(P9))/LOG(2)))) -> -0.1996379154 | T9: =N9 -> 121 | U9: =COUNTIF(L7:L14,T9) -> 2 | V9: =U9/(W4-U7) -> 0.4 | W9: =IF(V9=0,0,(V9*((LOG(V9))/LOG(2)))) -> -0.528771238 | Y9: =N9 -> 121 | Z9: =COUNTIF(L15:L21,Y9) -> 0 | AA9: =Z9/(AB4-Z7) ->  | AB9: =IF(AA9=0,0,(AA9*((LOG(AA9))/LOG(2)))) ->  | AD9: =N9 -> 121 | AE9: =COUNTIF(L22:L29,AD9) -> 0 | AF9: =AE9/(AG4-AE7) ->  | AG9: =IF(AF9=0,0,(AF9*((LOG(AF9))/LOG(2)))) ->  | AI9: =N9 -> 121 | AJ9: =COUNTIF(L30:L36,AI9) -> 0 | AK9: =AJ9/(AL4-AJ7) ->  | AL9: =IF(AK9=0,0,(AK9*((LOG(AK9))/LOG(2)))) ->  | AN9: =N9 -> 121 | AO9: =COUNTIF(L37:L44,AN9) -> 0 | AP9: =AO9/(AQ4-AO7) -> 0 | AQ9: =IF(AP9=0,0,(AP9*((LOG(AP9))/LOG(2)))) -> 0 | AS9: =N9 -> 121 | AT9: =COUNTIF(L45:L51,AS9) -> 0 | AU9: =AT9/(AV4-AT7) ->  | AV9: =IF(AU9=0,0,(AU9*((LOG(AU9))/LOG(2)))) -> 
A10: 22 | B10: 542 | C10: 24 | D10: 547 | E10: 13 | F10: 610 | K10: 0 | L10: 221 | N10: 122 | O10: =COUNTIF($L$7:$L$500,N10) -> 1 | P10: =O10/$Q$4 -> 0.02222222222 | Q10: =IF(P10=0,0,(P10*((LOG(P10))/LOG(2)))) -> -0.1220411799 | T10: =N10 -> 122 | U10: =COUNTIF(L7:L14,T10) -> 1 | V10: =U10/(W4-U7) -> 0.2 | W10: =IF(V10=0,0,(V10*((LOG(V10))/LOG(2)))) -> -0.464385619 | Y10: =N10 -> 122 | Z10: =COUNTIF(L15:L21,Y10) -> 0 | AA10: =Z10/(AB4-Z7) ->  | AB10: =IF(AA10=0,0,(AA10*((LOG(AA10))/LOG(2)))) ->  | AD10: =N10 -> 122 | AE10: =COUNTIF(L22:L29,AD10) -> 0 | AF10: =AE10/(AG4-AE7) ->  | AG10: =IF(AF10=0,0,(AF10*((LOG(AF10))/LOG(2)))) ->  | AI10: =N10 -> 122 | AJ10: =COUNTIF(L30:L36,AI10) -> 0 | AK10: =AJ10/(AL4-AJ7) ->  | AL10: =IF(AK10=0,0,(AK10*((LOG(AK10))/LOG(2)))) ->  | AN10: =N10 -> 122 | AO10: =COUNTIF(L37:L44,AN10) -> 0 | AP10: =AO10/(AQ4-AO7) -> 0 | AQ10: =IF(AP10=0,0,(AP10*((LOG(AP10))/LOG(2)))) -> 0 | AS10: =N10 -> 122 | AT10: =COUNTIF(L45:L51,AS10) -> 0 | AU10: =AT10/(AV4-AT7) ->  | AV10: =IF(AU10=0,0,(AU10*((LOG(AU10))/LOG(2)))) -> 
A11: 11 | B11: 703 | C11: 22 | D11: 726 | E11: 13 | F11: 732 | K11: 0 | L11: 121 | N11: 211 | O11: =COUNTIF($L$7:$L$500,N11) -> 1 | P11: =O11/$Q$4 -> 0.02222222222 | Q11: =IF(P11=0,0,(P11*((LOG(P11))/LOG(2)))) -> -0.1220411799 | T11: =N11 -> 211 | U11: =COUNTIF(L7:L14,T11) -> 0 | V11: =U11/(W4-U7) -> 0 | W11: =IF(V11=0,0,(V11*((LOG(V11))/LOG(2)))) -> 0 | Y11: =N11 -> 211 | Z11: =COUNTIF(L15:L21,Y11) -> 0 | AA11: =Z11/(AB4-Z7) ->  | AB11: =IF(AA11=0,0,(AA11*((LOG(AA11))/LOG(2)))) ->  | AD11: =N11 -> 211 | AE11: =COUNTIF(L22:L29,AD11) -> 0 | AF11: =AE11/(AG4-AE7) ->  | AG11: =IF(AF11=0,0,(AF11*((LOG(AF11))/LOG(2)))) ->  | AI11: =N11 -> 211 | AJ11: =COUNTIF(L30:L36,AI11) -> 0 | AK11: =AJ11/(AL4-AJ7) ->  | AL11: =IF(AK11=0,0,(AK11*((LOG(AK11))/LOG(2)))) ->  | AN11: =N11 -> 211 | AO11: =COUNTIF(L37:L44,AN11) -> 1 | AP11: =AO11/(AQ4-AO7) -> 1 | AQ11: =IF(AP11=0,0,(AP11*((LOG(AP11))/LOG(2)))) -> 0 | AS11: =N11 -> 211 | AT11: =COUNTIF(L45:L51,AS11) -> 0 | AU11: =AT11/(AV4-AT7) ->  | AV11: =IF(AU11=0,0,(AU11*((LOG(AU11))/LOG(2)))) -> 
A12: 11 | B12: 845 | C12: 11 | D12: 852 | E12: 11 | F12: 854 | K12: 0 | L12: 111 | N12: 212 | O12: =COUNTIF($L$7:$L$500,N12) -> 0 | P12: =O12/$Q$4 -> 0 | Q12: =IF(P12=0,0,(P12*((LOG(P12))/LOG(2)))) -> 0 | T12: =N12 -> 212 | U12: =COUNTIF(L7:L14,T12) -> 0 | V12: =U12/(W4-U7) -> 0 | W12: =IF(V12=0,0,(V12*((LOG(V12))/LOG(2)))) -> 0 | Y12: =N12 -> 212 | Z12: =COUNTIF(L15:L21,Y12) -> 0 | AA12: =Z12/(AB4-Z7) ->  | AB12: =IF(AA12=0,0,(AA12*((LOG(AA12))/LOG(2)))) ->  | AD12: =N12 -> 212 | AE12: =COUNTIF(L22:L29,AD12) -> 0 | AF12: =AE12/(AG4-AE7) ->  | AG12: =IF(AF12=0,0,(AF12*((LOG(AF12))/LOG(2)))) ->  | AI12: =N12 -> 212 | AJ12: =COUNTIF(L30:L36,AI12) -> 0 | AK12: =AJ12/(AL4-AJ7) ->  | AL12: =IF(AK12=0,0,(AK12*((LOG(AK12))/LOG(2)))) ->  | AN12: =N12 -> 212 | AO12: =COUNTIF(L37:L44,AN12) -> 0 | AP12: =AO12/(AQ4-AO7) -> 0 | AQ12: =IF(AP12=0,0,(AP12*((LOG(AP12))/LOG(2)))) -> 0 | AS12: =N12 -> 212 | AT12: =COUNTIF(L45:L51,AS12) -> 0 | AU12: =AT12/(AV4-AT7) ->  | AV12: =IF(AU12=0,0,(AU12*((LOG(AU12))/LOG(2)))) -> 
A13: 11 | B13: 963 | C13: 22 | D13: 978 | E13: 13 | F13: 980 | K13: 0 | L13: 121 | N13: 221 | O13: =COUNTIF($L$7:$L$500,N13) -> 1 | P13: =O13/$Q$4 -> 0.02222222222 | Q13: =IF(P13=0,0,(P13*((LOG(P13))/LOG(2)))) -> -0.1220411799 | T13: =N13 -> 221 | U13: =COUNTIF(L7:L14,T13) -> 1 | V13: =U13/(W4-U7) -> 0.2 | W13: =IF(V13=0,0,(V13*((LOG(V13))/LOG(2)))) -> -0.464385619 | Y13: =N13 -> 221 | Z13: =COUNTIF(L15:L21,Y13) -> 0 | AA13: =Z13/(AB4-Z7) ->  | AB13: =IF(AA13=0,0,(AA13*((LOG(AA13))/LOG(2)))) ->  | AD13: =N13 -> 221 | AE13: =COUNTIF(L22:L29,AD13) -> 0 | AF13: =AE13/(AG4-AE7) ->  | AG13: =IF(AF13=0,0,(AF13*((LOG(AF13))/LOG(2)))) ->  | AI13: =N13 -> 221 | AJ13: =COUNTIF(L30:L36,AI13) -> 0 | AK13: =AJ13/(AL4-AJ7) ->  | AL13: =IF(AK13=0,0,(AK13*((LOG(AK13))/LOG(2)))) ->  | AN13: =N13 -> 221 | AO13: =COUNTIF(L37:L44,AN13) -> 0 | AP13: =AO13/(AQ4-AO7) -> 0 | AQ13: =IF(AP13=0,0,(AP13*((LOG(AP13))/LOG(2)))) -> 0 | AS13: =N13 -> 221 | AT13: =COUNTIF(L45:L51,AS13) -> 0 | AU13: =AT13/(AV4-AT7) ->  | AV13: =IF(AU13=0,0,(AU13*((LOG(AU13))/LOG(2)))) -> 
A14: 22 | B14: 1107 | C14: 24 | D14: 1124 | E14: 24 | F14: 1129 | K14: 0 | L14: 222 | N14: 222 | O14: =COUNTIF($L$7:$L$500,N14) -> 1 | P14: =O14/$Q$4 -> 0.02222222222 | Q14: =IF(P14=0,0,(P14*((LOG(P14))/LOG(2)))) -> -0.1220411799 | T14: =N14 -> 222 | U14: =COUNTIF(L7:L14,T14) -> 1 | V14: =U14/(W4-U7) -> 0.2 | W14: =IF(V14=0,0,(V14*((LOG(V14))/LOG(2)))) -> -0.464385619 | Y14: =N14 -> 222 | Z14: =COUNTIF(L15:L21,Y14) -> 0 | AA14: =Z14/(AB4-Z7) ->  | AB14: =IF(AA14=0,0,(AA14*((LOG(AA14))/LOG(2)))) ->  | AD14: =N14 -> 222 | AE14: =COUNTIF(L22:L29,AD14) -> 0 | AF14: =AE14/(AG4-AE7) ->  | AG14: =IF(AF14=0,0,(AF14*((LOG(AF14))/LOG(2)))) ->  | AI14: =N14 -> 222 | AJ14: =COUNTIF(L30:L36,AI14) -> 0 | AK14: =AJ14/(AL4-AJ7) ->  | AL14: =IF(AK14=0,0,(AK14*((LOG(AK14))/LOG(2)))) ->  | AN14: =N14 -> 222 | AO14: =COUNTIF(L37:L44,AN14) -> 0 | AP14: =AO14/(AQ4-AO7) -> 0 | AQ14: =IF(AP14=0,0,(AP14*((LOG(AP14))/LOG(2)))) -> 0 | AS14: =N14 -> 222 | AT14: =COUNTIF(L45:L51,AS14) -> 0 | AU14: =AT14/(AV4-AT7) ->  | AV14: =IF(AU14=0,0,(AU14*((LOG(AU14))/LOG(2)))) -> 
A15: 11 | B15: 1222 | C15: 11 | D15: 1225 | E15: 11 | F15: 1229 | K15: 0 | L15: 111 | P15: =SUM(P7:P14) -> 1 | Q15: =-SUM(Q7:Q14) -> 0.8667267289 | V15: =SUM(V7:V14) -> 1 | W15: =-SUM(W7:W14) -> 1.921928095 | AA15: =SUM(AA7:AA14) ->  | AB15: =-SUM(AB7:AB14) ->  | AF15: =SUM(AF7:AF14) ->  | AG15: =-SUM(AG7:AG14) ->  | AK15: =SUM(AK7:AK14) ->  | AL15: =-SUM(AL7:AL14) ->  | AP15: =SUM(AP7:AP14) -> 1 | AQ15: =-SUM(AQ7:AQ14) -> 0 | AU15: =SUM(AU7:AU14) ->  | AV15: =-SUM(AV7:AV14) -> 
A16: 11 | B16: 1429 | C16: 11 | D16: 1443 | E16: 11 | F16: 1462 | K16: 0 | L16: 111 | P16: U= | Q16: =Q15/(LOG(Q4)/LOG(2)) -> 0.1578204503 | V16: U1= | W16: =W15/(LOG(W4)/LOG(2)) -> 0.6406426983 | AA16: U2= | AB16: =AB15/(LOG(AB4)/LOG(2)) ->  | AF16: U3= | AG16: =AG15/(LOG(AG4)/LOG(2)) ->  | AK16: U4= | AL16: =AL15/(LOG(AL4)/LOG(2)) ->  | AP16: U5= | AQ16: =AQ15/(LOG(AQ4)/LOG(2)) -> 0 | AU16: U6= | AV16: =AV15/(LOG(AV4)/LOG(2)) -> 
A17: 11 | B17: 1594 | C17: 11 | D17: 1608 | E17: 11 | F17: 1623 | K17: 0 | L17: 111
A18: 11 | B18: 1772 | C18: 11 | D18: 1805 | E18: 11 | F18: 1824 | K18: 0 | L18: 111
A19: 11 | B19: 1949 | C19: 11 | D19: 1967 | E19: 11 | F19: 1984 | K19: 0 | L19: 111 | N19: Total Target Seq
A20: 11 | B20: 2114 | C20: 11 | D20: 2128 | E20: 11 | F20: 2143 | K20: 0 | L20: 111 | N20: =COUNTIF(L7:L51,G3) -> 39 | P20: 8 | Q20: 7 | R20: 8 | S20: 7 | T20: 8 | U20: 7
A21: 11 | B21: 2346 | C21: 11 | D21: 2366 | E21: 11 | F21: 2382 | K21: 0 | L21: 111 | P21: % of reinforcement given in 6 equal intervals based on number of trials
A22: 11 | B22: 2490 | C22: 11 | D22: 2505 | E22: 11 | F22: 2520 | K22: 0 | L22: 111 | P22: %_1 | Q22: %_2 | R22: %_3 | S22: %_4 | T22: %_5 | U22: %_6
